{"text_format":"1","workbook":"xlsx","n_sheets":18,"sheets":["Instructions","Summary","Open Pit","UG Mine","Tailings","Rock Pile","Bldgs & Equip","Chemicals","Water Management","Water Treatment","ICM","PostClosure","LongTerm Monitoring","Mobilization","SBB Comp. Est.","Unit_Costs","Estimator","Tools"],"not_rendered":{"charts":0,"images":3,"macros":1,"external_links":72,"defined_names":10079,"comments":0,"pivot_tables":0},"unopened":[],"bounds":{"document_bytes":16777216,"sheet_cells":100000,"rows_first":2000,"rows_last":500,"rows_between":2000,"halvings":0,"cell_chars":16384,"cell_head_chars":4096},"cells_cut":0,"cells_raw":0,"read":"whole","date_system":"1900"}

{"sheet":"Instructions","index":0,"n_rows":69,"n_cols":8,"rows_kept":69,"cut":false,"hidden":false,"merged":[[58,0,67,1],[32,0,32,1],[33,0,38,1],[39,0,46,1],[47,0,53,1],[54,0,57,1]]}
["Project Name:",null,"Reclaim Model - Overview of Program"]
[null,"Back River Project       ","All users are urged to read the Reclaim Model User Manual - Scroll down for overview description of program.",null,null,"","",""]
[null,null,"Important!  Reclaim 7.0 Works better With no other excel files open."]
[null,null,"If other excel files are open ignore run time error and proceed"]
["Reclaim Menu",null,"The default Excel menu bar has an additional tab labelled \"Add-Ins\" that provides options specific to the Reclaim Model.",null,null,"","",""]
[null,"Clear","This option deletes all input data, deletes any duplicated elements and blanks out the project name.  It also allows for segregation into land costs vs Water costs if required.",null,null,"","",""]
[null,"Duplicate","This option Duplicates components of the project. E.g. if there is more than one Open Pit, use duplicate to add a second Open Pit.  Quantities for the new Open Pit are erased, but the Activities and Cost Codes are carried over from the original Open Pit.  The new Open Pit subtotal is added to the Summary page.",null,null,"","",""]
[null,"Unit Costs","This option opens a Window of unit costs to provide easy reference.  NOTE:  the unit cost table has a filter in the 'UNITS' column.   You can select to only see a particular unit (e.g. km) or multiple units (km and m3) or all units.",null,null,"","",""]
[null,"Print All ","This option prints the Summary Worksheet, Unit Cost Worksheet, and the individual component Worksheets having non-zero balances.  Individual Worksheets can be printed directly using standard printing methods, such as Ctl - P.",null,null,"","",""]
[null,"Quit","Select Quit to exit the program",null,null,"","",""]
[null,"Help","Redirects user to Instructions Worksheet.",null,null,"","",""]
[null,null,null,null,null,"","",""]
["Worksheets",null,null,null,null,"","",""]
[null,"Summary ","This Worksheet contains a cumulative summary of costs for each component of the project.     Associated costs such as engineering and project management are added as a percentage of the component costs.\n",null,null,"","",""]
[null,"Components","Costs are derived for individual closure and reclamation activities by multiplying a \"quantity\" of activity by a \"unit cost\".      \nAn activity can be edited, added, or deleted from Worksheet.  However, care should be taken not to modify cells that are defined and used elsewhere in the program.",null,null,"","",""]
[null,null,"Do not change the content or column Width of the first column of each component Worksheet.",null,null,"","",""]
[null,"Unit Costs","This Worksheet contains a look up table With costs for typical Work associated With each closure and reclamation activity",null,null,"","",""]
[null,null,null,null,null,"","",""]
["Limitations",null,"The Reclaim Program will NOT work if the worksheets are changed such that the following requirements are not met.  Please review the following prior to modifiying worksheets.",null,null,"","",""]
[null,"Worksheet Names","The names of the Worksheets must not be changed.",null,null,"","",""]
[null,"Defined Names","Certain cells have defined names, which must not be changed.  Where the cell is named, the name will appear in the \"Name Box\" to the left of the formula bar.",null,null,"","",""]
[null,"First line of data","The first line of data for any component Worksheet starts on line 4.  Do not change the first line of a component Worksheet, i.e. the component name.",null,null,"","",""]
[null,"Cell A1","Cell A1 on the component sheet MUST always contain the count of that component for the duplicate function to operate.  DO NOT CHANGE.",null,null,"","",""]
[null,"Adding Lines","You can add lines to components and the unit cost table, as long as they are not the last lines.\nThe last line might fall outside the named ranges.  You can check the size of the named range by selecting the name from the drop down box at the top left of the sheet.  Usually this box has a cell reference, or a name.  ",null,null,"","",""]
[null,"Printing","A component Will only be printed if its sub-total is greater than zero.  In addition, a component and the summary sheet cannot be printed if there is an error.  Printing has been set to print 1 page per component. ",null,null,"","",""]
[null,null,null,null,null,"","",""]
["Conditions of Use",null,"The Reclamation Cost Estimating Model was prepared to serve as a guide for Government Agencies, mining companies, and others to estimate the cost of mine reclamation.  This model is not intended to replace reclamation planning or to be used to determine the activities required to reclaim a site or to dictate how much should be spent on reclamation.",null,null,"","",""]
[null,null,null,null,null,"","",""]
[null,null,"Reclaim was prepared by Brodie Consulting Ltd. on behalf of AANDC.  AANDC and Brodie Consulting Ltd. are not responsible for the completeness or accuracy of any reclamation estimate made using this model.  The user agrees to check and take responsibility for all aspects of any cost estimate made using this model.",null,null,"","",""]
[null,null,null,null,null,"","",""]
["The following table provides guidance as to Whether Water management and treatment is considered short term or long term.  Short term closure activities",null,null,null,null,"","",""]
["may be costed Within a component (e.g. 'Open Pit' or 'Rock Pile') or 'Water Management'.  Long term or post-closure Water treatment is costed in 'Water Treatment'."]
[null,null,null,"Short Term/ Capital Ex.","Long term/ NPV","","",""]
["Open Pit",null,"flood pit - install/operate pumping system","x",null,"","",""]
[null,null,"construct diversion ditches","x",null,"","",""]
[null,null,"treat 1st filling","x",null,"","",""]
[null,null,"install pump/decant system","x",null,"","",""]
[null,null,"passive/biological treatment","x",null,"","",""]
[null,null,"overflow treatment",null,"x","","",""]
["Rock Pile/Heap Leach Facility",null,"construct diversion ditches","x",null,"","",""]
[null,null,"install groundwater collection system","x",null,"","",""]
[null,null,"install toe seepage collection system","x",null,"","",""]
[null,null,"collect and treat groundwater",null,"x"]
[null,null,"collect and treat seepage (ARD/ML)",null,"x"]
[null,null,"install passive treatment system","x",null,"","",""]
[null,null,"operate and maintain passive treatment system",null,"x","","",""]
[null,null,"operate pump and detoxify heap leach pile (cyanide destruction)","x",null,"","",""]
["Tailings Facility",null,"construct diversion ditches","x",null,"","",""]
[null,null,"pump supernatant (to pit, U/G)","x",null,"","",""]
[null,null,"treat supernatant","x",null,"","",""]
[null,null,"install toe seepage collection system","x",null,"","",""]
[null,null,"collect and treat seepage (ARD/ML)",null,"x","","",""]
[null,null,"install passive treatment system","x",null,"","",""]
[null,null,"operate and maintain passive treatment system",null,"x","","",""]
["U/G Mine",null,"accelerate flooding","x",null,"","",""]
[null,null,"install seepage collection system","x",null,"","",""]
[null,null,"install dewatering/pumping system","x",null,"","",""]
[null,null,"operate seepage/dewatering system (ARD/ML)",null,"x","","",""]
["Water Management",null,"refill lakes",null,null,"","",""]
[null,null,"redirect creeks/streams","x",null,"","",""]
[null,null,"stabilize water management ponds","x",null,"","",""]
[null,null,"stabilize/close sediment ponds","x"]
[null,null,"fresh water supply - breach embankment","x"]
[null,null,"fresh water supply - remove piping system","x"]
[null,null,"construct water treatment plant","x"]
[null,null,"construct sludge pond","x"]
[null,null,"water control in reclamation quarry","x"]
[null,null,"operate/maintain water treatment plant",null,"x","","",""]
[null,null,null,null,null,"","",""]

{"sheet":"Summary","index":1,"n_rows":34,"n_cols":14,"rows_kept":34,"cut":false,"hidden":false,"merged":[]}
[null,"SUMMARY OF COSTS"]
[]
[]
["CAPITAL COSTS","COMPONENT NAME",null,"COST",null,"LAND LIABILITY",null,"TOTAL LIABILITY",null,"2AM COST","Difference","Updated Cloure Cost Changes",null,"Updated Cost Estimate Legend"]
["OPEN PIT",{"$f":"IF(ISBLANK('Open Pit'!$C$1),\"\",'Open Pit'!$C$1)","v":"Umwelt"},null,{"$f":"Pit1Total","v":51016.749953086321},null,{"$f":"Pit1LandTotal","v":0},null,{"$f":"Pit1WaterTotal","v":51016.749853086323},null,50424.887490743684,{"$f":"ROUND(D5-J5,0)","v":592},"W&W Mgmt Infrastructure",null,"Approved Cost Estimate text and values"]
[null,{"$f":"IF(ISBLANK('Open Pit'!$W$1),\"\",'Open Pit'!$W$1)","v":"Llama "},null,{"$f":"'Open Pit'!$AB$63","v":57577.353399999993},null,{"$f":"'Open Pit'!$AD$63","v":0},null,{"$f":"'Open Pit'!$AE$63","v":57577.353299999995},null,26176.6,{"$f":"ROUND(D6-J6,0)","v":31401},"W&W Mgmt Infrastructure",null,"Updated Cost Estimate text and values (November 2020)"]
[null,{"$f":"IF(ISBLANK('Open Pit'!$AQ$1),\"\",'Open Pit'!$AQ$1)","v":"Echo"},null,{"$f":"'Open Pit'!$AV$63","v":55054.595912500001},null,{"$f":"'Open Pit'!$AX$63","v":0},null,{"$f":"'Open Pit'!$AY$63","v":55054.595812500003},null,25934.3125,29120,"Supplementary Adjustment",null,"Updated Cost Estimate text and values (May 14, 2021)"]
[null,{"$f":"IF(ISBLANK('Open Pit'!$BL$1),\"\",'Open Pit'!$BL$1)","v":"Goose Main"},null,{"$f":"'Open Pit'!$BQ$63","v":88471.773039043153},null,{"$f":"'Open Pit'!$BS$63","v":0},null,{"$f":"'Open Pit'!$BT$63","v":88471.772939043149},null,84849.581245371839,3622,"W&W Mgmt Infrastructure",null,"Updated Cost Estimate text and values (May 27, 2021)"]
["QUARRY (under OPEN PIT TAB estimate)",{"$f":"IF(ISBLANK('Open Pit'!$CF$1),\"\",'Open Pit'!$CF$1)","v":"Airstrip Quarry"},null,{"$f":"'Open Pit'!$CK$63","v":3864.6001000000001},null,{"$f":"'Open Pit'!$CM$63","v":0},null,{"$f":"'Open Pit'!$CN$63","v":3864.6},null,3800,65,"No change from Approved Cost Estimate"]
["UNDERGROUND MINE",{"$f":"IF(ISBLANK('UG Mine'!$C$1),\"\",'UG Mine'!$C$1)","v":"Umwelt"},null,{"$f":"UG1Total","v":378099.03970000002},null,{"$f":"UG1LandTotal","v":0},null,{"$f":"UG1WaterTotal","v":378099.03960000002},null,320806.53999999998,57292,"Umwelt Underground Extension"]
[null,{"$f":"IF(ISBLANK('UG Mine'!$V$1),\"\",'UG Mine'!$V$1)","v":"Llama"},null,{"$f":"'UG Mine'!$AA$42","v":105417.74530000001},null,{"$f":"'UG Mine'!$AC$42","v":0},null,{"$f":"'UG Mine'!$AD$42","v":105417.7452},null,103655.6,1762,"No change from Approved Cost Estimate"]
[null,{"$f":"IF(ISBLANK('UG Mine'!$AG$1),\"\",'UG Mine'!$AG$1)","v":"Goose Main"},null,{"$f":"'UG Mine'!$AL$42","v":289249.70209372119},null,{"$f":"'UG Mine'!$AN$42","v":0},null,{"$f":"'UG Mine'!$AO$42","v":289249.70199372119},null,284414.6528945145,4835,"No change from Approved Cost Estimate"]
[null,{"$f":"IF(ISBLANK('UG Mine'!$AR$1),\"\",'UG Mine'!$AR$1)","v":"Echo"},null,{"$f":"'UG Mine'!$AW$42","v":97841.095300000001},null,{"$f":"'UG Mine'!$AY$42","v":0},null,{"$f":"'UG Mine'!$AZ$42","v":97841.095199999996},null,96205.6,1635,"No change from Approved Cost Estimate"]
["TAILINGS FACILITIES",{"$f":"IF(ISBLANK(Tailings!$C$1),\"\",Tailings!$C$1)","v":"TSF"},null,{"$f":"Tailings1Total","v":1730393.8714000003},null,{"$f":"Tailings1LandTotal","v":0},null,{"$f":"Tailings1WaterTotal","v":1730393.8713000002},null,344568.9,1385825,"W&W Mgmt Infrastructure"]
["ROCK PILE",{"$f":"IF(ISBLANK('Rock Pile'!$C$1),\"\",'Rock Pile'!$C$1)","v":"Umwelt, Llama, Goose Main, and Echo"},null,{"$f":"RP1Total","v":18310068.000100002},null,{"$f":"RP1LandTotal","v":0},null,{"$f":"D15","v":18310068.000100002},null,16800000.000100002,1510068,"W&W Mgmt Infrastructure"]
["BUILDINGS AND EQUIPMENT",{"$f":"IF(ISBLANK('Bldgs & Equip'!$C$1),\"\",'Bldgs & Equip'!$C$1)","v":""},null,{"$f":"Bldg1Total","v":2502132.8510500002},null,{"$f":"Bldg1LandTotal","v":0},null,{"$f":"Bldg1WaterTotal","v":2502132.8509500003},null,2069430.6166666669,432702,"Goose Property Airstrip Extension; Goose Property Total Water Use Increase; MLA Airstrip Extension; MLA Fuel Transfer Area; MLA Shoreline Pad Extension; WIR Subbase Upgrade; WIR Service/Emergency Camps; WIR Total Water Use Increase"]
["CHEMICALS AND CONTAMINATED SOIL MANAGEMENT",{"$f":"IF(ISBLANK(Chemicals!$C$1),\"\",Chemicals!$C$1)","v":""},null,{"$f":"Chem1Total","v":1386303.2100999998},null,{"$f":"Chem1LandTotal","v":0},null,{"$f":"Chem1WaterTotal","v":1386303.2099999997},null,1393130,-6827,"W&W Mgmt Infrastructure"]
["SURFACE AND GROUNDWATER MANAGEMENT",{"$f":"IF(ISBLANK('Water Treatment'!$C$1),\"\",'Water Treatment'!$C$1)","v":""},null,{"$f":"Water1Total","v":2131641.9955402981},null,"-",null,{"$f":"Water1Total","v":2131641.9955402981},null,346699.32845820894,1784943,"W&W Mgmt Infrastructure"]
["INTERIM CARE AND MAINTENANCE",{"$f":"IF(ISBLANK(ICM!$C$1),\"\",ICM!$C$1)","v":""},null,{"$f":"ICMTotal","v":968813.31960000005},null,"-",null,{"$f":"ICMTotal","v":968813.31960000005},null,952618.79999999993,16195,"No change from Approved Cost Estimate"]
[null,"SUBTOTAL: Capital Costs",null,{"$f":"SUM(D5:D19)","v":28155945.902588651},null,{"$f":"SUM(F5:F19)","v":0},null,{"$f":"SUM(H5:H19)","v":28155945.901388653},null,22902715.419355508,{"$f":"SUM(K5:K19)","v":5253230}]
[null,"PERCENT OF SUBTOTAL ",null,null,null,{"$f":"IF(F20<0.01,0,F20/D20)","v":0},null,{"$f":"IF(H20<0.01,0,H20/D20)","v":0.99999999995738031}]
[]
["INDIRECT COSTS",null,null,"COST",null,"LAND LIABILITY",null,"TOTAL LIABILITY",null,"2AM COST","Difference","Comments"]
["MOBILIZATION/DEMOBILIZATION",{"$f":"IF(ISBLANK(Mobilization!$C$1),\"\",Mobilization!$C$1)","v":""},null,{"$f":"MobTotal","v":4316542.426599999},null,{"$f":"D24*$F$21","v":0},null,{"$f":"D24*$H$21","v":4316542.4264160292},null,4244387.8332109451,{"$f":"D24-J24","v":72154.593389053829},"No change from Approved Cost Estimate"]
["POST-CLOSURE MONITORING AND MAINTENANCE",{"$f":"IF(ISBLANK(PostClosure!$S$1),\"\",PostClosure!$S$1)","v":""},null,{"$f":"PC1Total","v":1981838.0732999998},null,{"$f":"D25*$F$21","v":0},null,{"$f":"D25*$H$21","v":1981838.0732155344},null,7568243.1948712701,-5586405.1215712707,"Goose Property Airstrip Extension; MLA Airstrip Extension"]
["ENGINEERING ",0.1,null,{"$f":"B26*$D$20","v":2815594.5902588652},null,{"$f":"+$F$21*D26","v":0},null,{"$f":"+$H$21*D26","v":2815594.5901388652},null,2290271.5419355505,525323.04832331464,"No direct changes from previous Closure Cost Estimate; difference from % recalculation"]
["PROJECT MANAGEMENT",0.05,null,1407797.2951294326,null,0,null,1407797.2950694326,null,1145135.7709677753,262661.52416165732,"No direct changes from previous Closure Cost Estimate; difference from % recalculation"]
["HEALTH AND SAFETY PLANS/MONITORING & QA/QC",0.01,null,281559.45902588649,null,0,null,281559.45901388652,null,229027.15419355506,52532.304832331429,"No direct changes from previous Closure Cost Estimate; difference from % recalculation"]
["BONDING/INSURANCE",0.01,null,281559.45902588649,null,0,null,281559.45901388652,null,229027.15419355506,52532.304832331429,"No direct changes from previous Closure Cost Estimate; difference from % recalculation"]
["CONTINGENCY ",0.2,null,5631189.1805177303,null,0,null,5631189.1802777303,null,4580543.083871101,1050646.0966466293,"No direct changes from previous Closure Cost Estimate; difference from % recalculation"]
["MARKET PRICE FACTOR ADJUSTMENT",0,null,0,null,0,null,0,null,0,0,"No direct changes from previous Closure Cost Estimate; difference from % recalculation"]
[null,"SUBTOTAL: Indirect Costs",null,{"$f":"SUM(D24:D31)","v":16716080.483857799},null,{"$f":"SUM(F24:F31)","v":0},null,{"$f":"SUM(H24:H31)","v":16716080.483145364},null,20286635.733243752,{"$f":"SUM(K24:K31)","v":-3570555.249385952}]
[]
["TOTAL COSTS",null,null,{"$f":"D20+D32","v":44872026.386446446},null,{"$f":"F20+F32","v":0},null,{"$f":"H20+H32","v":44872026.384534016},null,43189351.15259926,{"$f":"D34-J34","v":1682675.233847186}]

{"sheet":"Open Pit","index":2,"n_rows":64,"n_cols":92,"rows_kept":64,"cut":false,"hidden":false,"merged":[[22,83,23,83]]}
[5,"Open Pit Name: ","Umwelt",null,null,null,"Pit #",1,null,null,{"$f":"H1","v":1},null,"Umwelt",null,null,null,"Pit #",1,null,null,null,"Open Pit Name: ","Llama ",null,null,null,"Pit #",{"$f":"H1+1","v":2},null,null,{"$f":"AB1","v":2},null,"Llama ",null,null,null,"Pit #",2,null,null,null,"Open Pit Name: ","Echo",null,null,null,"Pit #",{"$f":"AB1+1","v":3},null,null,{"$f":"AV1","v":3},null,"Open Pit Name: ","Echo",null,null,null,"Pit #",3,null,null,null,"Open Pit Name: ","Goose Main",null,null,null,"Pit #",{"$f":"AV1+1","v":4},null,null,{"$f":"BQ1","v":4},null,"Goose Main",null,null,null,"Pit #",4,4,null,null,"Quarry Name: ","Airstrip Quarry",null,null,null,"Quarry #",1,null,null,{"$f":"CK1","v":1}]
[]
[null,"ACTIVITY/MATERIAL","Notes","Units","Quantity","Cost Code","Unit Cost","Cost","% Land","Land Cost","Total Cost",null,"Notes","Units","Quantity","Cost Code","Unit Cost","Cost","Total Cost","Difference",null,"ACTIVITY/MATERIAL","Notes","Units","Quantity","Cost Code","Unit Cost","Cost","% Land","Land Cost","Total Cost",null,"Notes","Units","Quantity","Cost Code","Unit Cost","Cost","Total Cost","Difference",null,"ACTIVITY/MATERIAL","Notes","Units","Quantity","Cost Code","Unit Cost","Cost","% Land","Land Cost","Total Cost",null,"ACTIVITY/MATERIAL","Notes","Units","Quantity","Cost Code","Unit Cost","Cost","Total Cost","Difference",null,"ACTIVITY/MATERIAL","Notes","Units","Quantity","Cost Code","Unit Cost","Cost","% Land","Land Cost","Total Cost",null,"Notes","Units","Quantity","Cost Code","Unit Cost","Cost","Total Cost","Difference",null,"ACTIVITY/MATERIAL","Notes","Units","Quantity","Cost Code","Unit Cost","Cost","% Land","Land Cost","Total Cost"]
[null,"CONTROL ACCESS",null,null,null,null,null,null,null,null,null,null,null,null,null,null,null,null,null,null,null,"CONTROL ACCESS",null,null,null,null,null,null,null,null,null,null,null,null,null,null,null,null,null,null,null,"CONTROL ACCESS",null,null,null,null,null,null,null,null,null,null,"CONTROL ACCESS",null,null,null,null,null,null,null,null,null,"CONTROL ACCESS",null,null,null,null,null,null,null,null,null,null,null,null,null,null,null,null,null,null,null,"CONTROL ACCESS"]
[null,"Fence",null,"m",null,{"$f":"NA()","v":{"$error":"#N/A"}},{"$f":"IF(ISNA(F5),0,INDEX(IF(UPPER(RIGHT(F5,1))=Low,UnitCostLow, IF(UPPER(RIGHT(F5,1))=High,UnitCostHigh,UnitCostSpecified)),MATCH(UPPER(LEFT(F5,LEN(F5)-1)),CostCode,0)))","v":0},{"$f":"G5*E5","v":0},null,{"$f":"H5*I5","v":0},{"$f":"H5*(1-I5)","v":0},null,null,"m",null,{"$error":"#N/A"},0,0,0,{"$f":"K5-S5","v":0},null,"Fence",null,"m",null,{"$f":"NA()","v":{"$error":"#N/A"}},{"$f":"IF(ISNA(Z5),0,INDEX(IF(UPPER(RIGHT(Z5,1))=Low,UnitCostLow, IF(UPPER(RIGHT(Z5,1))=High,UnitCostHigh,UnitCostSpecified)),MATCH(UPPER(LEFT(Z5,LEN(Z5)-1)),CostCode,0)))","v":0},{"$f":"AA5*Y5","v":0},null,{"$f":"AB5*AC5","v":0},{"$f":"AB5*(1-AC5)","v":0},null,null,"m",null,{"$error":"#N/A"},0,0,0,{"$f":"AE5-AM5","v":0},null,"Fence",null,"m",null,{"$f":"NA()","v":{"$error":"#N/A"}},{"$f":"IF(ISNA(AT5),0,INDEX(IF(UPPER(RIGHT(AT5,1))=Low,UnitCostLow, IF(UPPER(RIGHT(AT5,1))=High,UnitCostHigh,UnitCostSpecified)),MATCH(UPPER(LEFT(AT5,LEN(AT5)-1)),CostCode,0)))","v":0},{"$f":"AU5*AS5","v":0},null,{"$f":"AV5*AW5","v":0},{"$f":"AV5*(1-AW5)","v":0},null,"Fence",null,"m",null,{"$error":"#N/A"},0,0,0,{"$f":"AY5-BH5","v":0},null,"Fence",null,"m",null,{"$f":"NA()","v":{"$error":"#N/A"}},{"$f":"IF(ISNA(BO5),0,INDEX(IF(UPPER(RIGHT(BO5,1))=Low,UnitCostLow, IF(UPPER(RIGHT(BO5,1))=High,UnitCostHigh,UnitCostSpecified)),MATCH(UPPER(LEFT(BO5,LEN(BO5)-1)),CostCode,0)))","v":0},{"$f":"BP5*BN5","v":0},null,{"$f":"BQ5*BR5","v":0},{"$f":"BQ5*(1-BR5)","v":0},null,null,"m",null,{"$error":"#N/A"},0,0,0,{"$f":"BT5-CB5","v":0},null,"Fence",null,"m",null,{"$f":"NA()","v":{"$error":"#N/A"}},{"$f":"IF(ISNA(CI5),0,INDEX(IF(UPPER(RIGHT(CI5,1))=Low,UnitCostLow, IF(UPPER(RIGHT(CI5,1))=High,UnitCostHigh,UnitCostSpecified)),MATCH(UPPER(LEFT(CI5,LEN(CI5)-1)),CostCode,0)))","v":0},{"$f":"CJ5*CH5","v":0},null,{"$f":"CK5*CL5","v":0},{"$f":"CK5*(1-CL5)","v":0}]
[null,"Signs","Assumed","each",4,"Sabina",{"$f":"Unit_Costs!F175","v":76.274999999999991},{"$f":"G6*E6","v":305.09999999999997},null,{"$f":"H6*I6","v":0},{"$f":"H6*(1-I6)","v":305.09999999999997},null,"Assumed","each",4,"Sabina",75,300,300,{"$f":"K6-S6","v":5.0999999999999659},null,"Signs","Assumed","each",4,"Sabina",{"$f":"Unit_Costs!F175","v":76.274999999999991},{"$f":"AA6*Y6","v":305.09999999999997},null,0,305.09999999999997,null,"Assumed","each",4,"Sabina",75,300,300,{"$f":"AE6-AM6","v":5.0999999999999659},null,"Signs","Assumed","each",4,"Sabina",{"$f":"Unit_Costs!F175","v":76.274999999999991},{"$f":"AU6*AS6","v":305.09999999999997},null,0,305.09999999999997,null,"Signs","Assumed","each",4,"Sabina",75,300,300,{"$f":"AY6-BH6","v":5.0999999999999659},null,"Signs","Assumed","each",4,"Sabina",{"$f":"Unit_Costs!F175","v":76.274999999999991},{"$f":"BP6*BN6","v":305.09999999999997},null,0,305.09999999999997,null,"Assumed","each",4,"Sabina",75,300,300,{"$f":"BT6-CB6","v":5.0999999999999659},null,"Signs",null,"each",null,{"$f":"NA()","v":{"$error":"#N/A"}},{"$f":"IF(ISNA(CI6),0,INDEX(IF(UPPER(RIGHT(CI6,1))=Low,UnitCostLow, IF(UPPER(RIGHT(CI6,1))=High,UnitCostHigh,UnitCostSpecified)),MATCH(UPPER(LEFT(CI6,LEN(CI6)-1)),CostCode,0)))","v":0},{"$f":"CJ6*CH6","v":0},null,{"$f":"CK6*CL6","v":0},{"$f":"CK6*(1-CL6)","v":0}]
[null,"Berm at crest","Estimated for continuous berm with 1m diameter boulders, no spacing between boulders - 0.52 m3/m - assumed 50 % done during Operations","m3",{"$f":"ROUNDUP('SBB Comp. Est.'!F7*0.52*0.5,0)*1.05","v":432.6},"RR1H",18.051749999999998,{"$f":"G7*E7","v":7809.1870499999995},null,0,7809.1870499999995,null,"Estimated for continuous berm with 1m diameter boulders, no spacing between boulders - 0.52 m3/m - assumed 50 % done during Operations","m3",447.3,"RR1H",17.75,7939.5749999999998,7939.5749999999998,{"$f":"K7-S7","v":-130.38795000000027},null,"Berm at crest","Estimated for berm with 1m diameter boulders, no spacing between boulders - 0.52 m3/m; berm needed only where pit edge will not abut the final flooded lake footprint.","m3",{"$f":"ROUNDUP('SBB Comp. Est.'!F10*0.52,0)*1.05","v":327.60000000000002},"RR1H",18.051749999999998,{"$f":"AA7*Y7","v":5913.7533000000003},null,0,5913.7533000000003,null,"Estimated for berm with 1m diameter boulders, no spacing between boulders - 0.52 m3/m; berm needed only where pit edge will not abut the final flooded lake footprint.","m3",218.4,"RR1H",17.75,3876.6,3876.6,{"$f":"AE7-AM7","v":2037.1533000000004},null,"Berm at crest","Estimated for continuous berm with 1m diameter boulders, no spacing between boulders - 0.52 m3/m - assumed 50 % done during Operations","m3",{"$f":"ROUNDUP('SBB Comp. Est.'!F8*0.52*0.5,0)*1.05","v":204.75},"RR1H",18.051749999999998,{"$f":"AU7*AS7","v":3696.0958124999997},null,0,3696.0958124999997,null,"Berm at crest","Estimated for continuous berm with 1m diameter boulders, no spacing between boulders - 0.52 m3/m - assumed 50 % done during Operations","m3",204.75,"RR1H",17.75,3634.3125,3634.3125,{"$f":"AY7-BH7","v":61.783312499999738},null,"Berm at crest","Estimated for continuous berm with 1m diameter boulders, no spacing between boulders - 0.52 m3/m  - assumed 50 % done during Operations","m3",{"$f":"ROUNDUP('SBB Comp. Est.'!F9*0.52*0.5,0)*1.05","v":639.45000000000005},"RR1H",18.051749999999998,{"$f":"BP7*BN7","v":11543.191537499999},null,0,11543.191537499999,null,"Estimated for continuous berm with 1m diameter boulders, no spacing between boulders - 0.52 m3/m  - assumed 50 % done during Operations","m3",518.70000000000005,"RR1H",17.75,9206.9250000000011,9206.9250000000011,{"$f":"BT7-CB7","v":2336.2665374999979},null,"Berm at crest",null,"m3",null,"RB1H",{"$f":"IF(ISNA(CI7),0,INDEX(IF(UPPER(RIGHT(CI7,1))=Low,UnitCostLow, IF(UPPER(RIGHT(CI7,1))=High,UnitCostHigh,UnitCostSpecified)),MATCH(UPPER(LEFT(CI7,LEN(CI7)-1)),CostCode,0)))","v":17.339849999999998},{"$f":"CJ7*CH7","v":0},null,0,0]
[null,"Block roads","Temporary gate installation to allow water monitoring. It includes decommissioning of gate when no longer required. Exposed area after gate has been decommissioned will be blocked with boulders (exposed area along with block of roads with boulders included in berm cost above) ","allow",1,"Sabina",{"$f":"Unit_Costs!F176","v":5084.9999999999991},{"$f":"G8*E8","v":5084.9999999999991},null,0,5084.9999999999991,null,"Temporary gate installation to allow water monitoring. It includes decommissioning of gate when no longer required. Exposed area after gate has been decommissioned will be blocked with boulders (exposed area along with block of roads with boulders included in berm cost above) ","allow",1,"Sabina",5000,5000,5000,{"$f":"K8-S8","v":84.999999999999091},null,"Block roads","Temporary gate installation to allow water monitoring. It includes decommissioning of gate when no longer required. Exposed area after gate has been decommissioned will be blocked with boulders (exposed area along with block of roads with boulders included in berm cost above) ","allow",1,"Sabina",{"$f":"Unit_Costs!F176","v":5084.9999999999991},{"$f":"AA8*Y8","v":5084.9999999999991},null,0,5084.9999999999991,null,"Temporary gate installation to allow water monitoring. It includes decommissioning of gate when no longer required. Exposed area after gate has been decommissioned will be blocked with boulders (exposed area along with block of roads with boulders included in berm cost above) ","allow",1,"Sabina",5000,5000,5000,{"$f":"AE8-AM8","v":84.999999999999091},null,"Block roads","Temporary gate installation to allow water monitoring. It includes decommissioning of gate when no longer required. Exposed area after gate has been decommissioned will be blocked with boulders (exposed area along with block of roads with boulders included in berm cost above) ","allow",1,"Sabina",{"$f":"Unit_Costs!F176","v":5084.9999999999991},{"$f":"AU8*AS8","v":5084.9999999999991},null,0,5084.9999999999991,null,"Block roads","Temporary gate installation to allow water monitoring. It includes decommissioning of gate when no longer required. Exposed area after gate has been decommissioned will be blocked with boulders (exposed area along with block of roads with boulders included in berm cost above) ","allow",1,"Sabina",5000,5000,5000,{"$f":"AY8-BH8","v":84.999999999999091},null,"Block roads","Temporary gate installation to allow water monitoring. It includes decommissioning of gate when no longer required. Exposed area after gate has been decommissioned will be blocked with boulders (exposed area along with block of roads with boulders included in berm cost above) ","allow",1,"Sabina",{"$f":"Unit_Costs!F176","v":5084.9999999999991},{"$f":"BP8*BN8","v":5084.9999999999991},null,0,5084.9999999999991,null,"Temporary gate installation to allow water monitoring. It includes decommissioning of gate when no longer required. Exposed area after gate has been decommissioned will be blocked with boulders (exposed area along with block of roads with boulders included in berm cost above) ","allow",1,"Sabina",5000,5000,5000,{"$f":"BT8-CB8","v":84.999999999999091},null,"Block roads",null,"allow",null,{"$f":"NA()","v":{"$error":"#N/A"}},0,{"$f":"CJ8*CH8","v":0},null,0,0]
[null,"Other",null,null,null,{"$f":"NA()","v":{"$error":"#N/A"}},{"$f":"IF(ISNA(F9),0,INDEX(IF(UPPER(RIGHT(F9,1))=Low,UnitCostLow, IF(UPPER(RIGHT(F9,1))=High,UnitCostHigh,UnitCostSpecified)),MATCH(UPPER(LEFT(F9,LEN(F9)-1)),CostCode,0)))","v":0},{"$f":"G9*E9","v":0},null,{"$f":"H9*I9","v":0},{"$f":"H9*(1-I9)","v":0},null,null,null,null,{"$error":"#N/A"},0,0,0,{"$f":"K9-S9","v":0},null,"Other",null,null,null,{"$f":"NA()","v":{"$error":"#N/A"}},{"$f":"IF(ISNA(Z9),0,INDEX(IF(UPPER(RIGHT(Z9,1))=Low,UnitCostLow, IF(UPPER(RIGHT(Z9,1))=High,UnitCostHigh,UnitCostSpecified)),MATCH(UPPER(LEFT(Z9,LEN(Z9)-1)),CostCode,0)))","v":0},{"$f":"AA9*Y9","v":0},null,{"$f":"AB9*AC9","v":0},{"$f":"AB9*(1-AC9)","v":0},null,null,null,null,{"$error":"#N/A"},0,0,0,{"$f":"AE9-AM9","v":0},null,"Other",null,null,null,{"$f":"NA()","v":{"$error":"#N/A"}},{"$f":"IF(ISNA(AT9),0,INDEX(IF(UPPER(RIGHT(AT9,1))=Low,UnitCostLow, IF(UPPER(RIGHT(AT9,1))=High,UnitCostHigh,UnitCostSpecified)),MATCH(UPPER(LEFT(AT9,LEN(AT9)-1)),CostCode,0)))","v":0},{"$f":"AU9*AS9","v":0},null,{"$f":"AV9*AW9","v":0},{"$f":"AV9*(1-AW9)","v":0},null,"Other",null,null,null,{"$error":"#N/A"},0,0,0,{"$f":"AY9-BH9","v":0},null,"Other",null,null,null,{"$f":"NA()","v":{"$error":"#N/A"}},{"$f":"IF(ISNA(BO9),0,INDEX(IF(UPPER(RIGHT(BO9,1))=Low,UnitCostLow, IF(UPPER(RIGHT(BO9,1))=High,UnitCostHigh,UnitCostSpecified)),MATCH(UPPER(LEFT(BO9,LEN(BO9)-1)),CostCode,0)))","v":0},{"$f":"BP9*BN9","v":0},null,{"$f":"BQ9*BR9","v":0},{"$f":"BQ9*(1-BR9)","v":0},null,null,null,null,{"$error":"#N/A"},0,0,0,{"$f":"BT9-CB9","v":0},null,"Other",null,null,null,{"$f":"NA()","v":{"$error":"#N/A"}},{"$f":"IF(ISNA(CI9),0,INDEX(IF(UPPER(RIGHT(CI9,1))=Low,UnitCostLow, IF(UPPER(RIGHT(CI9,1))=High,UnitCostHigh,UnitCostSpecified)),MATCH(UPPER(LEFT(CI9,LEN(CI9)-1)),CostCode,0)))","v":0},{"$f":"CJ9*CH9","v":0},null,{"$f":"CK9*CL9","v":0},{"$f":"CK9*(1-CL9)","v":0}]
[null,"STABILITY STUDY",null,null,null,null,null,null,null,null,null,null,null,null,null,null,null,null,null,null,null,"STABILITY STUDY",null,null,null,null,null,null,null,null,null,null,null,null,null,null,null,null,null,null,null,"STABILITY STUDY",null,null,null,null,null,null,null,null,null,null,"STABILITY STUDY",null,null,null,null,null,null,null,null,null,"STABILITY STUDY",null,null,null,null,null,null,null,null,null,null,null,null,null,null,null,null,null,null,null,"STABILITY STUDY"]
[null,"Conduct stability and setback study",null,"allow",1,"Sabina",{"$f":"Unit_Costs!F177","v":17289},{"$f":"G11*E11","v":17289},null,{"$f":"H11*I11","v":0},{"$f":"H11*(1-I11)","v":17289},null,null,"allow",1,"Sabina",17000,17000,17000,{"$f":"K11-S11","v":289},null,"Conduct stability and setback study",null,"allow",1,"Sabina",{"$f":"Unit_Costs!F177","v":17289},{"$f":"AA11*Y11","v":17289},null,{"$f":"AB11*AC11","v":0},{"$f":"AB11*(1-AC11)","v":17289},null,null,"allow",1,"Sabina",17000,17000,17000,{"$f":"AE11-AM11","v":289},null,"Conduct stability and setback study",null,"allow",1,"Sabina",{"$f":"Unit_Costs!F177","v":17289},{"$f":"AU11*AS11","v":17289},null,{"$f":"AV11*AW11","v":0},{"$f":"AV11*(1-AW11)","v":17289},null,"Conduct stability and setback study",null,"allow",1,"Sabina",17000,17000,17000,{"$f":"AY11-BH11","v":289},null,"Conduct stability and setback study",null,"allow",1,"Sabina",{"$f":"Unit_Costs!F177","v":17289},{"$f":"BP11*BN11","v":17289},null,{"$f":"BQ11*BR11","v":0},{"$f":"BQ11*(1-BR11)","v":17289},null,null,"allow",1,"Sabina",17000,17000,17000,{"$f":"BT11-CB11","v":289},null,"Conduct stability and setback study","Not required for quarry","allow",null,{"$f":"NA()","v":{"$error":"#N/A"}},{"$f":"IF(ISNA(CI11),0,INDEX(IF(UPPER(RIGHT(CI11,1))=Low,UnitCostLow, IF(UPPER(RIGHT(CI11,1))=High,UnitCostHigh,UnitCostSpecified)),MATCH(UPPER(LEFT(CI11,LEN(CI11)-1)),CostCode,0)))","v":0},{"$f":"CJ11*CH11","v":0},null,{"$f":"CK11*CL11","v":0},{"$f":"CK11*(1-CL11)","v":0}]
[null,"STABILIZE SLOPES",null,null,null,null,null,null,null,null,null,null,null,null,null,null,null,null,null,null,null,"STABILIZE SLOPES",null,null,null,null,null,null,null,null,null,null,null,null,null,null,null,null,null,null,null,"STABILIZE SLOPES",null,null,null,null,null,null,null,null,null,null,"STABILIZE SLOPES",null,null,null,null,null,null,null,null,null,"STABILIZE SLOPES",null,null,null,null,null,null,null,null,null,null,null,null,null,null,null,null,null,null,null,"STABILIZE SLOPES"]
[null,"Off-load crest, soil A",null,"m3",null,{"$f":"NA()","v":{"$error":"#N/A"}},0,{"$f":"G13*E13","v":0},null,0,0,null,null,"m3",null,{"$error":"#N/A"},0,0,0,{"$f":"K13-S13","v":0},null,"Off-load crest, soil A",null,"m3",null,{"$f":"NA()","v":{"$error":"#N/A"}},{"$f":"IF(ISNA(Z13),0,INDEX(IF(UPPER(RIGHT(Z13,1))=Low,UnitCostLow, IF(UPPER(RIGHT(Z13,1))=High,UnitCostHigh,UnitCostSpecified)),MATCH(UPPER(LEFT(Z13,LEN(Z13)-1)),CostCode,0)))","v":0},{"$f":"AA13*Y13","v":0},null,{"$f":"AB13*AC13","v":0},{"$f":"AB13*(1-AC13)","v":0},null,null,"m3",null,{"$error":"#N/A"},0,0,0,{"$f":"AE13-AM13","v":0},null,"Off-load crest, soil A",null,"m3",null,{"$f":"NA()","v":{"$error":"#N/A"}},{"$f":"IF(ISNA(AT13),0,INDEX(IF(UPPER(RIGHT(AT13,1))=Low,UnitCostLow, IF(UPPER(RIGHT(AT13,1))=High,UnitCostHigh,UnitCostSpecified)),MATCH(UPPER(LEFT(AT13,LEN(AT13)-1)),CostCode,0)))","v":0},{"$f":"AU13*AS13","v":0},null,{"$f":"AV13*AW13","v":0},{"$f":"AV13*(1-AW13)","v":0},null,"Off-load crest, soil A",null,"m3",null,{"$error":"#N/A"},0,0,0,{"$f":"AY13-BH13","v":0},null,"Off-load crest, soil A",null,"m3",null,{"$f":"NA()","v":{"$error":"#N/A"}},{"$f":"IF(ISNA(BO13),0,INDEX(IF(UPPER(RIGHT(BO13,1))=Low,UnitCostLow, IF(UPPER(RIGHT(BO13,1))=High,UnitCostHigh,UnitCostSpecified)),MATCH(UPPER(LEFT(BO13,LEN(BO13)-1)),CostCode,0)))","v":0},{"$f":"BP13*BN13","v":0},null,{"$f":"BQ13*BR13","v":0},{"$f":"BQ13*(1-BR13)","v":0},null,null,"m3",null,{"$error":"#N/A"},0,0,0,{"$f":"BT13-CB13","v":0},null,"Off-load crest, soil A",null,"m3",null,{"$f":"NA()","v":{"$error":"#N/A"}},{"$f":"IF(ISNA(CI13),0,INDEX(IF(UPPER(RIGHT(CI13,1))=Low,UnitCostLow, IF(UPPER(RIGHT(CI13,1))=High,UnitCostHigh,UnitCostSpecified)),MATCH(UPPER(LEFT(CI13,LEN(CI13)-1)),CostCode,0)))","v":0},{"$f":"CJ13*CH13","v":0},null,{"$f":"CK13*CL13","v":0},{"$f":"CK13*(1-CL13)","v":0}]
[null,"Off-load crest, soil B",null,"m3",null,{"$f":"NA()","v":{"$error":"#N/A"}},0,0,null,0,0,null,null,"m3",null,{"$error":"#N/A"},0,0,0,0,null,"Off-load crest, soil B",null,"m3",null,{"$f":"NA()","v":{"$error":"#N/A"}},0,0,null,0,0,null,null,"m3",null,{"$error":"#N/A"},0,0,0,0,null,"Off-load crest, soil B",null,"m3",null,{"$f":"NA()","v":{"$error":"#N/A"}},0,0,null,0,0,null,"Off-load crest, soil B",null,"m3",null,{"$error":"#N/A"},0,0,0,0,null,"Off-load crest, soil B",null,"m3",null,{"$f":"NA()","v":{"$error":"#N/A"}},0,0,null,0,0,null,null,"m3",null,{"$error":"#N/A"},0,0,0,0,null,"Off-load crest, soil B",null,"m3",null,{"$f":"NA()","v":{"$error":"#N/A"}},0,0,null,0,0]
[null,"Doze/trim overburden at crest",null,"m3",null,{"$f":"NA()","v":{"$error":"#N/A"}},0,0,null,0,0,null,null,"m3",null,{"$error":"#N/A"},0,0,0,0,null,"Doze/trim overburden at crest",null,"m3",null,{"$f":"NA()","v":{"$error":"#N/A"}},0,0,null,0,0,null,null,"m3",null,{"$error":"#N/A"},0,0,0,0,null,"Doze/trim overburden at crest",null,"m3",null,{"$f":"NA()","v":{"$error":"#N/A"}},0,0,null,0,0,null,"Doze/trim overburden at crest",null,"m3",null,{"$error":"#N/A"},0,0,0,0,null,"Doze/trim overburden at crest",null,"m3",null,{"$f":"NA()","v":{"$error":"#N/A"}},0,0,null,0,0,null,null,"m3",null,{"$error":"#N/A"},0,0,0,0,null,"Doze/trim overburden at crest",null,"m3",null,{"$f":"NA()","v":{"$error":"#N/A"}},0,0,null,0,0]
[null,"Drill & blast pit crest",null,"m3",null,{"$f":"NA()","v":{"$error":"#N/A"}},0,0,null,0,0,null,null,"m3",null,{"$error":"#N/A"},0,0,0,0,null,"Drill & blast pit crest",null,"m3",null,{"$f":"NA()","v":{"$error":"#N/A"}},0,0,null,0,0,null,null,"m3",null,{"$error":"#N/A"},0,0,0,0,null,"Drill & blast pit crest",null,"m3",null,{"$f":"NA()","v":{"$error":"#N/A"}},0,0,null,0,0,null,"Drill & blast pit crest",null,"m3",null,{"$error":"#N/A"},0,0,0,0,null,"Drill & blast pit crest",null,"m3",null,{"$f":"NA()","v":{"$error":"#N/A"}},0,0,null,0,0,null,null,"m3",null,{"$error":"#N/A"},0,0,0,0,null,"Drill & blast pit crest",null,"m3",null,{"$f":"NA()","v":{"$error":"#N/A"}},0,0,null,0,0]
[null,"Buttress slope",null,"m3",null,{"$f":"NA()","v":{"$error":"#N/A"}},0,0,null,0,0,null,null,"m3",null,{"$error":"#N/A"},0,0,0,0,null,"Buttress slope",null,"m3",null,{"$f":"NA()","v":{"$error":"#N/A"}},0,0,null,0,0,null,null,"m3",null,{"$error":"#N/A"},0,0,0,0,null,"Buttress slope",null,"m3",null,{"$f":"NA()","v":{"$error":"#N/A"}},0,0,null,0,0,null,"Buttress slope",null,"m3",null,{"$error":"#N/A"},0,0,0,0,null,"Buttress slope",null,"m3",null,{"$f":"NA()","v":{"$error":"#N/A"}},0,0,null,0,0,null,null,"m3",null,{"$error":"#N/A"},0,0,0,0,null,"Buttress slope",null,"m3",null,{"$f":"NA()","v":{"$error":"#N/A"}},0,0,null,0,0]
[null,"Other",null,null,null,{"$f":"NA()","v":{"$error":"#N/A"}},0,0,null,0,0,null,null,null,null,{"$error":"#N/A"},0,0,0,0,null,"Other",null,null,null,{"$f":"NA()","v":{"$error":"#N/A"}},0,0,null,0,0,null,null,null,null,{"$error":"#N/A"},0,0,0,0,null,"Other",null,null,null,{"$f":"NA()","v":{"$error":"#N/A"}},0,0,null,0,0,null,"Other",null,null,null,{"$error":"#N/A"},0,0,0,0,null,"Other",null,null,null,{"$f":"NA()","v":{"$error":"#N/A"}},0,0,null,0,0,null,null,null,null,{"$error":"#N/A"},0,0,0,0,null,"Other","Backhoe to pull down loose rock on bedrock backslope - assumed","hrs",20,"exc-sL",193.23,3864.6,null,0,3864.6]
[null,"COVER/CONTOUR SLOPES",null,null,null,null,null,null,null,null,null,null,null,null,null,null,null,null,null,null,null,"COVER/CONTOUR SLOPES",null,null,null,null,null,null,null,null,null,null,null,null,null,null,null,null,null,null,null,"COVER/CONTOUR SLOPES",null,null,null,null,null,null,null,null,null,null,"COVER/CONTOUR SLOPES",null,null,null,null,null,null,null,null,null,"COVER/CONTOUR SLOPES",null,null,null,null,null,null,null,null,null,null,null,null,null,null,null,null,null,null,null,"COVER/CONTOUR SLOPES"]
[null,"Place fill, soil A",null,"m3",null,{"$f":"NA()","v":{"$error":"#N/A"}},0,{"$f":"G20*E20","v":0},null,0,0,null,null,"m3",null,{"$error":"#N/A"},0,0,0,{"$f":"K20-S20","v":0},null,"Place fill, soil A",null,"m3",null,{"$f":"NA()","v":{"$error":"#N/A"}},{"$f":"IF(ISNA(Z20),0,INDEX(IF(UPPER(RIGHT(Z20,1))=Low,UnitCostLow, IF(UPPER(RIGHT(Z20,1))=High,UnitCostHigh,UnitCostSpecified)),MATCH(UPPER(LEFT(Z20,LEN(Z20)-1)),CostCode,0)))","v":0},{"$f":"AA20*Y20","v":0},null,{"$f":"AB20*AC20","v":0},{"$f":"AB20*(1-AC20)","v":0},null,null,"m3",null,{"$error":"#N/A"},0,0,0,{"$f":"AE20-AM20","v":0},null,"Place fill, soil A",null,"m3",null,{"$f":"NA()","v":{"$error":"#N/A"}},{"$f":"IF(ISNA(AT20),0,INDEX(IF(UPPER(RIGHT(AT20,1))=Low,UnitCostLow, IF(UPPER(RIGHT(AT20,1))=High,UnitCostHigh,UnitCostSpecified)),MATCH(UPPER(LEFT(AT20,LEN(AT20)-1)),CostCode,0)))","v":0},{"$f":"AU20*AS20","v":0},null,{"$f":"AV20*AW20","v":0},{"$f":"AV20*(1-AW20)","v":0},null,"Place fill, soil A",null,"m3",null,{"$error":"#N/A"},0,0,0,{"$f":"AY20-BH20","v":0},null,"Place fill, soil A",null,"m3",null,{"$f":"NA()","v":{"$error":"#N/A"}},{"$f":"IF(ISNA(BO20),0,INDEX(IF(UPPER(RIGHT(BO20,1))=Low,UnitCostLow, IF(UPPER(RIGHT(BO20,1))=High,UnitCostHigh,UnitCostSpecified)),MATCH(UPPER(LEFT(BO20,LEN(BO20)-1)),CostCode,0)))","v":0},{"$f":"BP20*BN20","v":0},null,{"$f":"BQ20*BR20","v":0},{"$f":"BQ20*(1-BR20)","v":0},null,null,"m3",null,{"$error":"#N/A"},0,0,0,{"$f":"BT20-CB20","v":0},null,"Place fill, soil A",null,"m3",null,{"$f":"NA()","v":{"$error":"#N/A"}},{"$f":"IF(ISNA(CI20),0,INDEX(IF(UPPER(RIGHT(CI20,1))=Low,UnitCostLow, IF(UPPER(RIGHT(CI20,1))=High,UnitCostHigh,UnitCostSpecified)),MATCH(UPPER(LEFT(CI20,LEN(CI20)-1)),CostCode,0)))","v":0},{"$f":"CJ20*CH20","v":0},null,{"$f":"CK20*CL20","v":0},{"$f":"CK20*(1-CL20)","v":0}]
[null,"Place fill, soil B",null,"m3",null,{"$f":"NA()","v":{"$error":"#N/A"}},0,0,null,0,0,null,null,"m3",null,{"$error":"#N/A"},0,0,0,0,null,"Place fill, soil B",null,"m3",null,{"$f":"NA()","v":{"$error":"#N/A"}},0,0,null,0,0,null,null,"m3",null,{"$error":"#N/A"},0,0,0,0,null,"Place fill, soil B",null,"m3",null,{"$f":"NA()","v":{"$error":"#N/A"}},0,0,null,0,0,null,"Place fill, soil B",null,"m3",null,{"$error":"#N/A"},0,0,0,0,null,"Place fill, soil B",null,"m3",null,{"$f":"NA()","v":{"$error":"#N/A"}},0,0,null,0,0,null,null,"m3",null,{"$error":"#N/A"},0,0,0,0,null,"Place fill, soil B",null,"m3",null,{"$f":"NA()","v":{"$error":"#N/A"}},0,0,null,0,0]
[null,"Rip rap",null,"m3",null,{"$f":"NA()","v":{"$error":"#N/A"}},0,0,null,0,0,null,null,"m3",null,{"$error":"#N/A"},0,0,0,0,null,"Rip rap",null,"m3",null,{"$f":"NA()","v":{"$error":"#N/A"}},0,0,null,0,0,null,null,"m3",null,{"$error":"#N/A"},0,0,0,0,null,"Rip rap",null,"m3",null,{"$f":"NA()","v":{"$error":"#N/A"}},0,0,null,0,0,null,"Rip rap",null,"m3",null,{"$error":"#N/A"},0,0,0,0,null,"Rip rap",null,"m3",null,{"$f":"NA()","v":{"$error":"#N/A"}},0,0,null,0,0,null,null,"m3",null,{"$error":"#N/A"},0,0,0,0,null,"Rip rap",null,"m3",null,{"$f":"NA()","v":{"$error":"#N/A"}},0,0,null,0,0]
[null,"Vegetate slopes",null,"ha",null,{"$f":"NA()","v":{"$error":"#N/A"}},0,0,null,0,0,null,null,"ha",null,{"$error":"#N/A"},0,0,0,0,null,"Vegetate slopes",null,"ha",null,{"$f":"NA()","v":{"$error":"#N/A"}},0,0,null,0,0,null,null,"ha",null,{"$error":"#N/A"},0,0,0,0,null,"Vegetate slopes",null,"ha",null,{"$f":"NA()","v":{"$error":"#N/A"}},0,0,null,0,0,null,"Vegetate slopes",null,"ha",null,{"$error":"#N/A"},0,0,0,0,null,"Vegetate slopes",null,"ha",null,{"$f":"NA()","v":{"$error":"#N/A"}},0,0,null,0,0,null,null,"ha",null,{"$error":"#N/A"},0,0,0,0,null,"Vegetate slopes","Allow to revegetate naturally","ha",null,{"$f":"NA()","v":{"$error":"#N/A"}},0,0,null,0,0]
[null,"Vegetate pit floor",null,"ha",null,{"$f":"NA()","v":{"$error":"#N/A"}},0,0,null,0,0,null,null,"ha",null,{"$error":"#N/A"},0,0,0,0,null,"Vegetate pit floor",null,"ha",null,{"$f":"NA()","v":{"$error":"#N/A"}},0,0,null,0,0,null,null,"ha",null,{"$error":"#N/A"},0,0,0,0,null,"Vegetate pit floor",null,"ha",null,{"$f":"NA()","v":{"$error":"#N/A"}},0,0,null,0,0,null,"Vegetate pit floor",null,"ha",null,{"$error":"#N/A"},0,0,0,0,null,"Vegetate pit floor",null,"ha",null,{"$f":"NA()","v":{"$error":"#N/A"}},0,0,null,0,0,null,null,"ha",null,{"$error":"#N/A"},0,0,0,0,null,"Vegetate pit floor",null,"ha",null,{"$f":"NA()","v":{"$error":"#N/A"}},0,0,null,0,0]
[null,"Other",null,null,null,{"$f":"NA()","v":{"$error":"#N/A"}},0,0,null,0,0,null,null,null,null,{"$error":"#N/A"},0,0,0,0,null,"Other",null,null,null,{"$f":"NA()","v":{"$error":"#N/A"}},0,0,null,0,0,null,null,null,null,{"$error":"#N/A"},0,0,0,0,null,"Other",null,null,null,{"$f":"NA()","v":{"$error":"#N/A"}},0,0,null,0,0,null,"Other",null,null,null,{"$error":"#N/A"},0,0,0,0,null,"Other",null,null,null,{"$f":"NA()","v":{"$error":"#N/A"}},0,0,null,0,0,null,null,null,null,{"$error":"#N/A"},0,0,0,0,null,"Other",null,null,null,{"$f":"NA()","v":{"$error":"#N/A"}},0,0,null,0,0]
[null,"CONSTRUCT DIVERSION DITCHES",null,null,null,null,null,null,null,null,null,null,null,null,null,null,null,null,null,null,null,"CONSTRUCT DIVERSION DITCHES",null,null,null,null,null,null,null,null,null,null,null,null,null,null,null,null,null,null,null,"CONSTRUCT DIVERSION DITCHES",null,null,null,null,null,null,null,null,null,null,"CONSTRUCT DIVERSION DITCHES",null,null,null,null,null,null,null,null,null,"CONSTRUCT DIVERSION DITCHES",null,null,null,null,null,null,null,null,null,null,null,null,null,null,null,null,null,null,null,"CONSTRUCT DIVERSION DITCHES"]
[null,"Excavate ditches -soil",null,"m3",null,{"$f":"NA()","v":{"$error":"#N/A"}},{"$f":"IF(ISNA(F27),0,INDEX(IF(UPPER(RIGHT(F27,1))=Low,UnitCostLow, IF(UPPER(RIGHT(F27,1))=High,UnitCostHigh,UnitCostSpecified)),MATCH(UPPER(LEFT(F27,LEN(F27)-1)),CostCode,0)))","v":0},{"$f":"G27*E27","v":0},null,{"$f":"H27*I27","v":0},{"$f":"H27*(1-I27)","v":0},null,null,"m3",null,{"$error":"#N/A"},0,0,0,{"$f":"K27-S27","v":0},null,"Excavate ditches -soil",null,"m3",null,{"$f":"NA()","v":{"$error":"#N/A"}},{"$f":"IF(ISNA(Z27),0,INDEX(IF(UPPER(RIGHT(Z27,1))=Low,UnitCostLow, IF(UPPER(RIGHT(Z27,1))=High,UnitCostHigh,UnitCostSpecified)),MATCH(UPPER(LEFT(Z27,LEN(Z27)-1)),CostCode,0)))","v":0},{"$f":"AA27*Y27","v":0},null,{"$f":"AB27*AC27","v":0},{"$f":"AB27*(1-AC27)","v":0},null,null,"m3",null,{"$error":"#N/A"},0,0,0,{"$f":"AE27-AM27","v":0},null,"Excavate ditches -soil",null,"m3",null,{"$f":"NA()","v":{"$error":"#N/A"}},{"$f":"IF(ISNA(AT27),0,INDEX(IF(UPPER(RIGHT(AT27,1))=Low,UnitCostLow, IF(UPPER(RIGHT(AT27,1))=High,UnitCostHigh,UnitCostSpecified)),MATCH(UPPER(LEFT(AT27,LEN(AT27)-1)),CostCode,0)))","v":0},{"$f":"AU27*AS27","v":0},null,{"$f":"AV27*AW27","v":0},{"$f":"AV27*(1-AW27)","v":0},null,"Excavate ditches -soil",null,"m3",null,{"$error":"#N/A"},0,0,0,{"$f":"AY27-BH27","v":0},null,"Excavate ditches -soil",null,"m3",null,{"$f":"NA()","v":{"$error":"#N/A"}},{"$f":"IF(ISNA(BO27),0,INDEX(IF(UPPER(RIGHT(BO27,1))=Low,UnitCostLow, IF(UPPER(RIGHT(BO27,1))=High,UnitCostHigh,UnitCostSpecified)),MATCH(UPPER(LEFT(BO27,LEN(BO27)-1)),CostCode,0)))","v":0},{"$f":"BP27*BN27","v":0},null,{"$f":"BQ27*BR27","v":0},{"$f":"BQ27*(1-BR27)","v":0},null,null,"m3",null,{"$error":"#N/A"},0,0,0,{"$f":"BT27-CB27","v":0},null,"Excavate ditches -soil",null,"m3",null,{"$f":"NA()","v":{"$error":"#N/A"}},{"$f":"IF(ISNA(CI27),0,INDEX(IF(UPPER(RIGHT(CI27,1))=Low,UnitCostLow, IF(UPPER(RIGHT(CI27,1))=High,UnitCostHigh,UnitCostSpecified)),MATCH(UPPER(LEFT(CI27,LEN(CI27)-1)),CostCode,0)))","v":0},{"$f":"CJ27*CH27","v":0},null,{"$f":"CK27*CL27","v":0},{"$f":"CK27*(1-CL27)","v":0}]
[null,"Excavate ditches -rock",null,"m3",null,{"$f":"NA()","v":{"$error":"#N/A"}},{"$f":"IF(ISNA(F28),0,INDEX(IF(UPPER(RIGHT(F28,1))=Low,UnitCostLow, IF(UPPER(RIGHT(F28,1))=High,UnitCostHigh,UnitCostSpecified)),MATCH(UPPER(LEFT(F28,LEN(F28)-1)),CostCode,0)))","v":0},0,null,0,0,null,null,"m3",null,{"$error":"#N/A"},0,0,0,{"$f":"K28-S28","v":0},null,"Excavate ditches -rock",null,"m3",null,{"$f":"NA()","v":{"$error":"#N/A"}},{"$f":"IF(ISNA(Z28),0,INDEX(IF(UPPER(RIGHT(Z28,1))=Low,UnitCostLow, IF(UPPER(RIGHT(Z28,1))=High,UnitCostHigh,UnitCostSpecified)),MATCH(UPPER(LEFT(Z28,LEN(Z28)-1)),CostCode,0)))","v":0},{"$f":"AA28*Y28","v":0},null,0,0,null,null,"m3",null,{"$error":"#N/A"},0,0,0,{"$f":"AE28-AM28","v":0},null,"Excavate ditches -rock",null,"m3",null,{"$f":"NA()","v":{"$error":"#N/A"}},{"$f":"IF(ISNA(AT28),0,INDEX(IF(UPPER(RIGHT(AT28,1))=Low,UnitCostLow, IF(UPPER(RIGHT(AT28,1))=High,UnitCostHigh,UnitCostSpecified)),MATCH(UPPER(LEFT(AT28,LEN(AT28)-1)),CostCode,0)))","v":0},{"$f":"AU28*AS28","v":0},null,0,0,null,"Excavate ditches -rock",null,"m3",null,{"$error":"#N/A"},0,0,0,0,null,"Excavate ditches -rock",null,"m3",null,{"$f":"NA()","v":{"$error":"#N/A"}},{"$f":"IF(ISNA(BO28),0,INDEX(IF(UPPER(RIGHT(BO28,1))=Low,UnitCostLow, IF(UPPER(RIGHT(BO28,1))=High,UnitCostHigh,UnitCostSpecified)),MATCH(UPPER(LEFT(BO28,LEN(BO28)-1)),CostCode,0)))","v":0},{"$f":"BP28*BN28","v":0},null,0,0,null,null,"m3",null,{"$error":"#N/A"},0,0,0,{"$f":"BT28-CB28","v":0},null,"Excavate ditches -rock",null,"m3",null,{"$f":"NA()","v":{"$error":"#N/A"}},{"$f":"IF(ISNA(CI28),0,INDEX(IF(UPPER(RIGHT(CI28,1))=Low,UnitCostLow, IF(UPPER(RIGHT(CI28,1))=High,UnitCostHigh,UnitCostSpecified)),MATCH(UPPER(LEFT(CI28,LEN(CI28)-1)),CostCode,0)))","v":0},{"$f":"CJ28*CH28","v":0},null,0,0]
[null,"Rip rap in channel base",null,"m3",null,{"$f":"NA()","v":{"$error":"#N/A"}},{"$f":"IF(ISNA(F29),0,INDEX(IF(UPPER(RIGHT(F29,1))=Low,UnitCostLow, IF(UPPER(RIGHT(F29,1))=High,UnitCostHigh,UnitCostSpecified)),MATCH(UPPER(LEFT(F29,LEN(F29)-1)),CostCode,0)))","v":0},0,null,0,0,null,null,"m3",null,{"$error":"#N/A"},0,0,0,{"$f":"K29-S29","v":0},null,"Rip rap in channel base",null,"m3",null,{"$f":"NA()","v":{"$error":"#N/A"}},{"$f":"IF(ISNA(Z29),0,INDEX(IF(UPPER(RIGHT(Z29,1))=Low,UnitCostLow, IF(UPPER(RIGHT(Z29,1))=High,UnitCostHigh,UnitCostSpecified)),MATCH(UPPER(LEFT(Z29,LEN(Z29)-1)),CostCode,0)))","v":0},{"$f":"AA29*Y29","v":0},null,0,0,null,null,"m3",null,{"$error":"#N/A"},0,0,0,{"$f":"AE29-AM29","v":0},null,"Rip rap in channel base",null,"m3",null,{"$f":"NA()","v":{"$error":"#N/A"}},{"$f":"IF(ISNA(AT29),0,INDEX(IF(UPPER(RIGHT(AT29,1))=Low,UnitCostLow, IF(UPPER(RIGHT(AT29,1))=High,UnitCostHigh,UnitCostSpecified)),MATCH(UPPER(LEFT(AT29,LEN(AT29)-1)),CostCode,0)))","v":0},{"$f":"AU29*AS29","v":0},null,0,0,null,"Rip rap in channel base",null,"m3",null,{"$error":"#N/A"},0,0,0,0,null,"Rip rap in channel base",null,"m3",null,{"$f":"NA()","v":{"$error":"#N/A"}},{"$f":"IF(ISNA(BO29),0,INDEX(IF(UPPER(RIGHT(BO29,1))=Low,UnitCostLow, IF(UPPER(RIGHT(BO29,1))=High,UnitCostHigh,UnitCostSpecified)),MATCH(UPPER(LEFT(BO29,LEN(BO29)-1)),CostCode,0)))","v":0},{"$f":"BP29*BN29","v":0},null,0,0,null,null,"m3",null,{"$error":"#N/A"},0,0,0,{"$f":"BT29-CB29","v":0},null,"Rip rap in channel base",null,"m3",null,{"$f":"NA()","v":{"$error":"#N/A"}},{"$f":"IF(ISNA(CI29),0,INDEX(IF(UPPER(RIGHT(CI29,1))=Low,UnitCostLow, IF(UPPER(RIGHT(CI29,1))=High,UnitCostHigh,UnitCostSpecified)),MATCH(UPPER(LEFT(CI29,LEN(CI29)-1)),CostCode,0)))","v":0},{"$f":"CJ29*CH29","v":0},null,0,0]
[null,"CONSTRUCT SPILLWAY",null,null,null,null,{"$f":"'SBB Comp. Est.'!X25","v":10.169999999999998},0,null,0,0,null,null,null,null,null,null,null,null,null,null,"CONSTRUCT SPILLWAY",null,null,null,null,null,null,null,null,null,null,null,null,null,null,{"$f":"'SBB Comp. Est.'!X30","v":12.994999999999999},null,null,null,null,"CONSTRUCT SPILLWAY",null,null,null,null,null,null,null,null,null,null,"CONSTRUCT SPILLWAY",null,null,null,null,null,null,null,null,null,"CONSTRUCT SPILLWAY",null,null,null,null,null,null,null,null,null,null,null,null,null,null,null,null,null,null,null,"CONSTRUCT SPILLWAY"]
[null,"Excavate channel","200 m long, 6 m wide and 1 m deep","m3",{"$f":"'SBB Comp. Est.'!F17","v":1200},"SB1L",{"$f":"IF(ISNA(F31),0,INDEX(IF(UPPER(RIGHT(F31,1))=Low,UnitCostLow, IF(UPPER(RIGHT(F31,1))=High,UnitCostHigh,UnitCostSpecified)),MATCH(UPPER(LEFT(F31,LEN(F31)-1)),CostCode,0)))","v":4.3730999999999991},5247.7199999999993,null,0,5247.7199999999993,null,"200 m long, 6 m wide and 1 m deep","m3",1200,"SB1L",4.3,5160,5160,{"$f":"K31-S31","v":87.719999999999345},null,"Excavate channel","Spillway not required; will follow natural drainage to Umwelt Lake.","m3",null,{"$f":"NA()","v":{"$error":"#N/A"}},{"$f":"IF(ISNA(Z31),0,INDEX(IF(UPPER(RIGHT(Z31,1))=Low,UnitCostLow, IF(UPPER(RIGHT(Z31,1))=High,UnitCostHigh,UnitCostSpecified)),MATCH(UPPER(LEFT(Z31,LEN(Z31)-1)),CostCode,0)))","v":0},{"$f":"AA31*Y31","v":0},null,{"$f":"AB31*AC31","v":0},{"$f":"AB31*(1-AC31)","v":0},null,"Spillway not required; will follow natural drainage to Umwelt Lake.","m3",null,{"$error":"#N/A"},{"$f":"'SBB Comp. Est.'!X29","v":0.13570833897740517},0,0,{"$f":"AE31-AM31","v":0},null,"Excavate channel","Spillway not required; will follow natural drainage to Goose Lake.","m3",null,{"$f":"NA()","v":{"$error":"#N/A"}},{"$f":"IF(ISNA(AT31),0,INDEX(IF(UPPER(RIGHT(AT31,1))=Low,UnitCostLow, IF(UPPER(RIGHT(AT31,1))=High,UnitCostHigh,UnitCostSpecified)),MATCH(UPPER(LEFT(AT31,LEN(AT31)-1)),CostCode,0)))","v":0},{"$f":"AU31*AS31","v":0},null,{"$f":"AV31*AW31","v":0},{"$f":"AV31*(1-AW31)","v":0},null,"Excavate channel","Spillway not required; will follow natural drainage to Goose Lake.","m3",null,{"$error":"#N/A"},0,0,0,{"$f":"AY31-BH31","v":0},null,"Excavate channel","100 m long, 6 m wide and 1 m deep","m3",{"$f":"'SBB Comp. Est.'!F20","v":600},"SB1L",{"$f":"IF(ISNA(BO31),0,INDEX(IF(UPPER(RIGHT(BO31,1))=Low,UnitCostLow, IF(UPPER(RIGHT(BO31,1))=High,UnitCostHigh,UnitCostSpecified)),MATCH(UPPER(LEFT(BO31,LEN(BO31)-1)),CostCode,0)))","v":4.3730999999999991},{"$f":"BP31*BN31","v":2623.8599999999997},null,{"$f":"BQ31*BR31","v":0},{"$f":"BQ31*(1-BR31)","v":2623.8599999999997},null,"100 m long, 6 m wide and 1 m deep","m3",600,"SB1L",4.3,2580,2580,{"$f":"BT31-CB31","v":43.859999999999673},null,"Excavate channel","Not required.  Quarry base will be graded for sheet drainage.","m3",null,"SB1L",{"$f":"IF(ISNA(CI31),0,INDEX(IF(UPPER(RIGHT(CI31,1))=Low,UnitCostLow, IF(UPPER(RIGHT(CI31,1))=High,UnitCostHigh,UnitCostSpecified)),MATCH(UPPER(LEFT(CI31,LEN(CI31)-1)),CostCode,0)))","v":4.3730999999999991},{"$f":"CJ31*CH31","v":0},null,{"$f":"CK31*CL31","v":0},{"$f":"CK31*(1-CL31)","v":0}]
[null,"Concrete",null,"m3",null,{"$f":"NA()","v":{"$error":"#N/A"}},0,0,null,0,0,null,null,"m3",null,{"$error":"#N/A"},0,0,0,{"$f":"K32-S32","v":0},null,"Concrete",null,"m3",null,{"$f":"NA()","v":{"$error":"#N/A"}},0,{"$f":"AA32*Y32","v":0},null,0,0,null,null,"m3",null,{"$error":"#N/A"},{"$f":"'SBB Comp. Est.'!X32","v":10.169999999999998},0,0,{"$f":"AE32-AM32","v":0},null,"Concrete",null,"m3",null,{"$f":"NA()","v":{"$error":"#N/A"}},0,{"$f":"AU32*AS32","v":0},null,0,0,null,"Concrete",null,"m3",null,{"$error":"#N/A"},0,0,0,0,null,"Concrete",null,"m3",null,{"$f":"NA()","v":{"$error":"#N/A"}},0,{"$f":"BP32*BN32","v":0},null,0,0,null,null,"m3",null,{"$error":"#N/A"},0,0,0,{"$f":"BT32-CB32","v":0},null,"Concrete",null,"m3",null,{"$f":"NA()","v":{"$error":"#N/A"}},0,{"$f":"CJ32*CH32","v":0},null,0,0]
[null,"Rip rap",null,"m3",400,"RR1H",18.051749999999998,7220.6999999999989,null,0,7220.6999999999989,null,null,"m3",400,"RR1H",17.75,7100,7100,{"$f":"K33-S33","v":120.69999999999891},null,"Rip rap",null,"m3",null,{"$f":"NA()","v":{"$error":"#N/A"}},0,{"$f":"AA33*Y33","v":0},null,0,0,null,null,"m3",null,{"$error":"#N/A"},0,0,0,{"$f":"AE33-AM33","v":0},null,"Rip rap",null,"m3",null,{"$f":"NA()","v":{"$error":"#N/A"}},0,{"$f":"AU33*AS33","v":0},null,0,0,null,"Rip rap",null,"m3",null,{"$error":"#N/A"},0,0,0,0,null,"Rip rap",null,"m3",200,"RR1H",18.051749999999998,{"$f":"BP33*BN33","v":3610.3499999999995},null,0,3610.3499999999995,null,null,"m3",200,"RR1H",17.75,3550,3550,{"$f":"BT33-CB33","v":60.349999999999454},null,"Rip rap",null,"m3",null,"RR1L",13.729499999999998,{"$f":"CJ33*CH33","v":0},null,0,0]
[null,"Other","Geotextile","m2",{"$f":"((SQRT(1^2+2^2))*2+6)*200*1.1","v":2303.8699100999079},"GSTL",3.4984799999999998,8060.042803086325,null,0,8060.042803086325,null,"Geotextile","m2",2303.8699100999079,"GSTL",3.44,7925.3124907436832,7925.3124907436832,{"$f":"K34-S34","v":134.73031234264181},null,"Other",null,null,null,{"$f":"NA()","v":{"$error":"#N/A"}},0,{"$f":"AA34*Y34","v":0},null,0,0,null,null,null,null,{"$error":"#N/A"},0,0,0,{"$f":"AE34-AM34","v":0},null,"Other",null,null,null,{"$f":"NA()","v":{"$error":"#N/A"}},0,{"$f":"AU34*AS34","v":0},null,0,0,null,"Other",null,null,null,{"$error":"#N/A"},0,0,0,0,null,"Other","Geotextile","m2",{"$f":"((SQRT(1^2+2^2))*2+6)*100*1.1","v":1151.9349550499539},"GSTL",3.4984799999999998,{"$f":"BP34*BN34","v":4030.0214015431625},null,0,4030.0214015431625,null,"Geotextile","m2",1151.9349550499539,"GSTL",3.44,3962.6562453718416,3962.6562453718416,{"$f":"BT34-CB34","v":67.365156171320905},null,"Other",null,"m2",null,"GSTL",3.4984799999999998,{"$f":"CJ34*CH34","v":0},null,0,0]
[null,"RECLAIM QUARRIES",null,null,null,null,null,null,null,null,null,null,null,null,null,null,null,null,null,null,null,"RECLAIM QUARRIES",null,null,null,null,null,null,null,null,null,null,null,null,null,null,null,null,null,null,null,"RECLAIM QUARRIES",null,null,null,null,null,null,null,null,null,null,"RECLAIM QUARRIES",null,null,null,null,null,null,null,null,null,"RECLAIM QUARRIES",null,null,null,null,null,null,null,null,null,null,null,null,null,null,null,null,null,null,null,"RECLAIM QUARRIES"]
[null,"Contour slopes",null,"m3",null,{"$f":"NA()","v":{"$error":"#N/A"}},{"$f":"IF(ISNA(F36),0,INDEX(IF(UPPER(RIGHT(F36,1))=Low,UnitCostLow, IF(UPPER(RIGHT(F36,1))=High,UnitCostHigh,UnitCostSpecified)),MATCH(UPPER(LEFT(F36,LEN(F36)-1)),CostCode,0)))","v":0},{"$f":"G36*E36","v":0},null,{"$f":"H36*I36","v":0},{"$f":"H36*(1-I36)","v":0},null,null,"m3",null,{"$error":"#N/A"},0,0,0,{"$f":"K36-S36","v":0},null,"Contour slopes",null,"m3",null,{"$f":"NA()","v":{"$error":"#N/A"}},{"$f":"IF(ISNA(Z36),0,INDEX(IF(UPPER(RIGHT(Z36,1))=Low,UnitCostLow, IF(UPPER(RIGHT(Z36,1))=High,UnitCostHigh,UnitCostSpecified)),MATCH(UPPER(LEFT(Z36,LEN(Z36)-1)),CostCode,0)))","v":0},{"$f":"AA36*Y36","v":0},null,{"$f":"AB36*AC36","v":0},{"$f":"AB36*(1-AC36)","v":0},null,null,"m3",null,{"$error":"#N/A"},0,0,0,{"$f":"AE36-AM36","v":0},null,"Contour slopes",null,"m3",null,{"$f":"NA()","v":{"$error":"#N/A"}},{"$f":"IF(ISNA(AT36),0,INDEX(IF(UPPER(RIGHT(AT36,1))=Low,UnitCostLow, IF(UPPER(RIGHT(AT36,1))=High,UnitCostHigh,UnitCostSpecified)),MATCH(UPPER(LEFT(AT36,LEN(AT36)-1)),CostCode,0)))","v":0},{"$f":"AU36*AS36","v":0},null,{"$f":"AV36*AW36","v":0},{"$f":"AV36*(1-AW36)","v":0},null,"Contour slopes",null,"m3",null,{"$error":"#N/A"},0,0,0,{"$f":"AY36-BH36","v":0},null,"Contour slopes",null,"m3",null,{"$f":"NA()","v":{"$error":"#N/A"}},{"$f":"IF(ISNA(BO36),0,INDEX(IF(UPPER(RIGHT(BO36,1))=Low,UnitCostLow, IF(UPPER(RIGHT(BO36,1))=High,UnitCostHigh,UnitCostSpecified)),MATCH(UPPER(LEFT(BO36,LEN(BO36)-1)),CostCode,0)))","v":0},{"$f":"BP36*BN36","v":0},null,{"$f":"BQ36*BR36","v":0},{"$f":"BQ36*(1-BR36)","v":0},null,null,"m3",null,{"$error":"#N/A"},0,0,0,{"$f":"BT36-CB36","v":0},null,"Contour slopes","Quarry will not be flooded - development will occur below water level and the areas will be contoured to drain positively","m3",null,{"$f":"NA()","v":{"$error":"#N/A"}},{"$f":"IF(ISNA(CI36),0,INDEX(IF(UPPER(RIGHT(CI36,1))=Low,UnitCostLow, IF(UPPER(RIGHT(CI36,1))=High,UnitCostHigh,UnitCostSpecified)),MATCH(UPPER(LEFT(CI36,LEN(CI36)-1)),CostCode,0)))","v":0},{"$f":"CJ36*CH36","v":0},null,{"$f":"CK36*CL36","v":0},{"$f":"CK36*(1-CL36)","v":0}]
[null,"Place overburden",null,"m3",null,{"$f":"NA()","v":{"$error":"#N/A"}},{"$f":"IF(ISNA(F37),0,INDEX(IF(UPPER(RIGHT(F37,1))=Low,UnitCostLow, IF(UPPER(RIGHT(F37,1))=High,UnitCostHigh,UnitCostSpecified)),MATCH(UPPER(LEFT(F37,LEN(F37)-1)),CostCode,0)))","v":0},{"$f":"G37*E37","v":0},null,{"$f":"H37*I37","v":0},{"$f":"H37*(1-I37)","v":0},null,null,"m3",null,{"$error":"#N/A"},0,0,0,{"$f":"K37-S37","v":0},null,"Place overburden",null,"m3",null,{"$f":"NA()","v":{"$error":"#N/A"}},{"$f":"IF(ISNA(Z37),0,INDEX(IF(UPPER(RIGHT(Z37,1))=Low,UnitCostLow, IF(UPPER(RIGHT(Z37,1))=High,UnitCostHigh,UnitCostSpecified)),MATCH(UPPER(LEFT(Z37,LEN(Z37)-1)),CostCode,0)))","v":0},{"$f":"AA37*Y37","v":0},null,{"$f":"AB37*AC37","v":0},{"$f":"AB37*(1-AC37)","v":0},null,null,"m3",null,{"$error":"#N/A"},0,0,0,{"$f":"AE37-AM37","v":0},null,"Place overburden",null,"m3",null,{"$f":"NA()","v":{"$error":"#N/A"}},{"$f":"IF(ISNA(AT37),0,INDEX(IF(UPPER(RIGHT(AT37,1))=Low,UnitCostLow, IF(UPPER(RIGHT(AT37,1))=High,UnitCostHigh,UnitCostSpecified)),MATCH(UPPER(LEFT(AT37,LEN(AT37)-1)),CostCode,0)))","v":0},{"$f":"AU37*AS37","v":0},null,{"$f":"AV37*AW37","v":0},{"$f":"AV37*(1-AW37)","v":0},null,"Place overburden",null,"m3",null,{"$error":"#N/A"},0,0,0,0,null,"Place overburden",null,"m3",null,{"$f":"NA()","v":{"$error":"#N/A"}},{"$f":"IF(ISNA(BO37),0,INDEX(IF(UPPER(RIGHT(BO37,1))=Low,UnitCostLow, IF(UPPER(RIGHT(BO37,1))=High,UnitCostHigh,UnitCostSpecified)),MATCH(UPPER(LEFT(BO37,LEN(BO37)-1)),CostCode,0)))","v":0},{"$f":"BP37*BN37","v":0},null,{"$f":"BQ37*BR37","v":0},{"$f":"BQ37*(1-BR37)","v":0},null,null,"m3",null,{"$error":"#N/A"},0,0,0,{"$f":"BT37-CB37","v":0},null,"Place overburden",null,"m3",null,{"$f":"NA()","v":{"$error":"#N/A"}},{"$f":"IF(ISNA(CI37),0,INDEX(IF(UPPER(RIGHT(CI37,1))=Low,UnitCostLow, IF(UPPER(RIGHT(CI37,1))=High,UnitCostHigh,UnitCostSpecified)),MATCH(UPPER(LEFT(CI37,LEN(CI37)-1)),CostCode,0)))","v":0},{"$f":"CJ37*CH37","v":0},null,{"$f":"CK37*CL37","v":0},{"$f":"CK37*(1-CL37)","v":0}]
[null,"Vegetate",null,"m3",null,{"$f":"NA()","v":{"$error":"#N/A"}},{"$f":"IF(ISNA(F38),0,INDEX(IF(UPPER(RIGHT(F38,1))=Low,UnitCostLow, IF(UPPER(RIGHT(F38,1))=High,UnitCostHigh,UnitCostSpecified)),MATCH(UPPER(LEFT(F38,LEN(F38)-1)),CostCode,0)))","v":0},{"$f":"G38*E38","v":0},null,{"$f":"H38*I38","v":0},{"$f":"H38*(1-I38)","v":0},null,null,"m3",null,{"$error":"#N/A"},0,0,0,{"$f":"K38-S38","v":0},null,"Vegetate",null,"m3",null,{"$f":"NA()","v":{"$error":"#N/A"}},{"$f":"IF(ISNA(Z38),0,INDEX(IF(UPPER(RIGHT(Z38,1))=Low,UnitCostLow, IF(UPPER(RIGHT(Z38,1))=High,UnitCostHigh,UnitCostSpecified)),MATCH(UPPER(LEFT(Z38,LEN(Z38)-1)),CostCode,0)))","v":0},{"$f":"AA38*Y38","v":0},null,{"$f":"AB38*AC38","v":0},{"$f":"AB38*(1-AC38)","v":0},null,null,"m3",null,{"$error":"#N/A"},0,0,0,{"$f":"AE38-AM38","v":0},null,"Vegetate",null,"m3",null,{"$f":"NA()","v":{"$error":"#N/A"}},{"$f":"IF(ISNA(AT38),0,INDEX(IF(UPPER(RIGHT(AT38,1))=Low,UnitCostLow, IF(UPPER(RIGHT(AT38,1))=High,UnitCostHigh,UnitCostSpecified)),MATCH(UPPER(LEFT(AT38,LEN(AT38)-1)),CostCode,0)))","v":0},{"$f":"AU38*AS38","v":0},null,{"$f":"AV38*AW38","v":0},{"$f":"AV38*(1-AW38)","v":0},null,"Vegetate",null,"m3",null,{"$error":"#N/A"},0,0,0,0,null,"Vegetate",null,"m3",null,{"$f":"NA()","v":{"$error":"#N/A"}},{"$f":"IF(ISNA(BO38),0,INDEX(IF(UPPER(RIGHT(BO38,1))=Low,UnitCostLow, IF(UPPER(RIGHT(BO38,1))=High,UnitCostHigh,UnitCostSpecified)),MATCH(UPPER(LEFT(BO38,LEN(BO38)-1)),CostCode,0)))","v":0},{"$f":"BP38*BN38","v":0},null,{"$f":"BQ38*BR38","v":0},{"$f":"BQ38*(1-BR38)","v":0},null,null,"m3",null,{"$error":"#N/A"},0,0,0,{"$f":"BT38-CB38","v":0},null,"Vegetate",null,"m3",null,{"$f":"NA()","v":{"$error":"#N/A"}},{"$f":"IF(ISNA(CI38),0,INDEX(IF(UPPER(RIGHT(CI38,1))=Low,UnitCostLow, IF(UPPER(RIGHT(CI38,1))=High,UnitCostHigh,UnitCostSpecified)),MATCH(UPPER(LEFT(CI38,LEN(CI38)-1)),CostCode,0)))","v":0},{"$f":"CJ38*CH38","v":0},null,{"$f":"CK38*CL38","v":0},{"$f":"CK38*(1-CL38)","v":0}]
[null,"FLOOD PIT-Capital",null,null,null,null,null,null,null,null,null,null,null,null,null,null,null,null,null,null,null,"FLOOD PIT-Capital",null,null,null,null,null,null,null,null,null,null,null,null,null,null,null,null,null,null,null,"FLOOD PIT-Capital",null,null,null,null,null,null,null,null,null,null,"FLOOD PIT-Capital",null,null,null,null,null,null,null,null,null,"FLOOD PIT-Capital",null,null,null,null,null,null,null,null,null,null,null,null,null,null,null,null,null,null,null,"FLOOD PIT-Capital"]
[null,"Remove stationary equipment \n(sump pumps) and Pipeline","In Year 3, the exhausted Umwelt Pit will be converted to a water reservoir. Water from the Saline Water Pond will be pumped into Umwelt Reservoir between Year 3 and 4. The Umwelt Reservoir will continue to passively flood with site runoff and direct precipitation through the remainder of Operations and into the Closure Phase. \nPipelines/pumps will be relocated for use in the other active pits (Goose Main Pit) and removed to closure landfill once they are no longer needed.\nDispose of fuel in diesel day tank and oil from pump and landfill cleaned pump.   \nRemove of pumps and pipelines will occur during Operations.","m",null,{"$f":"NA()","v":{"$error":"#N/A"}},{"$f":"IF(ISNA(F40),0,INDEX(IF(UPPER(RIGHT(F40,1))=Low,UnitCostLow, IF(UPPER(RIGHT(F40,1))=High,UnitCostHigh,UnitCostSpecified)),MATCH(UPPER(LEFT(F40,LEN(F40)-1)),CostCode,0)))","v":0},{"$f":"G40*E40","v":0},null,{"$f":"H40*I40","v":0},{"$f":"H40*(1-I40)","v":0},null,"Umwelt TF will be used to store tailings in Years 2 to 6 and it will then passively flood with site runoff and direct precipitation through the remainder of Operations and into the Closure Phase. \nPipelines/pumps will be relocated for use in the other active pits (Llama Pit and Goose Main Pit) and removed to closure landfill once they are no longer needed.\nDispose of fuel in diesel day tank and oil from pump and landfill cleaned pump.   \nRemove of pumps and pipelines will occur during Operations.","m",null,{"$error":"#N/A"},0,0,0,{"$f":"K40-S40","v":0},null,"Remove stationary equipment\n(sump pumps) and Pipeline","Llama TF will be used to store tailings in Years 5 to 12; it will be passively flooded from Year 5 through Year 11 with site runoff and direct precipitation throughout the end of Operations.\nAt Closure, pump will be at top of TF and pipeline leads to WTP. Remove pipeline to closure landfill; dispose of fuel in diesel day tank and oil from pump and landfill cleaned pump. \n","m",{"$f":"'SBB Comp. Est.'!F13","v":2850},"Sabina",{"$f":"'SBB Comp. Est.'!X13","v":10.169999999999998},{"$f":"AA40*Y40","v":28984.499999999996},null,{"$f":"AB40*AC40","v":0},{"$f":"AB40*(1-AC40)","v":28984.499999999996},null,"In Year 6, the exhausted Llama Pit will be converted to a water reservoir. Water from the Saline Water Pond will be pumped into Llama Reservoir between Year 4 and Year 9. The Llama Reservoir will continue to passively flood with site runoff and direct precipitation through the remainder of Operations and into the Closure Phase. \nPipelines/pumps will be relocated for use in the other active pits (Goose Main Pit and Echo Pit) and removed to closure landfill once they are no longer needed.\nDispose of fuel in diesel day tank and oil from pump and landfill cleaned pump.   \nRemove of pumps and pipelines will occur during Operations.","m",null,{"$error":"#N/A"},0,0,0,{"$f":"AE40-AM40","v":28984.499999999996},null,"Remove stationary equipment\n (sump pumps) and Pipeline","Deposit not in current mine plan. No changes to costs to keep the stage intact, except: Allotment added for future potential usage of Echo Pit for permenant tailings storage.\nAt Closure, pump and pipeline removed to closure  landfill; dispose of fuel in diesel day tank and oil from pump and landfill cleaned pump. \n","m",{"$f":"'SBB Comp. Est.'!F15","v":2820},"Sabina",{"$f":"'SBB Comp. Est.'!X15","v":10.17},{"$f":"AU40*AS40","v":28679.4},null,{"$f":"AV40*AW40","v":0},{"$f":"AV40*(1-AW40)","v":28679.4},null,"Remove stationary equipment\n (sump pumps) and Pipeline","Once mining of the Echo Pit concludes in Year 5, dewatering will continue until Year 9 (i.e., the end of Echo U/G mining) as the two mines will be connected. Starting in Year 10, Echo Pit will passively flood with site runoff and direct precipitation through the remainder of Operations and into the Closure Phase.\nPipelines/pumps will be removed to closure landfill.\nDispose of fuel in diesel day tank and oil from pump and landfill cleaned pump.   \nRemove of pumps and pipeline will occur during Operations.","m",null,{"$error":"#N/A"},0,0,0,{"$f":"AY40-BH40","v":28679.4},null,"Remove stationary equipment \n(sump pumps) and Pipeline","At closure, pump will be at top of Goose Reservoir. Remove pipeline to closure landfill; dispose of fuel in diesel day tank and oil from pump and landfill cleaned pump. ","m",{"$f":"'SBB Comp. Est.'!F14","v":4325},"Sabina",{"$f":"'SBB Comp. Est.'!X14","v":10.169999999999998},{"$f":"BP40*BN40","v":43985.249999999993},null,{"$f":"BQ40*BR40","v":0},{"$f":"BQ40*(1-BR40)","v":43985.249999999993},null,"At closure, pump will be at top of TF and pipeline leads to WTP. Remove pipeline to closure landfill; dispose of fuel in diesel day tank and oil from pump and landfill cleaned pump. ","m",4325,"Sabina",10,43250,43250,{"$f":"BT40-CB40","v":735.24999999999272},null,"Remove stationary equipment \n(sump pumps) and Pipeline",null,"m",null,{"$f":"NA()","v":{"$error":"#N/A"}},{"$f":"IF(ISNA(CI40),0,INDEX(IF(UPPER(RIGHT(CI40,1))=Low,UnitCostLow, IF(UPPER(RIGHT(CI40,1))=High,UnitCostHigh,UnitCostSpecified)),MATCH(UPPER(LEFT(CI40,LEN(CI40)-1)),CostCode,0)))","v":0},{"$f":"CJ40*CH40","v":0},null,{"$f":"CK40*CL40","v":0},{"$f":"CK40*(1-CL40)","v":0}]
[null,"Remove dewatering pipeline",null,"m",null,{"$f":"NA()","v":{"$error":"#N/A"}},{"$f":"IF(ISNA(F41),0,INDEX(IF(UPPER(RIGHT(F41,1))=Low,UnitCostLow, IF(UPPER(RIGHT(F41,1))=High,UnitCostHigh,UnitCostSpecified)),MATCH(UPPER(LEFT(F41,LEN(F41)-1)),CostCode,0)))","v":0},{"$f":"G41*E41","v":0},null,{"$f":"H41*I41","v":0},{"$f":"H41*(1-I41)","v":0},null,null,"m",null,{"$error":"#N/A"},0,0,0,0,null,"Remove dewatering pipeline",null,"m",null,{"$f":"NA()","v":{"$error":"#N/A"}},{"$f":"IF(ISNA(Z41),0,INDEX(IF(UPPER(RIGHT(Z41,1))=Low,UnitCostLow, IF(UPPER(RIGHT(Z41,1))=High,UnitCostHigh,UnitCostSpecified)),MATCH(UPPER(LEFT(Z41,LEN(Z41)-1)),CostCode,0)))","v":0},{"$f":"AA41*Y41","v":0},null,{"$f":"AB41*AC41","v":0},{"$f":"AB41*(1-AC41)","v":0},null,null,"m",null,{"$error":"#N/A"},0,0,0,0,null,"Remove dewatering pipeline",null,"m",null,{"$f":"NA()","v":{"$error":"#N/A"}},{"$f":"IF(ISNA(AT41),0,INDEX(IF(UPPER(RIGHT(AT41,1))=Low,UnitCostLow, IF(UPPER(RIGHT(AT41,1))=High,UnitCostHigh,UnitCostSpecified)),MATCH(UPPER(LEFT(AT41,LEN(AT41)-1)),CostCode,0)))","v":0},{"$f":"AU41*AS41","v":0},null,{"$f":"AV41*AW41","v":0},{"$f":"AV41*(1-AW41)","v":0},null,"Remove dewatering pipeline",null,"m",null,{"$error":"#N/A"},0,0,0,0,null,"Remove dewatering pipeline",null,"m",null,{"$f":"NA()","v":{"$error":"#N/A"}},{"$f":"IF(ISNA(BO41),0,INDEX(IF(UPPER(RIGHT(BO41,1))=Low,UnitCostLow, IF(UPPER(RIGHT(BO41,1))=High,UnitCostHigh,UnitCostSpecified)),MATCH(UPPER(LEFT(BO41,LEN(BO41)-1)),CostCode,0)))","v":0},{"$f":"BP41*BN41","v":0},null,{"$f":"BQ41*BR41","v":0},{"$f":"BQ41*(1-BR41)","v":0},null,null,"m",null,{"$error":"#N/A"},0,0,0,0,null,"Remove dewatering pipeline",null,"m",null,{"$f":"NA()","v":{"$error":"#N/A"}},{"$f":"IF(ISNA(CI41),0,INDEX(IF(UPPER(RIGHT(CI41,1))=Low,UnitCostLow, IF(UPPER(RIGHT(CI41,1))=High,UnitCostHigh,UnitCostSpecified)),MATCH(UPPER(LEFT(CI41,LEN(CI41)-1)),CostCode,0)))","v":0},{"$f":"CJ41*CH41","v":0},null,{"$f":"CK41*CL41","v":0},{"$f":"CK41*(1-CL41)","v":0}]
[null,"Remove power lines",null,"each",null,{"$f":"NA()","v":{"$error":"#N/A"}},0,{"$f":"G42*E42","v":0},null,0,0,null,null,"each",null,{"$error":"#N/A"},0,0,0,0,null,"Remove power lines",null,"each",null,{"$f":"NA()","v":{"$error":"#N/A"}},{"$f":"IF(ISNA(Z42),0,INDEX(IF(UPPER(RIGHT(Z42,1))=Low,UnitCostLow, IF(UPPER(RIGHT(Z42,1))=High,UnitCostHigh,UnitCostSpecified)),MATCH(UPPER(LEFT(Z42,LEN(Z42)-1)),CostCode,0)))","v":0},{"$f":"AA42*Y42","v":0},null,{"$f":"AB42*AC42","v":0},{"$f":"AB42*(1-AC42)","v":0},null,null,"each",null,{"$error":"#N/A"},0,0,0,0,null,"Remove power lines",null,"each",null,{"$f":"NA()","v":{"$error":"#N/A"}},{"$f":"IF(ISNA(AT42),0,INDEX(IF(UPPER(RIGHT(AT42,1))=Low,UnitCostLow, IF(UPPER(RIGHT(AT42,1))=High,UnitCostHigh,UnitCostSpecified)),MATCH(UPPER(LEFT(AT42,LEN(AT42)-1)),CostCode,0)))","v":0},{"$f":"AU42*AS42","v":0},null,{"$f":"AV42*AW42","v":0},{"$f":"AV42*(1-AW42)","v":0},null,"Remove power lines",null,"each",null,{"$error":"#N/A"},0,0,0,0,null,"Remove power lines",null,"each",null,{"$f":"NA()","v":{"$error":"#N/A"}},{"$f":"IF(ISNA(BO42),0,INDEX(IF(UPPER(RIGHT(BO42,1))=Low,UnitCostLow, IF(UPPER(RIGHT(BO42,1))=High,UnitCostHigh,UnitCostSpecified)),MATCH(UPPER(LEFT(BO42,LEN(BO42)-1)),CostCode,0)))","v":0},{"$f":"BP42*BN42","v":0},null,{"$f":"BQ42*BR42","v":0},{"$f":"BQ42*(1-BR42)","v":0},null,null,"each",null,{"$error":"#N/A"},0,0,0,0,null,"Remove power lines",null,"each",null,{"$f":"NA()","v":{"$error":"#N/A"}},{"$f":"IF(ISNA(CI42),0,INDEX(IF(UPPER(RIGHT(CI42,1))=Low,UnitCostLow, IF(UPPER(RIGHT(CI42,1))=High,UnitCostHigh,UnitCostSpecified)),MATCH(UPPER(LEFT(CI42,LEN(CI42)-1)),CostCode,0)))","v":0},{"$f":"CJ42*CH42","v":0},null,{"$f":"CK42*CL42","v":0},{"$f":"CK42*(1-CL42)","v":0}]
[null,"Construct diversion ditches",null,"m3",null,{"$f":"NA()","v":{"$error":"#N/A"}},{"$f":"IF(ISNA(F43),0,INDEX(IF(UPPER(RIGHT(F43,1))=Low,UnitCostLow, IF(UPPER(RIGHT(F43,1))=High,UnitCostHigh,UnitCostSpecified)),MATCH(UPPER(LEFT(F43,LEN(F43)-1)),CostCode,0)))","v":0},{"$f":"G43*E43","v":0},null,{"$f":"H43*I43","v":0},{"$f":"H43*(1-I43)","v":0},null,null,"m3",null,{"$error":"#N/A"},0,0,0,0,null,"Construct diversion ditches",null,"m3",null,{"$f":"NA()","v":{"$error":"#N/A"}},0,0,null,0,0,null,null,"m3",null,{"$error":"#N/A"},0,0,0,0,null,"Construct diversion ditches",null,"m3",null,{"$f":"NA()","v":{"$error":"#N/A"}},0,0,null,0,0,null,"Construct diversion ditches",null,"m3",null,{"$error":"#N/A"},0,0,0,0,null,"Construct diversion ditches",null,"m3",null,{"$f":"NA()","v":{"$error":"#N/A"}},0,0,null,0,0,null,null,"m3",null,{"$error":"#N/A"},0,0,0,0,null,"Construct diversion ditches",null,"m3",null,{"$f":"NA()","v":{"$error":"#N/A"}},0,0,null,0,0]
[null,"    -Ditch, mat'l A",null,"m3",null,{"$f":"NA()","v":{"$error":"#N/A"}},0,{"$f":"G44*E44","v":0},null,0,{"$f":"+H44*(1-I44)","v":0},null,null,"m3",null,{"$error":"#N/A"},0,0,0,0,null,"    -Ditch, mat'l A",null,"m3",null,{"$f":"NA()","v":{"$error":"#N/A"}},0,{"$f":"AA44*Y44","v":0},null,0,{"$f":"+AB44*(1-AC44)","v":0},null,null,"m3",null,{"$error":"#N/A"},0,0,0,0,null,"    -Ditch, mat'l A",null,"m3",null,{"$f":"NA()","v":{"$error":"#N/A"}},0,{"$f":"AU44*AS44","v":0},null,0,{"$f":"+AV44*(1-AW44)","v":0},null,"    -Ditch, mat'l A",null,"m3",null,{"$error":"#N/A"},0,0,0,0,null,"    -Ditch, mat'l A",null,"m3",null,{"$f":"NA()","v":{"$error":"#N/A"}},0,{"$f":"BP44*BN44","v":0},null,0,{"$f":"+BQ44*(1-BR44)","v":0},null,null,"m3",null,{"$error":"#N/A"},0,0,0,0,null,"    -Ditch, mat'l A",null,"m3",null,{"$f":"NA()","v":{"$error":"#N/A"}},0,{"$f":"CJ44*CH44","v":0},null,0,{"$f":"+CK44*(1-CL44)","v":0}]
[null,"    -Ditch, mat'l B",null,"m3",null,{"$f":"NA()","v":{"$error":"#N/A"}},0,{"$f":"G45*E45","v":0},null,0,0,null,null,"m3",null,{"$error":"#N/A"},0,0,0,0,null,"    -Ditch, mat'l B",null,"m3",null,{"$f":"NA()","v":{"$error":"#N/A"}},0,{"$f":"AA45*Y45","v":0},null,0,0,null,null,"m3",null,{"$error":"#N/A"},0,0,0,0,null,"    -Ditch, mat'l B",null,"m3",null,{"$f":"NA()","v":{"$error":"#N/A"}},0,{"$f":"AU45*AS45","v":0},null,0,0,null,"    -Ditch, mat'l B",null,"m3",null,{"$error":"#N/A"},0,0,0,0,null,"    -Ditch, mat'l B",null,"m3",null,{"$f":"NA()","v":{"$error":"#N/A"}},0,{"$f":"BP45*BN45","v":0},null,0,0,null,null,"m3",null,{"$error":"#N/A"},0,0,0,0,null,"    -Ditch, mat'l B",null,"m3",null,{"$f":"NA()","v":{"$error":"#N/A"}},0,{"$f":"CJ45*CH45","v":0},null,0,0]
[null,"Construct embankment/dam",null,"m3",null,{"$f":"NA()","v":{"$error":"#N/A"}},0,0,null,0,0,null,null,"m3",null,{"$error":"#N/A"},0,0,0,0,null,"Construct embankment/dam",null,"m3",null,{"$f":"NA()","v":{"$error":"#N/A"}},0,{"$f":"AA46*Y46","v":0},null,0,{"$f":"AB46*(1-AC46)","v":0},null,null,"m3",null,{"$error":"#N/A"},0,0,0,0,null,"Construct embankment/dam",null,"m3",null,{"$f":"NA()","v":{"$error":"#N/A"}},0,{"$f":"AU46*AS46","v":0},null,0,{"$f":"AV46*(1-AW46)","v":0},null,"Construct embankment/dam",null,"m3",null,{"$error":"#N/A"},0,0,0,0,null,"Construct embankment/dam",null,"m3",null,{"$f":"NA()","v":{"$error":"#N/A"}},0,{"$f":"BP46*BN46","v":0},null,0,{"$f":"BQ46*(1-BR46)","v":0},null,null,"m3",null,{"$error":"#N/A"},0,0,0,0,null,"Construct embankment/dam",null,"m3",null,{"$f":"NA()","v":{"$error":"#N/A"}},0,{"$f":"CJ46*CH46","v":0},null,0,{"$f":"CK46*(1-CL46)","v":0}]
[null,"Supply/install pump station",null,"each",null,{"$f":"NA()","v":{"$error":"#N/A"}},0,0,null,0,0,null,null,"each",null,{"$error":"#N/A"},0,0,0,0,null,"Supply/install pump station",null,"each",null,{"$f":"NA()","v":{"$error":"#N/A"}},0,0,null,0,0,null,null,"each",null,{"$error":"#N/A"},0,0,0,0,null,"Supply/install pump station",null,"each",null,{"$f":"NA()","v":{"$error":"#N/A"}},0,0,null,0,0,null,"Supply/install pump station",null,"each",null,{"$error":"#N/A"},0,0,0,0,null,"Supply/install pump station",null,"each",null,{"$f":"NA()","v":{"$error":"#N/A"}},0,0,null,0,0,null,null,"each",null,{"$error":"#N/A"},0,0,0,0,null,"Supply/install pump station",null,"each",null,{"$f":"NA()","v":{"$error":"#N/A"}},0,0,null,0,0]
[null,"Supply/install piping system",null,"m",null,{"$f":"NA()","v":{"$error":"#N/A"}},{"$f":"IF(ISNA(F48),0,INDEX(IF(UPPER(RIGHT(F48,1))=Low,UnitCostLow, IF(UPPER(RIGHT(F48,1))=High,UnitCostHigh,UnitCostSpecified)),MATCH(UPPER(LEFT(F48,LEN(F48)-1)),CostCode,0)))","v":0},{"$f":"G48*E48","v":0},null,{"$f":"H48*I48","v":0},{"$f":"H48*(1-I48)","v":0},null,null,"m",null,{"$error":"#N/A"},0,0,0,0,null,"Supply/install piping system",null,"m",null,{"$f":"NA()","v":{"$error":"#N/A"}},0,0,null,0,0,null,null,"m",null,{"$error":"#N/A"},0,0,0,0,null,"Supply/install piping system",null,"m",null,{"$f":"NA()","v":{"$error":"#N/A"}},0,0,null,0,0,null,"Supply/install piping system",null,"m",null,{"$error":"#N/A"},0,0,0,0,null,"Supply/install piping system",null,"m",null,{"$f":"NA()","v":{"$error":"#N/A"}},0,0,null,0,0,null,null,"m",null,{"$error":"#N/A"},0,0,0,0,null,"Supply/install piping system",null,"m",null,{"$f":"NA()","v":{"$error":"#N/A"}},0,0,null,0,0]
[null,"Remove pump post-closure",null,"each",null,{"$f":"NA()","v":{"$error":"#N/A"}},{"$f":"IF(ISNA(F49),0,INDEX(IF(UPPER(RIGHT(F49,1))=Low,UnitCostLow, IF(UPPER(RIGHT(F49,1))=High,UnitCostHigh,UnitCostSpecified)),MATCH(UPPER(LEFT(F49,LEN(F49)-1)),CostCode,0)))","v":0},{"$f":"G49*E49","v":0},null,{"$f":"H49*I49","v":0},{"$f":"H49*(1-I49)","v":0},null,null,"each",null,{"$error":"#N/A"},0,0,0,0,null,"Remove pump post-closure",null,"each",null,{"$f":"NA()","v":{"$error":"#N/A"}},0,0,null,0,0,null,null,"each",null,{"$error":"#N/A"},0,0,0,0,null,"Remove pump post-closure",null,"each",null,{"$f":"NA()","v":{"$error":"#N/A"}},0,0,null,0,0,null,"Remove pump post-closure",null,"each",null,{"$error":"#N/A"},0,0,0,0,null,"Remove pump post-closure",null,"each",null,{"$f":"NA()","v":{"$error":"#N/A"}},0,0,null,0,0,null,null,"each",null,{"$error":"#N/A"},0,0,0,0,null,"Remove pump post-closure",null,"each",null,{"$f":"NA()","v":{"$error":"#N/A"}},0,0,null,0,0]
[null,"Remove pipeline post-closure",null,"m",null,{"$f":"NA()","v":{"$error":"#N/A"}},{"$f":"IF(ISNA(F50),0,INDEX(IF(UPPER(RIGHT(F50,1))=Low,UnitCostLow, IF(UPPER(RIGHT(F50,1))=High,UnitCostHigh,UnitCostSpecified)),MATCH(UPPER(LEFT(F50,LEN(F50)-1)),CostCode,0)))","v":0},{"$f":"G50*E50","v":0},null,{"$f":"H50*I50","v":0},{"$f":"H50*(1-I50)","v":0},null,null,"m",null,{"$error":"#N/A"},0,0,0,0,null,"Remove pipeline post-closure",null,"m",null,{"$f":"NA()","v":{"$error":"#N/A"}},0,0,null,0,0,null,null,"m",null,{"$error":"#N/A"},0,0,0,0,null,"Remove pipeline post-closure",null,"m",null,{"$f":"NA()","v":{"$error":"#N/A"}},0,0,null,0,0,null,"Remove pipeline post-closure",null,"m",null,{"$error":"#N/A"},0,0,0,0,null,"Remove pipeline post-closure",null,"m",null,{"$f":"NA()","v":{"$error":"#N/A"}},0,0,null,0,0,null,null,"m",null,{"$error":"#N/A"},0,0,0,0,null,"Remove pipeline post-closure",null,"m",null,{"$f":"NA()","v":{"$error":"#N/A"}},0,0,null,0,0]
[null,"FLOOD PIT-Annual Cost",null,null,null,null,null,null,null,null,null,null,null,null,null,null,null,null,null,null,null,"FLOOD PIT-Annual Cost",null,null,null,null,null,null,null,null,null,null,null,null,null,null,null,null,null,null,null,"FLOOD PIT-Annual Cost",null,null,null,null,null,null,null,null,null,null,"FLOOD PIT-Annual Cost",null,null,null,null,null,null,null,null,null,"FLOOD PIT-Annual Cost",null,null,null,null,null,null,null,null,null,null,null,null,null,null,null,null,null,null,null,"FLOOD PIT-Annual Cost"]
[null,"Operate pumps (power)",null,"m3",null,{"$f":"NA()","v":{"$error":"#N/A"}},0,0,null,0,0,null,null,"m3",null,{"$error":"#N/A"},0,0,0,{"$f":"K52-S52","v":0},null,"Operate pumps (power)",null,"m3",null,{"$f":"NA()","v":{"$error":"#N/A"}},{"$f":"IF(ISNA(Z52),0,INDEX(IF(UPPER(RIGHT(Z52,1))=Low,UnitCostLow, IF(UPPER(RIGHT(Z52,1))=High,UnitCostHigh,UnitCostSpecified)),MATCH(UPPER(LEFT(Z52,LEN(Z52)-1)),CostCode,0)))","v":0},{"$f":"AA52*Y52","v":0},null,{"$f":"AB52*AC52","v":0},{"$f":"AB52*(1-AC52)","v":0},null,null,"m3",null,{"$error":"#N/A"},0,0,0,{"$f":"AE52-AM52","v":0},null,"Operate pumps (power)",null,"m3",null,{"$f":"NA()","v":{"$error":"#N/A"}},{"$f":"IF(ISNA(AT52),0,INDEX(IF(UPPER(RIGHT(AT52,1))=Low,UnitCostLow, IF(UPPER(RIGHT(AT52,1))=High,UnitCostHigh,UnitCostSpecified)),MATCH(UPPER(LEFT(AT52,LEN(AT52)-1)),CostCode,0)))","v":0},{"$f":"AU52*AS52","v":0},null,{"$f":"AV52*AW52","v":0},{"$f":"AV52*(1-AW52)","v":0},null,"Operate pumps (power)",null,"m3",null,{"$error":"#N/A"},0,0,0,{"$f":"AY52-BH52","v":0},null,"Operate pumps (power)",null,"m3",null,{"$f":"NA()","v":{"$error":"#N/A"}},{"$f":"IF(ISNA(BO52),0,INDEX(IF(UPPER(RIGHT(BO52,1))=Low,UnitCostLow, IF(UPPER(RIGHT(BO52,1))=High,UnitCostHigh,UnitCostSpecified)),MATCH(UPPER(LEFT(BO52,LEN(BO52)-1)),CostCode,0)))","v":0},{"$f":"BP52*BN52","v":0},null,{"$f":"BQ52*BR52","v":0},{"$f":"BQ52*(1-BR52)","v":0},null,null,"m3",null,{"$error":"#N/A"},0,0,0,{"$f":"BT52-CB52","v":0},null,"Operate pumps (power)",null,"m3",null,{"$f":"NA()","v":{"$error":"#N/A"}},{"$f":"IF(ISNA(CI52),0,INDEX(IF(UPPER(RIGHT(CI52,1))=Low,UnitCostLow, IF(UPPER(RIGHT(CI52,1))=High,UnitCostHigh,UnitCostSpecified)),MATCH(UPPER(LEFT(CI52,LEN(CI52)-1)),CostCode,0)))","v":0},{"$f":"CJ52*CH52","v":0},null,{"$f":"CK52*CL52","v":0},{"$f":"CK52*(1-CL52)","v":0}]
[null,"Maintain pump/pipeline",null,"allow",null,{"$f":"NA()","v":{"$error":"#N/A"}},{"$f":"IF(ISNA(F53),0,INDEX(IF(UPPER(RIGHT(F53,1))=Low,UnitCostLow, IF(UPPER(RIGHT(F53,1))=High,UnitCostHigh,UnitCostSpecified)),MATCH(UPPER(LEFT(F53,LEN(F53)-1)),CostCode,0)))","v":0},{"$f":"G53*E53","v":0},null,{"$f":"H53*I53","v":0},{"$f":"H53*(1-I53)","v":0},null,null,"allow",null,{"$error":"#N/A"},0,0,0,0,null,"Maintain pump/pipeline",null,"allow",null,{"$f":"NA()","v":{"$error":"#N/A"}},0,0,null,0,0,null,null,"allow",null,{"$error":"#N/A"},0,0,0,0,null,"Maintain pump/pipeline",null,"allow",null,{"$f":"NA()","v":{"$error":"#N/A"}},0,0,null,0,0,null,"Maintain pump/pipeline",null,"allow",null,{"$error":"#N/A"},0,0,0,0,null,"Maintain pump/pipeline",null,"allow",null,{"$f":"NA()","v":{"$error":"#N/A"}},0,0,null,0,0,null,null,"allow",null,{"$error":"#N/A"},0,0,0,0,null,"Maintain pump/pipeline",null,"allow",null,{"$f":"NA()","v":{"$error":"#N/A"}},0,0,null,0,0]
[null,"Labour: fuel management, commissioning/decom",null,"$/h",null,{"$f":"NA()","v":{"$error":"#N/A"}},{"$f":"IF(ISNA(F54),0,INDEX(IF(UPPER(RIGHT(F54,1))=Low,UnitCostLow, IF(UPPER(RIGHT(F54,1))=High,UnitCostHigh,UnitCostSpecified)),MATCH(UPPER(LEFT(F54,LEN(F54)-1)),CostCode,0)))","v":0},{"$f":"G54*E54","v":0},null,{"$f":"H54*I54","v":0},{"$f":"H54*(1-I54)","v":0},null,null,"$/h",null,{"$error":"#N/A"},0,0,0,0,null,"Labour: fuel management, commissioning/decom",null,"$/h",null,{"$f":"NA()","v":{"$error":"#N/A"}},0,0,null,0,0,null,null,"$/h",null,{"$error":"#N/A"},0,0,0,0,null,"Labour: fuel management, commissioning/decom",null,"$/h",null,{"$f":"NA()","v":{"$error":"#N/A"}},0,0,null,0,0,null,"Labour: fuel management, commissioning/decom",null,"$/h",null,{"$error":"#N/A"},0,0,0,0,null,"Labour: fuel management, commissioning/decom",null,"$/h",null,{"$f":"NA()","v":{"$error":"#N/A"}},0,0,null,0,0,null,null,"$/h",null,{"$error":"#N/A"},0,0,0,0,null,"Labour: fuel management, commissioning/decom",null,"$/h",null,{"$f":"NA()","v":{"$error":"#N/A"}},0,0,null,0,0]
[null,"Chemical addition,  _____ kg/m3 of water",null,"tonne",null,{"$f":"NA()","v":{"$error":"#N/A"}},0,0,null,0,0,null,null,"tonne",null,{"$error":"#N/A"},0,0,0,0,null,"Chemical addition,  _____ kg/m3 of water",null,"tonne",null,{"$f":"NA()","v":{"$error":"#N/A"}},0,0,null,0,0,null,null,"tonne",null,{"$error":"#N/A"},0,0,0,0,null,"Chemical addition,  _____ kg/m3 of water",null,"tonne",null,{"$f":"NA()","v":{"$error":"#N/A"}},0,0,null,0,0,null,"Chemical addition,  _____ kg/m3 of water",null,"tonne",null,{"$error":"#N/A"},0,0,0,0,null,"Chemical addition,  _____ kg/m3 of water",null,"tonne",null,{"$f":"NA()","v":{"$error":"#N/A"}},0,0,null,0,0,null,null,"tonne",null,{"$error":"#N/A"},0,0,0,0,null,"Chemical addition,  _____ kg/m3 of water",null,"tonne",null,{"$f":"NA()","v":{"$error":"#N/A"}},0,0,null,0,0]
[null,"Chemicals, purchase and shipping",null,"tonne",null,{"$f":"NA()","v":{"$error":"#N/A"}},0,0,null,0,0,null,null,"tonne",null,{"$error":"#N/A"},0,0,0,0,null,"Chemicals, purchase and shipping",null,"tonne",null,{"$f":"NA()","v":{"$error":"#N/A"}},0,0,null,0,0,null,null,"tonne",null,{"$error":"#N/A"},0,0,0,0,null,"Chemicals, purchase and shipping",null,"tonne",null,{"$f":"NA()","v":{"$error":"#N/A"}},0,0,null,0,0,null,"Chemicals, purchase and shipping",null,"tonne",null,{"$error":"#N/A"},0,0,0,0,null,"Chemicals, purchase and shipping",null,"tonne",null,{"$f":"NA()","v":{"$error":"#N/A"}},0,0,null,0,0,null,null,"tonne",null,{"$error":"#N/A"},0,0,0,0,null,"Chemicals, purchase and shipping",null,"tonne",null,{"$f":"NA()","v":{"$error":"#N/A"}},0,0,null,0,0]
[null,"Passive/biological additives",null,"$/ha",null,{"$f":"NA()","v":{"$error":"#N/A"}},{"$f":"IF(ISNA(F57),0,INDEX(IF(UPPER(RIGHT(F57,1))=Low,UnitCostLow, IF(UPPER(RIGHT(F57,1))=High,UnitCostHigh,UnitCostSpecified)),MATCH(UPPER(LEFT(F57,LEN(F57)-1)),CostCode,0)))","v":0},{"$f":"G57*E57","v":0},null,{"$f":"H57*I57","v":0},{"$f":"H57*(1-I57)","v":0},null,null,"$/ha",null,{"$error":"#N/A"},0,0,0,0,null,"Passive/biological additives",null,"$/ha",null,{"$f":"NA()","v":{"$error":"#N/A"}},{"$f":"IF(ISNA(Z57),0,INDEX(IF(UPPER(RIGHT(Z57,1))=Low,UnitCostLow, IF(UPPER(RIGHT(Z57,1))=High,UnitCostHigh,UnitCostSpecified)),MATCH(UPPER(LEFT(Z57,LEN(Z57)-1)),CostCode,0)))","v":0},{"$f":"AA57*Y57","v":0},null,{"$f":"AB57*AC57","v":0},{"$f":"AB57*(1-AC57)","v":0},null,null,"$/ha",null,{"$error":"#N/A"},0,0,0,0,null,"Passive/biological additives",null,"$/ha",null,{"$f":"NA()","v":{"$error":"#N/A"}},{"$f":"IF(ISNA(AT57),0,INDEX(IF(UPPER(RIGHT(AT57,1))=Low,UnitCostLow, IF(UPPER(RIGHT(AT57,1))=High,UnitCostHigh,UnitCostSpecified)),MATCH(UPPER(LEFT(AT57,LEN(AT57)-1)),CostCode,0)))","v":0},{"$f":"AU57*AS57","v":0},null,{"$f":"AV57*AW57","v":0},{"$f":"AV57*(1-AW57)","v":0},null,"Passive/biological additives",null,"$/ha",null,{"$error":"#N/A"},0,0,0,0,null,"Passive/biological additives",null,"$/ha",null,{"$f":"NA()","v":{"$error":"#N/A"}},{"$f":"IF(ISNA(BO57),0,INDEX(IF(UPPER(RIGHT(BO57,1))=Low,UnitCostLow, IF(UPPER(RIGHT(BO57,1))=High,UnitCostHigh,UnitCostSpecified)),MATCH(UPPER(LEFT(BO57,LEN(BO57)-1)),CostCode,0)))","v":0},{"$f":"BP57*BN57","v":0},null,{"$f":"BQ57*BR57","v":0},{"$f":"BQ57*(1-BR57)","v":0},null,null,"$/ha",null,{"$error":"#N/A"},0,0,0,0,null,"Passive/biological additives",null,"$/ha",null,{"$f":"NA()","v":{"$error":"#N/A"}},{"$f":"IF(ISNA(CI57),0,INDEX(IF(UPPER(RIGHT(CI57,1))=Low,UnitCostLow, IF(UPPER(RIGHT(CI57,1))=High,UnitCostHigh,UnitCostSpecified)),MATCH(UPPER(LEFT(CI57,LEN(CI57)-1)),CostCode,0)))","v":0},{"$f":"CJ57*CH57","v":0},null,{"$f":"CK57*CL57","v":0},{"$f":"CK57*(1-CL57)","v":0}]
[null,"Passive additives purchase and shipping",null,"tonne",null,{"$f":"NA()","v":{"$error":"#N/A"}},{"$f":"IF(ISNA(F58),0,INDEX(IF(UPPER(RIGHT(F58,1))=Low,UnitCostLow, IF(UPPER(RIGHT(F58,1))=High,UnitCostHigh,UnitCostSpecified)),MATCH(UPPER(LEFT(F58,LEN(F58)-1)),CostCode,0)))","v":0},{"$f":"G58*E58","v":0},null,{"$f":"H58*I58","v":0},{"$f":"H58*(1-I58)","v":0},null,null,"tonne",null,{"$error":"#N/A"},0,0,0,0,null,"Passive additives purchase and shipping",null,"tonne",null,{"$f":"NA()","v":{"$error":"#N/A"}},{"$f":"IF(ISNA(Z58),0,INDEX(IF(UPPER(RIGHT(Z58,1))=Low,UnitCostLow, IF(UPPER(RIGHT(Z58,1))=High,UnitCostHigh,UnitCostSpecified)),MATCH(UPPER(LEFT(Z58,LEN(Z58)-1)),CostCode,0)))","v":0},{"$f":"AA58*Y58","v":0},null,{"$f":"AB58*AC58","v":0},{"$f":"AB58*(1-AC58)","v":0},null,null,"tonne",null,{"$error":"#N/A"},0,0,0,0,null,"Passive additives purchase and shipping",null,"tonne",null,{"$f":"NA()","v":{"$error":"#N/A"}},{"$f":"IF(ISNA(AT58),0,INDEX(IF(UPPER(RIGHT(AT58,1))=Low,UnitCostLow, IF(UPPER(RIGHT(AT58,1))=High,UnitCostHigh,UnitCostSpecified)),MATCH(UPPER(LEFT(AT58,LEN(AT58)-1)),CostCode,0)))","v":0},{"$f":"AU58*AS58","v":0},null,{"$f":"AV58*AW58","v":0},{"$f":"AV58*(1-AW58)","v":0},null,"Passive additives purchase and shipping",null,"tonne",null,{"$error":"#N/A"},0,0,0,0,null,"Passive additives purchase and shipping",null,"tonne",null,{"$f":"NA()","v":{"$error":"#N/A"}},{"$f":"IF(ISNA(BO58),0,INDEX(IF(UPPER(RIGHT(BO58,1))=Low,UnitCostLow, IF(UPPER(RIGHT(BO58,1))=High,UnitCostHigh,UnitCostSpecified)),MATCH(UPPER(LEFT(BO58,LEN(BO58)-1)),CostCode,0)))","v":0},{"$f":"BP58*BN58","v":0},null,{"$f":"BQ58*BR58","v":0},{"$f":"BQ58*(1-BR58)","v":0},null,null,"tonne",null,{"$error":"#N/A"},0,0,0,0,null,"Passive additives purchase and shipping",null,"tonne",null,{"$f":"NA()","v":{"$error":"#N/A"}},{"$f":"IF(ISNA(CI58),0,INDEX(IF(UPPER(RIGHT(CI58,1))=Low,UnitCostLow, IF(UPPER(RIGHT(CI58,1))=High,UnitCostHigh,UnitCostSpecified)),MATCH(UPPER(LEFT(CI58,LEN(CI58)-1)),CostCode,0)))","v":0},{"$f":"CJ58*CH58","v":0},null,{"$f":"CK58*CL58","v":0},{"$f":"CK58*(1-CL58)","v":0}]
[null,"Other",null,null,null,{"$f":"NA()","v":{"$error":"#N/A"}},0,0,null,{"$f":"H59*I59","v":0},0,null,null,null,null,{"$error":"#N/A"},0,0,0,0,null,"Other",null,null,null,{"$f":"NA()","v":{"$error":"#N/A"}},{"$f":"IF(ISNA(Z59),0,INDEX(IF(UPPER(RIGHT(Z59,1))=Low,UnitCostLow, IF(UPPER(RIGHT(Z59,1))=High,UnitCostHigh,UnitCostSpecified)),MATCH(UPPER(LEFT(Z59,LEN(Z59)-1)),CostCode,0)))","v":0},{"$f":"AA59*Y59","v":0},null,{"$f":"AB59*AC59","v":0},{"$f":"AB59*(1-AC59)","v":0},null,null,null,null,{"$error":"#N/A"},0,0,0,0,null,"Other",null,null,null,{"$f":"NA()","v":{"$error":"#N/A"}},{"$f":"IF(ISNA(AT59),0,INDEX(IF(UPPER(RIGHT(AT59,1))=Low,UnitCostLow, IF(UPPER(RIGHT(AT59,1))=High,UnitCostHigh,UnitCostSpecified)),MATCH(UPPER(LEFT(AT59,LEN(AT59)-1)),CostCode,0)))","v":0},{"$f":"AU59*AS59","v":0},null,{"$f":"AV59*AW59","v":0},{"$f":"AV59*(1-AW59)","v":0},null,"Other",null,null,null,{"$error":"#N/A"},0,0,0,0,null,"Other",null,null,null,{"$f":"NA()","v":{"$error":"#N/A"}},{"$f":"IF(ISNA(BO59),0,INDEX(IF(UPPER(RIGHT(BO59,1))=Low,UnitCostLow, IF(UPPER(RIGHT(BO59,1))=High,UnitCostHigh,UnitCostSpecified)),MATCH(UPPER(LEFT(BO59,LEN(BO59)-1)),CostCode,0)))","v":0},{"$f":"BP59*BN59","v":0},null,{"$f":"BQ59*BR59","v":0},{"$f":"BQ59*(1-BR59)","v":0},null,null,null,null,{"$error":"#N/A"},0,0,0,0,null,"Other",null,null,null,{"$f":"NA()","v":{"$error":"#N/A"}},{"$f":"IF(ISNA(CI59),0,INDEX(IF(UPPER(RIGHT(CI59,1))=Low,UnitCostLow, IF(UPPER(RIGHT(CI59,1))=High,UnitCostHigh,UnitCostSpecified)),MATCH(UPPER(LEFT(CI59,LEN(CI59)-1)),CostCode,0)))","v":0},{"$f":"CJ59*CH59","v":0},null,{"$f":"CK59*CL59","v":0},{"$f":"CK59*(1-CL59)","v":0}]
[null,null,null,null,null,null,"Annual pumping costs",{"$f":"SUM(H52:H59)+0.0001","v":1E-4},null,null,null,null,null,null,null,null,"Annual pumping costs",1E-4,null,null,null,null,null,null,null,null,"Annual pumping costs",{"$f":"SUM(AB52:AB59)+0.0001","v":1E-4},null,null,null,null,null,null,null,null,"Annual pumping costs",1E-4,null,0,null,null,null,null,null,null,"Annual pumping costs",{"$f":"SUM(AV52:AV59)+0.0001","v":1E-4},null,null,null,null,null,null,null,null,null,"Annual pumping costs",1E-4,null,{"$f":"AY60-BH60","v":0},null,null,null,null,null,null,"Annual pumping costs",{"$f":"SUM(BQ52:BQ59)+0.0001","v":1E-4},null,null,null,null,null,null,null,null,"Annual pumping costs",1E-4,null,0,null,null,null,null,null,null,"Annual pumping costs",{"$f":"SUM(CK52:CK59)+0.0001","v":1E-4}]
[null,"Number of years of pump flooding","passive pit flooding","years",0,null,null,null,null,null,null,null,"passive pit flooding","years",0,null,null,null,null,null,null,"Number of years of pump flooding","passive pit flooding","years",0,null,null,null,null,null,null,null,"passive pit flooding","years",0,null,null,null,null,null,null,"Number of years of pump flooding","passive pit flooding","years",0,null,null,null,null,null,null,null,"Number of years of pump flooding","passive pit flooding","years",0,null,null,null,null,null,null,"Number of years of pump flooding","passive pit flooding","years",0,null,null,null,null,null,null,null,"passive pit flooding","years",0,null,null,null,null,null,null,"Number of years of pump flooding","No flooding","years",0]
[null,null,null,null,null,null,"Total pumping costs",{"$f":"H60*E61","v":0},null,{"$f":"H62*I62","v":0},{"$f":"H62*(1-I62)","v":0},null,null,null,null,null,"Total pumping costs",0,0,{"$f":"K62-S62","v":0},null,null,null,null,null,null,"Total pumping costs",{"$f":"AB60*Y61","v":0},null,{"$f":"AB62*AC62","v":0},{"$f":"AB62*(1-AC62)","v":0},null,null,null,null,null,"Total pumping costs",0,0,{"$f":"AE62-AM62","v":0},null,null,null,null,null,null,"Total pumping costs",{"$f":"AV60*AS61","v":0},null,{"$f":"AV62*AW62","v":0},{"$f":"AV62*(1-AW62)","v":0},null,null,null,null,null,null,"Total pumping costs",0,0,{"$f":"AY62-BH62","v":0},null,null,null,null,null,null,"Total pumping costs",{"$f":"BQ60*BN61","v":0},null,{"$f":"BQ62*BR62","v":0},{"$f":"BQ62*(1-BR62)","v":0},null,null,null,null,null,"Total pumping costs",0,0,{"$f":"BT62-CB62","v":0},null,null,null,null,null,null,"Total pumping costs",{"$f":"CK60*CH61","v":0},null,{"$f":"CK62*CL62","v":0},{"$f":"CK62*(1-CL62)","v":0}]
[null,null,null,null,null,null,"Total",{"$f":"SUM(H5:H50)+H62+0.0001","v":51016.749953086321},null,{"$f":"SUM(J5:J50)+J62","v":0},{"$f":"SUM(K5:K59)+K62","v":51016.749853086323},null,null,null,null,null,"Total",50424.887590743681,50424.887490743684,{"$f":"K63-S63","v":591.86236234263924},null,null,null,null,null,null,"Total",{"$f":"SUM(AB5:AB50)+AB62+0.0001","v":57577.353399999993},null,{"$f":"SUM(AD5:AD50)+AD62","v":0},{"$f":"SUM(AE5:AE59)+AE62","v":57577.353299999995},null,null,null,null,null,"Total",26176.6001,26176.6,{"$f":"AE63-AM63","v":31400.753299999997},null,null,null,null,null,null,"Total",{"$f":"SUM(AV5:AV50)+AV62+0.0001","v":55054.595912500001},null,{"$f":"SUM(AX5:AX50)+AX62","v":0},{"$f":"SUM(AY5:AY59)+AY62","v":55054.595812500003},null,null,null,null,null,null,"Total",25934.312600000001,25934.3125,{"$f":"AY63-BH63","v":29120.283312500003},null,null,null,null,null,null,"Total",{"$f":"SUM(BQ5:BQ50)+BQ62+0.0001","v":88471.773039043153},null,{"$f":"SUM(BS5:BS50)+BS62","v":0},{"$f":"SUM(BT5:BT59)+BT62","v":88471.772939043149},null,null,null,null,null,"Total",84849.581345371844,84849.581245371839,{"$f":"BT63-CB63","v":3622.1916936713096},null,null,null,null,null,null,"Total",{"$f":"SUM(CK5:CK50)+CK62+0.0001","v":3864.6001000000001},null,{"$f":"SUM(CM5:CM50)+CM62","v":0},{"$f":"SUM(CN5:CN59)+CN62","v":3864.6}]
[null,null,null,null,null,null,"% of Total",null,null,{"$f":"J63/H63","v":0},{"$f":"K63/H63","v":0.99999999803985951},null,null,null,null,null,"% of Total",null,0.99999999801685235,null,null,null,null,null,null,null,"% of Total",null,null,{"$f":"AD63/AB63","v":0},{"$f":"AE63/AB63","v":0.99999999826320607},null,null,null,null,null,"% of Total",null,0.99999999617979418,null,null,null,null,null,null,null,"% of Total",null,null,{"$f":"AX63/AV63","v":0},{"$f":"AY63/AV63","v":0.99999999818362129},null,null,null,null,null,null,"% of Total",null,0.9999999961441044,null,null,null,null,null,null,null,"% of Total",null,null,{"$f":"BS63/BQ63","v":0},{"$f":"BT63/BQ63","v":0.99999999886969593},null,null,null,null,null,"% of Total",null,0.99999999882144375,null,null,null,null,null,null,null,"% of Total",null,null,{"$f":"CM63/CK63","v":0},{"$f":"CN63/CK63","v":0.99999997412410147}]

{"sheet":"UG Mine","index":3,"n_rows":43,"n_cols":52,"rows_kept":43,"cut":false,"hidden":false,"merged":[]}
[4,"Underground Mine Name","Umwelt",null,null,null,"UG Mine #",1,null,null,{"$f":"H1","v":1},null,"Umwelt",null,null,null,"UG Mine #",1,null,null,"Underground Mine Name","Llama",null,null,null,"UG Mine #",{"$f":"H1+1","v":2},null,null,{"$f":"AA1","v":2},null,"Underground Mine Name","Goose Main",null,null,null,"UG Mine #",{"$f":"AA1+1","v":3},null,null,{"$f":"AL1","v":3},null,"Underground Mine Name","Echo",null,null,null,"UG Mine #",{"$f":"AL1+1","v":4},null,null,{"$f":"AW1","v":4}]
[]
[null,"ACTIVITY/MATERIAL","Notes","Unit","Qty","Cost Code","Unit Cost","Cost","% Land","Land Cost","Total Cost",null,"Notes","Unit","Qty","Cost Code","Unit Cost","Total Cost","Difference",null,"ACTIVITY/MATERIAL","Notes","Unit","Qty","Cost Code","Unit Cost","Cost","% Land","Land Cost","Total Cost",null,"ACTIVITY/MATERIAL","Notes","Unit","Qty","Cost Code","Unit Cost","Cost","% Land","Land Cost","Total Cost",null,"ACTIVITY/MATERIAL","Notes","Unit","Qty","Cost Code","Unit Cost","Cost","% Land","Land Cost","Total Cost"]
[null,"CONTROL ACCESS",null,null,null,null,null,null,null,null,null,null,null,null,null,null,null,null,null,null,"CONTROL ACCESS",null,null,null,null,null,null,null,null,null,null,"CONTROL ACCESS",null,null,null,null,null,null,null,null,null,null,"CONTROL ACCESS"]
[null,"Fence",null,"m",null,{"$f":"NA()","v":{"$error":"#N/A"}},{"$f":"IF(ISNA(F5),0,INDEX(IF(UPPER(RIGHT(F5,1))=Low,UnitCostLow, IF(UPPER(RIGHT(F5,1))=High,UnitCostHigh,UnitCostSpecified)),MATCH(UPPER(LEFT(F5,LEN(F5)-1)),CostCode,0)))","v":0},{"$f":"G5*E5","v":0},null,{"$f":"H5*I5","v":0},{"$f":"H5*(1-I5)","v":0},null,null,"m",null,{"$error":"#N/A"},0,0,{"$f":"K5-R5","v":0},null,"Fence",null,"m",null,{"$f":"NA()","v":{"$error":"#N/A"}},{"$f":"IF(ISNA(Y5),0,INDEX(IF(UPPER(RIGHT(Y5,1))=Low,UnitCostLow, IF(UPPER(RIGHT(Y5,1))=High,UnitCostHigh,UnitCostSpecified)),MATCH(UPPER(LEFT(Y5,LEN(Y5)-1)),CostCode,0)))","v":0},{"$f":"Z5*X5","v":0},null,{"$f":"AA5*AB5","v":0},{"$f":"AA5*(1-AB5)","v":0},null,"Fence",null,"m",null,{"$f":"NA()","v":{"$error":"#N/A"}},{"$f":"IF(ISNA(AJ5),0,INDEX(IF(UPPER(RIGHT(AJ5,1))=Low,UnitCostLow, IF(UPPER(RIGHT(AJ5,1))=High,UnitCostHigh,UnitCostSpecified)),MATCH(UPPER(LEFT(AJ5,LEN(AJ5)-1)),CostCode,0)))","v":0},{"$f":"AK5*AI5","v":0},null,{"$f":"AL5*AM5","v":0},{"$f":"AL5*(1-AM5)","v":0},null,"Fence",null,"m",null,{"$f":"NA()","v":{"$error":"#N/A"}},{"$f":"IF(ISNA(AU5),0,INDEX(IF(UPPER(RIGHT(AU5,1))=Low,UnitCostLow, IF(UPPER(RIGHT(AU5,1))=High,UnitCostHigh,UnitCostSpecified)),MATCH(UPPER(LEFT(AU5,LEN(AU5)-1)),CostCode,0)))","v":0},{"$f":"AV5*AT5","v":0},null,{"$f":"AW5*AX5","v":0},{"$f":"AW5*(1-AX5)","v":0}]
[null,"Signs",null,"each",null,{"$f":"NA()","v":{"$error":"#N/A"}},0,0,null,{"$f":"H6*I6","v":0},0,null,null,"each",null,{"$error":"#N/A"},0,0,{"$f":"K6-R6","v":0},null,"Signs",null,"each",null,{"$f":"NA()","v":{"$error":"#N/A"}},0,0,null,{"$f":"AA6*AB6","v":0},{"$f":"AA6*(1-AB6)","v":0},null,"Signs",null,"each",null,{"$f":"NA()","v":{"$error":"#N/A"}},0,0,null,{"$f":"AL6*AM6","v":0},{"$f":"AL6*(1-AM6)","v":0},null,"Signs",null,"each",null,{"$f":"NA()","v":{"$error":"#N/A"}},0,0,null,{"$f":"AW6*AX6","v":0},{"$f":"AW6*(1-AX6)","v":0}]
[null,"Block roads",null,"m3",null,{"$f":"NA()","v":{"$error":"#N/A"}},0,{"$f":"G7*E7","v":0},null,0,0,null,null,"m3",null,{"$error":"#N/A"},0,0,0,null,"Block roads",null,"m3",null,{"$f":"NA()","v":{"$error":"#N/A"}},0,{"$f":"Z7*X7","v":0},null,0,0,null,"Block roads",null,"m3",null,{"$f":"NA()","v":{"$error":"#N/A"}},0,{"$f":"AK7*AI7","v":0},null,0,0,null,"Block roads",null,"m3",null,{"$f":"NA()","v":{"$error":"#N/A"}},0,{"$f":"AV7*AT7","v":0},null,0,0]
[null,"Berm",null,"m3",null,{"$f":"NA()","v":{"$error":"#N/A"}},0,0,null,0,0,null,null,"m3",null,{"$error":"#N/A"},0,0,0,null,"Berm",null,"m3",null,{"$f":"NA()","v":{"$error":"#N/A"}},0,{"$f":"Z8*X8","v":0},null,0,0,null,"Berm",null,"m3",null,{"$f":"NA()","v":{"$error":"#N/A"}},0,{"$f":"AK8*AI8","v":0},null,0,0,null,"Berm",null,"m3",null,{"$f":"NA()","v":{"$error":"#N/A"}},0,{"$f":"AV8*AT8","v":0},null,0,0]
[null,"Backfill Portal  \n(NPAG waste rock plug)","At least 5 m deep into 5x4.5m portal and slope at least 2:1 outside of portal","m3",{"$f":"'SBB Comp. Est.'!F38","v":150},"PORL",19.119599999999998,2867.9399999999996,null,{"$f":"H9*I9","v":0},2867.9399999999996,null,"At least 5 m deep into 5x4.5m portal and slope at least 2:1 outside of portal","m3",150,"PORL",18.8,2820,47.9399999999996,null,"Backfill Portal  \n(NPAG waste rock plug)","At least 5 m deep into 5x4.5m portal and slope at least 2:1 outside of portal","m3",{"$f":"'SBB Comp. Est.'!F40","v":150},"PORL",19.119599999999998,2867.9399999999996,null,{"$f":"AA9*AB9","v":0},{"$f":"AA9*(1-AB9)","v":2867.9399999999996},null,"Backfill Portal  \n(NPAG waste rock plug)","At least 5 m deep into 5x4.5m portal and slope at least 2:1 outside of portal","m3",{"$f":"'SBB Comp. Est.'!F42","v":150},"PORL",19.119599999999998,2867.9399999999996,null,{"$f":"AL9*AM9","v":0},{"$f":"AL9*(1-AM9)","v":2867.9399999999996},null,"Backfill Portal  \n(NPAG waste rock plug)","At least 5 m deep into 5x4.5m portal and slope at least 2:1 outside of portal","m3",{"$f":"'SBB Comp. Est.'!F44","v":150},"PORL",19.119599999999998,2867.9399999999996,null,{"$f":"AW9*AX9","v":0},{"$f":"AW9*(1-AX9)","v":2867.9399999999996}]
[null,"Backfill portal #2",null,"m3",null,{"$f":"NA()","v":{"$error":"#N/A"}},0,0,null,0,0,null,null,"m3",null,{"$error":"#N/A"},0,0,0,null,"Backfill portal #2",null,"m3",null,{"$f":"NA()","v":{"$error":"#N/A"}},{"$f":"IF(ISNA(Y10),0,INDEX(IF(UPPER(RIGHT(Y10,1))=Low,UnitCostLow, IF(UPPER(RIGHT(Y10,1))=High,UnitCostHigh,UnitCostSpecified)),MATCH(UPPER(LEFT(Y10,LEN(Y10)-1)),CostCode,0)))","v":0},0,null,{"$f":"AA10*AB10","v":0},{"$f":"AA10*(1-AB10)","v":0},null,"Backfill portal #2",null,"m3",null,{"$f":"NA()","v":{"$error":"#N/A"}},{"$f":"IF(ISNA(AJ10),0,INDEX(IF(UPPER(RIGHT(AJ10,1))=Low,UnitCostLow, IF(UPPER(RIGHT(AJ10,1))=High,UnitCostHigh,UnitCostSpecified)),MATCH(UPPER(LEFT(AJ10,LEN(AJ10)-1)),CostCode,0)))","v":0},0,null,{"$f":"AL10*AM10","v":0},{"$f":"AL10*(1-AM10)","v":0},null,"Backfill portal #2",null,"m3",null,{"$f":"NA()","v":{"$error":"#N/A"}},{"$f":"IF(ISNA(AU10),0,INDEX(IF(UPPER(RIGHT(AU10,1))=Low,UnitCostLow, IF(UPPER(RIGHT(AU10,1))=High,UnitCostHigh,UnitCostSpecified)),MATCH(UPPER(LEFT(AU10,LEN(AU10)-1)),CostCode,0)))","v":0},0,null,{"$f":"AW10*AX10","v":0},{"$f":"AW10*(1-AX10)","v":0}]
[null,"Cap raise # 1","Concrete plug over 4m-dia. vent raise ","m3",28.3,"SRH",2168.2439999999997,61361.305199999995,null,0,61361.305199999995,null,"Concrete plug over 4m-dia. vent raise ","m3",28.3,"SRH",2132,60335.6,1025.7051999999967,null,"Cap raise # 1","Concrete plug over 4m-dia. vent raise","LS",28.3,"SRH",2168.2439999999997,61361.305199999995,null,0,61361.305199999995,null,"Cap raise # 1","Concrete plug over 4m-dia. vent raise","LS",28.3,"SRH",2168.2439999999997,61361.305199999995,null,0,61361.305199999995,null,"Cap raise # 1","Concrete plug over 4m-dia. vent raise","LS",28.3,"SRH",2168.2439999999997,61361.305199999995,null,0,61361.305199999995]
[null,"Cap raise #2","Concrete plug over 4m-dia. vent raise ","m3",28.3,"SRH",{"$f":"IF(ISNA(F12),0,INDEX(IF(UPPER(RIGHT(F12,1))=Low,UnitCostLow, IF(UPPER(RIGHT(F12,1))=High,UnitCostHigh,UnitCostSpecified)),MATCH(UPPER(LEFT(F12,LEN(F12)-1)),CostCode,0)))","v":2168.2439999999997},{"$f":"G12*E12","v":61361.305199999995},null,{"$f":"H12*I12","v":0},{"$f":"H12*(1-I12)","v":61361.305199999995},null,"Concrete plug over 4m-dia. vent raise ","m3",28.3,"SRH",2132,60335.6,1025.7051999999967,null,"Cap raise #2",null,"m3",null,{"$f":"NA()","v":{"$error":"#N/A"}},{"$f":"IF(ISNA(Y12),0,INDEX(IF(UPPER(RIGHT(Y12,1))=Low,UnitCostLow, IF(UPPER(RIGHT(Y12,1))=High,UnitCostHigh,UnitCostSpecified)),MATCH(UPPER(LEFT(Y12,LEN(Y12)-1)),CostCode,0)))","v":0},0,null,0,0,null,"Cap raise #2",null,"m3",null,{"$f":"NA()","v":{"$error":"#N/A"}},{"$f":"IF(ISNA(AJ12),0,INDEX(IF(UPPER(RIGHT(AJ12,1))=Low,UnitCostLow, IF(UPPER(RIGHT(AJ12,1))=High,UnitCostHigh,UnitCostSpecified)),MATCH(UPPER(LEFT(AJ12,LEN(AJ12)-1)),CostCode,0)))","v":0},0,null,0,0,null,"Cap raise #2",null,"m3",null,{"$f":"NA()","v":{"$error":"#N/A"}},{"$f":"IF(ISNA(AU12),0,INDEX(IF(UPPER(RIGHT(AU12,1))=Low,UnitCostLow, IF(UPPER(RIGHT(AU12,1))=High,UnitCostHigh,UnitCostSpecified)),MATCH(UPPER(LEFT(AU12,LEN(AU12)-1)),CostCode,0)))","v":0},0,null,0,0]
[null,"Cap shaft #1","Concrete plug over 4m-dia. fresh air vent","m3",28.3,"SRH",2168.2439999999997,61361.305199999995,null,0,61361.305199999995,null,"Concrete plug over 4m-dia. fresh air vent","m3",28.3,"SRH",2132,60335.6,1025.7051999999967,null,"Cap shaft #1",null,"m3",null,{"$f":"NA()","v":{"$error":"#N/A"}},0,0,null,0,0,null,"Cap shaft #1",null,"m3",null,{"$f":"NA()","v":{"$error":"#N/A"}},0,0,null,0,0,null,"Cap shaft #1",null,"m3",null,{"$f":"NA()","v":{"$error":"#N/A"}},0,0,null,0,0]
[null,"Cap shaft #2",null,"m3",null,{"$f":"NA()","v":{"$error":"#N/A"}},0,0,null,0,0,null,null,"m3",null,{"$error":"#N/A"},0,0,0,null,"Cap shaft #2",null,"m3",null,{"$f":"NA()","v":{"$error":"#N/A"}},0,0,null,0,0,null,"Cap shaft #2",null,"m3",null,{"$f":"NA()","v":{"$error":"#N/A"}},0,0,null,0,0,null,"Cap shaft #2",null,"m3",null,{"$f":"NA()","v":{"$error":"#N/A"}},0,0,null,0,0]
[null,"Backfill adits",null,"m3",null,{"$f":"NA()","v":{"$error":"#N/A"}},0,0,null,{"$f":"H15*I15","v":0},0,null,null,"m3",null,{"$error":"#N/A"},0,0,0,null,"Backfill adits",null,"m3",null,{"$f":"NA()","v":{"$error":"#N/A"}},0,0,null,{"$f":"AA15*AB15","v":0},{"$f":"AA15*(1-AB15)","v":0},null,"Backfill adits",null,"m3",null,{"$f":"NA()","v":{"$error":"#N/A"}},0,0,null,{"$f":"AL15*AM15","v":0},{"$f":"AL15*(1-AM15)","v":0},null,"Backfill adits",null,"m3",null,{"$f":"NA()","v":{"$error":"#N/A"}},0,0,null,{"$f":"AW15*AX15","v":0},{"$f":"AW15*(1-AX15)","v":0}]
[null,"Backfill open stope",null,"m3",null,{"$f":"NA()","v":{"$error":"#N/A"}},0,0,null,0,0,null,null,"m3",null,{"$error":"#N/A"},0,0,0,null,"Backfill open stope",null,"m3",null,{"$f":"NA()","v":{"$error":"#N/A"}},0,0,null,{"$f":"AA16*AB16","v":0},{"$f":"AA16*(1-AB16)","v":0},null,"Backfill open stope",null,"m3",null,{"$f":"NA()","v":{"$error":"#N/A"}},0,0,null,{"$f":"AL16*AM16","v":0},{"$f":"AL16*(1-AM16)","v":0},null,"Backfill open stope",null,"m3",{"$f":"'SBB Comp. Est.'!F54","v":3550},"Sabina",{"$f":"'SBB Comp. Est.'!X54","v":6.1019999999999994},21662.1,null,{"$f":"AW16*AX16","v":0},{"$f":"AW16*(1-AX16)","v":21662.1}]
[null,"Concrete cap over open stope",null,"m3",null,{"$f":"NA()","v":{"$error":"#N/A"}},0,0,null,0,0,null,null,"m3",null,{"$error":"#N/A"},0,0,0,null,"Concrete cap over open stope",null,"m3",null,{"$f":"NA()","v":{"$error":"#N/A"}},0,0,null,0,0,null,"Concrete cap over open stope",null,"m3",null,{"$f":"NA()","v":{"$error":"#N/A"}},0,0,null,0,0,null,"Concrete cap over open stope",null,"m3",null,{"$f":"NA()","v":{"$error":"#N/A"}},0,0,null,0,0]
[null,"Other",null,null,null,{"$f":"NA()","v":{"$error":"#N/A"}},0,0,null,0,0,null,null,null,null,{"$error":"#N/A"},0,0,0,null,"Other",null,null,null,null,null,null,null,null,null,null,"Other",null,null,null,null,null,null,null,null,null,null,"Other",null,null,null,{"$f":"NA()","v":{"$error":"#N/A"}},0,0,null,0,0]
[null,"REMOVE HAZARDOUS MATERIALS",null,null,null,null,null,null,null,null,null,null,null,null,null,null,null,null,null,null,"REMOVE HAZARDOUS MATERIALS",null,null,null,null,null,null,null,null,null,null,"REMOVE HAZARDOUS MATERIALS",null,null,null,null,null,null,null,null,null,null,"REMOVE HAZARDOUS MATERIALS"]
[null,"Remove hazardous materials, U/G labor","Three shifts with loader, incl. operator and fuel","manhour",30,"load-sL",177.97499999999999,{"$f":"G20*E20","v":5339.25},null,{"$f":"H20*I20","v":0},{"$f":"H20*(1-I20)","v":5339.25},null,"Two shifts with loader, incl. operator and fuel","manhour",20,"load-s",175,3500,{"$f":"K20-R20","v":1839.25},null,"Remove hazardous materials, U/G labor","Two shifts with loader, incl. operator and fuel","manhour",20,"load-sL",{"$f":"IF(ISNA(Y20),0,INDEX(IF(UPPER(RIGHT(Y20,1))=Low,UnitCostLow, IF(UPPER(RIGHT(Y20,1))=High,UnitCostHigh,UnitCostSpecified)),MATCH(UPPER(LEFT(Y20,LEN(Y20)-1)),CostCode,0)))","v":177.97499999999999},{"$f":"Z20*X20","v":3559.5},null,{"$f":"AA20*AB20","v":0},{"$f":"AA20*(1-AB20)","v":3559.5},null,"Remove hazardous materials, U/G labor","Two shifts with loader, incl. operator and fuel","manhour",20,"load-sL",{"$f":"IF(ISNA(AJ20),0,INDEX(IF(UPPER(RIGHT(AJ20,1))=Low,UnitCostLow, IF(UPPER(RIGHT(AJ20,1))=High,UnitCostHigh,UnitCostSpecified)),MATCH(UPPER(LEFT(AJ20,LEN(AJ20)-1)),CostCode,0)))","v":177.97499999999999},{"$f":"AK20*AI20","v":3559.5},null,{"$f":"AL20*AM20","v":0},{"$f":"AL20*(1-AM20)","v":3559.5},null,"Remove hazardous materials, U/G labor","One shift with loader, incl. operator and fuel","manhour",10,"load-sL",{"$f":"IF(ISNA(AU20),0,INDEX(IF(UPPER(RIGHT(AU20,1))=Low,UnitCostLow, IF(UPPER(RIGHT(AU20,1))=High,UnitCostHigh,UnitCostSpecified)),MATCH(UPPER(LEFT(AU20,LEN(AU20)-1)),CostCode,0)))","v":177.97499999999999},{"$f":"AV20*AT20","v":1779.75},null,{"$f":"AW20*AX20","v":0},{"$f":"AW20*(1-AX20)","v":1779.75}]
[null,"Remove/decontam. stationary & elect. equip",null,"mandays",null,{"$f":"NA()","v":{"$error":"#N/A"}},{"$f":"IF(ISNA(F21),0,INDEX(IF(UPPER(RIGHT(F21,1))=Low,UnitCostLow, IF(UPPER(RIGHT(F21,1))=High,UnitCostHigh,UnitCostSpecified)),MATCH(UPPER(LEFT(F21,LEN(F21)-1)),CostCode,0)))","v":0},{"$f":"G21*E21","v":0},null,{"$f":"H21*I21","v":0},{"$f":"H21*(1-I21)","v":0},null,null,"mandays",null,{"$error":"#N/A"},0,0,0,null,"Remove/decontam. stationary & elect. equip",null,"mandays",null,{"$f":"NA()","v":{"$error":"#N/A"}},{"$f":"IF(ISNA(Y21),0,INDEX(IF(UPPER(RIGHT(Y21,1))=Low,UnitCostLow, IF(UPPER(RIGHT(Y21,1))=High,UnitCostHigh,UnitCostSpecified)),MATCH(UPPER(LEFT(Y21,LEN(Y21)-1)),CostCode,0)))","v":0},{"$f":"Z21*X21","v":0},null,{"$f":"AA21*AB21","v":0},{"$f":"AA21*(1-AB21)","v":0},null,"Remove/decontam. stationary & elect. equip",null,"mandays",null,{"$f":"NA()","v":{"$error":"#N/A"}},{"$f":"IF(ISNA(AJ21),0,INDEX(IF(UPPER(RIGHT(AJ21,1))=Low,UnitCostLow, IF(UPPER(RIGHT(AJ21,1))=High,UnitCostHigh,UnitCostSpecified)),MATCH(UPPER(LEFT(AJ21,LEN(AJ21)-1)),CostCode,0)))","v":0},{"$f":"AK21*AI21","v":0},null,{"$f":"AL21*AM21","v":0},{"$f":"AL21*(1-AM21)","v":0},null,"Remove/decontam. stationary & elect. equip",null,"mandays",null,{"$f":"NA()","v":{"$error":"#N/A"}},{"$f":"IF(ISNA(AU21),0,INDEX(IF(UPPER(RIGHT(AU21,1))=Low,UnitCostLow, IF(UPPER(RIGHT(AU21,1))=High,UnitCostHigh,UnitCostSpecified)),MATCH(UPPER(LEFT(AU21,LEN(AU21)-1)),CostCode,0)))","v":0},{"$f":"AV21*AT21","v":0},null,{"$f":"AW21*AX21","v":0},{"$f":"AW21*(1-AX21)","v":0}]
[null,"Remove/decontam. mobile equipment",null,"each",null,{"$f":"NA()","v":{"$error":"#N/A"}},{"$f":"IF(ISNA(F22),0,INDEX(IF(UPPER(RIGHT(F22,1))=Low,UnitCostLow, IF(UPPER(RIGHT(F22,1))=High,UnitCostHigh,UnitCostSpecified)),MATCH(UPPER(LEFT(F22,LEN(F22)-1)),CostCode,0)))","v":0},{"$f":"G22*E22","v":0},null,{"$f":"H22*I22","v":0},{"$f":"H22*(1-I22)","v":0},null,null,"each",null,{"$error":"#N/A"},0,0,0,null,"Remove/decontam. mobile equipment",null,"each",null,{"$f":"NA()","v":{"$error":"#N/A"}},{"$f":"IF(ISNA(Y22),0,INDEX(IF(UPPER(RIGHT(Y22,1))=Low,UnitCostLow, IF(UPPER(RIGHT(Y22,1))=High,UnitCostHigh,UnitCostSpecified)),MATCH(UPPER(LEFT(Y22,LEN(Y22)-1)),CostCode,0)))","v":0},{"$f":"Z22*X22","v":0},null,{"$f":"AA22*AB22","v":0},{"$f":"AA22*(1-AB22)","v":0},null,"Remove/decontam. mobile equipment",null,"each",null,{"$f":"NA()","v":{"$error":"#N/A"}},{"$f":"IF(ISNA(AJ22),0,INDEX(IF(UPPER(RIGHT(AJ22,1))=Low,UnitCostLow, IF(UPPER(RIGHT(AJ22,1))=High,UnitCostHigh,UnitCostSpecified)),MATCH(UPPER(LEFT(AJ22,LEN(AJ22)-1)),CostCode,0)))","v":0},{"$f":"AK22*AI22","v":0},null,{"$f":"AL22*AM22","v":0},{"$f":"AL22*(1-AM22)","v":0},null,"Remove/decontam. mobile equipment",null,"each",null,{"$f":"NA()","v":{"$error":"#N/A"}},{"$f":"IF(ISNA(AU22),0,INDEX(IF(UPPER(RIGHT(AU22,1))=Low,UnitCostLow, IF(UPPER(RIGHT(AU22,1))=High,UnitCostHigh,UnitCostSpecified)),MATCH(UPPER(LEFT(AU22,LEN(AU22)-1)),CostCode,0)))","v":0},{"$f":"AV22*AT22","v":0},null,{"$f":"AW22*AX22","v":0},{"$f":"AW22*(1-AX22)","v":0}]
[null,"Remove misc. haz. mat & explosives","Dispose of up to 1 week's inventory of explosives","kg",100,"Sabina",{"$f":"Unit_Costs!F178","v":50.849999999999994},{"$f":"G23*E23","v":5084.9999999999991},null,{"$f":"H23*I23","v":0},{"$f":"H23*(1-I23)","v":5084.9999999999991},null,"Dispose of up to 1 week's inventory of explosives","kg",100,"Sabina",50,5000,84.999999999999091,null,"Remove misc. haz. mat & explosives","Mining will cease before closure","kg",null,{"$f":"NA()","v":{"$error":"#N/A"}},{"$f":"IF(ISNA(Y23),0,INDEX(IF(UPPER(RIGHT(Y23,1))=Low,UnitCostLow, IF(UPPER(RIGHT(Y23,1))=High,UnitCostHigh,UnitCostSpecified)),MATCH(UPPER(LEFT(Y23,LEN(Y23)-1)),CostCode,0)))","v":0},{"$f":"Z23*X23","v":0},null,{"$f":"AA23*AB23","v":0},{"$f":"AA23*(1-AB23)","v":0},null,"Remove misc. haz. mat & explosives","Mining will cease before closure","kg",null,{"$f":"NA()","v":{"$error":"#N/A"}},{"$f":"IF(ISNA(AJ23),0,INDEX(IF(UPPER(RIGHT(AJ23,1))=Low,UnitCostLow, IF(UPPER(RIGHT(AJ23,1))=High,UnitCostHigh,UnitCostSpecified)),MATCH(UPPER(LEFT(AJ23,LEN(AJ23)-1)),CostCode,0)))","v":0},{"$f":"AK23*AI23","v":0},null,{"$f":"AL23*AM23","v":0},{"$f":"AL23*(1-AM23)","v":0},null,"Remove misc. haz. mat & explosives","Mining will cease before closure","kg",null,{"$f":"NA()","v":{"$error":"#N/A"}},{"$f":"IF(ISNA(AU23),0,INDEX(IF(UPPER(RIGHT(AU23,1))=Low,UnitCostLow, IF(UPPER(RIGHT(AU23,1))=High,UnitCostHigh,UnitCostSpecified)),MATCH(UPPER(LEFT(AU23,LEN(AU23)-1)),CostCode,0)))","v":0},{"$f":"AV23*AT23","v":0},null,{"$f":"AW23*AX23","v":0},{"$f":"AW23*(1-AX23)","v":0}]
[null,"Decommission Pipeline ","Clean Umwelt UG to SWP pipeline, decommission and landfill","m",{"$f":"'SBB Comp. Est.'!$F$27","v":1662},"Sabina",{"$f":"'SBB Comp. Est.'!X27","v":10.169999999999998},{"$f":"G24*E24","v":16902.539999999997},null,{"$f":"H24*I24","v":0},{"$f":"H24*(1-I24)","v":16902.539999999997},null,"Clean Umwelt UG to SWP pipeline, decommission and landfill","m",1200,"Sabina",10,12000,4902.5399999999972,null,"Decommission Pipeline ","Clean Llama UG to SWP pipeline, decommission and landfill","m",{"$f":"'SBB Comp. Est.'!F36","v":2700},"Sabina",{"$f":"'SBB Comp. Est.'!X36","v":10.169999999999998},{"$f":"Z24*X24","v":27458.999999999996},null,{"$f":"AA24*AB24","v":0},{"$f":"AA24*(1-AB24)","v":27458.999999999996},null,"Decommission WTP - Goose Lake Pipeline ","In Water Management tab","m",null,{"$f":"NA()","v":{"$error":"#N/A"}},{"$f":"IF(ISNA(AJ24),0,INDEX(IF(UPPER(RIGHT(AJ24,1))=Low,UnitCostLow, IF(UPPER(RIGHT(AJ24,1))=High,UnitCostHigh,UnitCostSpecified)),MATCH(UPPER(LEFT(AJ24,LEN(AJ24)-1)),CostCode,0)))","v":0},{"$f":"AK24*AI24","v":0},null,{"$f":"AL24*AM24","v":0},{"$f":"AL24*(1-AM24)","v":0},null,"Decommission Pipeline ",null,"m",null,{"$f":"NA()","v":{"$error":"#N/A"}},{"$f":"IF(ISNA(AU24),0,INDEX(IF(UPPER(RIGHT(AU24,1))=Low,UnitCostLow, IF(UPPER(RIGHT(AU24,1))=High,UnitCostHigh,UnitCostSpecified)),MATCH(UPPER(LEFT(AU24,LEN(AU24)-1)),CostCode,0)))","v":0},{"$f":"AV24*AT24","v":0},null,{"$f":"AW24*AX24","v":0},{"$f":"AW24*(1-AX24)","v":0}]
[null,"INSTALL BULKHEADS",null,null,null,null,null,null,null,null,null,null,null,null,null,null,null,null,null,null,"INSTALL BULKHEADS",null,null,null,null,null,null,null,null,null,null,"INSTALL BULKHEADS",null,null,null,null,null,null,null,null,null,null,"INSTALL BULKHEADS"]
[null,"Bulkheads to control water flow",null,"each",null,{"$f":"NA()","v":{"$error":"#N/A"}},{"$f":"IF(ISNA(F26),0,INDEX(IF(UPPER(RIGHT(F26,1))=Low,UnitCostLow, IF(UPPER(RIGHT(F26,1))=High,UnitCostHigh,UnitCostSpecified)),MATCH(UPPER(LEFT(F26,LEN(F26)-1)),CostCode,0)))","v":0},{"$f":"G26*E26","v":0},null,{"$f":"H26*I26","v":0},{"$f":"H26*(1-I26)","v":0},null,null,"each",null,{"$error":"#N/A"},0,0,{"$f":"K26-R26","v":0},null,"Bulkheads to control water flow",null,"each",null,{"$f":"NA()","v":{"$error":"#N/A"}},{"$f":"IF(ISNA(Y26),0,INDEX(IF(UPPER(RIGHT(Y26,1))=Low,UnitCostLow, IF(UPPER(RIGHT(Y26,1))=High,UnitCostHigh,UnitCostSpecified)),MATCH(UPPER(LEFT(Y26,LEN(Y26)-1)),CostCode,0)))","v":0},{"$f":"Z26*X26","v":0},null,{"$f":"AA26*AB26","v":0},{"$f":"AA26*(1-AB26)","v":0},null,"Bulkheads to control water flow",null,"each",null,{"$f":"NA()","v":{"$error":"#N/A"}},{"$f":"IF(ISNA(AJ26),0,INDEX(IF(UPPER(RIGHT(AJ26,1))=Low,UnitCostLow, IF(UPPER(RIGHT(AJ26,1))=High,UnitCostHigh,UnitCostSpecified)),MATCH(UPPER(LEFT(AJ26,LEN(AJ26)-1)),CostCode,0)))","v":0},{"$f":"AK26*AI26","v":0},null,{"$f":"AL26*AM26","v":0},{"$f":"AL26*(1-AM26)","v":0},null,"Bulkheads to control water flow",null,"each",null,{"$f":"NA()","v":{"$error":"#N/A"}},{"$f":"IF(ISNA(AU26),0,INDEX(IF(UPPER(RIGHT(AU26,1))=Low,UnitCostLow, IF(UPPER(RIGHT(AU26,1))=High,UnitCostHigh,UnitCostSpecified)),MATCH(UPPER(LEFT(AU26,LEN(AU26)-1)),CostCode,0)))","v":0},{"$f":"AV26*AT26","v":0},null,{"$f":"AW26*AX26","v":0},{"$f":"AW26*(1-AX26)","v":0}]
[null,"Grout bulkhead",null,"m3",null,{"$f":"NA()","v":{"$error":"#N/A"}},{"$f":"IF(ISNA(F27),0,INDEX(IF(UPPER(RIGHT(F27,1))=Low,UnitCostLow, IF(UPPER(RIGHT(F27,1))=High,UnitCostHigh,UnitCostSpecified)),MATCH(UPPER(LEFT(F27,LEN(F27)-1)),CostCode,0)))","v":0},{"$f":"G27*E27","v":0},null,{"$f":"H27*I27","v":0},{"$f":"H27*(1-I27)","v":0},null,null,"m3",null,{"$error":"#N/A"},0,0,0,null,"Grout bulkhead",null,"m3",null,{"$f":"NA()","v":{"$error":"#N/A"}},{"$f":"IF(ISNA(Y27),0,INDEX(IF(UPPER(RIGHT(Y27,1))=Low,UnitCostLow, IF(UPPER(RIGHT(Y27,1))=High,UnitCostHigh,UnitCostSpecified)),MATCH(UPPER(LEFT(Y27,LEN(Y27)-1)),CostCode,0)))","v":0},{"$f":"Z27*X27","v":0},null,{"$f":"AA27*AB27","v":0},{"$f":"AA27*(1-AB27)","v":0},null,"Grout bulkhead",null,"m3",null,{"$f":"NA()","v":{"$error":"#N/A"}},{"$f":"IF(ISNA(AJ27),0,INDEX(IF(UPPER(RIGHT(AJ27,1))=Low,UnitCostLow, IF(UPPER(RIGHT(AJ27,1))=High,UnitCostHigh,UnitCostSpecified)),MATCH(UPPER(LEFT(AJ27,LEN(AJ27)-1)),CostCode,0)))","v":0},{"$f":"AK27*AI27","v":0},null,{"$f":"AL27*AM27","v":0},{"$f":"AL27*(1-AM27)","v":0},null,"Grout bulkhead",null,"m3",null,{"$f":"NA()","v":{"$error":"#N/A"}},{"$f":"IF(ISNA(AU27),0,INDEX(IF(UPPER(RIGHT(AU27,1))=Low,UnitCostLow, IF(UPPER(RIGHT(AU27,1))=High,UnitCostHigh,UnitCostSpecified)),MATCH(UPPER(LEFT(AU27,LEN(AU27)-1)),CostCode,0)))","v":0},{"$f":"AV27*AT27","v":0},null,{"$f":"AW27*AX27","v":0},{"$f":"AW27*(1-AX27)","v":0}]
[null,"FLOOD MINE",null,null,null,null,null,null,null,null,null,null,null,null,null,null,null,null,null,null,"FLOOD MINE",null,null,null,null,null,null,null,null,null,null,"FLOOD MINE",null,null,null,null,null,null,null,null,null,null,"FLOOD MINE"]
[null,"Supply/install pump","UG mine is expected to be flooded in Year 10 and active flooding will take about a year, relocation of pipelines and flooding will occur as part of operations but cost is provided as a conservative approach","each",null,{"$f":"NA()","v":{"$error":"#N/A"}},{"$f":"IF(ISNA(F29),0,INDEX(IF(UPPER(RIGHT(F29,1))=Low,UnitCostLow, IF(UPPER(RIGHT(F29,1))=High,UnitCostHigh,UnitCostSpecified)),MATCH(UPPER(LEFT(F29,LEN(F29)-1)),CostCode,0)))","v":0},{"$f":"G29*E29","v":0},null,0,{"$f":"H29*(1-I29)","v":0},null,"UG mine is expected to be flooded in Year 10 and active flooding will take about a year, relocation of pipelines and flooding will occur as part of operations but cost is provided as a conservative approach","each",null,{"$error":"#N/A"},0,0,{"$f":"K29-R29","v":0},null,"Supply/install pump","UG mine is expected to be flooded in Year 5 and active flooding will take about a year, relocation of pipelines and flooding will occur as part of operations","each",null,{"$f":"NA()","v":{"$error":"#N/A"}},{"$f":"IF(ISNA(Y29),0,INDEX(IF(UPPER(RIGHT(Y29,1))=Low,UnitCostLow, IF(UPPER(RIGHT(Y29,1))=High,UnitCostHigh,UnitCostSpecified)),MATCH(UPPER(LEFT(Y29,LEN(Y29)-1)),CostCode,0)))","v":0},{"$f":"Z29*X29","v":0},null,{"$f":"AA29*AB29","v":0},{"$f":"AA29*(1-AB29)","v":0},null,"Supply/install pump","UG mine is expected to be flooded in Year 10 and active flooding will take about a year, relocation of pipelines and flooding will occur as progressive reclamation but cost is provided as a conservative approach","each",null,{"$f":"NA()","v":{"$error":"#N/A"}},{"$f":"IF(ISNA(AJ29),0,INDEX(IF(UPPER(RIGHT(AJ29,1))=Low,UnitCostLow, IF(UPPER(RIGHT(AJ29,1))=High,UnitCostHigh,UnitCostSpecified)),MATCH(UPPER(LEFT(AJ29,LEN(AJ29)-1)),CostCode,0)))","v":0},{"$f":"AK29*AI29","v":0},null,{"$f":"AL29*AM29","v":0},{"$f":"AL29*(1-AM29)","v":0},null,"Supply/install pump","Passive flooding of Echo UG in Year 10, complete flooding is expected to occur within a few months.","each",null,{"$f":"NA()","v":{"$error":"#N/A"}},{"$f":"IF(ISNA(AU29),0,INDEX(IF(UPPER(RIGHT(AU29,1))=Low,UnitCostLow, IF(UPPER(RIGHT(AU29,1))=High,UnitCostHigh,UnitCostSpecified)),MATCH(UPPER(LEFT(AU29,LEN(AU29)-1)),CostCode,0)))","v":0},{"$f":"AV29*AT29","v":0},null,{"$f":"AW29*AX29","v":0},{"$f":"AW29*(1-AX29)","v":0}]
[null,"Relocate Pipeline","Move SWP-Llama UG pipeline discharge to Umwelt UG","m",{"$f":"'SBB Comp. Est.'!F25","v":800},"Sabina",{"$f":"'SBB Comp. Est.'!X25","v":10.169999999999998},{"$f":"G30*E30","v":8135.9999999999982},null,{"$f":"H30*I30","v":0},{"$f":"H30*(1-I30)","v":8135.9999999999982},null,"Move SWP-Llama UG pipeline discharge to Umwelt UG","m",800,"Sabina",10,8000,135.99999999999818,null,"Supply/install piping system",null,"m",null,{"$f":"NA()","v":{"$error":"#N/A"}},{"$f":"IF(ISNA(Y30),0,INDEX(IF(UPPER(RIGHT(Y30,1))=Low,UnitCostLow, IF(UPPER(RIGHT(Y30,1))=High,UnitCostHigh,UnitCostSpecified)),MATCH(UPPER(LEFT(Y30,LEN(Y30)-1)),CostCode,0)))","v":0},{"$f":"Z30*X30","v":0},null,{"$f":"AA30*AB30","v":0},{"$f":"AA30*(1-AB30)","v":0},null,"Supply/install piping system","Adjust pipe line to route to Goose UG in Year 10","m ",{"$f":"'SBB Comp. Est.'!F30","v":4500},"Sabina ",{"$f":"'SBB Comp. Est.'!X30","v":12.994999999999999},58477.5,null,0,58477.5,null,"Supply/install piping system",null,"each",null,{"$f":"NA()","v":{"$error":"#N/A"}},0,{"$f":"AV30*AT30","v":0},null,{"$f":"AW30*AX30","v":0},{"$f":"AW30*(1-AX30)","v":0}]
[null,"Operate pumps to flood workings","Accounts for Umwelt Underground Extension","m3",{"$f":"'SBB Comp. Est.'!F26","v":1071225},"Sabina",{"$f":"'SBB Comp. Est.'!X26","v":0.1358392438563327},{"$f":"G31*E31","v":145514.394},null,0,{"$f":"H31*(1-I31)","v":145514.394},null,null,"m3",763134,"Sabina",0.12904645842014639,98479.739999999991,47034.65400000001,null,"Operate pumps to flood workings",null,"m3",null,{"$f":"NA()","v":{"$error":"#N/A"}},{"$f":"IF(ISNA(Y31),0,INDEX(IF(UPPER(RIGHT(Y31,1))=Low,UnitCostLow, IF(UPPER(RIGHT(Y31,1))=High,UnitCostHigh,UnitCostSpecified)),MATCH(UPPER(LEFT(Y31,LEN(Y31)-1)),CostCode,0)))","v":0},{"$f":"Z31*X31","v":0},null,0,0,null,"Operate pumps to flood workings",null,"m3",{"$f":"'SBB Comp. Est.'!F31","v":391630},"Sabina",{"$f":"'SBB Comp. Est.'!X29","v":0.13570833897740517},53147.456793721183,null,0,53147.456793721183,null,"Operate pumps to flood workings",null,"m3",null,{"$f":"NA()","v":{"$error":"#N/A"}},0,0,null,0,0]
[null,"Decommission of pipeline",null,null,null,{"$f":"NA()","v":{"$error":"#N/A"}},{"$f":"IF(ISNA(F32),0,INDEX(IF(UPPER(RIGHT(F32,1))=Low,UnitCostLow, IF(UPPER(RIGHT(F32,1))=High,UnitCostHigh,UnitCostSpecified)),MATCH(UPPER(LEFT(F32,LEN(F32)-1)),CostCode,0)))","v":0},{"$f":"G32*E32","v":0},null,0,{"$f":"H32*(1-I32)","v":0},null,null,null,null,{"$error":"#N/A"},0,0,0,null,"Decommission of pipelines",null,null,null,{"$f":"NA()","v":{"$error":"#N/A"}},{"$f":"IF(ISNA(Y32),0,INDEX(IF(UPPER(RIGHT(Y32,1))=Low,UnitCostLow, IF(UPPER(RIGHT(Y32,1))=High,UnitCostHigh,UnitCostSpecified)),MATCH(UPPER(LEFT(Y32,LEN(Y32)-1)),CostCode,0)))","v":0},{"$f":"Z32*X32","v":0},null,{"$f":"AA32*AB32","v":0},{"$f":"AA32*(1-AB32)","v":0},null,"Decommission SWP to Goose UG pipeline",null,"m",{"$f":"'SBB Comp. Est.'!F32","v":10800},"Sabina",{"$f":"'SBB Comp. Est.'!X32","v":10.169999999999998},109835.99999999999,null,0,109835.99999999999,null,"Decommission",null,null,null,{"$f":"NA()","v":{"$error":"#N/A"}},0,0,null,0,0]
[null,"Other",null,null,null,{"$f":"NA()","v":{"$error":"#N/A"}},{"$f":"IF(ISNA(F33),0,INDEX(IF(UPPER(RIGHT(F33,1))=Low,UnitCostLow, IF(UPPER(RIGHT(F33,1))=High,UnitCostHigh,UnitCostSpecified)),MATCH(UPPER(LEFT(F33,LEN(F33)-1)),CostCode,0)))","v":0},{"$f":"G33*E33","v":0},null,0,{"$f":"H33*(1-I33)","v":0},null,null,null,null,{"$error":"#N/A"},0,0,0,null,"Other",null,null,null,{"$f":"NA()","v":{"$error":"#N/A"}},{"$f":"IF(ISNA(Y33),0,INDEX(IF(UPPER(RIGHT(Y33,1))=Low,UnitCostLow, IF(UPPER(RIGHT(Y33,1))=High,UnitCostHigh,UnitCostSpecified)),MATCH(UPPER(LEFT(Y33,LEN(Y33)-1)),CostCode,0)))","v":0},{"$f":"Z33*X33","v":0},null,0,0,null,"Other",null,null,null,{"$f":"NA()","v":{"$error":"#N/A"}},{"$f":"IF(ISNA(AJ33),0,INDEX(IF(UPPER(RIGHT(AJ33,1))=Low,UnitCostLow, IF(UPPER(RIGHT(AJ33,1))=High,UnitCostHigh,UnitCostSpecified)),MATCH(UPPER(LEFT(AJ33,LEN(AJ33)-1)),CostCode,0)))","v":0},0,null,0,0,null,"Other",null,null,null,{"$f":"NA()","v":{"$error":"#N/A"}},0,{"$f":"AV33*AT33","v":0},null,0,0]
[null,"INSTALL GROUNDWATER COLLECTION SYSTEM",null,null,null,null,null,null,null,null,null,null,null,null,null,null,null,null,null,null,"INSTALL GROUNDWATER COLLECTION SYSTEM",null,null,null,null,null,null,null,null,null,null,"INSTALL GROUNDWATER COLLECTION SYSTEM",null,null,null,null,null,null,null,null,null,null,"INSTALL GROUNDWATER COLLECTION SYSTEM"]
[null,"Excavate/install sumps",null,"m2",null,{"$f":"NA()","v":{"$error":"#N/A"}},{"$f":"IF(ISNA(F35),0,INDEX(IF(UPPER(RIGHT(F35,1))=Low,UnitCostLow, IF(UPPER(RIGHT(F35,1))=High,UnitCostHigh,UnitCostSpecified)),MATCH(UPPER(LEFT(F35,LEN(F35)-1)),CostCode,0)))","v":0},{"$f":"G35*E35","v":0},null,{"$f":"H35*I35","v":0},{"$f":"+H35*(1-I35)","v":0},null,null,"m2",null,{"$error":"#N/A"},0,0,{"$f":"K35-R35","v":0},null,"Excavate/install sumps",null,"m2",null,{"$f":"NA()","v":{"$error":"#N/A"}},{"$f":"IF(ISNA(Y35),0,INDEX(IF(UPPER(RIGHT(Y35,1))=Low,UnitCostLow, IF(UPPER(RIGHT(Y35,1))=High,UnitCostHigh,UnitCostSpecified)),MATCH(UPPER(LEFT(Y35,LEN(Y35)-1)),CostCode,0)))","v":0},{"$f":"Z35*X35","v":0},null,{"$f":"AA35*AB35","v":0},{"$f":"+AA35*(1-AB35)","v":0},null,"Excavate/install sumps",null,"m2",null,{"$f":"NA()","v":{"$error":"#N/A"}},{"$f":"IF(ISNA(AJ35),0,INDEX(IF(UPPER(RIGHT(AJ35,1))=Low,UnitCostLow, IF(UPPER(RIGHT(AJ35,1))=High,UnitCostHigh,UnitCostSpecified)),MATCH(UPPER(LEFT(AJ35,LEN(AJ35)-1)),CostCode,0)))","v":0},{"$f":"AK35*AI35","v":0},null,{"$f":"AL35*AM35","v":0},{"$f":"+AL35*(1-AM35)","v":0},null,"Excavate/install sumps",null,"m2",null,{"$f":"NA()","v":{"$error":"#N/A"}},{"$f":"IF(ISNA(AU35),0,INDEX(IF(UPPER(RIGHT(AU35,1))=Low,UnitCostLow, IF(UPPER(RIGHT(AU35,1))=High,UnitCostHigh,UnitCostSpecified)),MATCH(UPPER(LEFT(AU35,LEN(AU35)-1)),CostCode,0)))","v":0},{"$f":"AV35*AT35","v":0},null,{"$f":"AW35*AX35","v":0},{"$f":"+AW35*(1-AX35)","v":0}]
[null,"Install pumping wells",null,"m3",null,{"$f":"NA()","v":{"$error":"#N/A"}},0,0,null,0,{"$f":"+H36*(1-I36)","v":0},null,null,"m3",null,{"$error":"#N/A"},0,0,0,null,"Install pumping wells",null,"m3",null,{"$f":"NA()","v":{"$error":"#N/A"}},0,0,null,0,0,null,"Install pumping wells",null,"m3",null,{"$f":"NA()","v":{"$error":"#N/A"}},0,0,null,0,0,null,"Install pumping wells",null,"m3",null,{"$f":"NA()","v":{"$error":"#N/A"}},0,0,null,0,0]
[null,"Install pumps/pipelines/power supply",null,"LS",null,{"$f":"NA()","v":{"$error":"#N/A"}},0,0,null,0,{"$f":"+H37*(1-I37)","v":0},null,null,"LS",null,{"$error":"#N/A"},0,0,0,null,"Install pumps/pipelines/power supply",null,"LS",null,{"$f":"NA()","v":{"$error":"#N/A"}},0,0,null,0,0,null,"Install pumps/pipelines/power supply",null,"LS",null,{"$f":"NA()","v":{"$error":"#N/A"}},0,0,null,0,0,null,"Install pumps/pipelines/power supply",null,"LS",null,{"$f":"NA()","v":{"$error":"#N/A"}},0,0,null,0,0]
[null,"SPECIALIZED ITEMS",null,null,null,null,null,null,null,null,null,null,null,null,null,null,null,null,null,null,"SPECIALIZED ITEMS",null,null,null,null,null,null,null,null,null,null,"SPECIALIZED ITEMS",null,null,null,null,null,null,null,null,null,null,"SPECIALIZED ITEMS"]
[null,"Install water quality monitoring pipes",null,"each",null,{"$f":"NA()","v":{"$error":"#N/A"}},{"$f":"IF(ISNA(F39),0,INDEX(IF(UPPER(RIGHT(F39,1))=Low,UnitCostLow, IF(UPPER(RIGHT(F39,1))=High,UnitCostHigh,UnitCostSpecified)),MATCH(UPPER(LEFT(F39,LEN(F39)-1)),CostCode,0)))","v":0},{"$f":"G39*E39","v":0},null,{"$f":"H39*I39","v":0},{"$f":"H39*(1-I39)","v":0},null,null,"each",null,{"$error":"#N/A"},0,0,{"$f":"K39-R39","v":0},null,"Install water quality monitoring pipes",null,"each",null,{"$f":"NA()","v":{"$error":"#N/A"}},{"$f":"IF(ISNA(Y39),0,INDEX(IF(UPPER(RIGHT(Y39,1))=Low,UnitCostLow, IF(UPPER(RIGHT(Y39,1))=High,UnitCostHigh,UnitCostSpecified)),MATCH(UPPER(LEFT(Y39,LEN(Y39)-1)),CostCode,0)))","v":0},{"$f":"Z39*X39","v":0},null,{"$f":"AA39*AB39","v":0},{"$f":"AA39*(1-AB39)","v":0},null,"Install water quality monitoring pipes",null,"each",null,{"$f":"NA()","v":{"$error":"#N/A"}},{"$f":"IF(ISNA(AJ39),0,INDEX(IF(UPPER(RIGHT(AJ39,1))=Low,UnitCostLow, IF(UPPER(RIGHT(AJ39,1))=High,UnitCostHigh,UnitCostSpecified)),MATCH(UPPER(LEFT(AJ39,LEN(AJ39)-1)),CostCode,0)))","v":0},{"$f":"AK39*AI39","v":0},null,{"$f":"AL39*AM39","v":0},{"$f":"AL39*(1-AM39)","v":0},null,"Install water quality monitoring pipes",null,"each",null,{"$f":"NA()","v":{"$error":"#N/A"}},{"$f":"IF(ISNA(AU39),0,INDEX(IF(UPPER(RIGHT(AU39,1))=Low,UnitCostLow, IF(UPPER(RIGHT(AU39,1))=High,UnitCostHigh,UnitCostSpecified)),MATCH(UPPER(LEFT(AU39,LEN(AU39)-1)),CostCode,0)))","v":0},{"$f":"AV39*AT39","v":0},null,{"$f":"AW39*AX39","v":0},{"$f":"AW39*(1-AX39)","v":0}]
[null,"Install permanent pumping system",null,"each",null,{"$f":"NA()","v":{"$error":"#N/A"}},0,{"$f":"G40*E40","v":0},null,{"$f":"H40*I40","v":0},{"$f":"H40*(1-I40)","v":0},null,null,"each",null,{"$error":"#N/A"},0,0,0,null,"Install permanent pumping system",null,"each",null,{"$f":"NA()","v":{"$error":"#N/A"}},0,{"$f":"Z40*X40","v":0},null,{"$f":"AA40*AB40","v":0},0,null,"Install permanent pumping system",null,"each",null,{"$f":"NA()","v":{"$error":"#N/A"}},0,{"$f":"AK40*AI40","v":0},null,{"$f":"AL40*AM40","v":0},0,null,"Install permanent pumping system",null,"each",null,{"$f":"NA()","v":{"$error":"#N/A"}},0,{"$f":"AV40*AT40","v":0},null,{"$f":"AW40*AX40","v":0},0]
[null,"Assess underground stability","Rock mechanics inspection before closure","each",1,"Sabina",{"$f":"Unit_Costs!F179","v":10169.999999999998},{"$f":"G41*E41","v":10169.999999999998},null,{"$f":"H41*I41","v":0},{"$f":"H41*(1-I41)","v":10169.999999999998},null,"Rock mechanics inspection before closure","each",1,"Sabina",10000,10000,169.99999999999818,null,"Assess underground stability","Rock mechanics inspection before closure","each",1,"Sabina",{"$f":"Unit_Costs!F179","v":10169.999999999998},{"$f":"Z41*X41","v":10169.999999999998},null,{"$f":"AA41*AB41","v":0},10169.999999999998,null,"Other",null,null,null,{"$f":"NA()","v":{"$error":"#N/A"}},{"$f":"IF(ISNA(AJ41),0,INDEX(IF(UPPER(RIGHT(AJ41,1))=Low,UnitCostLow, IF(UPPER(RIGHT(AJ41,1))=High,UnitCostHigh,UnitCostSpecified)),MATCH(UPPER(LEFT(AJ41,LEN(AJ41)-1)),CostCode,0)))","v":0},{"$f":"AK41*AI41","v":0},null,{"$f":"AL41*AM41","v":0},0,null,"Assess underground stability","Rock mechanics inspection before closure","each",1,"Sabina",{"$f":"Unit_Costs!F179","v":10169.999999999998},{"$f":"AV41*AT41","v":10169.999999999998},null,{"$f":"AW41*AX41","v":0},10169.999999999998]
[null,null,null,null,null,null,"Total",{"$f":"SUM(H5:H41)+0.0001","v":378099.03970000002},null,{"$f":"SUM(J5:J41)","v":0},{"$f":"SUM(K5:K41)","v":378099.03960000002},null,null,null,null,null,"Total",320806.54009999998,{"$f":"H42-R42","v":57292.499600000039},null,null,null,null,null,null,"Total",{"$f":"SUM(AA5:AA41)+0.0001","v":105417.74530000001},null,{"$f":"SUM(AC5:AC41)","v":0},{"$f":"SUM(AD5:AD41)","v":105417.7452},null,null,null,null,null,null,"Total",{"$f":"SUM(AL5:AL41)+0.0001","v":289249.70209372119},null,{"$f":"SUM(AN5:AN41)","v":0},{"$f":"SUM(AO5:AO41)","v":289249.70199372119},null,null,null,null,null,null,"Total",{"$f":"SUM(AW5:AW41)+0.0001","v":97841.095300000001},null,{"$f":"SUM(AY5:AY41)","v":0},{"$f":"SUM(AZ5:AZ41)","v":97841.095199999996}]
[null,null,null,null,null,null,"% of Total",null,null,{"$f":"J42/H42","v":0},{"$f":"K42/H42","v":0.99999999973551901},null,null,null,null,null,"% of Total",null,0,null,null,null,null,null,null,"% of Total",null,null,{"$f":"AC42/AA42","v":0},{"$f":"AD42/AA42","v":0.99999999905139303},null,null,null,null,null,null,"% of Total",null,null,{"$f":"AN42/AL42","v":0},{"$f":"AO42/AL42","v":0.99999999965427788},null,null,null,null,null,null,"% of Total",null,null,{"$f":"AY42/AW42","v":0},{"$f":"AZ42/AW42","v":0.99999999897793457}]

{"sheet":"Tailings","index":4,"n_rows":82,"n_cols":22,"rows_kept":82,"cut":false,"hidden":false,"merged":[]}
[1,"Tailings Impoundment Name:","TSF",null,null,null,"Pond #",1,null,null,null,null,"TSF",null,null,null,"Pond #",1]
[]
[null,"ACTIVITY/MATERIAL","Notes","Units","Quantity","Cost Code","Unit Cost","Cost","% Land","Land Cost","Total Cost",null,"Notes","Units","Quantity","Cost Code","Unit Cost","Cost","% Land","Land Cost","Total Cost","Difference"]
[null,"CONTROL ACCESS"]
[null,"Fence",null,"m",null,{"$f":"NA()","v":{"$error":"#N/A"}},{"$f":"IF(ISNA(F5),0,INDEX(IF(UPPER(RIGHT(F5,1))=Low,UnitCostLow, IF(UPPER(RIGHT(F5,1))=High,UnitCostHigh,UnitCostSpecified)),MATCH(UPPER(LEFT(F5,LEN(F5)-1)),CostCode,0)))","v":0},{"$f":"G5*E5","v":0},null,{"$f":"H5*I5","v":0},{"$f":"+H5*(1-I5)","v":0},null,null,"m",null,{"$error":"#N/A"},0,0,null,0,0,{"$f":"K5-U5","v":0}]
[null,"Signs",null,"each",null,{"$f":"NA()","v":{"$error":"#N/A"}},0,0,null,{"$f":"H6*I6","v":0},{"$f":"+H6*(1-I6)","v":0},null,null,"each",null,{"$error":"#N/A"},0,0,null,0,0,{"$f":"K6-U6","v":0}]
[null,"Berm",null,"m3",null,{"$f":"NA()","v":{"$error":"#N/A"}},0,0,null,0,0,null,null,"m3",null,{"$error":"#N/A"},0,0,null,0,0,0]
[null,"Block roads",null,"m3",null,{"$f":"NA()","v":{"$error":"#N/A"}},0,0,null,0,0,null,null,"m3",null,{"$error":"#N/A"},0,0,null,0,0,0]
[null,"Other",null,null,null,{"$f":"NA()","v":{"$error":"#N/A"}},0,0,null,0,0,null,null,null,null,{"$error":"#N/A"},0,0,null,0,0,0]
[null,"STABILIZE EMBANKMENT(S)"]
[null,"Toe buttress, drainage layer",null,"m3",null,{"$f":"NA()","v":{"$error":"#N/A"}},0,{"$f":"G11*E11","v":0},null,0,0,null,null,"m3",null,{"$error":"#N/A"},0,0,null,0,0,{"$f":"K11-U11","v":0}]
[null,"Toe buttress, bulk fill",null,"m3",null,{"$f":"NA()","v":{"$error":"#N/A"}},0,0,null,0,0,null,null,"m3",null,{"$error":"#N/A"},0,0,null,0,0,0]
[null,"Rip rap",null,"m3",null,{"$f":"NA()","v":{"$error":"#N/A"}},0,0,null,0,0,null,null,"m3",null,{"$error":"#N/A"},0,0,null,0,0,0]
[null,"Vegetate",null,"ha",null,{"$f":"NA()","v":{"$error":"#N/A"}},0,0,null,0,0,null,null,"ha",null,{"$error":"#N/A"},0,0,null,0,0,0]
[null,"Raise crest",null,"m3",null,{"$f":"NA()","v":{"$error":"#N/A"}},0,0,null,0,0,null,null,"m3",null,{"$error":"#N/A"},0,0,null,0,0,0]
[null,"Flatten slopes",null,"m3",null,{"$f":"NA()","v":{"$error":"#N/A"}},0,0,null,0,0,null,null,"m3",null,{"$error":"#N/A"},0,0,null,0,0,0]
[null,"Other",null,null,null,{"$f":"NA()","v":{"$error":"#N/A"}},0,0,null,0,0,null,null,null,null,{"$error":"#N/A"},0,0,null,0,0,0]
[null,"COVER TAILINGS"]
[null,"Grade/shape tailings surface",null,"m3",null,{"$f":"NA()","v":{"$error":"#N/A"}},{"$f":"IF(ISNA(F19),0,INDEX(IF(UPPER(RIGHT(F19,1))=Low,UnitCostLow, IF(UPPER(RIGHT(F19,1))=High,UnitCostHigh,UnitCostSpecified)),MATCH(UPPER(LEFT(F19,LEN(F19)-1)),CostCode,0)))","v":0},{"$f":"G19*E19","v":0},null,{"$f":"H19*I19","v":0},{"$f":"+H19*(1-I19)","v":0},null,null,"m3",null,{"$error":"#N/A"},0,0,null,0,0,{"$f":"K19-U19","v":0}]
[null,"Liner bedding",null,"m3",null,{"$f":"NA()","v":{"$error":"#N/A"}},{"$f":"IF(ISNA(F20),0,INDEX(IF(UPPER(RIGHT(F20,1))=Low,UnitCostLow, IF(UPPER(RIGHT(F20,1))=High,UnitCostHigh,UnitCostSpecified)),MATCH(UPPER(LEFT(F20,LEN(F20)-1)),CostCode,0)))","v":0},{"$f":"G20*E20","v":0},null,{"$f":"H20*I20","v":0},{"$f":"+H20*(1-I20)","v":0},null,null,"m3",null,{"$error":"#N/A"},0,0,null,0,0,0]
[null,"Subgrade preparation - compact",null,"m2",null,{"$f":"NA()","v":{"$error":"#N/A"}},{"$f":"IF(ISNA(F21),0,INDEX(IF(UPPER(RIGHT(F21,1))=Low,UnitCostLow, IF(UPPER(RIGHT(F21,1))=High,UnitCostHigh,UnitCostSpecified)),MATCH(UPPER(LEFT(F21,LEN(F21)-1)),CostCode,0)))","v":0},{"$f":"G21*E21","v":0},null,{"$f":"H21*I21","v":0},{"$f":"+H21*(1-I21)","v":0},null,null,"m2",null,{"$error":"#N/A"},0,0,null,0,0,0]
[null,"Supply geotextile/geosynthetic",null,"m2",null,{"$f":"NA()","v":{"$error":"#N/A"}},{"$f":"IF(ISNA(F22),0,INDEX(IF(UPPER(RIGHT(F22,1))=Low,UnitCostLow, IF(UPPER(RIGHT(F22,1))=High,UnitCostHigh,UnitCostSpecified)),MATCH(UPPER(LEFT(F22,LEN(F22)-1)),CostCode,0)))","v":0},0,null,0,0,null,null,"m2",null,{"$error":"#N/A"},0,0,null,0,0,0]
[null,"Install geotextile/geosynthetic",null,"m2",null,{"$f":"NA()","v":{"$error":"#N/A"}},{"$f":"IF(ISNA(F23),0,INDEX(IF(UPPER(RIGHT(F23,1))=Low,UnitCostLow, IF(UPPER(RIGHT(F23,1))=High,UnitCostHigh,UnitCostSpecified)),MATCH(UPPER(LEFT(F23,LEN(F23)-1)),CostCode,0)))","v":0},{"$f":"G23*E23","v":0},null,{"$f":"H23*I23","v":0},{"$f":"+H23*(1-I23)","v":0},null,null,"m2",null,{"$error":"#N/A"},0,0,null,0,0,0]
[null,"Soil cover",null,"m3",null,{"$f":"NA()","v":{"$error":"#N/A"}},{"$f":"IF(ISNA(F24),0,INDEX(IF(UPPER(RIGHT(F24,1))=Low,UnitCostLow, IF(UPPER(RIGHT(F24,1))=High,UnitCostHigh,UnitCostSpecified)),MATCH(UPPER(LEFT(F24,LEN(F24)-1)),CostCode,0)))","v":0},0,null,0,0,null,null,"m3",null,{"$error":"#N/A"},0,0,null,0,0,0]
[null,"Rock cover","Included in the quantity for waste rock pile cover  (5m of NPAG). See Rock Pile tab.","m3",null,{"$f":"NA()","v":{"$error":"#N/A"}},{"$f":"IF(ISNA(F25),0,INDEX(IF(UPPER(RIGHT(F25,1))=Low,UnitCostLow, IF(UPPER(RIGHT(F25,1))=High,UnitCostHigh,UnitCostSpecified)),MATCH(UPPER(LEFT(F25,LEN(F25)-1)),CostCode,0)))","v":0},{"$f":"G25*E25","v":0},null,{"$f":"H25*I25","v":0},{"$f":"+H25*(1-I25)","v":0},null,"Included in the quantity for waste rock pile cover  (5m of NPAG). See Rock Pile tab.","m3",null,{"$error":"#N/A"},0,0,null,0,0,0]
[null,"TSF WRSA Pond Sediment Removal","Assumed 0.5 m of sediments in pond basin (66 ha) to be removed and placed in TSF WRSA","m3",{"$f":"66*10000*0.5","v":330000},"SBTH",3.7628999999999997,{"$f":"G26*E26","v":1241757},null,{"$f":"H26*I26","v":0},{"$f":"+H26*(1-I26)","v":1241757},null,"assumed 0.5 m of sediments in pond basin (26 ha) to be removed and placed in TSF WRSA","m3",13000,"SBTH",3.7,48100,null,0,48100,1193657]
[null,"Vegetate","TSF WRSA Pond","ha",66,"VHFL",4067.9999999999995,268487.99999999994,null,0,268487.99999999994,null,"TSF WRSA Pond","ha",20,"VHFL",4000,80000,null,0,80000,188487.99999999994]
[null,"Other",null,null,null,{"$f":"NA()","v":{"$error":"#N/A"}},0,{"$f":"G28*E28","v":0},null,{"$f":"H28*I28","v":0},{"$f":"+H28*(1-I28)","v":0},null,null,null,null,{"$error":"#N/A"},0,0,null,0,0,0]
[null,"BURY PAG ROCK"]
[null,"Relocate PAG rock",null,"m3",null,{"$f":"NA()","v":{"$error":"#N/A"}},0,{"$f":"G30*E30","v":0},null,0,0,null,null,"m3",null,{"$error":"#N/A"},0,0,null,0,0,{"$f":"K30-U30","v":0}]
[null,"Place cover over PAG rock",null,"m3",null,{"$f":"NA()","v":{"$error":"#N/A"}},0,{"$f":"G31*E31","v":0},null,0,0,null,null,"m3",null,{"$error":"#N/A"},0,0,null,0,0,0]
[null,"Raise crest of dam",null,"m3",null,{"$f":"NA()","v":{"$error":"#N/A"}},0,{"$f":"G32*E32","v":0},null,0,0,null,null,"m3",null,{"$error":"#N/A"},0,0,null,0,0,0]
[null,"Other",null,null,null,{"$f":"NA()","v":{"$error":"#N/A"}},0,{"$f":"G33*E33","v":0},null,0,0,null,null,null,null,{"$error":"#N/A"},0,0,null,0,0,0]
[null,"STABILIZE DECANT SYSTEM"]
[null,"Excavate and replace",null,"m3",null,{"$f":"NA()","v":{"$error":"#N/A"}},{"$f":"IF(ISNA(F35),0,INDEX(IF(UPPER(RIGHT(F35,1))=Low,UnitCostLow, IF(UPPER(RIGHT(F35,1))=High,UnitCostHigh,UnitCostSpecified)),MATCH(UPPER(LEFT(F35,LEN(F35)-1)),CostCode,0)))","v":0},{"$f":"G35*E35","v":0},null,{"$f":"H35*I35","v":0},{"$f":"+H35*(1-I35)","v":0},null,null,"m3",null,{"$error":"#N/A"},0,0,null,0,0,{"$f":"K35-U35","v":0}]
[null,"Plug/backfill with concrete or clay",null,"m3",null,{"$f":"NA()","v":{"$error":"#N/A"}},{"$f":"IF(ISNA(F36),0,INDEX(IF(UPPER(RIGHT(F36,1))=Low,UnitCostLow, IF(UPPER(RIGHT(F36,1))=High,UnitCostHigh,UnitCostSpecified)),MATCH(UPPER(LEFT(F36,LEN(F36)-1)),CostCode,0)))","v":0},{"$f":"G36*E36","v":0},null,{"$f":"H36*I36","v":0},{"$f":"+H36*(1-I36)","v":0},null,null,"m3",null,{"$error":"#N/A"},0,0,null,0,0,0]
[null,"Other",null,null,null,{"$f":"NA()","v":{"$error":"#N/A"}},{"$f":"IF(ISNA(F37),0,INDEX(IF(UPPER(RIGHT(F37,1))=Low,UnitCostLow, IF(UPPER(RIGHT(F37,1))=High,UnitCostHigh,UnitCostSpecified)),MATCH(UPPER(LEFT(F37,LEN(F37)-1)),CostCode,0)))","v":0},{"$f":"G37*E37","v":0},null,{"$f":"H37*I37","v":0},{"$f":"+H37*(1-I37)","v":0},null,null,null,null,{"$error":"#N/A"},0,0,null,0,0,0]
[null,"REMOVE TAILINGS DISCHARGE"]
[null,"Cyclones",null,"m3",null,{"$f":"NA()","v":{"$error":"#N/A"}},{"$f":"IF(ISNA(F39),0,INDEX(IF(UPPER(RIGHT(F39,1))=Low,UnitCostLow, IF(UPPER(RIGHT(F39,1))=High,UnitCostHigh,UnitCostSpecified)),MATCH(UPPER(LEFT(F39,LEN(F39)-1)),CostCode,0)))","v":0},{"$f":"G39*E39","v":0},null,{"$f":"H39*I39","v":0},{"$f":"+H39*(1-I39)","v":0},null,null,"m3",null,{"$error":"#N/A"},0,0,null,0,0,{"$f":"K39-U39","v":0}]
[null,"Pipe",null,"m3",null,{"$f":"NA()","v":{"$error":"#N/A"}},{"$f":"IF(ISNA(F40),0,INDEX(IF(UPPER(RIGHT(F40,1))=Low,UnitCostLow, IF(UPPER(RIGHT(F40,1))=High,UnitCostHigh,UnitCostSpecified)),MATCH(UPPER(LEFT(F40,LEN(F40)-1)),CostCode,0)))","v":0},{"$f":"G40*E40","v":0},null,{"$f":"H40*I40","v":0},{"$f":"+H40*(1-I40)","v":0},null,null,"m3",null,{"$error":"#N/A"},0,0,null,0,0,0]
[null,"Remove reclaim barge",null,"allow",null,{"$f":"NA()","v":{"$error":"#N/A"}},{"$f":"IF(ISNA(F41),0,INDEX(IF(UPPER(RIGHT(F41,1))=Low,UnitCostLow, IF(UPPER(RIGHT(F41,1))=High,UnitCostHigh,UnitCostSpecified)),MATCH(UPPER(LEFT(F41,LEN(F41)-1)),CostCode,0)))","v":0},{"$f":"G41*E41","v":0},null,{"$f":"H41*I41","v":0},{"$f":"+H41*(1-I41)","v":0},null,null,"allow",null,{"$error":"#N/A"},0,0,null,0,0,0]
[null,"CONSTRUCT DIVERSION DITCHES"]
[null,"Excavate ditches -soil",null,"m3",null,{"$f":"NA()","v":{"$error":"#N/A"}},{"$f":"IF(ISNA(F43),0,INDEX(IF(UPPER(RIGHT(F43,1))=Low,UnitCostLow, IF(UPPER(RIGHT(F43,1))=High,UnitCostHigh,UnitCostSpecified)),MATCH(UPPER(LEFT(F43,LEN(F43)-1)),CostCode,0)))","v":0},{"$f":"G43*E43","v":0},null,{"$f":"H43*I43","v":0},{"$f":"+H43*(1-I43)","v":0},null,null,"m3",null,{"$error":"#N/A"},0,0,null,0,0,{"$f":"K43-U43","v":0}]
[null,"Excavate ditches -rock",null,"m3",null,{"$f":"NA()","v":{"$error":"#N/A"}},{"$f":"IF(ISNA(F44),0,INDEX(IF(UPPER(RIGHT(F44,1))=Low,UnitCostLow, IF(UPPER(RIGHT(F44,1))=High,UnitCostHigh,UnitCostSpecified)),MATCH(UPPER(LEFT(F44,LEN(F44)-1)),CostCode,0)))","v":0},{"$f":"G44*E44","v":0},null,0,0,null,null,"m3",null,{"$error":"#N/A"},0,0,null,0,0,0]
[null,"Rip rap in channel base (liner)",null,"m2",null,{"$f":"NA()","v":{"$error":"#N/A"}},{"$f":"IF(ISNA(F45),0,INDEX(IF(UPPER(RIGHT(F45,1))=Low,UnitCostLow, IF(UPPER(RIGHT(F45,1))=High,UnitCostHigh,UnitCostSpecified)),MATCH(UPPER(LEFT(F45,LEN(F45)-1)),CostCode,0)))","v":0},{"$f":"G45*E45","v":0},null,0,0,null,null,"m2",null,{"$error":"#N/A"},0,0,null,0,0,0]
[null,"FLOOD TAILINGS"]
[null,"Doze tailings to final contour",null,"m3",null,{"$f":"NA()","v":{"$error":"#N/A"}},0,{"$f":"G47*E47","v":0},null,0,0,null,null,"m3",null,{"$error":"#N/A"},0,0,null,0,0,{"$f":"K47-U47","v":0}]
[null,"Raise crest of dam",null,"m3",null,{"$f":"NA()","v":{"$error":"#N/A"}},0,{"$f":"G48*E48","v":0},null,0,0,null,null,"m3",null,{"$error":"#N/A"},0,0,null,0,0,0]
[null,"Other",null,null,null,{"$f":"NA()","v":{"$error":"#N/A"}},0,{"$f":"G49*E49","v":0},null,0,0,null,null,null,null,{"$error":"#N/A"},0,0,null,0,0,0]
[null,"UPGRADE SPILLWAY"]
[null,"Excavate channel on TSF","Breach west end of dam to existing drainage reporting to Goose Main Pit; 100 m channel.","m3",{"$f":"'SBB Comp. Est.'!F82","v":11000},"Sabina ",{"$f":"'SBB Comp. Est.'!X82","v":7.4240999999999993},{"$f":"G51*E51","v":81665.099999999991},null,0,81665.099999999991,null,"Breach west end of dam to existing drainage reporting to Goose Main Pit; 100 m channel.","m3",11000,"Sabina ",7.3,80300,null,0,80300,{"$f":"K51-U51","v":1365.0999999999913}]
[null,"Excavate channel, soil",null,"m3",null,{"$f":"NA()","v":{"$error":"#N/A"}},0,{"$f":"G52*E52","v":0},null,0,0,null,null,"m3",null,{"$error":"#N/A"},0,0,null,0,0,0]
[null,"Concrete",null,"m3",null,{"$f":"NA()","v":{"$error":"#N/A"}},0,{"$f":"G53*E53","v":0},null,0,0,null,null,"m3",null,{"$error":"#N/A"},0,0,null,0,0,0]
[null,"Rip rap",null,"m3",7000,"RR1H",{"$f":"IF(ISNA(F54),0,INDEX(IF(UPPER(RIGHT(F54,1))=Low,UnitCostLow, IF(UPPER(RIGHT(F54,1))=High,UnitCostHigh,UnitCostSpecified)),MATCH(UPPER(LEFT(F54,LEN(F54)-1)),CostCode,0)))","v":18.051749999999998},{"$f":"G54*E54","v":126362.24999999999},null,{"$f":"H54*I54","v":0},{"$f":"+H54*(1-I54)","v":126362.24999999999},null,null,"m3",7000,"RR1H",17.75,124250,null,0,124250,2112.2499999999854]
[null,"Other","Geotextile","m2",2860,"GSTL",3.4984799999999998,{"$f":"G55*E55","v":10005.6528},null,0,10005.6528,null,"Geotextile","m2",2860,"GSTL",3.44,9838.4,null,0,9838.4,167.25280000000021]
[null,"CONSTRUCT SEEPAGE COLLECTION POND"]
[null,"Excavate seepage collection pond",null,"m3",null,{"$f":"NA()","v":{"$error":"#N/A"}},{"$f":"IF(ISNA(F57),0,INDEX(IF(UPPER(RIGHT(F57,1))=Low,UnitCostLow, IF(UPPER(RIGHT(F57,1))=High,UnitCostHigh,UnitCostSpecified)),MATCH(UPPER(LEFT(F57,LEN(F57)-1)),CostCode,0)))","v":0},{"$f":"G57*E57","v":0},null,{"$f":"H57*I57","v":0},{"$f":"+H57*(1-I57)","v":0},null,null,"m3",null,{"$error":"#N/A"},0,0,null,0,0,{"$f":"K57-U57","v":0}]
[null,"Doze & spread excavated material",null,"m3",null,{"$f":"NA()","v":{"$error":"#N/A"}},0,0,null,0,0,null,null,"m3",null,{"$error":"#N/A"},0,0,null,0,0,0]
[null,"Vegetate spread material",null,"ha",null,{"$f":"NA()","v":{"$error":"#N/A"}},0,0,null,0,0,null,null,"ha",null,{"$error":"#N/A"},0,0,null,0,0,0]
[null,"Bedding layer",null,"m3",null,{"$f":"NA()","v":{"$error":"#N/A"}},0,0,null,0,0,null,null,"m3",null,{"$error":"#N/A"},0,0,null,0,0,0]
[null,"Supply geomembrane",null,"m2",null,{"$f":"NA()","v":{"$error":"#N/A"}},0,0,null,0,0,null,null,"m2",null,{"$error":"#N/A"},0,0,null,0,0,0]
[null,"Install geomembrane",null,"m2",null,{"$f":"NA()","v":{"$error":"#N/A"}},0,0,null,0,0,null,null,"m2",null,{"$error":"#N/A"},0,0,null,0,0,0]
[null,"Erosion protection layer",null,"m3",null,{"$f":"NA()","v":{"$error":"#N/A"}},0,0,null,0,0,null,null,"m3",null,{"$error":"#N/A"},0,0,null,0,0,0]
[null,"Breach seepage diversion berm",null,"m3",{"$f":"'SBB Comp. Est.'!F83","v":285},"Sabina",{"$f":"'SBB Comp. Est.'!X83","v":7.4240999999999984},{"$f":"G64*E64","v":2115.8684999999996},null,{"$f":"H64*I64","v":0},{"$f":"+H64*(1-I64)","v":2115.8684999999996},null,null,"m3",285,"Sabina",7.3,2080.5,null,0,2080.5,35.368499999999585]
[null,"INSTALL GROUNDWATER COLLECTION SYSTEM"]
[null,"Excavate/install sumps",null,"m3",null,{"$f":"NA()","v":{"$error":"#N/A"}},{"$f":"IF(ISNA(F66),0,INDEX(IF(UPPER(RIGHT(F66,1))=Low,UnitCostLow, IF(UPPER(RIGHT(F66,1))=High,UnitCostHigh,UnitCostSpecified)),MATCH(UPPER(LEFT(F66,LEN(F66)-1)),CostCode,0)))","v":0},{"$f":"G66*E66","v":0},null,{"$f":"H66*I66","v":0},{"$f":"+H66*(1-I66)","v":0},null,null,"m3",null,{"$error":"#N/A"},0,0,null,0,0,{"$f":"K66-U66","v":0}]
[null,"Install pumping wells",null,"m3",null,{"$f":"NA()","v":{"$error":"#N/A"}},0,0,null,0,0,null,null,"m3",null,{"$error":"#N/A"},0,0,null,0,0,0]
[null,"Install pumps/pipelines/power supply",null,"LS",null,{"$f":"NA()","v":{"$error":"#N/A"}},0,0,null,0,0,null,null,"LS",null,{"$error":"#N/A"},0,0,null,0,0,0]
[null,"SPECIALIZED ITEMS"]
[null,"Install permanent instrumentation, supply & technician",null,"each",null,{"$f":"NA()","v":{"$error":"#N/A"}},0,{"$f":"G70*E70","v":0},null,{"$f":"H70*I70","v":0},{"$f":"+H70*(1-I70)","v":0},null,null,"each",null,{"$error":"#N/A"},0,0,null,0,0,{"$f":"K70-U70","v":0}]
[null,"Install permanent instrumentation, drilling",null,"each",null,{"$f":"NA()","v":{"$error":"#N/A"}},{"$f":"IF(ISNA(F71),0,INDEX(IF(UPPER(RIGHT(F71,1))=Low,UnitCostLow, IF(UPPER(RIGHT(F71,1))=High,UnitCostHigh,UnitCostSpecified)),MATCH(UPPER(LEFT(F71,LEN(F71)-1)),CostCode,0)))","v":0},{"$f":"G71*E71","v":0},null,null,{"$f":"+H71*(1-I71)","v":0},null,null,"each",null,{"$error":"#N/A"},0,0,null,null,0,0]
[null,"TREAT SEEPAGE - see \"Water Management\" and \"Water Treatment\""]
[null,"TREAT SUPERNATANT"]
[null,"Pump water (to pit, U/G)",null,"m3",null,{"$f":"NA()","v":{"$error":"#N/A"}},{"$f":"IF(ISNA(F74),0,INDEX(IF(UPPER(RIGHT(F74,1))=Low,UnitCostLow, IF(UPPER(RIGHT(F74,1))=High,UnitCostHigh,UnitCostSpecified)),MATCH(UPPER(LEFT(F74,LEN(F74)-1)),CostCode,0)))","v":0},{"$f":"G74*E74","v":0},null,{"$f":"H74*I74","v":0},{"$f":"+H74*(1-I74)","v":0},null,null,"m3",null,{"$error":"#N/A"},0,0,null,0,0,{"$f":"K74-U74","v":0}]
[null,"Equipment maintenance and parts",null,"allow",null,{"$f":"NA()","v":{"$error":"#N/A"}},{"$f":"IF(ISNA(F75),0,INDEX(IF(UPPER(RIGHT(F75,1))=Low,UnitCostLow, IF(UPPER(RIGHT(F75,1))=High,UnitCostHigh,UnitCostSpecified)),MATCH(UPPER(LEFT(F75,LEN(F75)-1)),CostCode,0)))","v":0},{"$f":"G75*E75","v":0},null,{"$f":"H75*I75","v":0},{"$f":"+H75*(1-I75)","v":0},null,null,"allow",null,{"$error":"#N/A"},0,0,null,0,0,0]
[null,"Supply reagents",null,"tonne",null,{"$f":"NA()","v":{"$error":"#N/A"}},{"$f":"IF(ISNA(F76),0,INDEX(IF(UPPER(RIGHT(F76,1))=Low,UnitCostLow, IF(UPPER(RIGHT(F76,1))=High,UnitCostHigh,UnitCostSpecified)),MATCH(UPPER(LEFT(F76,LEN(F76)-1)),CostCode,0)))","v":0},{"$f":"G76*E76","v":0},null,{"$f":"H76*I76","v":0},{"$f":"+H76*(1-I76)","v":0},null,null,"tonne",null,{"$error":"#N/A"},0,0,null,0,0,0]
[null,null,null,null,null,null,"Annual treatment costs",{"$f":"SUM(H74:H76)+0.0001","v":1E-4},null,null,null,null,null,null,null,null,"Annual treatment costs",1E-4,null,null,null,{"$f":"K77-U77","v":0}]
[null,"Number of years of treatment",null,"years",0,null,null,null,null,null,null,null,null,"years",0]
[null,null,null,null,null,null,"Total treatment costs",{"$f":"H77*E78","v":0},null,null,{"$f":"H79","v":0},null,null,null,null,null,"Total treatment costs",0,null,null,0,{"$f":"K79-U79","v":0}]
[null,null,null,null,null,null,"Total",{"$f":"SUM(H5:H71)+H79+0.0001","v":1730393.8714000003},null,{"$f":"SUM(J5:J71)+J79","v":0},{"$f":"SUM(K5:K71)+K79","v":1730393.8713000002},null,null,null,null,null,"Total",344568.90010000003,null,0,344568.9,{"$f":"K80-U80","v":1385824.9713000003}]
[null,null,null,null,null,null,"% of Total",null,null,{"$f":"J80/H80","v":0},{"$f":"K80/H80","v":0.99999999994220967},null,null,null,null,null,"% of Total",null,null,0,0.99999999970978226]
[null,"* for construction of passive treatment system refer to \"Water Management\""]

{"sheet":"Rock Pile","index":5,"n_rows":66,"n_cols":22,"rows_kept":66,"cut":false,"hidden":false,"merged":[]}
[1,"Rock Pile Name:","Umwelt, Llama, Goose Main, and Echo",null,null,null,null,null,null,null,null,null,"Umwelt, Llama, Echo and TSF"]
[]
[null,"ACTIVITY/MATERIAL","Notes","Units","Quantity","Cost Code","Unit Cost","Cost","% Land","Land Cost","Total Cost",null,"Notes","Units","Quantity","Cost Code","Unit Cost","Cost","% Land","Land Cost","Total Cost","Difference"]
[null,"STABILIZE SLOPES"]
[null,"Flatten slopes with dozer",null,"m3",null,{"$f":"NA()","v":{"$error":"#N/A"}},{"$f":"IF(ISNA(F5),0,INDEX(IF(UPPER(RIGHT(F5,1))=Low,UnitCostLow, IF(UPPER(RIGHT(F5,1))=High,UnitCostHigh,UnitCostSpecified)),MATCH(UPPER(LEFT(F5,LEN(F5)-1)),CostCode,0)))","v":0},{"$f":"G5*E5","v":0},null,{"$f":"H5*I5","v":0},{"$f":"+H5*(1-I5)","v":0},null,null,"m3",null,{"$error":"#N/A"},0,0,null,0,0,{"$f":"K5-U5","v":0}]
[null,"Flatten \"bubble dump\" areas",null,"m3",null,{"$f":"NA()","v":{"$error":"#N/A"}},0,0,null,0,0,null,null,"m3",null,{"$error":"#N/A"},0,0,null,0,0,{"$f":"K6-U6","v":0}]
[null,"Divert runon, ditch mat'l A",null,"m3",null,{"$f":"NA()","v":{"$error":"#N/A"}},0,0,null,0,0,null,null,"m3",null,{"$error":"#N/A"},0,0,null,0,0,0]
[null,"Divert runon, ditch mat'l B",null,"m3",null,{"$f":"NA()","v":{"$error":"#N/A"}},0,0,null,0,0,null,null,"m3",null,{"$error":"#N/A"},0,0,null,0,0,0]
[null,"Toe buttress, drain mat'l",null,"m3",null,{"$f":"NA()","v":{"$error":"#N/A"}},0,0,null,0,0,null,null,"m3",null,{"$error":"#N/A"},0,0,null,0,0,0]
[null,"Toe buttress, fill mat'l A",null,"m3",null,{"$f":"NA()","v":{"$error":"#N/A"}},0,0,null,0,0,null,null,"m3",null,{"$error":"#N/A"},0,0,null,0,0,0]
[null,"Toe buttress, fill mat'l B",null,"m3",null,{"$f":"NA()","v":{"$error":"#N/A"}},0,0,null,0,0,null,null,"m3",null,{"$error":"#N/A"},0,0,null,0,0,0]
[null,"Other",null,null,null,{"$f":"NA()","v":{"$error":"#N/A"}},0,0,null,0,0,null,null,null,null,{"$error":"#N/A"},0,0,null,0,0,0]
[null,"COVER ROCK PILE"]
[null,"Subgrade preparation - doze surface",null,"m3",null,{"$f":"NA()","v":{"$error":"#N/A"}},{"$f":"IF(ISNA(F14),0,INDEX(IF(UPPER(RIGHT(F14,1))=Low,UnitCostLow, IF(UPPER(RIGHT(F14,1))=High,UnitCostHigh,UnitCostSpecified)),MATCH(UPPER(LEFT(F14,LEN(F14)-1)),CostCode,0)))","v":0},{"$f":"G14*E14","v":0},null,{"$f":"H14*I14","v":0},{"$f":"+H14*(1-I14)","v":0},null,null,"m3",null,{"$error":"#N/A"},0,0,null,0,0,{"$f":"K14-U14","v":0}]
[null,"Soil cover - excavate,haul,spread&compact",null,"m3",null,{"$f":"NA()","v":{"$error":"#N/A"}},0,0,null,0,0,null,null,"m3",null,{"$error":"#N/A"},0,0,null,0,0,0]
[null,"Rock cover - excavate, haul & spread","Cover 3 rock piles: Umwelt, Llama, and Goose Main (on the TSF). Note majority of WRSAs will be covered progressively by direct hauling NPAG during mining and will be completed by Year 6 in Operations. Maximum PAG Exposure occurs in Year 2 for 51.4 ha; 5 m cover convers this area to 2.572 Mm3.","m3",2572000,"RBSS",7.1189999999999998,{"$f":"G16*E16","v":18310068},null,{"$f":"H16*I16","v":0},{"$f":"+H16*(1-I16)","v":18310068},null,"Cover 4 rock piles: Umwelt, Llama, Echo and TSF. Note all WRSAs will be covered progressively by direct hauling NPAG during mining and will be completed by Year 6 in Operations. However, Sabina has included an allotment volume sufficient to cover 48 ha of waste rock (5m thick) or 67 ha of tailings (3.5m thick). ","m3",2400000,"RR3L",7,16800000,null,0,16800000,1510068]
[null,"Excavate downslope drainage channel & chute",null,"m3",null,{"$f":"NA()","v":{"$error":"#N/A"}},0,0,null,0,0,null,null,"m3",null,{"$error":"#N/A"},0,0,null,0,0,0]
[null,"Rip rap drainage channel and chute",null,"m3",null,{"$f":"NA()","v":{"$error":"#N/A"}},0,0,null,0,0,null,null,"m3",null,{"$error":"#N/A"},0,0,null,0,0,0]
[null,"Vegetate",null,"ha",null,{"$f":"NA()","v":{"$error":"#N/A"}},0,0,null,0,0,null,null,"ha",null,{"$error":"#N/A"},0,0,null,0,0,0]
[null,"Other",null,null,null,{"$f":"NA()","v":{"$error":"#N/A"}},0,0,null,0,0,null,null,null,null,{"$error":"#N/A"},0,0,null,0,0,0]
[null,"VERY LOW PERMEABILITY COVER (in addition to above)"]
[null,"Liner subgrade preparation - compact",null,"m2",null,{"$f":"NA()","v":{"$error":"#N/A"}},{"$f":"IF(ISNA(F22),0,INDEX(IF(UPPER(RIGHT(F22,1))=Low,UnitCostLow, IF(UPPER(RIGHT(F22,1))=High,UnitCostHigh,UnitCostSpecified)),MATCH(UPPER(LEFT(F22,LEN(F22)-1)),CostCode,0)))","v":0},{"$f":"G22*E22","v":0},null,{"$f":"H22*I22","v":0},{"$f":"+H22*(1-I22)","v":0},null,null,"m2",null,{"$error":"#N/A"},0,0,null,0,0,{"$f":"K22-U22","v":0}]
[null,"Supply geomembrane",null,"m2",null,{"$f":"NA()","v":{"$error":"#N/A"}},{"$f":"IF(ISNA(F23),0,INDEX(IF(UPPER(RIGHT(F23,1))=Low,UnitCostLow, IF(UPPER(RIGHT(F23,1))=High,UnitCostHigh,UnitCostSpecified)),MATCH(UPPER(LEFT(F23,LEN(F23)-1)),CostCode,0)))","v":0},{"$f":"G23*E23","v":0},null,0,0,null,null,"m2",null,{"$error":"#N/A"},0,0,null,0,0,0]
[null,"Install geomembrane",null,"m2",null,{"$f":"NA()","v":{"$error":"#N/A"}},{"$f":"IF(ISNA(F24),0,INDEX(IF(UPPER(RIGHT(F24,1))=Low,UnitCostLow, IF(UPPER(RIGHT(F24,1))=High,UnitCostHigh,UnitCostSpecified)),MATCH(UPPER(LEFT(F24,LEN(F24)-1)),CostCode,0)))","v":0},{"$f":"G24*E24","v":0},null,0,0,null,null,"m2",null,{"$error":"#N/A"},0,0,null,0,0,0]
[null,"Protective cover - excavate,haul,spread&compact",null,"m3",null,{"$f":"NA()","v":{"$error":"#N/A"}},0,0,null,0,0,null,null,"m3",null,{"$error":"#N/A"},0,0,null,0,0,0]
[null,"Vegetate",null,"ha",null,{"$f":"NA()","v":{"$error":"#N/A"}},0,0,null,0,0,null,null,"ha",null,{"$error":"#N/A"},0,0,null,0,0,0]
[null,"Install infiltration/seepage instrumentation",null,"allow",null,{"$f":"NA()","v":{"$error":"#N/A"}},0,0,null,0,0,null,null,"allow",null,{"$error":"#N/A"},0,0,null,0,0,0]
[null,"CONSTRUCT DIVERSION DITCHES"]
[null,"Excavate ditches -soil",null,"m3",null,{"$f":"NA()","v":{"$error":"#N/A"}},{"$f":"IF(ISNA(F29),0,INDEX(IF(UPPER(RIGHT(F29,1))=Low,UnitCostLow, IF(UPPER(RIGHT(F29,1))=High,UnitCostHigh,UnitCostSpecified)),MATCH(UPPER(LEFT(F29,LEN(F29)-1)),CostCode,0)))","v":0},{"$f":"G29*E29","v":0},null,{"$f":"H29*I29","v":0},{"$f":"+H29*(1-I29)","v":0},null,null,"m3",null,{"$error":"#N/A"},0,0,null,0,0,{"$f":"K29-U29","v":0}]
[null,"Excavate ditches -rock",null,"m3",null,{"$f":"NA()","v":{"$error":"#N/A"}},{"$f":"IF(ISNA(F30),0,INDEX(IF(UPPER(RIGHT(F30,1))=Low,UnitCostLow, IF(UPPER(RIGHT(F30,1))=High,UnitCostHigh,UnitCostSpecified)),MATCH(UPPER(LEFT(F30,LEN(F30)-1)),CostCode,0)))","v":0},0,null,0,0,null,null,"m3",null,{"$error":"#N/A"},0,0,null,0,0,0]
[null,"Rip rap in channel base",null,"m3",null,{"$f":"NA()","v":{"$error":"#N/A"}},{"$f":"IF(ISNA(F31),0,INDEX(IF(UPPER(RIGHT(F31,1))=Low,UnitCostLow, IF(UPPER(RIGHT(F31,1))=High,UnitCostHigh,UnitCostSpecified)),MATCH(UPPER(LEFT(F31,LEN(F31)-1)),CostCode,0)))","v":0},0,null,0,0,null,null,"m3",null,{"$error":"#N/A"},0,0,null,0,0,0]
[null,"CONSTRUCT SEEPAGE COLLECTION POND"]
[null,"Excavate seepage collection pond","See Water Management tab for berm breaching","m3",null,{"$f":"NA()","v":{"$error":"#N/A"}},0,0,null,{"$f":"H33*I33","v":0},{"$f":"+H33*(1-I33)","v":0},null,"See Water Management tab for berm breaching","m3",null,{"$error":"#N/A"},0,0,null,0,0,{"$f":"K33-U33","v":0}]
[null,"Doze & spread excavated material",null,"m3",null,{"$f":"NA()","v":{"$error":"#N/A"}},0,0,null,0,0,null,null,"m3",null,{"$error":"#N/A"},0,0,null,0,0,0]
[null,"Vegetate spread material",null,"ha",null,{"$f":"NA()","v":{"$error":"#N/A"}},0,0,null,0,0,null,null,"ha",null,{"$error":"#N/A"},0,0,null,0,0,0]
[null,"Bedding layer",null,"m3",null,{"$f":"NA()","v":{"$error":"#N/A"}},0,0,null,0,0,null,null,"m3",null,{"$error":"#N/A"},0,0,null,0,0,0]
[null,"Supply geomembrane",null,"m2",null,{"$f":"NA()","v":{"$error":"#N/A"}},0,0,null,0,0,null,null,"m2",null,{"$error":"#N/A"},0,0,null,0,0,0]
[null,"Install geomembrane",null,"m2",null,{"$f":"NA()","v":{"$error":"#N/A"}},0,0,null,0,0,null,null,"m2",null,{"$error":"#N/A"},0,0,null,0,0,0]
[null,"Erosion protection layer",null,"m3",null,{"$f":"NA()","v":{"$error":"#N/A"}},0,0,null,0,0,null,null,"m3",null,{"$error":"#N/A"},0,0,null,0,0,0]
[null,"INSTALL GROUNDWATER COLLECTION SYSTEM"]
[null,"Excavate/install sumps",null,"m3",null,{"$f":"NA()","v":{"$error":"#N/A"}},{"$f":"IF(ISNA(F41),0,INDEX(IF(UPPER(RIGHT(F41,1))=Low,UnitCostLow, IF(UPPER(RIGHT(F41,1))=High,UnitCostHigh,UnitCostSpecified)),MATCH(UPPER(LEFT(F41,LEN(F41)-1)),CostCode,0)))","v":0},{"$f":"G41*E41","v":0},null,{"$f":"H41*I41","v":0},{"$f":"+H41*(1-I41)","v":0},null,null,"m3",null,{"$error":"#N/A"},0,0,null,0,0,{"$f":"K41-U41","v":0}]
[null,"Install pumping wells",null,"m3",null,{"$f":"NA()","v":{"$error":"#N/A"}},0,0,null,0,0,null,null,"m3",null,{"$error":"#N/A"},0,0,null,0,0,0]
[null,"Install pumps/pipelines/power supply",null,"allow",null,{"$f":"NA()","v":{"$error":"#N/A"}},0,0,null,0,0,null,null,"allow",null,{"$error":"#N/A"},0,0,null,0,0,0]
[null,"RELOCATE DUMPS"]
[null,"Load, haul, dump or doze",null,"m3",null,{"$f":"NA()","v":{"$error":"#N/A"}},{"$f":"IF(ISNA(F45),0,INDEX(IF(UPPER(RIGHT(F45,1))=Low,UnitCostLow, IF(UPPER(RIGHT(F45,1))=High,UnitCostHigh,UnitCostSpecified)),MATCH(UPPER(LEFT(F45,LEN(F45)-1)),CostCode,0)))","v":0},{"$f":"G45*E45","v":0},null,{"$f":"H45*I45","v":0},{"$f":"+H45*(1-I45)","v":0},null,null,"m3",null,{"$error":"#N/A"},0,0,null,0,0,{"$f":"K45-U45","v":0}]
[null,"Add lime",null,"tonne",null,{"$f":"NA()","v":{"$error":"#N/A"}},{"$f":"IF(ISNA(F46),0,INDEX(IF(UPPER(RIGHT(F46,1))=Low,UnitCostLow, IF(UPPER(RIGHT(F46,1))=High,UnitCostHigh,UnitCostSpecified)),MATCH(UPPER(LEFT(F46,LEN(F46)-1)),CostCode,0)))","v":0},{"$f":"G46*E46","v":0},null,{"$f":"H46*I46","v":0},{"$f":"+H46*(1-I46)","v":0},null,null,"tonne",null,{"$error":"#N/A"},0,0,null,0,0,0]
[null,"Contour reclaimed area",null,"ha",null,{"$f":"NA()","v":{"$error":"#N/A"}},{"$f":"IF(ISNA(F47),0,INDEX(IF(UPPER(RIGHT(F47,1))=Low,UnitCostLow, IF(UPPER(RIGHT(F47,1))=High,UnitCostHigh,UnitCostSpecified)),MATCH(UPPER(LEFT(F47,LEN(F47)-1)),CostCode,0)))","v":0},{"$f":"G47*E47","v":0},null,{"$f":"H47*I47","v":0},{"$f":"+H47*(1-I47)","v":0},null,null,"ha",null,{"$error":"#N/A"},0,0,null,0,0,0]
[null,"Other",null,null,null,{"$f":"NA()","v":{"$error":"#N/A"}},{"$f":"IF(ISNA(F48),0,INDEX(IF(UPPER(RIGHT(F48,1))=Low,UnitCostLow, IF(UPPER(RIGHT(F48,1))=High,UnitCostHigh,UnitCostSpecified)),MATCH(UPPER(LEFT(F48,LEN(F48)-1)),CostCode,0)))","v":0},{"$f":"G48*E48","v":0},null,{"$f":"H48*I48","v":0},{"$f":"+H48*(1-I48)","v":0},null,null,null,null,{"$error":"#N/A"},0,0,null,0,0,0]
[null,"SPECIALIZED ITEMS"]
[null,"Install ground temperature monitoring cables","Will be installed during Operations to meet operational monitoring commitments","each",null,{"$f":"NA()","v":{"$error":"#N/A"}},{"$f":"IF(ISNA(F50),0,INDEX(IF(UPPER(RIGHT(F50,1))=Low,UnitCostLow, IF(UPPER(RIGHT(F50,1))=High,UnitCostHigh,UnitCostSpecified)),MATCH(UPPER(LEFT(F50,LEN(F50)-1)),CostCode,0)))","v":0},{"$f":"G50*E50","v":0},null,{"$f":"H50*I50","v":0},{"$f":"+H50*(1-I50)","v":0},null,"Will be installed during Operations to meet operational monitoring commitments","each",null,{"$error":"#N/A"},0,0,null,0,0,{"$f":"K50-U50","v":0}]
[null,"Install permanent instrumentation, drilling",null,"each",null,{"$f":"NA()","v":{"$error":"#N/A"}},{"$f":"IF(ISNA(F51),0,INDEX(IF(UPPER(RIGHT(F51,1))=Low,UnitCostLow, IF(UPPER(RIGHT(F51,1))=High,UnitCostHigh,UnitCostSpecified)),MATCH(UPPER(LEFT(F51,LEN(F51)-1)),CostCode,0)))","v":0},{"$f":"G51*E51","v":0},null,{"$f":"H51*I51","v":0},{"$f":"+H51*(1-I51)","v":0},null,null,"each",null,{"$error":"#N/A"},0,0,null,0,0,0]
[null,"TREAT ROCK PILE SEEPAGE - see \"Water Management\""]
[null,"HEAP LEACH SEEPAGE TREATMENT - Cyanide Detox"]
[null,"Cyanide destruction water treatment pumping",null,"m3",null,{"$f":"NA()","v":{"$error":"#N/A"}},{"$f":"IF(ISNA(F54),0,INDEX(IF(UPPER(RIGHT(F54,1))=Low,UnitCostLow, IF(UPPER(RIGHT(F54,1))=High,UnitCostHigh,UnitCostSpecified)),MATCH(UPPER(LEFT(F54,LEN(F54)-1)),CostCode,0)))","v":0},{"$f":"G54*E54","v":0},null,{"$f":"H54*I54","v":0},{"$f":"+H54*(1-I54)","v":0},null,null,"m3",null,{"$error":"#N/A"},0,0,null,0,0,{"$f":"K54-U54","v":0}]
[null,"Reagents",null,"tonnes",null,{"$f":"NA()","v":{"$error":"#N/A"}},{"$f":"IF(ISNA(F55),0,INDEX(IF(UPPER(RIGHT(F55,1))=Low,UnitCostLow, IF(UPPER(RIGHT(F55,1))=High,UnitCostHigh,UnitCostSpecified)),MATCH(UPPER(LEFT(F55,LEN(F55)-1)),CostCode,0)))","v":0},{"$f":"G55*E55","v":0},null,{"$f":"H55*I55","v":0},{"$f":"+H55*(1-I55)","v":0},null,null,"tonnes",null,{"$error":"#N/A"},0,0,null,0,0,0]
[null,"Electrician/mechanic to maintain treatment plant",null,"allow",null,{"$f":"NA()","v":{"$error":"#N/A"}},{"$f":"IF(ISNA(F56),0,INDEX(IF(UPPER(RIGHT(F56,1))=Low,UnitCostLow, IF(UPPER(RIGHT(F56,1))=High,UnitCostHigh,UnitCostSpecified)),MATCH(UPPER(LEFT(F56,LEN(F56)-1)),CostCode,0)))","v":0},{"$f":"G56*E56","v":0},null,{"$f":"H56*I56","v":0},{"$f":"+H56*(1-I56)","v":0},null,null,"allow",null,{"$error":"#N/A"},0,0,null,0,0,0]
[null,"Equipment maintenance and parts",null,"allow",null,{"$f":"NA()","v":{"$error":"#N/A"}},{"$f":"IF(ISNA(F57),0,INDEX(IF(UPPER(RIGHT(F57,1))=Low,UnitCostLow, IF(UPPER(RIGHT(F57,1))=High,UnitCostHigh,UnitCostSpecified)),MATCH(UPPER(LEFT(F57,LEN(F57)-1)),CostCode,0)))","v":0},{"$f":"G57*E57","v":0},null,{"$f":"H57*I57","v":0},{"$f":"+H57*(1-I57)","v":0},null,null,"allow",null,{"$error":"#N/A"},0,0,null,0,0,0]
[null,null,null,null,null,null,"Annual treatment costs",{"$f":"SUM(H54:H57)+0.0001","v":1E-4},null,null,null,null,null,null,null,null,"Annual treatment costs",1E-4,null,null,null,{"$f":"K58-U58","v":0}]
[null,"Number of years of treatment",null,"years",0,null,null,null,null,null,null,null,null,"years",0]
[null,null,null,null,null,null,"Total treatment costs",{"$f":"H58*E59","v":0},null,null,{"$f":"H60","v":0},null,null,null,null,null,"Total treatment costs",0,null,null,0,{"$f":"K60-U60","v":0}]
[null,"HEAP LEACH SEEPAGE TREATMENT - ARD/ML"]
[null,"Upgrade/modify pumping system - report to WTP",null,"allow",null,{"$f":"NA()","v":{"$error":"#N/A"}},{"$f":"IF(ISNA(F62),0,INDEX(IF(UPPER(RIGHT(F62,1))=Low,UnitCostLow, IF(UPPER(RIGHT(F62,1))=High,UnitCostHigh,UnitCostSpecified)),MATCH(UPPER(LEFT(F62,LEN(F62)-1)),CostCode,0)))","v":0},{"$f":"G62*E62","v":0},null,null,{"$f":"H62","v":0},null,null,"allow",null,{"$error":"#N/A"},0,0,null,null,0,{"$f":"K62-U62","v":0}]
[null,null,null,null,null,null,"Total",{"$f":"SUM(H5:H51)+H60+H62+0.0001","v":18310068.000100002},null,{"$f":"SUM(J5:J51)+J60+J62","v":0},{"$f":"SUM(K5:K51)+K60+K62","v":18310068},null,null,null,null,null,"Total",16800000.000100002,null,0,16800000,{"$f":"K63-U63","v":1510068}]
[null,null,null,null,null,null,"% of Total",null,null,{"$f":"J63/H63","v":0},{"$f":"K63/H63","v":0.99999999999453848},null,null,null,null,null,"% of Total",null,null,0,0.99999999999404754]
[]
[null,"* For construction of passive treatment system refer to \"Water Management\"."]

{"sheet":"Bldgs & Equip","index":6,"n_rows":68,"n_cols":22,"rows_kept":68,"cut":false,"hidden":false,"merged":[]}
[1,"Building / Equip Name:",null,null,null,null,"Bldg / Equip #:",1,null,null,null,null,null,null,null,null,"Bldg / Equip #:",1]
[]
[null,"ACTIVITY/MATERIAL","Notes","Units","Quantity","Cost Code","Unit Cost","Cost","% Land","Land Cost","Total Cost",null,"Notes","Units","Quantity","Cost Code","Unit Cost","Cost","% Land","Land Cost","Total Cost","Difference"]
[null,"DISPOSE MOBILE EQUIPMENT"]
[null,"Decontaminate and ship off-site",null,"allow",null,{"$f":"NA()","v":{"$error":"#N/A"}},{"$f":"IF(ISNA(F5),0,INDEX(IF(UPPER(RIGHT(F5,1))=Low,UnitCostLow, IF(UPPER(RIGHT(F5,1))=High,UnitCostHigh,UnitCostSpecified)),MATCH(UPPER(LEFT(F5,LEN(F5)-1)),CostCode,0)))","v":0},{"$f":"G5*E5","v":0},null,{"$f":"H5*I5","v":0},{"$f":"+H5*(1-I5)","v":0},null,null,"allow",null,{"$error":"#N/A"},0,0,null,0,0,{"$f":"H5-R5","v":0}]
[null,"Decontaminate and dispose on-site","Drive or transport to landfill; drain fluids; NPAG cover cost below","allow",1,"Sabina",{"$f":"Unit_Costs!F180","v":20339.999999999996},{"$f":"G6*E6","v":20339.999999999996},null,{"$f":"H6*I6","v":0},{"$f":"+H6*(1-I6)","v":20339.999999999996},null,"Drive or transport to landfill; drain fluids; NPAG cover cost below","allow",1,"Sabina",20000,20000,null,0,20000,{"$f":"H6-R6","v":339.99999999999636}]
[null,"Other",null,null,null,{"$f":"NA()","v":{"$error":"#N/A"}},{"$f":"IF(ISNA(F7),0,INDEX(IF(UPPER(RIGHT(F7,1))=Low,UnitCostLow, IF(UPPER(RIGHT(F7,1))=High,UnitCostHigh,UnitCostSpecified)),MATCH(UPPER(LEFT(F7,LEN(F7)-1)),CostCode,0)))","v":0},{"$f":"G7*E7","v":0},null,0,0,null,null,null,null,{"$error":"#N/A"},0,0,null,0,0,{"$f":"H7-R7","v":0}]
[null,"REMOVE BUILDINGS - see note below"]
[null,"Accommodation Complex","Goose Admin: Kitchen/camp. Landfill building materials and pad. ","m2",{"$f":"'SBB Comp. Est.'!F96","v":1980.0000000000002},"BRS1L",{"$f":"IF(ISNA(F9),0,INDEX(IF(UPPER(RIGHT(F9,1))=Low,UnitCostLow, IF(UPPER(RIGHT(F9,1))=High,UnitCostHigh,UnitCostSpecified)),MATCH(UPPER(LEFT(F9,LEN(F9)-1)),CostCode,0)))","v":45.764999999999993},{"$f":"G9*E9","v":90614.7},null,0,90614.7,null,"Goose Admin: Kitchen/camp. Landfill building materials and pad","m2",1980.0000000000002,"BRS1L",45,89100.000000000015,null,0,89100.000000000015,{"$f":"H9-R9","v":1514.6999999999825}]
[null,"Process Facilities",null,"m2",{"$f":"'SBB Comp. Est.'!F89","v":6464},"BRS1H",66.10499999999999,427302.71999999991,null,0,427302.71999999991,null,null,"m2",6464,"BRS1H",65,420160,null,0,420160,7142.7199999999139]
[null,"Crusher",null,"m2",{"$f":"'SBB Comp. Est.'!F90","v":1630},"BRS1H",66.10499999999999,{"$f":"G11*E11","v":107751.14999999998},null,{"$f":"H11*I11","v":0},{"$f":"+H11*(1-I11)","v":107751.14999999998},null,null,"m2",1630,"BRS1H",65,105950,null,0,105950,1801.1499999999796]
[null,"Power plant",null,"m2",{"$f":"'SBB Comp. Est.'!F91","v":2040},"BRS1H",66.10499999999999,134854.19999999998,null,0,134854.19999999998,null,null,"m2",2040,"BRS1H",65,132600,null,0,132600,2254.1999999999825]
[null,"Emergency power plant",null,"m2",{"$f":"'SBB Comp. Est.'!F92","v":300},"BRS1H",66.10499999999999,19831.499999999996,null,0,19831.499999999996,null,null,"m2",300,"BRS1H",65,19500,null,0,19500,331.49999999999636]
[null,"Truck Shop/Office","Goose Admin building","m2",{"$f":"'SBB Comp. Est.'!F95","v":2349.4499999999998},"BRS1L",45.764999999999993,107522.57924999998,null,0,107522.57924999998,null,"Goose Admin building","m2",2349.4499999999998,"BRS1L",45,105725.24999999999,null,0,105725.24999999999,1797.3292499999952]
[null,"Cold storage","Goose Admin building","m2",{"$f":"'SBB Comp. Est.'!F97","v":840},"BRS1L",45.764999999999993,38442.599999999991,null,0,38442.599999999991,null,"Goose Admin building","m2",840,"BRS1L",45,37800,null,0,37800,642.59999999999127]
[null,"Storage Facilities","Waste oil storage Goose Site","Lot",{"$f":"'SBB Comp. Est.'!F98","v":1},"Sabina",{"$f":"'SBB Comp. Est.'!X98","v":44070},{"$f":"G16*E16","v":44070},null,{"$f":"H16*I16","v":0},{"$f":"+H16*(1-I16)","v":44070},null,"Waste oil storage Goose Site","Lot",1,"Sabina",43333.333333333336,43333.333333333336,null,0,43333.333333333336,736.66666666666424]
[null,"Storage Facility","Goose freight storage","Lot",{"$f":"'SBB Comp. Est.'!F99","v":1},"Sabina",{"$f":"'SBB Comp. Est.'!X99","v":19577.249999999996},19577.249999999996,null,0,19577.249999999996,null,"Goose freight storage","Lot",1,"Sabina",19250,19250,null,0,19250,327.24999999999636]
[null,"Water and Wastewater Treatment Facilities","Water treatment plant Goose Building","m2",647,"BRS1L",{"$f":"IF(ISNA(F18),0,INDEX(IF(UPPER(RIGHT(F18,1))=Low,UnitCostLow, IF(UPPER(RIGHT(F18,1))=High,UnitCostHigh,UnitCostSpecified)),MATCH(UPPER(LEFT(F18,LEN(F18)-1)),CostCode,0)))","v":45.764999999999993},29609.954999999994,null,0,29609.954999999994,null,"Water treatment plant Goose Building","m2",647,"BRS1L",45,29115,null,0,29115,494.95499999999447]
[null,"Sewage Treatment Plant","Remove hazardous materials and dispose of at licensed facility, landfill building materials","Lot",{"$f":"'SBB Comp. Est.'!F101","v":1},"Sabina",{"$f":"'SBB Comp. Est.'!X101","v":11746.349999999999},11746.349999999999,null,0,11746.349999999999,null,"Remove hazardous materials and dispose of at licensed facility, landfill building materials","Lot",1,"Sabina",11550,11550,null,0,11550,196.34999999999854]
[null,"Fuel Tanks","Fuel storage and distribution Goose facility","Lot",{"$f":"'SBB Comp. Est.'!F93","v":1},"Sabina",{"$f":"'SBB Comp. Est.'!X93","v":156617.99999999997},{"$f":"G20*E20","v":156617.99999999997},null,{"$f":"H20*I20","v":0},{"$f":"+H20*(1-I20)","v":156617.99999999997},null,"Fuel storage and distribution Goose facility","Lot",1,"Sabina",154000,154000,null,0,154000,2617.9999999999709]
[null,"Offices, Repair, Lab, Warehouse","MLA infrastructure Port Office","Units",{"$f":"'SBB Comp. Est.'!F103","v":5},"Sabina",{"$f":"'SBB Comp. Est.'!X103","v":2379.7799999999997},11898.899999999998,null,{"$f":"H21*I21","v":0},{"$f":"+H21*(1-I21)","v":11898.899999999998},null,"MLA infrastructure Port Office","Units",5,"Sabina",2340,11700,null,0,11700,198.89999999999782]
[null,"Pipeline","MLA Infrastructure","m",{"$f":"'SBB Comp. Est.'!F104","v":10000},"Sabina",{"$f":"'SBB Comp. Est.'!X104","v":10.169999999999998},101699.99999999999,null,{"$f":"H22*I22","v":0},{"$f":"+H22*(1-I22)","v":101699.99999999999},null,"MLA Infrastructure","m",10000,"Sabina",10,100000,null,0,100000,1699.9999999999854]
[null,"Warehouse, Shops and Others","MLA Infrastructure. Includes: Incinerator and waste management, Warehouses, Genset, Maintenance shop, water storage, WTP/STP, camp/office, freight storage area, waste area, MLA Fuel Storage Area. Cost includes grade and contour pads, disposal at designated areas, remove hazard material when applicable. Additional Cost included for MLA Fuel Transfer Area tank and liner removal.","LS",1,"Sabina",{"$f":"'SBB Comp. Est.'!X105+'SBB Comp. Est.'!X106+'SBB Comp. Est.'!X107+'SBB Comp. Est.'!X108+'SBB Comp. Est.'!X109+'SBB Comp. Est.'!X110+'SBB Comp. Est.'!X111+'SBB Comp. Est.'!X112+'SBB Comp. Est.'!X113+'SBB Comp. Est.'!X114","v":330636.87},330636.87,null,0,330636.87,null,"MLA Infrastructure. Includes: Incinerator and waste management, Warehouses, Genset, Maintenance shop, water storage, WTP/STP, camp/office, freight storage area, waste area, fuel storage. Cost includes grade and contour pads, disposal at designated areas, remove hazard material when applicable.","LS",1,"Sabina",308683.33333333337,308683.33333333337,null,0,308683.33333333337,21953.536666666623]
[null,"Freshwater intakes","pipes will be capped at substrate and left in place.","m2",null,{"$f":"NA()","v":{"$error":"#N/A"}},{"$f":"IF(ISNA(F24),0,INDEX(IF(UPPER(RIGHT(F24,1))=Low,UnitCostLow, IF(UPPER(RIGHT(F24,1))=High,UnitCostHigh,UnitCostSpecified)),MATCH(UPPER(LEFT(F24,LEN(F24)-1)),CostCode,0)))","v":0},0,null,0,0,null,"pipes will be capped at substrate and left in place.","m2",null,{"$error":"#N/A"},0,0,null,0,0,0]
[null,"Reclaim pumps",null,"m2",null,{"$f":"NA()","v":{"$error":"#N/A"}},0,0,null,0,0,null,null,"m2",null,{"$error":"#N/A"},0,0,null,0,0,0]
[null,"Outfall & Diffuser",null,"m2",null,{"$f":"NA()","v":{"$error":"#N/A"}},0,0,null,0,0,null,null,"m2",null,{"$error":"#N/A"},0,0,null,0,0,0]
[null,"Airstrip lighting, navigation, electrician","Accounts for Goose 6,000-ft airstrip","manhours",24,"elecH",{"$f":"IF(ISNA(F27),0,INDEX(IF(UPPER(RIGHT(F27,1))=Low,UnitCostLow, IF(UPPER(RIGHT(F27,1))=High,UnitCostHigh,UnitCostSpecified)),MATCH(UPPER(LEFT(F27,LEN(F27)-1)),CostCode,0)))","v":96.614999999999995},2318.7599999999998,null,0,2318.7599999999998,null,null,"manhours",20,"elecH",95,1900,null,0,1900,418.75999999999976]
[null,"Airstrip lighting, navigation, mechanical","Accounts for Goose 6,000-ft airstrip","manhours",24,"mechH",{"$f":"IF(ISNA(F28),0,INDEX(IF(UPPER(RIGHT(F28,1))=Low,UnitCostLow, IF(UPPER(RIGHT(F28,1))=High,UnitCostHigh,UnitCostSpecified)),MATCH(UPPER(LEFT(F28,LEN(F28)-1)),CostCode,0)))","v":74.08844999999998},1778.1227999999996,null,0,1778.1227999999996,null,null,"manhours",20,"mechH",72.849999999999994,1457,null,0,1457,321.12279999999964]
[null,"Break foundation slabs",null,"m2",null,{"$f":"NA()","v":{"$error":"#N/A"}},{"$f":"IF(ISNA(F29),0,INDEX(IF(UPPER(RIGHT(F29,1))=Low,UnitCostLow, IF(UPPER(RIGHT(F29,1))=High,UnitCostHigh,UnitCostSpecified)),MATCH(UPPER(LEFT(F29,LEN(F29)-1)),CostCode,0)))","v":0},{"$f":"G29*E29","v":0},null,{"$f":"H29*I29","v":0},{"$f":"+H29*(1-I29)","v":0},null,null,"m2",null,{"$error":"#N/A"},0,0,null,0,0,0]
[null,"Consolidate & dump boneyard debris",null,"m3",null,{"$f":"NA()","v":{"$error":"#N/A"}},0,0,null,0,0,null,null,"m3",null,{"$error":"#N/A"},0,0,null,0,0,0]
[null,"Other ","Remove Buildings - WIR Service/Emergency Camps, total of 3 1-ha area for 3 camps; assume all structures will be sprung structures.","LS",3,"Sabina",{"$f":"Unit_Costs!F181","v":75000},225000,null,0,225000,null,null,null,null,{"$error":"#N/A"},0,0,null,0,0,225000]
[null,"LANDFILL FOR DEMOLITION WASTE"]
[null,"Place rock cover",null,"m3",{"$f":"'SBB Comp. Est.'!F59","v":25000},"RR3L",7.1189999999999998,{"$f":"G33*E33","v":177975},null,{"$f":"H33*I33","v":0},{"$f":"+H33*(1-I33)","v":177975},null,null,"m3",25000,"RR3L",7,175000,null,0,175000,{"$f":"H33-R33","v":2975}]
[null,"Place soil cover",null,"m3",null,{"$f":"NA()","v":{"$error":"#N/A"}},{"$f":"IF(ISNA(F34),0,INDEX(IF(UPPER(RIGHT(F34,1))=Low,UnitCostLow, IF(UPPER(RIGHT(F34,1))=High,UnitCostHigh,UnitCostSpecified)),MATCH(UPPER(LEFT(F34,LEN(F34)-1)),CostCode,0)))","v":0},{"$f":"G34*E34","v":0},null,0,{"$f":"+H34*(1-I34)","v":0},null,null,"m3",null,{"$error":"#N/A"},0,0,null,0,0,{"$f":"H34-R34","v":0}]
[null,"Vegetate",null,"ha",null,{"$f":"NA()","v":{"$error":"#N/A"}},{"$f":"IF(ISNA(F35),0,INDEX(IF(UPPER(RIGHT(F35,1))=Low,UnitCostLow, IF(UPPER(RIGHT(F35,1))=High,UnitCostHigh,UnitCostSpecified)),MATCH(UPPER(LEFT(F35,LEN(F35)-1)),CostCode,0)))","v":0},{"$f":"G35*E35","v":0},null,0,0,null,null,"ha",null,{"$error":"#N/A"},0,0,null,0,0,{"$f":"H35-R35","v":0}]
[null,"GRADE AND CONTOUR PADS"]
[null,"Accommodation Complex","Goose Admin: Kitchen/camp. no concrete foundation","ha",{"$f":"ROUNDUP(E9/10000,1)","v":0.2},"SCFYL",{"$f":"IF(ISNA(F37),0,INDEX(IF(UPPER(RIGHT(F37,1))=Low,UnitCostLow, IF(UPPER(RIGHT(F37,1))=High,UnitCostHigh,UnitCostSpecified)),MATCH(UPPER(LEFT(F37,LEN(F37)-1)),CostCode,0)))","v":4373.0999999999995},{"$f":"G37*E37","v":874.61999999999989},null,0,874.61999999999989,null,"Goose Admin: Kitchen/camp. no concrete foundation","ha",0.2,"SCFYL",4300,860,null,0,860,{"$f":"H37-R37","v":14.619999999999891}]
[null,"Process Facilities","concrete foundation demolished to ground level","m2",{"$f":"E10","v":6464},"BRCS",6.1019999999999994,39443.327999999994,null,0,39443.327999999994,null,"concrete foundation demolished to ground level","m2",6464,"BRCS",6,38784,null,0,38784,659.32799999999406]
[null,"Crusher","concrete foundation demolished to ground level","m2",1630,"BRCS",6.1019999999999994,9946.2599999999984,null,0,9946.2599999999984,null,"concrete foundation demolished to ground level","m2",1630,"BRCS",6,9780,null,0,9780,166.2599999999984]
[null,"Power plant","no concrete foundation","ha",{"$f":"ROUNDUP(E12/10000,1)","v":0.30000000000000004},"SCFYL",4373.0999999999995,1311.93,null,0,1311.93,null,"no concrete foundation","ha",0.30000000000000004,"SCFYL",4300,1290.0000000000002,null,0,1290.0000000000002,21.929999999999836]
[null,"Emergency power plant","no concrete foundation","ha",{"$f":"ROUNDUP(E13/10000,1)","v":0.1},"SCFYL",4373.0999999999995,437.30999999999995,null,0,437.30999999999995,null,"no concrete foundation","ha",0.1,"SCFYL",4300,430,null,0,430,7.3099999999999454]
[null,"Truck Shop/Office","concrete foundation demolished to ground level","m2",2349.4499999999998,"BRCS",{"$f":"IF(ISNA(F42),0,INDEX(IF(UPPER(RIGHT(F42,1))=Low,UnitCostLow, IF(UPPER(RIGHT(F42,1))=High,UnitCostHigh,UnitCostSpecified)),MATCH(UPPER(LEFT(F42,LEN(F42)-1)),CostCode,0)))","v":6.1019999999999994},{"$f":"G42*E42","v":14336.343899999998},null,{"$f":"H42*I42","v":0},{"$f":"+H42*(1-I42)","v":14336.343899999998},null,"concrete foundation demolished to ground level","m2",2349.4499999999998,"BRCS",6,14096.699999999999,null,0,14096.699999999999,239.64389999999912]
[null,"Cold storage","no concrete foundation","ha",{"$f":"ROUNDUP(E15/10000,1)","v":0.1},"SCFYL",4373.0999999999995,437.30999999999995,null,0,437.30999999999995,null,"no concrete foundation","ha",0.1,"SCFYL",4300,430,null,0,430,7.3099999999999454]
[null,"Water and Wastewater Treatment Facilities","no concrete foundation","ha",{"$f":"ROUNDUP(E18/10000,1)","v":0.1},"SCFYL",4373.0999999999995,437.30999999999995,null,0,437.30999999999995,null,"no concrete foundation","ha",0.1,"SCFYL",4300,430,null,0,430,7.3099999999999454]
[null,"Sewage Treatment Plant","no concrete foundation","m2",{"$f":"ROUNDUP(13.7*2.4,0)","v":33},"BRCS",{"$f":"IF(ISNA(F45),0,INDEX(IF(UPPER(RIGHT(F45,1))=Low,UnitCostLow, IF(UPPER(RIGHT(F45,1))=High,UnitCostHigh,UnitCostSpecified)),MATCH(UPPER(LEFT(F45,LEN(F45)-1)),CostCode,0)))","v":6.1019999999999994},{"$f":"G45*E45","v":201.36599999999999},null,{"$f":"H45*I45","v":0},{"$f":"+H45*(1-I45)","v":201.36599999999999},null,"no concrete foundation","m2",33,"BRCS",6,198,null,0,198,3.3659999999999854]
[null,"Fuel Tanks","Fuel storage and distribution Goose facility; no concrete foundation","ha",2.2000000000000002,"SCFYL",4373.0999999999995,9620.82,null,0,9620.82,null,"Fuel storage and distribution Goose facility; no concrete foundation","ha",2.2000000000000002,"SCFYL",4300,9460,null,0,9460,160.81999999999971]
[null,"Warehouse, Shops and Other","MLA, includes all storage/laydown pads, Fuel Tank areas, airstrip, shoreline pads, and camp area","ha",20,"SCFYL",4373.0999999999995,87461.999999999985,null,0,87461.999999999985,null,"MLA, includes all storage/laydown, Fuel Tanks and camp area","ha",20,"SCFYL",4300,86000,null,0,86000,1461.9999999999854]
[null,"Place rock cover",null,"m3",null,{"$f":"NA()","v":{"$error":"#N/A"}},0,0,null,0,0,null,null,"m3",null,{"$error":"#N/A"},0,0,null,0,0,0]
[null,"Vegetate",null,"ha",null,{"$f":"NA()","v":{"$error":"#N/A"}},0,0,null,0,0,null,null,"ha",null,{"$error":"#N/A"},0,0,null,0,0,0]
[null,"PUNCTURE LINED SUMPS"]
[null,"Puncture liner and place soil cover",null,"m3",null,{"$f":"NA()","v":{"$error":"#N/A"}},{"$f":"IF(ISNA(F51),0,INDEX(IF(UPPER(RIGHT(F51,1))=Low,UnitCostLow, IF(UPPER(RIGHT(F51,1))=High,UnitCostHigh,UnitCostSpecified)),MATCH(UPPER(LEFT(F51,LEN(F51)-1)),CostCode,0)))","v":0},{"$f":"G51*E51","v":0},null,{"$f":"H51*I51","v":0},{"$f":"+H51*(1-I51)","v":0},null,null,"m3",null,{"$error":"#N/A"},0,0,null,0,0,{"$f":"H51-R51","v":0}]
[null,"RECLAIM ROADS"]
[null,"Restore drainage, remove culverts haul road","Restore drainage including culverts at Goose Property; no culverts at MLA. Roads will remain intact to facilitate long-term access.","m3",{"$f":"'SBB Comp. Est.'!F122","v":1488},"Sabina",{"$f":"'SBB Comp. Est.'!X122","v":11.186999999999998},{"$f":"G53*E53","v":16646.255999999998},null,0,16646.255999999998,null,"Restore drainage including culverts; Roads will remain intact to facilitate long-term access.","m3",1488,"Sabina",11,16368,null,0,16368,{"$f":"H53-R53","v":278.25599999999758}]
[null,"Remove bridges",null,"each",null,{"$f":"NA()","v":{"$error":"#N/A"}},{"$f":"IF(ISNA(F54),0,INDEX(IF(UPPER(RIGHT(F54,1))=Low,UnitCostLow, IF(UPPER(RIGHT(F54,1))=High,UnitCostHigh,UnitCostSpecified)),MATCH(UPPER(LEFT(F54,LEN(F54)-1)),CostCode,0)))","v":0},0,null,0,0,null,null,"each",null,{"$error":"#N/A"},0,0,null,0,0,0]
[null,"Scarify and install water breaks",null,"ha",null,{"$f":"NA()","v":{"$error":"#N/A"}},0,0,null,0,0,null,null,"ha",null,{"$error":"#N/A"},0,0,null,0,0,0]
[null,"Restore drainage airstrip","Accounts for Goose 6,000ft by 200ft airstrip dimensions","m3",{"$f":"'SBB Comp. Est.'!F125","v":1360},"Sabina",{"$f":"'SBB Comp. Est.'!X125","v":12.203999999999999},16597.439999999999,null,0,16597.439999999999,null,null,"m3",1020,"Sabina",12,12240,null,0,12240,4357.4399999999987]
[null,"Scarify airstrip area","Accounts for Goose 6,000ft by 200ft airstrip (1,829 m x 61 m = 11.2 ha)","ha",11.2,"SCFYL",4373.0999999999995,48978.719999999994,null,0,48978.719999999994,null,null,"ha",null,{"$error":"#N/A"},0,0,null,0,0,48978.719999999994]
[null,"Scarify Winter Ice Roads & WIR Camps","Fill sections on land - 15 km x 10 m wide = 15.0 ha; plus 3 ha for WIR Service/Emergency Camps (1 ha/camp x 3)","ha",{"$f":"8+7+3","v":18},"SCFYH",{"$f":"IF(ISNA(F58),0,INDEX(IF(UPPER(RIGHT(F58,1))=Low,UnitCostLow, IF(UPPER(RIGHT(F58,1))=High,UnitCostHigh,UnitCostSpecified)),MATCH(UPPER(LEFT(F58,LEN(F58)-1)),CostCode,0)))","v":6132.5099999999993},{"$f":"G58*E58","v":110385.18},null,{"$f":"H58*I58","v":0},{"$f":"+H58*(1-I58)","v":110385.18},null,"Fill sections on land - 8 km x 10 m wide = 8.0 ha","ha",8,"SCFYH",6030,48240,null,0,48240,62145.179999999993]
[null,"Vegetate - Subbase & WIR Camps","Potential vegetation of roads to include 18 ha of scarified subbase and camps, plus a nominal area of 3 ha for spill or other road remediation area.","ha",{"$f":"11+7+3","v":21},"VHFL",4067.9999999999995,85427.999999999985,null,{"$f":"H59*I59","v":0},85427.999999999985,null,"Potential vegetation of roads to include 8 ha of scarified WIR and nominal area of 3 ha for spill or other road remediation area.","ha",11,"VHFL",4000,44000,null,0,44000,41427.999999999985]
[null,"Other",null,null,null,{"$f":"NA()","v":{"$error":"#N/A"}},0,0,null,{"$f":"H60*I60","v":0},0,null,null,null,null,{"$error":"#N/A"},0,0,null,0,0,0]
[null,"SPECIALIZED ITEMS"]
[null,"Dispose of misc. debris and laydown area refuse",null,null,null,{"$f":"NA()","v":{"$error":"#N/A"}},{"$f":"IF(ISNA(F62),0,INDEX(IF(UPPER(RIGHT(F62,1))=Low,UnitCostLow, IF(UPPER(RIGHT(F62,1))=High,UnitCostHigh,UnitCostSpecified)),MATCH(UPPER(LEFT(F62,LEN(F62)-1)),CostCode,0)))","v":0},{"$f":"G62*E62","v":0},null,{"$f":"H62*I62","v":0},0,null,null,null,null,{"$error":"#N/A"},0,0,null,0,0,{"$f":"H62-R62","v":0}]
[null,null,null,null,null,null,"Total",{"$f":"SUM(H5:H62)+0.0001","v":2502132.8510500002},null,{"$f":"SUM(J5:J62)","v":0},{"$f":"SUM(K5:K62)","v":2502132.8509500003},null,null,null,null,null,"Total",2069430.616766667,null,0,2069430.6166666669,{"$f":"H63-R63","v":432702.23428333318}]
[null,null,null,null,null,null,"% of Total",null,null,{"$f":"J63/H63","v":0},{"$f":"K63/H63","v":0.99999999996003419},null,null,null,null,null,"% of Total",null,null,0,0.99999999995167754]
[]
[]
[]
[null,"Note:  Unit costs are based on 3m high, single story building.  Scale larger building areas accordingly.  E.g.  10m high building multiply area by 3.3 (10/3)"]

{"sheet":"Chemicals","index":7,"n_rows":55,"n_cols":22,"rows_kept":55,"cut":false,"hidden":false,"merged":[[2,1,2,7]]}
[1,"Chemicals/Soil Area Name:"]
[]
[null,"Note:         The procedures, equipment and packaging for clean up and removal of chemicals or contaminated soils are highly dependent on the nature of the chemicals and their existing state of containment. Government guidelines should be consulted on an individual chemical basis.  Any estimate made here should be considered very rough unless specific evaluations have been conducted."]
[null,"ACTIVITY/MATERIAL","Notes","Units","Quantity","Cost Code","Unit Cost","Cost","% Land","Land Cost","Total Cost",null,"Notes","Units","Quantity","Cost Code","Unit Cost","Cost","% Land","Land Cost","Total Cost","Difference"]
[null,"HAZARDOUS MATERIALS AUDIT"]
[null,"Hazardous materials audit",null,"mandays",null,{"$f":"NA()","v":{"$error":"#N/A"}},{"$f":"IF(ISNA(F6),0,INDEX(IF(UPPER(RIGHT(F6,1))=Low,UnitCostLow, IF(UPPER(RIGHT(F6,1))=High,UnitCostHigh,UnitCostSpecified)),MATCH(UPPER(LEFT(F6,LEN(F6)-1)),CostCode,0)))","v":0},{"$f":"G6*E6","v":0},null,{"$f":"H6*I6","v":0},{"$f":"+H6*(1-I6)","v":0},null,null,"mandays",null,{"$error":"#N/A"},0,0,null,0,0,{"$f":"K6-U6","v":0}]
[null,"Phase 1 audit",null,"each",1,"CS1L",{"$f":"IF(ISNA(F7),0,INDEX(IF(UPPER(RIGHT(F7,1))=Low,UnitCostLow, IF(UPPER(RIGHT(F7,1))=High,UnitCostHigh,UnitCostSpecified)),MATCH(UPPER(LEFT(F7,LEN(F7)-1)),CostCode,0)))","v":7627.4999999999991},{"$f":"G7*E7","v":7627.4999999999991},null,{"$f":"H7*I7","v":0},{"$f":"+H7*(1-I7)","v":7627.4999999999991},null,null,"each",1,"CS1L",7500,7500,null,0,7500,{"$f":"K7-U7","v":127.49999999999909}]
[null,"Phase 2 audit",null,"each",1,"CS2L",{"$f":"IF(ISNA(F8),0,INDEX(IF(UPPER(RIGHT(F8,1))=Low,UnitCostLow, IF(UPPER(RIGHT(F8,1))=High,UnitCostHigh,UnitCostSpecified)),MATCH(UPPER(LEFT(F8,LEN(F8)-1)),CostCode,0)))","v":50849.999999999993},50849.999999999993,null,0,50849.999999999993,null,null,"each",1,"CS2L",50000,50000,null,0,50000,849.99999999999272]
[null,"BUILDING DECONTAMINATION & CONSOLIDATION OF HAZARDOUS MATERIALS"]
[null,"Environmental technician/coordinator",null,"mandays",null,{"$f":"NA()","v":{"$error":"#N/A"}},{"$f":"IF(ISNA(F10),0,INDEX(IF(UPPER(RIGHT(F10,1))=Low,UnitCostLow, IF(UPPER(RIGHT(F10,1))=High,UnitCostHigh,UnitCostSpecified)),MATCH(UPPER(LEFT(F10,LEN(F10)-1)),CostCode,0)))","v":0},{"$f":"G10*E10","v":0},null,{"$f":"H10*I10","v":0},{"$f":"+H10*(1-I10)","v":0},null,null,"mandays",null,{"$error":"#N/A"},0,0,null,0,0,{"$f":"K10-U10","v":0}]
[null,"Decontaminate: oil, fuel",null,"mandays",null,{"$f":"NA()","v":{"$error":"#N/A"}},{"$f":"IF(ISNA(F11),0,INDEX(IF(UPPER(RIGHT(F11,1))=Low,UnitCostLow, IF(UPPER(RIGHT(F11,1))=High,UnitCostHigh,UnitCostSpecified)),MATCH(UPPER(LEFT(F11,LEN(F11)-1)),CostCode,0)))","v":0},0,null,0,0,null,null,"mandays",null,{"$error":"#N/A"},0,0,null,0,0,0]
[null,"Decontaminate maintenance shop",null,"mandays",null,{"$f":"NA()","v":{"$error":"#N/A"}},{"$f":"IF(ISNA(F12),0,INDEX(IF(UPPER(RIGHT(F12,1))=Low,UnitCostLow, IF(UPPER(RIGHT(F12,1))=High,UnitCostHigh,UnitCostSpecified)),MATCH(UPPER(LEFT(F12,LEN(F12)-1)),CostCode,0)))","v":0},0,null,0,0,null,null,"mandays",null,{"$error":"#N/A"},0,0,null,0,0,0]
[null,"Decontaminate power plant",null,"mandays",null,{"$f":"NA()","v":{"$error":"#N/A"}},0,0,null,0,0,null,null,"mandays",null,{"$error":"#N/A"},0,0,null,0,0,0]
[null,"Decontaminate bulk fuel storage",null,"mandays",null,{"$f":"NA()","v":{"$error":"#N/A"}},0,0,null,0,0,null,null,"mandays",null,{"$error":"#N/A"},0,0,null,0,0,0]
[null,"Decontaminate ANFO plant",null,"mandays",null,{"$f":"NA()","v":{"$error":"#N/A"}},0,0,null,0,0,null,null,"mandays",null,{"$error":"#N/A"},0,0,null,0,0,0]
[null,"Decontaminate offices/warehouse/accom",null,"mandays",null,{"$f":"NA()","v":{"$error":"#N/A"}},0,0,null,0,0,null,null,"mandays",null,{"$error":"#N/A"},0,0,null,0,0,0]
[null,"Removal of asbestos siding on buildings",null,"m2",null,{"$f":"NA()","v":{"$error":"#N/A"}},0,0,null,0,0,null,null,"m2",null,{"$error":"#N/A"},0,0,null,0,0,0]
[null,"Removal of friable asbestos on equipment",null,"m2",null,{"$f":"NA()","v":{"$error":"#N/A"}},0,0,null,0,0,null,null,"m2",null,{"$error":"#N/A"},0,0,null,0,0,0]
[null,"Other",null,null,null,{"$f":"NA()","v":{"$error":"#N/A"}},0,0,null,0,0,null,null,null,null,{"$error":"#N/A"},0,0,null,0,0,0]
[null,"HAZARDOUS MATERIALS REMOVAL"]
[null,"Waste oils","Consume in a waste oil burner on-site","litre",10000,"ORL",{"$f":"IF(ISNA(F21),0,INDEX(IF(UPPER(RIGHT(F21,1))=Low,UnitCostLow, IF(UPPER(RIGHT(F21,1))=High,UnitCostHigh,UnitCostSpecified)),MATCH(UPPER(LEFT(F21,LEN(F21)-1)),CostCode,0)))","v":0.43730999999999998},{"$f":"G21*E21","v":4373.0999999999995},null,{"$f":"H21*I21","v":0},{"$f":"+H21*(1-I21)","v":4373.0999999999995},null,"Consume in a waste oil burner on-site","litre",10000,"ORL",0.43,4300,null,0,4300,{"$f":"K21-U21","v":73.099999999999454}]
[null,"Waste fuel","Consume on-site to power an incinerator, or in a waste oil burner","litre",250000,"ORL",0.43730999999999998,109327.5,null,0,109327.5,null,"Consume on-site to power an incinerator, or in a waste oil burner","litre",250000,"ORL",0.43,107500,null,0,107500,1827.5]
[null,"Waste batteries","Assumed 10 20-kg batteries generated in the final year of closure","kg",200,"PCRH",2.5424999999999995,508.49999999999989,null,0,508.49999999999989,null,"Assumed 10 20-kg batteries generated in the final year of closure","kg",200,"PCRH",2.5,500,null,0,500,8.4999999999998863]
[null,"Assay & environmental lab reagents",null,"kg",500,"PCRH",2.5424999999999995,1271.2499999999998,null,0,1271.2499999999998,null,null,"kg",500,"PCRH",2.5,1250,null,0,1250,21.249999999999773]
[null,"Machine shop paints, solvents etc.",null,"litre",200,"PCRH",2.5424999999999995,508.49999999999989,null,0,508.49999999999989,null,null,"litre",200,"PCRH",2.5,500,null,0,500,8.4999999999998863]
[null,"Glycol",null,"litre",5000,"PCRH",2.5424999999999995,12712.499999999998,null,{"$f":"H26*I26","v":0},{"$f":"+H26*(1-I26)","v":12712.499999999998},null,null,"litre",5000,"PCRH",2.5,12500,null,0,12500,212.49999999999818]
[null,"Process reagents",null,"kg",130000,"PCRH",{"$f":"IF(ISNA(F27),0,INDEX(IF(UPPER(RIGHT(F27,1))=Low,UnitCostLow, IF(UPPER(RIGHT(F27,1))=High,UnitCostHigh,UnitCostSpecified)),MATCH(UPPER(LEFT(F27,LEN(F27)-1)),CostCode,0)))","v":2.5424999999999995},{"$f":"G27*E27","v":330524.99999999994},null,{"$f":"H27*I27","v":0},{"$f":"+H27*(1-I27)","v":330524.99999999994},null,null,"kg",130000,"PCRH",2.5,325000,null,0,325000,5524.9999999999418]
[null,"WTP sludge from Water Treatment","All sludge created and disposed during Operations. In Year 2 (Max PAG Exposure), 3 years of sludge disposal included (9,000 kg over 3 seasons).","kg",{"$f":"3000*3","v":9000},"PCRH",{"$f":"IF(ISNA(F28),0,INDEX(IF(UPPER(RIGHT(F28,1))=Low,UnitCostLow, IF(UPPER(RIGHT(F28,1))=High,UnitCostHigh,UnitCostSpecified)),MATCH(UPPER(LEFT(F28,LEN(F28)-1)),CostCode,0)))","v":2.5424999999999995},{"$f":"G28*E28","v":22882.499999999996},null,{"$f":"H28*I28","v":0},{"$f":"+H28*(1-I28)","v":22882.499999999996},null,"Assumes off-site disposal for 7 years of treatment. If sludge passes leach tests, will consider on-site disposal.","kg",21000,"PCRH",2.5,52500,null,0,52500,-29617.500000000004]
[null,"Nuclear sources",null,"allow",null,{"$f":"NA()","v":{"$error":"#N/A"}},{"$f":"IF(ISNA(F29),0,INDEX(IF(UPPER(RIGHT(F29,1))=Low,UnitCostLow, IF(UPPER(RIGHT(F29,1))=High,UnitCostHigh,UnitCostSpecified)),MATCH(UPPER(LEFT(F29,LEN(F29)-1)),CostCode,0)))","v":0},0,null,{"$f":"H29*I29","v":0},{"$f":"+H29*(1-I29)","v":0},null,null,"allow",null,{"$error":"#N/A"},0,0,null,0,0,0]
[null,"Mobile Equipment","Remove hazardous waste from equipment not being salvaged, clean, landfill equipment ","each",{"$f":"'SBB Comp. Est.'!F22","v":41},"Sabina",{"$f":"'SBB Comp. Est.'!X22","v":2318.7599999999998},{"$f":"G30*E30","v":95069.159999999989},null,{"$f":"H30*I30","v":0},{"$f":"+H30*(1-I30)","v":95069.159999999989},null,"Remove hazardous waste from equipment not being salvaged, clean, landfill equipment ","each",41,"Sabina",2280,93480,null,0,93480,1589.1599999999889]
[null,"HAZARDOUS MATERIALS "]
[null,"Transportation to disposal facility","Included in hazardous materials removal cost","allow",null,{"$f":"NA()","v":{"$error":"#N/A"}},{"$f":"IF(ISNA(F32),0,INDEX(IF(UPPER(RIGHT(F32,1))=Low,UnitCostLow, IF(UPPER(RIGHT(F32,1))=High,UnitCostHigh,UnitCostSpecified)),MATCH(UPPER(LEFT(F32,LEN(F32)-1)),CostCode,0)))","v":0},{"$f":"G32*E32","v":0},null,{"$f":"H32*I32","v":0},{"$f":"+H32*(1-I32)","v":0},null,"Included in hazardous materials removal cost","allow",null,{"$error":"#N/A"},0,0,null,0,0,{"$f":"K32-U32","v":0}]
[null,"Disposal fees","Included in hazardous materials removal cost","allow",null,{"$f":"NA()","v":{"$error":"#N/A"}},{"$f":"IF(ISNA(F33),0,INDEX(IF(UPPER(RIGHT(F33,1))=Low,UnitCostLow, IF(UPPER(RIGHT(F33,1))=High,UnitCostHigh,UnitCostSpecified)),MATCH(UPPER(LEFT(F33,LEN(F33)-1)),CostCode,0)))","v":0},{"$f":"G33*E33","v":0},null,{"$f":"H33*I33","v":0},{"$f":"+H33*(1-I33)","v":0},null,"Included in hazardous materials removal cost","allow",null,{"$error":"#N/A"},0,0,null,0,0,0]
[null,"Other",null,null,null,{"$f":"NA()","v":{"$error":"#N/A"}},{"$f":"IF(ISNA(F34),0,INDEX(IF(UPPER(RIGHT(F34,1))=Low,UnitCostLow, IF(UPPER(RIGHT(F34,1))=High,UnitCostHigh,UnitCostSpecified)),MATCH(UPPER(LEFT(F34,LEN(F34)-1)),CostCode,0)))","v":0},{"$f":"G34*E34","v":0},null,{"$f":"H34*I34","v":0},{"$f":"+H34*(1-I34)","v":0},null,null,null,null,{"$error":"#N/A"},0,0,null,0,0,0]
[null,"CONTAMINATED SOILS "]
[null,"Contam. soil investigation - Phase 1",null,"LS",1,"Sabina",{"$f":"Unit_Costs!F182","v":7627.4999999999991},{"$f":"G36*E36","v":7627.4999999999991},null,{"$f":"H36*I36","v":0},{"$f":"+H36*(1-I36)","v":7627.4999999999991},null,null,"LS",1,"BGC",7500,7500,null,0,7500,{"$f":"K36-U36","v":127.49999999999909}]
[null,"Contam. soil investigation - Phase 2",null,"LS",1,"Sabina",{"$f":"'SBB Comp. Est.'!X136","v":50849.999999999993},50849.999999999993,null,0,50849.999999999993,null,null,"LS",1,"Sabina",50000,50000,null,0,50000,849.99999999999272]
[null,"CONTAMINATED SOIL REMOVAL"]
[null,"Excavate and transport to onsite facility",null,"m3",{"$f":"'SBB Comp. Est.'!F138","v":10000},"SB1H",{"$f":"IF(ISNA(F39),0,INDEX(IF(UPPER(RIGHT(F39,1))=Low,UnitCostLow, IF(UPPER(RIGHT(F39,1))=High,UnitCostHigh,UnitCostSpecified)),MATCH(UPPER(LEFT(F39,LEN(F39)-1)),CostCode,0)))","v":6.0003000000000002},{"$f":"G39*E39","v":60003},null,{"$f":"H39*I39","v":0},{"$f":"+H39*(1-I39)","v":60003},null,null,"m3",10000,"SB1H",5.9,59000,null,0,59000,{"$f":"K39-U39","v":1003}]
[null,"Manage hydrocarbon remediation at facility",null,"m3",10000,"CSRL",{"$f":"IF(ISNA(F40),0,INDEX(IF(UPPER(RIGHT(F40,1))=Low,UnitCostLow, IF(UPPER(RIGHT(F40,1))=High,UnitCostHigh,UnitCostSpecified)),MATCH(UPPER(LEFT(F40,LEN(F40)-1)),CostCode,0)))","v":47.798999999999992},477989.99999999994,null,0,477989.99999999994,null,null,"m3",10000,"CSRL",47,470000,null,0,470000,7989.9999999999418]
[null,"Reagents/stabilizing agent",null,"m2",null,{"$f":"NA()","v":{"$error":"#N/A"}},{"$f":"IF(ISNA(F41),0,INDEX(IF(UPPER(RIGHT(F41,1))=Low,UnitCostLow, IF(UPPER(RIGHT(F41,1))=High,UnitCostHigh,UnitCostSpecified)),MATCH(UPPER(LEFT(F41,LEN(F41)-1)),CostCode,0)))","v":0},{"$f":"G41*E41","v":0},null,{"$f":"H41*I41","v":0},{"$f":"+H41*(1-I41)","v":0},null,null,"m2",null,{"$error":"#N/A"},0,0,null,0,0,0]
[null,"Excavate and transport to offsite facility",null,"m3",null,{"$f":"NA()","v":{"$error":"#N/A"}},{"$f":"IF(ISNA(F42),0,INDEX(IF(UPPER(RIGHT(F42,1))=Low,UnitCostLow, IF(UPPER(RIGHT(F42,1))=High,UnitCostHigh,UnitCostSpecified)),MATCH(UPPER(LEFT(F42,LEN(F42)-1)),CostCode,0)))","v":0},0,null,0,0,null,null,"m3",null,{"$error":"#N/A"},0,0,null,0,0,0]
[null,"Contour decontaminated area","Decommission 2 landfarms and confirmation soil sampling; estimated 6,000m3 at each of Goose and MLA sites.","m3",12000,"SB1L",{"$f":"IF(ISNA(F43),0,INDEX(IF(UPPER(RIGHT(F43,1))=Low,UnitCostLow, IF(UPPER(RIGHT(F43,1))=High,UnitCostHigh,UnitCostSpecified)),MATCH(UPPER(LEFT(F43,LEN(F43)-1)),CostCode,0)))","v":4.3730999999999991},52477.19999999999,null,{"$f":"H43*I43","v":0},{"$f":"+H43*(1-I43)","v":52477.19999999999},null,"Decommission 2 landfarms and confirmation soil sampling; estimated 6,000m3 at each of Goose and MLA sites.","m3",12000,"SB1L",4.3,51600,null,0,51600,877.19999999998981]
[null,"CONTAMINATED SOIL VERY LOW PERMEABILITY COVER "]
[null,"Supply geomembrane, HDPE, ES3, GCL",null,"m2",null,{"$f":"NA()","v":{"$error":"#N/A"}},{"$f":"IF(ISNA(F45),0,INDEX(IF(UPPER(RIGHT(F45,1))=Low,UnitCostLow, IF(UPPER(RIGHT(F45,1))=High,UnitCostHigh,UnitCostSpecified)),MATCH(UPPER(LEFT(F45,LEN(F45)-1)),CostCode,0)))","v":0},{"$f":"G45*E45","v":0},null,{"$f":"H45*I45","v":0},{"$f":"+H45*(1-I45)","v":0},null,null,"m2",null,{"$error":"#N/A"},0,0,null,0,0,{"$f":"K45-U45","v":0}]
[null,"Upper and lower bedding layers",null,"m3",null,{"$f":"NA()","v":{"$error":"#N/A"}},0,0,null,0,0,null,null,"m3",null,{"$error":"#N/A"},0,0,null,0,0,0]
[null,"Install geomembrane, HDPE, ES3, GCL",null,"m2",null,{"$f":"NA()","v":{"$error":"#N/A"}},0,0,null,0,0,null,null,"m2",null,{"$error":"#N/A"},0,0,null,0,0,0]
[null,"Erosion protection layer",null,"m3",null,{"$f":"NA()","v":{"$error":"#N/A"}},0,0,null,0,0,null,null,"m3",null,{"$error":"#N/A"},0,0,null,0,0,0]
[null,"Vegetate",null,"m2",null,{"$f":"NA()","v":{"$error":"#N/A"}},0,0,null,0,0,null,null,"m2",null,{"$error":"#N/A"},0,0,null,0,0,0]
[null,"Install infiltration/seepage instrumentation",null,"allow",null,{"$f":"NA()","v":{"$error":"#N/A"}},0,0,null,{"$f":"H50*I50","v":0},{"$f":"+H50*(1-I50)","v":0},null,null,"allow",null,{"$error":"#N/A"},0,0,null,0,0,0]
[null,"Other","Operate 2 landfarms: 1 at Goose, 1 at MLA","allow",2,"Sabina",{"$f":"Unit_Costs!F183","v":50849.999999999993},101699.99999999999,null,{"$f":"H51*I51","v":0},{"$f":"+H51*(1-I51)","v":101699.99999999999},null,"Operate 2 landfarms: 1 at Goose, 1 at MLA","allow",2,"Sabina",50000,100000,null,0,100000,1699.9999999999854]
[null,"OTHER"]
[null,null,null,null,null,{"$f":"NA()","v":{"$error":"#N/A"}},{"$f":"IF(ISNA(F53),0,INDEX(IF(UPPER(RIGHT(F53,1))=Low,UnitCostLow, IF(UPPER(RIGHT(F53,1))=High,UnitCostHigh,UnitCostSpecified)),MATCH(UPPER(LEFT(F53,LEN(F53)-1)),CostCode,0)))","v":0},{"$f":"G53*E53","v":0},null,{"$f":"H53*I53","v":0},{"$f":"+H53*(1-I53)","v":0},null,null,null,null,{"$error":"#N/A"},0,0,null,0,0,{"$f":"K53-U53","v":0}]
[null,null,null,null,null,null,"Total",{"$f":"SUM(H6:H53)+0.0001","v":1386303.2100999998},null,{"$f":"SUM(J6:J53)","v":0},{"$f":"SUM(K6:K53)","v":1386303.2099999997},null,null,null,null,null,"Total",1393130.0001000001,null,0,1393130,{"$f":"K54-U54","v":-6826.7900000002701}]
[null,null,null,null,null,null,"% of Total",null,null,{"$f":"J54/H54","v":0},{"$f":"K54/H54","v":0.9999999999278657},null,null,null,null,null,"% of Total",null,null,0,0.9999999999282192,{"$f":"K55-U55","v":-3.5349501104064984E-13}]

{"sheet":"Water Management","index":8,"n_rows":82,"n_cols":17,"rows_kept":82,"cut":false,"hidden":false,"merged":[[55,2,57,2]]}
[1,"Capital Expenditures and Short Term Water Treatment identified in 'Instructions' worksheet"]
[]
[null,"ACTIVITY/MATERIAL","Notes","Units","Quantity","Cost Code","Unit Cost","Total Cost",null,"ACTIVITY/MATERIAL","Notes","Units","Quantity","Cost Code","Unit Cost","Total Cost","Difference"]
[null,"BREACH DYKE EMBANKMENT",null,null,null,null,null,null,null,"BREACH DYKE EMBANKMENT"]
[null,"Breach Llama Lake Diversion Berms","Breached in Year 5 when pit becomes Llama TF; removed.","m3",0,{"$f":"NA()","v":{"$error":"#N/A"}},{"$f":"'SBB Comp. Est.'!X62","v":0},{"$f":"G5*E5","v":0},null,"Breach Llama Lake Diversion Berms",null,"m3",665,{"$error":"#N/A"},7.3,4854.5,{"$f":"H5-P5","v":-4854.5}]
[null,"Breach Llama WRSA Diversion Berm","Breached in Year 5 when pit becomes Llama TF; removed.","m3",0,{"$f":"NA()","v":{"$error":"#N/A"}},{"$f":"'SBB Comp. Est.'!X63","v":0},{"$f":"G6*E6","v":0},null,"Breach Llama WRSA Diversion Berm",null,"m3",95,{"$error":"#N/A"},7.3,693.5,{"$f":"H6-P6","v":-693.5}]
[null,"Breach Llama WRSA Containment Dam","Breached in Year 5 when pit becomes Llama TF; removed.","m3",0,{"$f":"NA()","v":{"$error":"#N/A"}},{"$f":"'SBB Comp. Est.'!X64","v":0},0,null,"Breach Llama WRSA Containment Dam",null,"m3",95,{"$error":"#N/A"},7.3,693.5,-693.5]
[null,"Breach Primary Pond Containment Dam","Breach in Year 3 once Umwelt Pit mining complete and starts as Umwelt Reservoir for saline water; Primary Pond will water will gravity flow directly.","m3",0,{"$f":"NA()","v":{"$error":"#N/A"}},{"$f":"'SBB Comp. Est.'!X67","v":0},{"$f":"G8*E8","v":0},null,"Breach Primary Pond Containment Dam","Breach in Year 2 once Umwelt Pit mining complete and starts as Umwelt Tailings Facility (TF); Primary Pond will water will gravity flow directly.","m3",0,{"$error":"#N/A"},0,0,0]
[null,"Breach Umwelt WRSA Containment Dam","Berm has been removed from water management design","m3",0,{"$f":"NA()","v":{"$error":"#N/A"}},{"$f":"'SBB Comp. Est.'!X68","v":0},0,null,"Breach Umwelt WRSA Containment Dam",null,"m3",120,{"$error":"#N/A"},7.3,876,-876]
[null,"Breach Umwelt WRSA Diversion Berm","Berm has been removed from water management design","m3",0,{"$f":"NA()","v":{"$error":"#N/A"}},{"$f":"'SBB Comp. Est.'!X69","v":0},0,null,"Breach Umwelt WRSA Diversion Berm",null,"m3",95,{"$error":"#N/A"},7.3,693.5,-693.5]
[null,"Breach Echo WRSA Containment Dam","Not in current mine plan; cost remains to keep Stage in tact.","m3",{"$f":"'SBB Comp. Est.'!F73","v":190},{"$f":"NA()","v":{"$error":"#N/A"}},{"$f":"'SBB Comp. Est.'!X73","v":7.4241000000000001},1410.579,null,"Breach Echo WRSA Containment Dam",null,"m3",190,{"$error":"#N/A"},7.3,1387,23.578999999999951]
[null,"Breach Echo Diversion Berm (East and West)","Not in current mine plan; cost remains to keep Stage in tact.","m3",{"$f":"'SBB Comp. Est.'!F74","v":190},{"$f":"NA()","v":{"$error":"#N/A"}},{"$f":"'SBB Comp. Est.'!X74","v":7.4241000000000001},1410.579,null,"Breach Echo Diversion Berm (East and West)",null,"m3",190,{"$error":"#N/A"},7.3,1387,23.578999999999951]
[null,"Breach Echo WRSA Diversion Berm","Not in current mine plan; cost remains to keep Stage in tact.","m3",{"$f":"'SBB Comp. Est.'!F75","v":95},{"$f":"NA()","v":{"$error":"#N/A"}},{"$f":"'SBB Comp. Est.'!X75","v":7.4241000000000001},705.28949999999998,null,"Breach Echo WRSA Diversion Berm",null,"m3",95,{"$error":"#N/A"},7.3,693.5,11.789499999999975]
[null,"Breach East Echo Containment Dam","Not in current mine plan; cost remains to keep Stage in tact.","m3",{"$f":"'SBB Comp. Est.'!F76","v":95},{"$f":"NA()","v":{"$error":"#N/A"}},{"$f":"'SBB Comp. Est.'!X76","v":7.4241000000000001},705.28949999999998,null,"Breach East Echo Containment Dam",null,"m3",95,{"$error":"#N/A"},7.3,693.5,11.789499999999975]
[null,"Breach Goose Main Diversion Berm","Breached in Year 5 when pit becomes Goose Main Reservoir","m3",0,{"$f":"NA()","v":{"$error":"#N/A"}},{"$f":"'SBB Comp. Est.'!X80","v":7.4241000000000001},0,null,"Breach Goose Main Diversion Berm",null,"m3",95,{"$error":"#N/A"},7.3,693.5,-693.5]
[null,"Breach Plant Site Pond Containment Dam",null,"m3",{"$f":"'SBB Comp. Est.'!F86","v":215},{"$f":"NA()","v":{"$error":"#N/A"}},{"$f":"'SBB Comp. Est.'!X86","v":7.4240999999999993},1596.1814999999999,null,"Breach Ore Stockpile Diversion Berm and Containment Dam",null,"m3",215,{"$error":"#N/A"},7.3,1569.5,26.681499999999915]
[null,"Breach SWP Containment Dam","Dewatered to Umwelt Reservoir in Year 3&4; breached in Year 4 of Operations","m3",0,{"$f":"NA()","v":{"$error":"#N/A"}},{"$f":"'SBB Comp. Est.'!X33","v":0},0,null,"Breach SWP Diversion Berms and Containment Dams",null,"m3",430,{"$error":"#N/A"},8,3440,-3440]
[null,"Remove Liner from all berms","Remove liner from all berms - 50% completed during Operations","m2",{"$f":"30700*0.5","v":15350},"Sabina",{"$f":"Unit_Costs!F184","v":0.71189999999999987},{"$f":"G18*E18","v":10927.664999999997},null,"Remove Liner from all berms","Remove liner from all berms","m2",30700,"Sabina",0.7,21490,-10562.335000000003]
[null,"Contour water intake area",null,"m3",null,{"$f":"NA()","v":{"$error":"#N/A"}},{"$f":"IF(ISNA(F19),0,INDEX(IF(UPPER(RIGHT(F19,1))=Low,UnitCostLow, IF(UPPER(RIGHT(F19,1))=High,UnitCostHigh,UnitCostSpecified)),MATCH(UPPER(LEFT(F19,LEN(F19)-1)),CostCode,0)))","v":0},{"$f":"G19*E19","v":0},null,"Contour water intake area",null,"m3",null,{"$error":"#N/A"},0,0,0]
[null,"STABILIZE SEDIMENT PONDS/WATER MANAGEMENT PONDS",null,null,null,null,null,null,null,"STABILIZE SEDIMENT PONDS/WATER MANAGEMENT PONDS"]
[null,"Place soil cover",null,"m3",null,{"$f":"NA()","v":{"$error":"#N/A"}},{"$f":"IF(ISNA(F21),0,INDEX(IF(UPPER(RIGHT(F21,1))=Low,UnitCostLow, IF(UPPER(RIGHT(F21,1))=High,UnitCostHigh,UnitCostSpecified)),MATCH(UPPER(LEFT(F21,LEN(F21)-1)),CostCode,0)))","v":0},{"$f":"G21*E21","v":0},null,"Place soil cover",null,"m3",null,{"$error":"#N/A"},0,0,{"$f":"H21-P21","v":0}]
[null,"Doze & spread excavated material",null,"m3",null,{"$f":"NA()","v":{"$error":"#N/A"}},{"$f":"IF(ISNA(F22),0,INDEX(IF(UPPER(RIGHT(F22,1))=Low,UnitCostLow, IF(UPPER(RIGHT(F22,1))=High,UnitCostHigh,UnitCostSpecified)),MATCH(UPPER(LEFT(F22,LEN(F22)-1)),CostCode,0)))","v":0},{"$f":"G22*E22","v":0},null,"Doze & spread excavated material",null,"m3",null,{"$error":"#N/A"},0,0,0]
[null,"Vegetate spread material",null,"ha",null,{"$f":"NA()","v":{"$error":"#N/A"}},{"$f":"IF(ISNA(F23),0,INDEX(IF(UPPER(RIGHT(F23,1))=Low,UnitCostLow, IF(UPPER(RIGHT(F23,1))=High,UnitCostHigh,UnitCostSpecified)),MATCH(UPPER(LEFT(F23,LEN(F23)-1)),CostCode,0)))","v":0},{"$f":"G23*E23","v":0},null,"Vegetate spread material",null,"ha",null,{"$error":"#N/A"},0,0,0]
[null,"Rip rap in channel base",null,"each",null,{"$f":"NA()","v":{"$error":"#N/A"}},{"$f":"IF(ISNA(F24),0,INDEX(IF(UPPER(RIGHT(F24,1))=Low,UnitCostLow, IF(UPPER(RIGHT(F24,1))=High,UnitCostHigh,UnitCostSpecified)),MATCH(UPPER(LEFT(F24,LEN(F24)-1)),CostCode,0)))","v":0},{"$f":"G24*E24","v":0},null,"Rip rap in channel base",null,"each",null,{"$error":"#N/A"},0,0,0]
[null,"REDIRECT RUNOFF/CONSTRUCT DIVERSION DITCHES",null,null,null,null,null,null,null,"REDIRECT RUNOFF/CONSTRUCT DIVERSION DITCHES"]
[null,"Excavate ditches -soil",null,"m3",null,{"$f":"NA()","v":{"$error":"#N/A"}},{"$f":"IF(ISNA(F26),0,INDEX(IF(UPPER(RIGHT(F26,1))=Low,UnitCostLow, IF(UPPER(RIGHT(F26,1))=High,UnitCostHigh,UnitCostSpecified)),MATCH(UPPER(LEFT(F26,LEN(F26)-1)),CostCode,0)))","v":0},{"$f":"G26*E26","v":0},null,"Excavate ditches -soil",null,"m3",null,{"$error":"#N/A"},0,0,{"$f":"H26-P26","v":0}]
[null,"Excavate ditches -rock",null,"m3",null,{"$f":"NA()","v":{"$error":"#N/A"}},{"$f":"IF(ISNA(F27),0,INDEX(IF(UPPER(RIGHT(F27,1))=Low,UnitCostLow, IF(UPPER(RIGHT(F27,1))=High,UnitCostHigh,UnitCostSpecified)),MATCH(UPPER(LEFT(F27,LEN(F27)-1)),CostCode,0)))","v":0},{"$f":"G27*E27","v":0},null,"Excavate ditches -rock",null,"m3",null,{"$error":"#N/A"},0,0,{"$f":"H27-P27","v":0}]
[null,"Stabilize side slopes",null,"m3",null,{"$f":"NA()","v":{"$error":"#N/A"}},{"$f":"IF(ISNA(F28),0,INDEX(IF(UPPER(RIGHT(F28,1))=Low,UnitCostLow, IF(UPPER(RIGHT(F28,1))=High,UnitCostHigh,UnitCostSpecified)),MATCH(UPPER(LEFT(F28,LEN(F28)-1)),CostCode,0)))","v":0},{"$f":"G28*E28","v":0},null,"Stabilize side slopes",null,"m3",null,{"$error":"#N/A"},0,0,0]
[null,"Rip rap in channel base",null,"m3",null,{"$f":"NA()","v":{"$error":"#N/A"}},{"$f":"IF(ISNA(F29),0,INDEX(IF(UPPER(RIGHT(F29,1))=Low,UnitCostLow, IF(UPPER(RIGHT(F29,1))=High,UnitCostHigh,UnitCostSpecified)),MATCH(UPPER(LEFT(F29,LEN(F29)-1)),CostCode,0)))","v":0},{"$f":"G29*E29","v":0},null,"Rip rap in channel base",null,"m3",null,{"$error":"#N/A"},0,0,0]
[null,"BREACH DITCHES",null,null,null,null,null,null,null,"BREACH DITCHES"]
[null,"Excavate breaches",null,"m3",null,{"$f":"NA()","v":{"$error":"#N/A"}},{"$f":"IF(ISNA(F31),0,INDEX(IF(UPPER(RIGHT(F31,1))=Low,UnitCostLow, IF(UPPER(RIGHT(F31,1))=High,UnitCostHigh,UnitCostSpecified)),MATCH(UPPER(LEFT(F31,LEN(F31)-1)),CostCode,0)))","v":0},{"$f":"G31*E31","v":0},null,"Excavate breaches",null,"m3",null,{"$error":"#N/A"},0,0,{"$f":"H31-P31","v":0}]
[null,"Install flow dissipation",null,"m3",null,{"$f":"NA()","v":{"$error":"#N/A"}},{"$f":"IF(ISNA(F32),0,INDEX(IF(UPPER(RIGHT(F32,1))=Low,UnitCostLow, IF(UPPER(RIGHT(F32,1))=High,UnitCostHigh,UnitCostSpecified)),MATCH(UPPER(LEFT(F32,LEN(F32)-1)),CostCode,0)))","v":0},{"$f":"G32*E32","v":0},null,"Install flow dissipation",null,"m3",null,{"$error":"#N/A"},0,0,0]
[null,"Vegetate remainder of ditch",null,"m2",null,{"$f":"NA()","v":{"$error":"#N/A"}},{"$f":"IF(ISNA(F33),0,INDEX(IF(UPPER(RIGHT(F33,1))=Low,UnitCostLow, IF(UPPER(RIGHT(F33,1))=High,UnitCostHigh,UnitCostSpecified)),MATCH(UPPER(LEFT(F33,LEN(F33)-1)),CostCode,0)))","v":0},{"$f":"G33*E33","v":0},null,"Vegetate remainder of ditch",null,"m2",null,{"$error":"#N/A"},0,0,0]
[null,"DECOMISSION FRESH WATER SUPPLY",null,null,null,null,null,null,null,"DECOMISSION FRESH WATER SUPPLY"]
[null,"Breach embankment",null,"m3",null,{"$f":"NA()","v":{"$error":"#N/A"}},{"$f":"IF(ISNA(F35),0,INDEX(IF(UPPER(RIGHT(F35,1))=Low,UnitCostLow, IF(UPPER(RIGHT(F35,1))=High,UnitCostHigh,UnitCostSpecified)),MATCH(UPPER(LEFT(F35,LEN(F35)-1)),CostCode,0)))","v":0},{"$f":"G35*E35","v":0},null,"Breach embankment",null,"m3",null,{"$error":"#N/A"},0,0,{"$f":"H35-P35","v":0}]
[null,"Remove pump",null,"LS",null,{"$f":"NA()","v":{"$error":"#N/A"}},{"$f":"IF(ISNA(F36),0,INDEX(IF(UPPER(RIGHT(F36,1))=Low,UnitCostLow, IF(UPPER(RIGHT(F36,1))=High,UnitCostHigh,UnitCostSpecified)),MATCH(UPPER(LEFT(F36,LEN(F36)-1)),CostCode,0)))","v":0},{"$f":"G36*E36","v":0},null,"Remove pump",null,"LS",null,{"$error":"#N/A"},0,0,0]
[null,"Remove pipelines",null,"m",null,{"$f":"NA()","v":{"$error":"#N/A"}},{"$f":"IF(ISNA(F37),0,INDEX(IF(UPPER(RIGHT(F37,1))=Low,UnitCostLow, IF(UPPER(RIGHT(F37,1))=High,UnitCostHigh,UnitCostSpecified)),MATCH(UPPER(LEFT(F37,LEN(F37)-1)),CostCode,0)))","v":0},{"$f":"G37*E37","v":0},null,"Remove pipelines",null,"m",null,{"$error":"#N/A"},0,0,0]
[null,"DECOMISSION WATER RECLAIM BARGE",null,null,null,null,null,null,null,"DECOMISSION WATER RECLAIM BARGE"]
[null,"Decommission reclaim barge from Llama TF",null,"LS",1,"Sabina",{"$f":"Unit_Costs!F185","v":10169.999999999998},{"$f":"G39*E39","v":10169.999999999998},null,"Decommission reclaim barge from Goose Main TF",null,"LS",1,"Sabina",10000,10000,{"$f":"H39-P39","v":169.99999999999818}]
[null,"WATER CONTROL IN RECLAMATION QUARRY",null,null,null,null,null,null,null,"WATER CONTROL IN RECLAMATION QUARRY"]
[null,"Install pumping system",null,"LS",null,{"$f":"NA()","v":{"$error":"#N/A"}},{"$f":"IF(ISNA(F41),0,INDEX(IF(UPPER(RIGHT(F41,1))=Low,UnitCostLow, IF(UPPER(RIGHT(F41,1))=High,UnitCostHigh,UnitCostSpecified)),MATCH(UPPER(LEFT(F41,LEN(F41)-1)),CostCode,0)))","v":0},{"$f":"G41*E41","v":0},null,"Install pumping system",null,"LS",null,{"$error":"#N/A"},0,0,{"$f":"H41-P41","v":0}]
[null,"Remove pumping system",null,"m",null,{"$f":"NA()","v":{"$error":"#N/A"}},{"$f":"IF(ISNA(F42),0,INDEX(IF(UPPER(RIGHT(F42,1))=Low,UnitCostLow, IF(UPPER(RIGHT(F42,1))=High,UnitCostHigh,UnitCostSpecified)),MATCH(UPPER(LEFT(F42,LEN(F42)-1)),CostCode,0)))","v":0},{"$f":"G42*E42","v":0},null,"Remove pumping system",null,"m",null,{"$error":"#N/A"},0,0,0]
[null,"REMOVE PIPELINES",null,null,null,null,null,null,null,"REMOVE PIPELINES"]
[null,"Decommission Llama pump and pipeline",null,"m",{"$f":"'SBB Comp. Est.'!F65","v":700},"Sabina",{"$f":"'SBB Comp. Est.'!X65","v":18.887142857142855},{"$f":"G44*E44","v":13220.999999999998},null,"Decommission Llama pump and pipeline",null,"m",700,"Sabina",18.571428571428573,13000.000000000002,{"$f":"H44-P44","v":220.99999999999636}]
[null,"Decommission WTP-Goose Lake pipeline",null,"m",{"$f":"'SBB Comp. Est.'!F34","v":1140},"Sabina ",{"$f":"'SBB Comp. Est.'!X34","v":10.17},{"$f":"G45*E45","v":11593.8},null,"Decommission WTP-Goose Lake pipeline",null,"m",1140,"Sabina ",10,11400,193.79999999999927]
[null,"Remove Saline Water Pond pump and pipeline","Decommissioned in Year 4 of Operations","m",0,"Sabina ",{"$f":"'SBB Comp. Est.'!X70","v":0},{"$f":"G46*E46","v":0},null,"Remove Saline Water Pond pump and pipeline",null,"m",950,"Sabina ",17.894736842105264,17000,-17000]
[null,"Remove Primary Pond pump and pipeline","Decommissioned in Year 4 of Operations","m",0,"Sabina ",{"$f":"'SBB Comp. Est.'!X71","v":0},0,null,"Remove Primary Pond pump and pipeline",null,"m",7250,"Sabina ",11.03448275862069,80000,-80000]
[null,"Remove Echo WRSA Pond pump and pipeline","Not in current mine plan; cost remains to keep Stage in tact.","m",{"$f":"'SBB Comp. Est.'!F77","v":2400},"Sabina ",{"$f":"'SBB Comp. Est.'!X77","v":10.169999999999998},24407.999999999996,null,"Remove Echo WRSA Pond pump and pipeline",null,"m",2400,"Sabina ",10,24000,407.99999999999636]
[null,"Remove Echo NCW pond pump and pipeline","Not in current mine plan; cost remains to keep Stage in tact.","m",{"$f":"'SBB Comp. Est.'!F78","v":220},"Sabina ",{"$f":"'SBB Comp. Est.'!X78","v":24.038181818181815},5288.4,null,"Remove Echo NCW pond pump and pipeline",null,"m",220,"Sabina ",23.636363636363637,5200,88.399999999999636]
[null,"Remove Plant Site Pond pump and pipeline ",null,"m",{"$f":"'SBB Comp. Est.'!F85","v":4550},"Sabina",{"$f":"'SBB Comp. Est.'!X85","v":10.169999999999998},46273.499999999993,null,"Remove Ore Stockpile pump and pipeline ",null,"m",4550,"Sabina",10,45500,773.49999999999272]
[null,"Decommission WTP pump and pipeline",null,"m",{"$f":"'SBB Comp. Est.'!F131+'SBB Comp. Est.'!F132","v":7520},"Sabina",{"$f":"'SBB Comp. Est.'!X131","v":11.080746268656716},83327.211940298497,null,"Decommission WTP pump and pipeline",null,"m",7520,"Sabina",10.895522388059701,81934.32835820895,1392.8835820895474]
[null,"Decommission WTP","Two Water Treatment Plants required","LS",2,"Sabina",{"$f":"'SBB Comp. Est.'!X133","v":9915.7499999999982},19831.499999999996,null,"Decommission WTP",null,"LS",1,"Sabina",19500,19500,331.49999999999636]
[null,"Concrete plug deep pipes",null,"m3",null,{"$f":"NA()","v":{"$error":"#N/A"}},{"$f":"IF(ISNA(F53),0,INDEX(IF(UPPER(RIGHT(F53,1))=Low,UnitCostLow, IF(UPPER(RIGHT(F53,1))=High,UnitCostHigh,UnitCostSpecified)),MATCH(UPPER(LEFT(F53,LEN(F53)-1)),CostCode,0)))","v":0},{"$f":"G53*E53","v":0},null,"Concrete plug deep pipes",null,"m3",null,{"$error":"#N/A"},0,0,0]
[null,"Other",null,null,null,{"$f":"NA()","v":{"$error":"#N/A"}},{"$f":"IF(ISNA(F54),0,INDEX(IF(UPPER(RIGHT(F54,1))=Low,UnitCostLow, IF(UPPER(RIGHT(F54,1))=High,UnitCostHigh,UnitCostSpecified)),MATCH(UPPER(LEFT(F54,LEN(F54)-1)),CostCode,0)))","v":0},{"$f":"G54*E54","v":0},null,"Other",null,null,null,{"$error":"#N/A"},0,0,0]
[null,"OPERATE WATER TREATMENT PLANT"]
[null,"Pump from TSF to WTP","No treatment required during Closure; Maximum PAG Exposure in Year 2. Potential Water Treatment in this year at TSF with 2.1 Mm3 over 3 years.","m3",{"$f":"'SBB Comp. Est.'!$F$128","v":2100000},"POCL",{"$f":"IF(ISNA(F56),0,INDEX(IF(UPPER(RIGHT(F56,1))=Low,UnitCostLow, IF(UPPER(RIGHT(F56,1))=High,UnitCostHigh,UnitCostSpecified)),MATCH(UPPER(LEFT(F56,LEN(F56)-1)),CostCode,0)))","v":0.12203999999999998},{"$f":"G56*E56","v":256283.99999999997},null,null,null,null,null,{"$error":"#N/A"},0,0,256283.99999999997]
[null,"Treat water in WTP",null,"m3",{"$f":"E56","v":2100000},"Sabina",{"$f":"Unit_Costs!F186","v":0.66104999999999992},{"$f":"G57*E57","v":1388204.9999999998},null,null,null,null,null,{"$error":"#N/A"},0,0,1388204.9999999998]
[null,"Pump water out of  WTP",null,"m3",{"$f":"E56","v":2100000},"POCL",{"$f":"IF(ISNA(F58),0,INDEX(IF(UPPER(RIGHT(F58,1))=Low,UnitCostLow, IF(UPPER(RIGHT(F58,1))=High,UnitCostHigh,UnitCostSpecified)),MATCH(UPPER(LEFT(F58,LEN(F58)-1)),CostCode,0)))","v":0.12203999999999998},{"$f":"G58*E58","v":256283.99999999997},null,null,null,null,null,{"$error":"#N/A"},0,0,256283.99999999997]
[null,"GROUNDWATER COLLECTION SYSTEM",null,null,null,null,null,null,null,"GROUNDWATER COLLECTION SYSTEM"]
[null,"Excavate/install sumps",null,"m3",null,{"$f":"NA()","v":{"$error":"#N/A"}},{"$f":"IF(ISNA(F60),0,INDEX(IF(UPPER(RIGHT(F60,1))=Low,UnitCostLow, IF(UPPER(RIGHT(F60,1))=High,UnitCostHigh,UnitCostSpecified)),MATCH(UPPER(LEFT(F60,LEN(F60)-1)),CostCode,0)))","v":0},{"$f":"G60*E60","v":0},null,"Excavate/install sumps",null,"m3",null,{"$error":"#N/A"},0,0,{"$f":"H60-P60","v":0}]
[null,"Install pumping wells",null,"m3",null,{"$f":"NA()","v":{"$error":"#N/A"}},{"$f":"IF(ISNA(F61),0,INDEX(IF(UPPER(RIGHT(F61,1))=Low,UnitCostLow, IF(UPPER(RIGHT(F61,1))=High,UnitCostHigh,UnitCostSpecified)),MATCH(UPPER(LEFT(F61,LEN(F61)-1)),CostCode,0)))","v":0},{"$f":"G61*E61","v":0},null,"Install pumping wells",null,"m3",null,{"$error":"#N/A"},0,0,0]
[null,"Install pumps/pipelines/power supply",null,"LS",null,{"$f":"NA()","v":{"$error":"#N/A"}},{"$f":"IF(ISNA(F62),0,INDEX(IF(UPPER(RIGHT(F62,1))=Low,UnitCostLow, IF(UPPER(RIGHT(F62,1))=High,UnitCostHigh,UnitCostSpecified)),MATCH(UPPER(LEFT(F62,LEN(F62)-1)),CostCode,0)))","v":0},{"$f":"G62*E62","v":0},null,"Install pumps/pipelines/power supply",null,"LS",null,{"$error":"#N/A"},0,0,0]
[null,"CONSTRUCT CONTAMINATED WATER STORAGE POND",null,null,null,null,null,null,null,"CONSTRUCT CONTAMINATED WATER STORAGE POND"]
[null,"Excavate pond",null,"m3",null,{"$f":"NA()","v":{"$error":"#N/A"}},{"$f":"IF(ISNA(F64),0,INDEX(IF(UPPER(RIGHT(F64,1))=Low,UnitCostLow, IF(UPPER(RIGHT(F64,1))=High,UnitCostHigh,UnitCostSpecified)),MATCH(UPPER(LEFT(F64,LEN(F64)-1)),CostCode,0)))","v":0},{"$f":"G64*E64","v":0},null,"Excavate pond",null,"m3",null,{"$error":"#N/A"},0,0,{"$f":"H64-P64","v":0}]
[null,"Doze & spread excavated material",null,"m3",null,{"$f":"NA()","v":{"$error":"#N/A"}},0,0,null,"Doze & spread excavated material",null,"m3",null,{"$error":"#N/A"},0,0,0]
[null,"Vegetate spread material",null,"ha",null,{"$f":"NA()","v":{"$error":"#N/A"}},0,0,null,"Vegetate spread material",null,"ha",null,{"$error":"#N/A"},0,0,0]
[null,"Bedding layer",null,"m3",null,{"$f":"NA()","v":{"$error":"#N/A"}},0,0,null,"Bedding layer",null,"m3",null,{"$error":"#N/A"},0,0,0]
[null,"Supply geomembrane",null,"m2",null,{"$f":"NA()","v":{"$error":"#N/A"}},0,0,null,"Supply geomembrane",null,"m2",null,{"$error":"#N/A"},0,0,0]
[null,"Install geomembrane",null,"m2",null,{"$f":"NA()","v":{"$error":"#N/A"}},0,0,null,"Install geomembrane",null,"m2",null,{"$error":"#N/A"},0,0,0]
[null,"Erosion protection layer",null,"m3",null,{"$f":"NA()","v":{"$error":"#N/A"}},0,0,null,"Erosion protection layer",null,"m3",null,{"$error":"#N/A"},0,0,0]
[null,"CONSTRUCT PASSIVE TREATMENT SYSTEM (e.g. Constructed Wetland)",null,null,null,null,null,null,null,"CONSTRUCT PASSIVE TREATMENT SYSTEM (e.g. Constructed Wetland)"]
[null,"Construct access roads",null,"km",null,{"$f":"NA()","v":{"$error":"#N/A"}},0,{"$f":"G72*E72","v":0},null,"Construct access roads",null,"km",null,{"$error":"#N/A"},0,0,{"$f":"H72-P72","v":0}]
[null,"Install HDPE piping system from collection pond",null,"m",null,{"$f":"NA()","v":{"$error":"#N/A"}},0,{"$f":"G73*E73","v":0},null,"Install HDPE piping system from collection pond",null,"m",null,{"$error":"#N/A"},0,0,0]
[null,"Inter-cell flow structures",null,"allow",null,{"$f":"NA()","v":{"$error":"#N/A"}},0,0,null,"Inter-cell flow structures",null,"allow",null,{"$error":"#N/A"},0,0,0]
[null,"Install liners",null,"m2",null,{"$f":"NA()","v":{"$error":"#N/A"}},0,{"$f":"G75*E75","v":0},null,"Install liners",null,"m2",null,{"$error":"#N/A"},0,0,0]
[null,"Install growth media",null,"m3",null,{"$f":"NA()","v":{"$error":"#N/A"}},0,0,null,"Install growth media",null,"m3",null,{"$error":"#N/A"},0,0,0]
[null,"Wetland vegetation",null,"ha",null,{"$f":"NA()","v":{"$error":"#N/A"}},0,0,null,"Wetland vegetation",null,"ha",null,{"$error":"#N/A"},0,0,0]
[null,"CONSTRUCT WATER TREATMENT PLANT",null,null,null,null,null,null,null,"CONSTRUCT WATER TREATMENT PLANT"]
[null,"Build treatment plant ","Treatment Plant will be constructed as part of operations","LS",null,{"$f":"NA()","v":{"$error":"#N/A"}},{"$f":"IF(ISNA(F79),0,INDEX(IF(UPPER(RIGHT(F79,1))=Low,UnitCostLow, IF(UPPER(RIGHT(F79,1))=High,UnitCostHigh,UnitCostSpecified)),MATCH(UPPER(LEFT(F79,LEN(F79)-1)),CostCode,0)))","v":0},{"$f":"G79*E79","v":0},null,"Build treatment plant ","Treatment Plant will be constructed as part of operations","LS",null,{"$error":"#N/A"},0,0,{"$f":"H79-P79","v":0}]
[null,"Build sludge containment facility",null,"LS",null,{"$f":"NA()","v":{"$error":"#N/A"}},{"$f":"IF(ISNA(F80),0,INDEX(IF(UPPER(RIGHT(F80,1))=Low,UnitCostLow, IF(UPPER(RIGHT(F80,1))=High,UnitCostHigh,UnitCostSpecified)),MATCH(UPPER(LEFT(F80,LEN(F80)-1)),CostCode,0)))","v":0},{"$f":"G80*E80","v":0},null,"Build sludge containment facility",null,"LS",null,{"$error":"#N/A"},0,0,0]
[null,null,null,null,null,null,"Total",{"$f":"SUM(H4:H80)+0.0001","v":2131641.9955402981},null,null,null,null,null,null,"Total",346699.32845820894,1784942.667082089]
[null," For details of long-term/post-closure water treatment see \"WATER TREATMENT\" Worksheet\"; costs included in this tab."]

{"sheet":"Water Treatment","index":9,"n_rows":37,"n_cols":17,"rows_kept":37,"cut":false,"hidden":false,"merged":[[19,2,21,2]]}
[1,"Post Closure Water Treatment - Identified as long term/post-closure in 'Instructions' worksheet"]
[]
[null,"ACTIVITY/MATERIAL","Notes","Units","Quantity","Cost Code","Unit Cost","Total Cost",null,"ACTIVITY/MATERIAL","Notes","Units","Quantity","Cost Code","Unit Cost","Total Cost","Difference"]
[null,"ADDITION OF REAGENTS TO WTP",null,null,null,null,null,null,null,"ADDITION OF REAGENTS TO WTP"]
[null,"H2O2",null,"kg",null,{"$f":"NA()","v":{"$error":"#N/A"}},{"$f":"IF(ISNA(F5),0,INDEX(IF(UPPER(RIGHT(F5,1))=Low,UnitCostLow, IF(UPPER(RIGHT(F5,1))=High,UnitCostHigh,UnitCostSpecified)),MATCH(UPPER(LEFT(F5,LEN(F5)-1)),CostCode,0)))","v":0},{"$f":"G5*E5","v":0},null,"H2O2",null,"kg",null,{"$error":"#N/A"},0,0,{"$f":"H5-P5","v":0}]
[null,"lime",null,"kg",null,{"$f":"NA()","v":{"$error":"#N/A"}},0,0,null,"lime",null,"kg",null,{"$error":"#N/A"},0,0,0]
[null,"ferric sulphate",null,"kg",null,{"$f":"NA()","v":{"$error":"#N/A"}},0,0,null,"ferric sulphate",null,"kg",null,{"$error":"#N/A"},0,0,0]
[null,"ferrous sulphate",null,"kg",null,{"$f":"NA()","v":{"$error":"#N/A"}},0,0,null,"ferrous sulphate",null,"kg",null,{"$error":"#N/A"},0,0,0]
[null,"flocculants",null,"kg",null,{"$f":"NA()","v":{"$error":"#N/A"}},0,0,null,"flocculants",null,"kg",null,{"$error":"#N/A"},0,0,0]
[null,"Other",null,null,null,{"$f":"NA()","v":{"$error":"#N/A"}},0,0,null,"Other",null,null,null,{"$error":"#N/A"},0,0,0]
[null,"LABOUR AND SUPPLIES",null,null,null,null,null,null,null,"LABOUR AND SUPPLIES"]
[null,"Annual fuel",null,"litres",null,{"$f":"NA()","v":{"$error":"#N/A"}},{"$f":"IF(ISNA(F12),0,INDEX(IF(UPPER(RIGHT(F12,1))=Low,UnitCostLow, IF(UPPER(RIGHT(F12,1))=High,UnitCostHigh,UnitCostSpecified)),MATCH(UPPER(LEFT(F12,LEN(F12)-1)),CostCode,0)))","v":0},{"$f":"G12*E12","v":0},null,"Annual fuel",null,"litres",null,{"$error":"#N/A"},0,0,{"$f":"H12-P12","v":0}]
[null,"Annual power",null,"kW-h",null,{"$f":"NA()","v":{"$error":"#N/A"}},{"$f":"IF(ISNA(F13),0,INDEX(IF(UPPER(RIGHT(F13,1))=Low,UnitCostLow, IF(UPPER(RIGHT(F13,1))=High,UnitCostHigh,UnitCostSpecified)),MATCH(UPPER(LEFT(F13,LEN(F13)-1)),CostCode,0)))","v":0},{"$f":"G13*E13","v":0},null,"Annual power",null,"kW-h",null,{"$error":"#N/A"},0,0,0]
[null,"Electrician/mechanic to maintain treatment plant",null,"allow",null,{"$f":"NA()","v":{"$error":"#N/A"}},0,0,null,"Electrician/mechanic to maintain treatment plant",null,"allow",null,{"$error":"#N/A"},0,0,0]
[null,"Equipment maintenance and parts",null,"allow",null,{"$f":"NA()","v":{"$error":"#N/A"}},0,0,null,"Equipment maintenance and parts",null,"allow",null,{"$error":"#N/A"},0,0,0]
[null,"Misc. supplies, hoses, tools",null,"allow",null,{"$f":"NA()","v":{"$error":"#N/A"}},0,0,null,"Misc. supplies, hoses, tools",null,"allow",null,{"$error":"#N/A"},0,0,0]
[null,"Communications",null,"allow",null,{"$f":"NA()","v":{"$error":"#N/A"}},0,0,null,"Communications",null,"allow",null,{"$error":"#N/A"},0,0,0]
[null,"Other",null,null,null,{"$f":"NA()","v":{"$error":"#N/A"}},0,0,null,"Other",null,null,null,{"$error":"#N/A"},0,0,0]
[null,"WATER MANAGEMENT",null,null,null,null,null,null,null,"WATER MANAGEMENT"]
[null,"Pump from TSF to WTP","Water treament for TSF captured under Water Management Tab.","m3",null,{"$f":"NA()","v":{"$error":"#N/A"}},0,0,null,"Pump from Goose Main TF to WTP","7.5 Mm3 for treatment in total","m3",1071429,"POCL",0.12,128571.48,{"$f":"H20-P20","v":-128571.48}]
[null,"Treat water in WTP",null,"m3",null,{"$f":"NA()","v":{"$error":"#N/A"}},{"$f":"Unit_Costs!F186","v":0.66104999999999992},0,null,"Treat water from Goose Main TF in WTP",null,"m3",1071429,"Sabina",0.65,696428.85,{"$f":"H21-P21","v":-696428.85}]
[null,"Pump water out of  WTP",null,"m3",null,{"$f":"NA()","v":{"$error":"#N/A"}},{"$f":"IF(ISNA(F22),0,INDEX(IF(UPPER(RIGHT(F22,1))=Low,UnitCostLow, IF(UPPER(RIGHT(F22,1))=High,UnitCostHigh,UnitCostSpecified)),MATCH(UPPER(LEFT(F22,LEN(F22)-1)),CostCode,0)))","v":0},0,null,"Pump from WTP recirc. into Goose Main TF",null,"m3",1071429,"POCL",0.12,128571.48,{"$f":"H22-P22","v":-128571.48}]
[null,"WTP WATER SAMPLING AND ANALYSES",null,null,null,null,null,null,null,"WTP WATER SAMPLING AND ANALYSES"]
[null,"Sampling equipment",null,"allow",null,{"$f":"NA()","v":{"$error":"#N/A"}},{"$f":"IF(ISNA(F24),0,INDEX(IF(UPPER(RIGHT(F24,1))=Low,UnitCostLow, IF(UPPER(RIGHT(F24,1))=High,UnitCostHigh,UnitCostSpecified)),MATCH(UPPER(LEFT(F24,LEN(F24)-1)),CostCode,0)))","v":0},{"$f":"G24*E24","v":0},null,"Sampling equipment",null,"allow",null,{"$error":"#N/A"},0,0,{"$f":"H24-P24","v":0}]
[null,"Analyses",null,"allow",null,{"$f":"NA()","v":{"$error":"#N/A"}},{"$f":"IF(ISNA(F25),0,INDEX(IF(UPPER(RIGHT(F25,1))=Low,UnitCostLow, IF(UPPER(RIGHT(F25,1))=High,UnitCostHigh,UnitCostSpecified)),MATCH(UPPER(LEFT(F25,LEN(F25)-1)),CostCode,0)))","v":0},{"$f":"G25*E25","v":0},null,"Analyses",null,"allow",null,{"$error":"#N/A"},0,0,{"$f":"H25-P25","v":0}]
[null,"Shipping to laboratory",null,"allow",null,{"$f":"NA()","v":{"$error":"#N/A"}},{"$f":"IF(ISNA(F26),0,INDEX(IF(UPPER(RIGHT(F26,1))=Low,UnitCostLow, IF(UPPER(RIGHT(F26,1))=High,UnitCostHigh,UnitCostSpecified)),MATCH(UPPER(LEFT(F26,LEN(F26)-1)),CostCode,0)))","v":0},{"$f":"G26*E26","v":0},null,"Shipping to laboratory",null,"allow",null,{"$error":"#N/A"},0,0,{"$f":"H26-P26","v":0}]
[null,"Reporting",null,"allow",null,{"$f":"NA()","v":{"$error":"#N/A"}},{"$f":"IF(ISNA(F27),0,INDEX(IF(UPPER(RIGHT(F27,1))=Low,UnitCostLow, IF(UPPER(RIGHT(F27,1))=High,UnitCostHigh,UnitCostSpecified)),MATCH(UPPER(LEFT(F27,LEN(F27)-1)),CostCode,0)))","v":0},{"$f":"G27*E27","v":0},null,"Reporting",null,"allow",null,{"$error":"#N/A"},0,0,{"$f":"H27-P27","v":0}]
[null,"Other",null,null,null,{"$f":"NA()","v":{"$error":"#N/A"}},{"$f":"IF(ISNA(F28),0,INDEX(IF(UPPER(RIGHT(F28,1))=Low,UnitCostLow, IF(UPPER(RIGHT(F28,1))=High,UnitCostHigh,UnitCostSpecified)),MATCH(UPPER(LEFT(F28,LEN(F28)-1)),CostCode,0)))","v":0},{"$f":"G28*E28","v":0},null,"Other",null,null,null,{"$error":"#N/A"},0,0,{"$f":"H28-P28","v":0}]
[null,"SITE ACCESS",null,null,null,null,null,null,null,"SITE ACCESS"]
[null,"Road maintenance (incl. snow removal)",null,"allow",null,{"$f":"NA()","v":{"$error":"#N/A"}},{"$f":"IF(ISNA(F30),0,INDEX(IF(UPPER(RIGHT(F30,1))=Low,UnitCostLow, IF(UPPER(RIGHT(F30,1))=High,UnitCostHigh,UnitCostSpecified)),MATCH(UPPER(LEFT(F30,LEN(F30)-1)),CostCode,0)))","v":0},{"$f":"G30*E30","v":0},null,"Road maintenance (incl. snow removal)",null,"allow",null,{"$error":"#N/A"},0,0,{"$f":"H30-P30","v":0}]
[null,"Winter road tariff",null,"allow",null,{"$f":"NA()","v":{"$error":"#N/A"}},{"$f":"IF(ISNA(F31),0,INDEX(IF(UPPER(RIGHT(F31,1))=Low,UnitCostLow, IF(UPPER(RIGHT(F31,1))=High,UnitCostHigh,UnitCostSpecified)),MATCH(UPPER(LEFT(F31,LEN(F31)-1)),CostCode,0)))","v":0},{"$f":"G31*E31","v":0},null,"Winter road tariff",null,"allow",null,{"$error":"#N/A"},0,0,{"$f":"H31-P31","v":0}]
[null,"Truck rental",null,"allow",null,{"$f":"NA()","v":{"$error":"#N/A"}},{"$f":"IF(ISNA(F32),0,INDEX(IF(UPPER(RIGHT(F32,1))=Low,UnitCostLow, IF(UPPER(RIGHT(F32,1))=High,UnitCostHigh,UnitCostSpecified)),MATCH(UPPER(LEFT(F32,LEN(F32)-1)),CostCode,0)))","v":0},{"$f":"G32*E32","v":0},null,"Truck rental",null,"allow",null,{"$error":"#N/A"},0,0,{"$f":"H32-P32","v":0}]
[null,"Air support",null,"allow",null,{"$f":"NA()","v":{"$error":"#N/A"}},{"$f":"IF(ISNA(F33),0,INDEX(IF(UPPER(RIGHT(F33,1))=Low,UnitCostLow, IF(UPPER(RIGHT(F33,1))=High,UnitCostHigh,UnitCostSpecified)),MATCH(UPPER(LEFT(F33,LEN(F33)-1)),CostCode,0)))","v":0},{"$f":"G33*E33","v":0},null,"Air support",null,"allow",null,{"$error":"#N/A"},0,0,{"$f":"H33-P33","v":0}]
[]
[null,null,null,null,null,null,"Annual water treatment costs",{"$f":"(SUM(H5:H33)+0.0001)","v":1E-4},null,null,null,null,null,null,"Annual water treatment costs",953571.81009999989,{"$f":"H35-P35","v":-953571.80999999994}]
[null,"Number of years of water treatment",null,"years",0,null,null,null,null,"Number of years of water treatment",null,"years",7]
[null,null,null,null,null,null,"Total",{"$f":"AnnualTreat1Cost*E36","v":0},null,null,null,null,null,null,"Total",6675002.6706999987,{"$f":"H37-P37","v":-6675002.6706999987}]

{"sheet":"ICM","index":10,"n_rows":22,"n_cols":8,"rows_kept":22,"cut":false,"hidden":false,"merged":[]}
[1,"Interim Care and Maintenance"]
[]
[null,"ACTIVITY/MATERIAL","Notes","Units","Quantity","Cost Code","Unit Cost","Total Cost"]
[null,"INTERIM CARE & MAINTENANCE"]
[null,"Camp operation","Caretaker and summer personnel","mandays",{"$f":"180+6*21","v":306},"Sabina",{"$f":"'SBB Comp. Est.'!X118","v":111.86999999999998},{"$f":"G5*E5","v":34232.219999999994}]
[null,"On-site staff","Caretaker and summer personnel","manhours",{"$f":"(180+6*21)*10","v":3060},"ENVCO",{"$f":"Unit_Costs!F77","v":75.420719999999989},230787.40319999997]
[null,"extra personnel",null,"manmonths",null,{"$f":"NA()","v":{"$error":"#N/A"}},{"$f":"IF(ISNA(F7),0,INDEX(IF(UPPER(RIGHT(F7,1))=Low,UnitCostLow, IF(UPPER(RIGHT(F7,1))=High,UnitCostHigh,UnitCostSpecified)),MATCH(UPPER(LEFT(F7,LEN(F7)-1)),CostCode,0)))","v":0},0]
[null,"    -electrician",null,"manmonths",null,{"$f":"NA()","v":{"$error":"#N/A"}},{"$f":"IF(ISNA(F8),0,INDEX(IF(UPPER(RIGHT(F8,1))=Low,UnitCostLow, IF(UPPER(RIGHT(F8,1))=High,UnitCostHigh,UnitCostSpecified)),MATCH(UPPER(LEFT(F8,LEN(F8)-1)),CostCode,0)))","v":0},{"$f":"G8*E8","v":0}]
[null,"    -mechanic",null,"manmonths",null,{"$f":"NA()","v":{"$error":"#N/A"}},{"$f":"IF(ISNA(F9),0,INDEX(IF(UPPER(RIGHT(F9,1))=Low,UnitCostLow, IF(UPPER(RIGHT(F9,1))=High,UnitCostHigh,UnitCostSpecified)),MATCH(UPPER(LEFT(F9,LEN(F9)-1)),CostCode,0)))","v":0},{"$f":"G9*E9","v":0}]
[null,"annual fuel","Fuel for vehicles; fuel for pumping included in water treatment cost","litre",5000,"FCDH",1.4136299999999997,7068.1499999999987]
[null,"misc. supplies",null,"allow",1,"Sabina",{"$f":"Unit_Costs!F187","v":20339.999999999996},{"$f":"G11*E11","v":20339.999999999996}]
[null,"pick-up truck",null,"each",null,{"$f":"NA()","v":{"$error":"#N/A"}},0,0]
[null,"small dozer",null,"allow",null,{"$f":"NA()","v":{"$error":"#N/A"}},0,0]
[null,"small excavator",null,"allow",null,{"$f":"NA()","v":{"$error":"#N/A"}},0,0]
[null,"snow machine",null,"allow",null,{"$f":"NA()","v":{"$error":"#N/A"}},0,0]
[null,"communications",null,"allow",null,{"$f":"NA()","v":{"$error":"#N/A"}},0,0]
[null,"SNP/AEMP water sampling & reporting","Sampling and lab costs","each",1,"WSH",10169.999999999998,10169.999999999998]
[null,"geotechnical assessment","Annual geotechnical inspection","each",1,"RPTH",20339.999999999996,20339.999999999996]
[null,"interim water treatment","Captured under Water Treatment","each",1,{"$f":"NA()","v":{"$error":"#N/A"}},{"$f":"IF(ISNA(F19),0,INDEX(IF(UPPER(RIGHT(F19,1))=Low,UnitCostLow, IF(UPPER(RIGHT(F19,1))=High,UnitCostHigh,UnitCostSpecified)),MATCH(UPPER(LEFT(F19,LEN(F19)-1)),CostCode,0)))","v":0},{"$f":"G19*E19","v":0}]
[null,"other",null,"each",null,{"$f":"NA()","v":{"$error":"#N/A"}},0,0]
[null,null,null,null,null,null,"Annual  Interim C&M Cost",{"$f":"SUM(H5:H20)","v":322937.7732}]
[null,"Number of years of ICM",null,"years",3,null,"Total",{"$f":"H21*E22","v":968813.31960000005}]

{"sheet":"PostClosure","index":11,"n_rows":40,"n_cols":64,"rows_kept":40,"cut":false,"hidden":false,"merged":[[0,6,0,7],[0,22,0,23],[0,39,0,40],[0,62,0,63],[0,47,0,48],[0,55,0,56],[0,30,0,31],[0,14,0,15]]}
[1,null,null,null,null,null,"0 Years",null,null,null,null,null,null,null,"7 Years\n(Year 11 to 17)",null,null,null,null,null,null,null,"1 Year\n(Year 13)",null,null,null,null,null,null,null,"8 Years\n(Year 11 to 18)",null,null,null,null,null,null,null,null,"10 Years\n(Year 13 to 22)",null,null,null,null,null,null,null,"13 Years \n(Year 13 to 25)",null,null,null,null,null,null,null,"Beyond Post Closure (Long Term 1 to 5, 7, 10, 15, 25)",null,null,null,null,null,null,"Beyond Post Closure (Long Term 1 to 5, 7, 10, 15, 25)"]
[]
[null,"ACTIVITY/MATERIAL - WATER TREATMENT","Notes","Units","Quantity","Cost Code","Unit Cost","Total Cost",null,"Notes","Units","Quantity","Cost Code","Unit Cost","Total Cost","Difference",null,"ACTIVITY/MATERIAL - GEOTECHNICAL INSPECTIONS OF TSF ","Notes","Units","Quantity","Cost Code","Unit Cost","Total Cost",null,"ACTIVITY/MATERIAL - GEOTECHNICAL INSPECTIONS OF TSF ","Notes","Units","Quantity","Cost Code","Unit Cost","Total Cost","Difference",null,"ACTIVITY/MATERIAL - WEMP and TERRESTRIAL","Notes","Units","Quantity","Cost Code","Unit Cost","Total Cost",null,"ACTIVITY/MATERIAL - Monitoring & Maintenance","Notes","Units","Quantity","Cost Code","Unit Cost","Total Cost",null,"ACTIVITY/MATERIAL - Long Term Monitoring ","Notes","Units","Quantity","Cost Code","Unit Cost","Total Cost",null,"Notes","Units","Quantity","Cost Code","Unit Cost","Total Cost"]
[null,"MONITORING & INSPECTIONS",null,null,null,null,null,null,null,null,null,null,null,null,null,null,null,"MONITORING & INSPECTIONS",null,null,null,null,null,null,null,"MONITORING & INSPECTIONS",null,null,null,null,null,null,null,null,"MONITORING & INSPECTIONS",null,null,null,null,null,null,null,"MONITORING & INSPECTIONS",null,null,null,null,null,null,null,"MONITORING & INSPECTIONS"]
[null,"Total geotechnical inspections (1 yearly)",null,"year",{"$f":"'SBB Comp. Est.'!N142/8","v":0},{"$f":"NA()","v":{"$error":"#N/A"}},{"$f":"IF(ISNA(F5),0,INDEX(IF(UPPER(RIGHT(F5,1))=Low,UnitCostLow, IF(UPPER(RIGHT(F5,1))=High,UnitCostHigh,UnitCostSpecified)),MATCH(UPPER(LEFT(F5,LEN(F5)-1)),CostCode,0)))","v":0},{"$f":"G5*E5","v":0},null,null,"year",0,{"$error":"#N/A"},0,0,{"$f":"H5-O5","v":0},null,"Total geotechnical inspections (1 yearly)","Annual inspection of the TSF from Closure until embankment breaching in Year 13 (1 year).","year",{"$f":"'SBB Comp. Est.'!F142/8","v":1},"RPTH",{"$f":"IF(ISNA(V5),0,INDEX(IF(UPPER(RIGHT(V5,1))=Low,UnitCostLow, IF(UPPER(RIGHT(V5,1))=High,UnitCostHigh,UnitCostSpecified)),MATCH(UPPER(LEFT(V5,LEN(V5)-1)),CostCode,0)))","v":20339.999999999996},{"$f":"W5*U5","v":20339.999999999996},null,"Total geotechnical inspections (1 yearly)","Annual inspection of the TSF from Closure until embankment breaching in Year 18 (8 years).","year",1,"RPTH",20000,20000,{"$f":"X5-AF5","v":339.99999999999636},null,"Total geotechnical inspections (1 yearly)",null,"year",null,{"$f":"NA()","v":{"$error":"#N/A"}},{"$f":"IF(ISNA(AM5),0,INDEX(IF(UPPER(RIGHT(AM5,1))=Low,UnitCostLow, IF(UPPER(RIGHT(AM5,1))=High,UnitCostHigh,UnitCostSpecified)),MATCH(UPPER(LEFT(AM5,LEN(AM5)-1)),CostCode,0)))","v":0},{"$f":"AN5*AL5","v":0},null,"Total geotechnical inspections (1 yearly)",null,"year",null,{"$f":"NA()","v":{"$error":"#N/A"}},{"$f":"IF(ISNA(AU5),0,INDEX(IF(UPPER(RIGHT(AU5,1))=Low,UnitCostLow, IF(UPPER(RIGHT(AU5,1))=High,UnitCostHigh,UnitCostSpecified)),MATCH(UPPER(LEFT(AU5,LEN(AU5)-1)),CostCode,0)))","v":0},{"$f":"AV5*AT5","v":0},null,"General Water Sampling and Stability Monitoring","long term general monitoring ","year",1,"Sabina",{"$f":"Unit_Costs!F189","v":40679.999999999993},{"$f":"BD5*BB5","v":40679.999999999993},null,"long term general monitoring ","year",1,"Sabina",{"$f":"Unit_Costs!M189","v":0},{"$f":"BK5*BI5","v":0}]
[null,"Waste Rock Piles",null,"year",null,{"$f":"NA()","v":{"$error":"#N/A"}},{"$f":"IF(ISNA(F6),0,INDEX(IF(UPPER(RIGHT(F6,1))=Low,UnitCostLow, IF(UPPER(RIGHT(F6,1))=High,UnitCostHigh,UnitCostSpecified)),MATCH(UPPER(LEFT(F6,LEN(F6)-1)),CostCode,0)))","v":0},{"$f":"G6*E6","v":0},null,null,"year",null,{"$error":"#N/A"},0,0,{"$f":"H6-O6","v":0},null,"Waste Rock Piles",null,"year",null,{"$f":"NA()","v":{"$error":"#N/A"}},0,0,null,"Waste Rock Piles",null,"year",null,{"$error":"#N/A"},0,0,{"$f":"X6-AF6","v":0},null,"Waste Rock Piles",null,"year",null,{"$f":"NA()","v":{"$error":"#N/A"}},{"$f":"IF(ISNA(AM6),0,INDEX(IF(UPPER(RIGHT(AM6,1))=Low,UnitCostLow, IF(UPPER(RIGHT(AM6,1))=High,UnitCostHigh,UnitCostSpecified)),MATCH(UPPER(LEFT(AM6,LEN(AM6)-1)),CostCode,0)))","v":0},{"$f":"AN6*AL6","v":0},null,"Waste Rock Piles","Annual inspection of WR piles from closure to post-closure (13 years)","year",{"$f":"'SBB Comp. Est.'!F143/13","v":1},"Sabina",{"$f":"'SBB Comp. Est.'!X143","v":8441.0999999999985},{"$f":"AV6*AT6","v":8441.0999999999985},null,"Waste Rock Piles",null,"year",null,{"$f":"NA()","v":{"$error":"#N/A"}},{"$f":"IF(ISNA(BC6),0,INDEX(IF(UPPER(RIGHT(BC6,1))=Low,UnitCostLow, IF(UPPER(RIGHT(BC6,1))=High,UnitCostHigh,UnitCostSpecified)),MATCH(UPPER(LEFT(BC6,LEN(BC6)-1)),CostCode,0)))","v":0},0,null,null,"year",null,{"$f":"NA()","v":{"$error":"#N/A"}},{"$f":"IF(ISNA(BJ6),0,INDEX(IF(UPPER(RIGHT(BJ6,1))=Low,UnitCostLow, IF(UPPER(RIGHT(BJ6,1))=High,UnitCostHigh,UnitCostSpecified)),MATCH(UPPER(LEFT(BJ6,LEN(BJ6)-1)),CostCode,0)))","v":0},0]
[null,"Pit Walls",null,"year",null,{"$f":"NA()","v":{"$error":"#N/A"}},0,0,null,null,"year",null,{"$error":"#N/A"},0,0,0,null,"Pit Walls",null,"year",null,{"$f":"NA()","v":{"$error":"#N/A"}},0,0,null,"Pit Walls",null,"year",null,{"$error":"#N/A"},0,0,0,null,"Pit Walls",null,"year",null,{"$f":"NA()","v":{"$error":"#N/A"}},0,0,null,"Pit Walls","Annual inspection of pit walls from closure to post-closure (13 years)","year",{"$f":"'SBB Comp. Est.'!F144/13","v":1},"Sabina",{"$f":"'SBB Comp. Est.'!X144","v":4067.9999999999995},{"$f":"AV7*AT7","v":4067.9999999999995},null,"Pit Walls",null,"year",null,{"$f":"NA()","v":{"$error":"#N/A"}},0,0,null,null,"year",null,{"$f":"NA()","v":{"$error":"#N/A"}},0,0]
[null,"WR GTC Monitoring ",null,"year",null,{"$f":"NA()","v":{"$error":"#N/A"}},0,0,null,null,"year",null,{"$error":"#N/A"},0,0,0,null,"WR GTC Monitoring ",null,"year",null,{"$f":"NA()","v":{"$error":"#N/A"}},{"$f":"IF(ISNA(V8),0,INDEX(IF(UPPER(RIGHT(V8,1))=Low,UnitCostLow, IF(UPPER(RIGHT(V8,1))=High,UnitCostHigh,UnitCostSpecified)),MATCH(UPPER(LEFT(V8,LEN(V8)-1)),CostCode,0)))","v":0},{"$f":"W8*U8","v":0},null,"WR GTC Monitoring ",null,"year",null,{"$error":"#N/A"},0,0,0,null,"WR GTC Monitoring ",null,"year",null,{"$f":"NA()","v":{"$error":"#N/A"}},0,0,null,"WR GTC Monitoring ","Umwelt, Llama, and TSF WRSA ground temp cable annual monitoring. No GTCs at Echo WRSA (13 years)","year",1,"Sabina",{"$f":"('SBB Comp. Est.'!X146+'SBB Comp. Est.'!X147+'SBB Comp. Est.'!X148)","v":14644.8},{"$f":"AV8*AT8","v":14644.8},null,"WR GTC Monitoring ",null,"year",null,{"$f":"NA()","v":{"$error":"#N/A"}},0,0,null,null,"year",null,{"$f":"NA()","v":{"$error":"#N/A"}},0,0]
[null,"Survey inspection",null,"each",null,{"$f":"NA()","v":{"$error":"#N/A"}},0,0,null,null,"each",null,{"$error":"#N/A"},0,0,0,null,"Survey inspection",null,"each",null,{"$f":"NA()","v":{"$error":"#N/A"}},{"$f":"IF(ISNA(V9),0,INDEX(IF(UPPER(RIGHT(V9,1))=Low,UnitCostLow, IF(UPPER(RIGHT(V9,1))=High,UnitCostHigh,UnitCostSpecified)),MATCH(UPPER(LEFT(V9,LEN(V9)-1)),CostCode,0)))","v":0},0,null,"Survey inspection",null,"each",null,{"$error":"#N/A"},0,0,0,null,"Survey inspection",null,"each",null,{"$f":"NA()","v":{"$error":"#N/A"}},{"$f":"IF(ISNA(AM9),0,INDEX(IF(UPPER(RIGHT(AM9,1))=Low,UnitCostLow, IF(UPPER(RIGHT(AM9,1))=High,UnitCostHigh,UnitCostSpecified)),MATCH(UPPER(LEFT(AM9,LEN(AM9)-1)),CostCode,0)))","v":0},{"$f":"AN9*AL9","v":0},null,"Survey inspection",null,"each",null,{"$f":"NA()","v":{"$error":"#N/A"}},{"$f":"IF(ISNA(AU9),0,INDEX(IF(UPPER(RIGHT(AU9,1))=Low,UnitCostLow, IF(UPPER(RIGHT(AU9,1))=High,UnitCostHigh,UnitCostSpecified)),MATCH(UPPER(LEFT(AU9,LEN(AU9)-1)),CostCode,0)))","v":0},{"$f":"AV9*AT9","v":0},null,"Survey inspection",null,"each",null,{"$f":"NA()","v":{"$error":"#N/A"}},{"$f":"IF(ISNA(BC9),0,INDEX(IF(UPPER(RIGHT(BC9,1))=Low,UnitCostLow, IF(UPPER(RIGHT(BC9,1))=High,UnitCostHigh,UnitCostSpecified)),MATCH(UPPER(LEFT(BC9,LEN(BC9)-1)),CostCode,0)))","v":0},{"$f":"BD9*BB9","v":0},null,null,"each",null,{"$f":"NA()","v":{"$error":"#N/A"}},0,0]
[null,"Regulatory costs",null,"year",null,{"$f":"NA()","v":{"$error":"#N/A"}},0,0,null,null,"year",null,{"$error":"#N/A"},0,0,0,null,"Regulatory costs",null,"year",null,{"$f":"NA()","v":{"$error":"#N/A"}},0,{"$f":"W10*U10","v":0},null,"Regulatory costs",null,"year",null,{"$error":"#N/A"},0,0,0,null,"Regulatory costs*",null,"year",null,{"$f":"NA()","v":{"$error":"#N/A"}},0,0,null,"Regulatory costs","annual reporting, management plans, progress reports (13 years)","year",1,"Sabina",{"$f":"Unit_Costs!F188","v":25424.999999999996},25424.999999999996,null,"Regulatory costs",null,"each",1,"RPTH",{"$f":"IF(ISNA(BC10),0,INDEX(IF(UPPER(RIGHT(BC10,1))=Low,UnitCostLow, IF(UPPER(RIGHT(BC10,1))=High,UnitCostHigh,UnitCostSpecified)),MATCH(UPPER(LEFT(BC10,LEN(BC10)-1)),CostCode,0)))","v":20339.999999999996},{"$f":"BD10*BB10","v":20339.999999999996},null,null,"each",1,"RPTH",20339.999999999996,20339.999999999996]
[null,"Site water monitoring",null,"each",null,{"$f":"NA()","v":{"$error":"#N/A"}},0,0,null,null,"each",null,{"$error":"#N/A"},0,0,0,null,"Site water monitoring",null,"each",null,{"$f":"NA()","v":{"$error":"#N/A"}},0,0,null,"Site water monitoring",null,"each",null,{"$error":"#N/A"},0,0,0,null,"Site water monitoring",null,"each",null,{"$f":"NA()","v":{"$error":"#N/A"}},0,{"$f":"AN11*AL11","v":0},null,"Site water monitoring","All pits and WR piles closure and post closure monitoring (13 years)","year",{"$f":"'SBB Comp. Est.'!F150/13","v":1},"Sabina",{"$f":"SUM('SBB Comp. Est.'!X150:X157)","v":9275.0399999999991},{"$f":"AV11*AT11","v":9275.0399999999991},null,"Site water monitoring",null,"year",null,{"$f":"NA()","v":{"$error":"#N/A"}},0,0,null,null,"year",null,{"$f":"NA()","v":{"$error":"#N/A"}},0,0]
[null,"   - Active closure and flooding",null,"each",null,{"$f":"NA()","v":{"$error":"#N/A"}},0,0,null,null,"each",null,{"$error":"#N/A"},0,0,0,null,"   - Active closure and flooding",null,"each",null,{"$f":"NA()","v":{"$error":"#N/A"}},0,0,null,"   - Active closure and flooding",null,"each",null,{"$error":"#N/A"},0,0,0,null,"   - Active closure and flooding",null,"each",null,{"$f":"NA()","v":{"$error":"#N/A"}},{"$f":"IF(ISNA(AM12),0,INDEX(IF(UPPER(RIGHT(AM12,1))=Low,UnitCostLow, IF(UPPER(RIGHT(AM12,1))=High,UnitCostHigh,UnitCostSpecified)),MATCH(UPPER(LEFT(AM12,LEN(AM12)-1)),CostCode,0)))","v":0},0,null,"   - Active closure and flooding",null,"each",null,{"$f":"NA()","v":{"$error":"#N/A"}},{"$f":"IF(ISNA(AU12),0,INDEX(IF(UPPER(RIGHT(AU12,1))=Low,UnitCostLow, IF(UPPER(RIGHT(AU12,1))=High,UnitCostHigh,UnitCostSpecified)),MATCH(UPPER(LEFT(AU12,LEN(AU12)-1)),CostCode,0)))","v":0},0,null,"   - Active closure and flooding",null,"each",null,{"$f":"NA()","v":{"$error":"#N/A"}},{"$f":"IF(ISNA(BC12),0,INDEX(IF(UPPER(RIGHT(BC12,1))=Low,UnitCostLow, IF(UPPER(RIGHT(BC12,1))=High,UnitCostHigh,UnitCostSpecified)),MATCH(UPPER(LEFT(BC12,LEN(BC12)-1)),CostCode,0)))","v":0},{"$f":"BD12*BB12","v":0},null,null,"each",null,{"$f":"NA()","v":{"$error":"#N/A"}},0,0]
[null,"   - Post pit flooding",null,"each",null,{"$f":"NA()","v":{"$error":"#N/A"}},0,0,null,null,"each",null,{"$error":"#N/A"},0,0,0,null,"   - Post pit flooding",null,"each",null,{"$f":"NA()","v":{"$error":"#N/A"}},0,0,null,"   - Post pit flooding",null,"each",null,{"$error":"#N/A"},0,0,0,null,"   - Post pit flooding",null,"each",null,{"$f":"NA()","v":{"$error":"#N/A"}},0,0,null,"   - Post pit flooding",null,"each",null,{"$f":"NA()","v":{"$error":"#N/A"}},0,0,null,"   - Post pit flooding",null,"each",null,{"$f":"NA()","v":{"$error":"#N/A"}},0,0,null,null,"each",null,{"$f":"NA()","v":{"$error":"#N/A"}},0,0]
[null,"Wildlife Effects Monitoring Program (WEMP)",null,"year",null,{"$f":"NA()","v":{"$error":"#N/A"}},0,0,null,null,"year",null,{"$error":"#N/A"},0,0,0,null,"Wildlife Effects Monitoring Program (WEMP)",null,"year",null,{"$f":"NA()","v":{"$error":"#N/A"}},0,{"$f":"W14*U14","v":0},null,"Wildlife Effects Monitoring Program (WEMP)",null,"year",null,{"$error":"#N/A"},0,0,0,null,"Wildlife Effects Monitoring Program (WEMP)","Aquatics - Non-contact water basins (10 years)","year",{"$f":"'SBB Comp. Est.'!F159/10","v":1},"Sabina",{"$f":"'SBB Comp. Est.'!X159","v":4881.5999999999995},{"$f":"AN14*AL14","v":4881.5999999999995},null,"Wildlife Effects Monitoring Program (WEMP)",null,"year",null,{"$f":"NA()","v":{"$error":"#N/A"}},{"$f":"IF(ISNA(AU14),0,INDEX(IF(UPPER(RIGHT(AU14,1))=Low,UnitCostLow, IF(UPPER(RIGHT(AU14,1))=High,UnitCostHigh,UnitCostSpecified)),MATCH(UPPER(LEFT(AU14,LEN(AU14)-1)),CostCode,0)))","v":0},{"$f":"AV14*AT14","v":0},null,"Wildlife Effects Monitoring Program (WEMP)",null,"year",null,{"$f":"NA()","v":{"$error":"#N/A"}},0,0,null,null,"year",null,{"$f":"NA()","v":{"$error":"#N/A"}},0,0]
[null,"Terrestrial Animal Monitoring",null,"year",null,{"$f":"NA()","v":{"$error":"#N/A"}},0,0,null,null,"year",null,{"$error":"#N/A"},0,0,0,null,"Terrestrial Animal Monitoring",null,"year",null,{"$f":"NA()","v":{"$error":"#N/A"}},0,0,null,"Terrestrial Animal Monitoring",null,"year",null,{"$error":"#N/A"},0,0,0,null,"Terrestrial Animal Monitoring","Terrestrial Animal Monitoring (10 years)","year",{"$f":"'SBB Comp. Est.'!F161/10","v":1},"Sabina",{"$f":"'SBB Comp. Est.'!X161","v":24407.999999999996},{"$f":"AN15*AL15","v":24407.999999999996},null,"Terrestrial Animal Monitoring",null,"year",null,{"$f":"NA()","v":{"$error":"#N/A"}},0,0,null,"Terrestrial Animal Monitoring",null,"year",null,{"$f":"NA()","v":{"$error":"#N/A"}},0,0,null,null,"year",null,{"$f":"NA()","v":{"$error":"#N/A"}},0,0]
[null,"Vegetation Monitoring",null,"each",null,{"$f":"NA()","v":{"$error":"#N/A"}},0,0,null,null,"each",null,{"$error":"#N/A"},0,0,0,null,"Vegetation Monitoring",null,"each",null,{"$f":"NA()","v":{"$error":"#N/A"}},{"$f":"IF(ISNA(V16),0,INDEX(IF(UPPER(RIGHT(V16,1))=Low,UnitCostLow, IF(UPPER(RIGHT(V16,1))=High,UnitCostHigh,UnitCostSpecified)),MATCH(UPPER(LEFT(V16,LEN(V16)-1)),CostCode,0)))","v":0},0,null,"Vegetation Monitoring",null,"each",null,{"$error":"#N/A"},0,0,0,null,"Vegetation Monitoring",null,"each",null,{"$f":"NA()","v":{"$error":"#N/A"}},{"$f":"IF(ISNA(AM16),0,INDEX(IF(UPPER(RIGHT(AM16,1))=Low,UnitCostLow, IF(UPPER(RIGHT(AM16,1))=High,UnitCostHigh,UnitCostSpecified)),MATCH(UPPER(LEFT(AM16,LEN(AM16)-1)),CostCode,0)))","v":0},0,null,"Vegetation Monitoring",null,"each",null,{"$f":"NA()","v":{"$error":"#N/A"}},{"$f":"IF(ISNA(AU16),0,INDEX(IF(UPPER(RIGHT(AU16,1))=Low,UnitCostLow, IF(UPPER(RIGHT(AU16,1))=High,UnitCostHigh,UnitCostSpecified)),MATCH(UPPER(LEFT(AU16,LEN(AU16)-1)),CostCode,0)))","v":0},0,null,"Vegetation Monitoring",null,"each",null,{"$f":"NA()","v":{"$error":"#N/A"}},0,0,null,null,"each",null,{"$f":"NA()","v":{"$error":"#N/A"}},0,0]
[null,"Maintain gravel road surface",null,"each",null,{"$f":"NA()","v":{"$error":"#N/A"}},0,0,null,null,"each",null,{"$error":"#N/A"},0,0,0,null,"Maintain gravel road surface",null,"each",null,{"$f":"NA()","v":{"$error":"#N/A"}},{"$f":"IF(ISNA(V17),0,INDEX(IF(UPPER(RIGHT(V17,1))=Low,UnitCostLow, IF(UPPER(RIGHT(V17,1))=High,UnitCostHigh,UnitCostSpecified)),MATCH(UPPER(LEFT(V17,LEN(V17)-1)),CostCode,0)))","v":0},{"$f":"W17*U17","v":0},null,"Maintain gravel road surface",null,"each",null,{"$error":"#N/A"},0,0,0,null,"Maintain gravel road surface",null,"year",null,{"$f":"NA()","v":{"$error":"#N/A"}},0,0,null,"Maintain gravel road surface","maintenance from closure to post-closure (13 years)","year",{"$f":"'SBB Comp. Est.'!F121/13","v":1},"Sabina",{"$f":"'SBB Comp. Est.'!X121","v":13882.05},{"$f":"AV17*AT17","v":13882.05},null,"Maintain gravel road surface",null,"year",null,{"$f":"NA()","v":{"$error":"#N/A"}},0,0,null,null,"year",null,{"$f":"NA()","v":{"$error":"#N/A"}},0,0]
[null,"Maintain airstrip surface",null,"each",null,{"$f":"NA()","v":{"$error":"#N/A"}},0,0,null,null,"each",null,{"$error":"#N/A"},0,0,0,null,"Maintain airstrip surface",null,"each",null,{"$f":"NA()","v":{"$error":"#N/A"}},0,0,null,"Maintain airstrip surface",null,"each",null,{"$error":"#N/A"},0,0,0,null,"Maintain airstrip surface",null,"year",null,{"$f":"NA()","v":{"$error":"#N/A"}},0,0,null,"Maintain airstrip surface","maintenance from closure to post-closure (13 years)","year",{"$f":"'SBB Comp. Est.'!F124/13","v":1},"Sabina",{"$f":"'SBB Comp. Est.'!X124","v":3966.2999999999997},{"$f":"AV18*AT18","v":3966.2999999999997},null,"Maintain airstrip surface",null,"year",null,{"$f":"NA()","v":{"$error":"#N/A"}},0,0,null,null,"year",null,{"$f":"NA()","v":{"$error":"#N/A"}},0,0]
[null,"Other",null,null,null,{"$f":"NA()","v":{"$error":"#N/A"}},{"$f":"IF(ISNA(F19),0,INDEX(IF(UPPER(RIGHT(F19,1))=Low,UnitCostLow, IF(UPPER(RIGHT(F19,1))=High,UnitCostHigh,UnitCostSpecified)),MATCH(UPPER(LEFT(F19,LEN(F19)-1)),CostCode,0)))","v":0},{"$f":"G19*E19","v":0},null,null,null,null,{"$error":"#N/A"},0,0,0,null,"Other",null,null,null,{"$f":"NA()","v":{"$error":"#N/A"}},{"$f":"IF(ISNA(V19),0,INDEX(IF(UPPER(RIGHT(V19,1))=Low,UnitCostLow, IF(UPPER(RIGHT(V19,1))=High,UnitCostHigh,UnitCostSpecified)),MATCH(UPPER(LEFT(V19,LEN(V19)-1)),CostCode,0)))","v":0},{"$f":"W19*U19","v":0},null,"Other",null,null,null,{"$error":"#N/A"},0,0,0,null,"Other",null,null,null,{"$f":"NA()","v":{"$error":"#N/A"}},{"$f":"IF(ISNA(AM19),0,INDEX(IF(UPPER(RIGHT(AM19,1))=Low,UnitCostLow, IF(UPPER(RIGHT(AM19,1))=High,UnitCostHigh,UnitCostSpecified)),MATCH(UPPER(LEFT(AM19,LEN(AM19)-1)),CostCode,0)))","v":0},{"$f":"AN19*AL19","v":0},null,"Other",null,null,null,{"$f":"NA()","v":{"$error":"#N/A"}},{"$f":"IF(ISNA(AU19),0,INDEX(IF(UPPER(RIGHT(AU19,1))=Low,UnitCostLow, IF(UPPER(RIGHT(AU19,1))=High,UnitCostHigh,UnitCostSpecified)),MATCH(UPPER(LEFT(AU19,LEN(AU19)-1)),CostCode,0)))","v":0},{"$f":"AV19*AT19","v":0},null,"Other - Site Access","Float plane access","each",1,"MWH",{"$f":"IF(ISNA(BC19),0,INDEX(IF(UPPER(RIGHT(BC19,1))=Low,UnitCostLow, IF(UPPER(RIGHT(BC19,1))=High,UnitCostHigh,UnitCostSpecified)),MATCH(UPPER(LEFT(BC19,LEN(BC19)-1)),CostCode,0)))","v":9254.6999999999989},{"$f":"BD19*BB19","v":9254.6999999999989},null,"Float plane access","each",1,"MWH",{"$f":"IF(ISNA(BJ19),0,INDEX(IF(UPPER(RIGHT(BJ19,1))=Low,UnitCostLow, IF(UPPER(RIGHT(BJ19,1))=High,UnitCostHigh,UnitCostSpecified)),MATCH(UPPER(LEFT(BJ19,LEN(BJ19)-1)),CostCode,0)))","v":9254.6999999999989},{"$f":"BK19*BI19","v":9254.6999999999989}]
[null,"COVER MAINTENANCE",null,null,null,null,null,null,null,null,null,null,null,null,null,null,null,"COVER MAINTENANCE",null,null,null,null,null,null,null,"COVER MAINTENANCE",null,null,null,null,null,null,null,null,"COVER MAINTENANCE",null,null,null,null,null,null,null,"COVER MAINTENANCE",null,null,null,null,null,null,null,"COVER MAINTENANCE"]
[null,"Repair erosion - infill gullies",null,"allow",null,{"$f":"NA()","v":{"$error":"#N/A"}},{"$f":"IF(ISNA(F21),0,INDEX(IF(UPPER(RIGHT(F21,1))=Low,UnitCostLow, IF(UPPER(RIGHT(F21,1))=High,UnitCostHigh,UnitCostSpecified)),MATCH(UPPER(LEFT(F21,LEN(F21)-1)),CostCode,0)))","v":0},{"$f":"G21*E21","v":0},null,null,"allow",null,{"$error":"#N/A"},0,0,{"$f":"H21-O21","v":0},null,"Repair erosion - infill gullies",null,"allow",null,{"$f":"NA()","v":{"$error":"#N/A"}},0,{"$f":"W21*U21","v":0},null,"Repair erosion - infill gullies",null,"allow",null,{"$error":"#N/A"},0,0,0,null,"Repair erosion - infill gullies",null,"allow",null,{"$f":"NA()","v":{"$error":"#N/A"}},{"$f":"IF(ISNA(AM21),0,INDEX(IF(UPPER(RIGHT(AM21,1))=Low,UnitCostLow, IF(UPPER(RIGHT(AM21,1))=High,UnitCostHigh,UnitCostSpecified)),MATCH(UPPER(LEFT(AM21,LEN(AM21)-1)),CostCode,0)))","v":0},{"$f":"AN21*AL21","v":0},null,"Repair erosion - infill gullies",null,"allow",null,{"$f":"NA()","v":{"$error":"#N/A"}},{"$f":"IF(ISNA(AU21),0,INDEX(IF(UPPER(RIGHT(AU21,1))=Low,UnitCostLow, IF(UPPER(RIGHT(AU21,1))=High,UnitCostHigh,UnitCostSpecified)),MATCH(UPPER(LEFT(AU21,LEN(AU21)-1)),CostCode,0)))","v":0},{"$f":"AV21*AT21","v":0},null,"Repair erosion - infill gullies",null,"allow",null,{"$f":"NA()","v":{"$error":"#N/A"}},{"$f":"IF(ISNA(BC21),0,INDEX(IF(UPPER(RIGHT(BC21,1))=Low,UnitCostLow, IF(UPPER(RIGHT(BC21,1))=High,UnitCostHigh,UnitCostSpecified)),MATCH(UPPER(LEFT(BC21,LEN(BC21)-1)),CostCode,0)))","v":0},{"$f":"BD21*BB21","v":0},null,null,"allow",null,{"$f":"NA()","v":{"$error":"#N/A"}},{"$f":"IF(ISNA(BJ21),0,INDEX(IF(UPPER(RIGHT(BJ21,1))=Low,UnitCostLow, IF(UPPER(RIGHT(BJ21,1))=High,UnitCostHigh,UnitCostSpecified)),MATCH(UPPER(LEFT(BJ21,LEN(BJ21)-1)),CostCode,0)))","v":0},{"$f":"BK21*BI21","v":0}]
[null,"Repair erosion - upgrade diversion ditches",null,"allow",null,{"$f":"NA()","v":{"$error":"#N/A"}},0,0,null,null,"allow",null,{"$error":"#N/A"},0,0,0,null,"Repair erosion - upgrade diversion ditches",null,"allow",null,{"$f":"NA()","v":{"$error":"#N/A"}},0,0,null,"Repair erosion - upgrade diversion ditches",null,"allow",null,{"$error":"#N/A"},0,0,0,null,"Repair erosion - upgrade diversion ditches",null,"allow",null,{"$f":"NA()","v":{"$error":"#N/A"}},0,0,null,"Repair erosion - upgrade diversion ditches",null,"allow",null,{"$f":"NA()","v":{"$error":"#N/A"}},0,0,null,"Repair erosion - upgrade diversion ditches",null,"allow",null,{"$f":"NA()","v":{"$error":"#N/A"}},0,0,null,null,"allow",null,{"$f":"NA()","v":{"$error":"#N/A"}},0,0]
[null,"Remove problem vegetation",null,"allow",null,{"$f":"NA()","v":{"$error":"#N/A"}},0,0,null,null,"allow",null,{"$error":"#N/A"},0,0,0,null,"Remove problem vegetation",null,"allow",null,{"$f":"NA()","v":{"$error":"#N/A"}},0,0,null,"Remove problem vegetation",null,"allow",null,{"$error":"#N/A"},0,0,0,null,"Remove problem vegetation",null,"allow",null,{"$f":"NA()","v":{"$error":"#N/A"}},0,0,null,"Remove problem vegetation",null,"allow",null,{"$f":"NA()","v":{"$error":"#N/A"}},0,0,null,"Remove problem vegetation",null,"allow",null,{"$f":"NA()","v":{"$error":"#N/A"}},0,0,null,null,"allow",null,{"$f":"NA()","v":{"$error":"#N/A"}},0,0]
[null,"Repair animal damage",null,"allow",null,{"$f":"NA()","v":{"$error":"#N/A"}},0,0,null,null,"allow",null,{"$error":"#N/A"},0,0,0,null,"Repair animal damage",null,"allow",null,{"$f":"NA()","v":{"$error":"#N/A"}},0,0,null,"Repair animal damage",null,"allow",null,{"$error":"#N/A"},0,0,0,null,"Repair animal damage",null,"allow",null,{"$f":"NA()","v":{"$error":"#N/A"}},0,0,null,"Repair animal damage",null,"allow",null,{"$f":"NA()","v":{"$error":"#N/A"}},0,0,null,"Repair animal damage",null,"allow",null,{"$f":"NA()","v":{"$error":"#N/A"}},0,0,null,null,"allow",null,{"$f":"NA()","v":{"$error":"#N/A"}},0,0]
[null,"Repair/upgrade access controls",null,"allow",null,{"$f":"NA()","v":{"$error":"#N/A"}},0,0,null,null,"allow",null,{"$error":"#N/A"},0,0,0,null,"Repair/upgrade access controls",null,"allow",null,{"$f":"NA()","v":{"$error":"#N/A"}},0,0,null,"Repair/upgrade access controls",null,"allow",null,{"$error":"#N/A"},0,0,0,null,"Repair/upgrade access controls",null,"allow",null,{"$f":"NA()","v":{"$error":"#N/A"}},0,0,null,"Repair/upgrade access controls",null,"allow",null,{"$f":"NA()","v":{"$error":"#N/A"}},0,0,null,"Repair/upgrade access controls",null,"allow",null,{"$f":"NA()","v":{"$error":"#N/A"}},0,0,null,null,"allow",null,{"$f":"NA()","v":{"$error":"#N/A"}},0,0]
[null,"Other",null,null,null,{"$f":"NA()","v":{"$error":"#N/A"}},0,0,null,null,null,null,{"$error":"#N/A"},0,0,0,null,"Other",null,null,null,{"$f":"NA()","v":{"$error":"#N/A"}},0,0,null,"Other",null,null,null,{"$error":"#N/A"},0,0,0,null,"Other",null,null,null,{"$f":"NA()","v":{"$error":"#N/A"}},0,0,null,"Other",null,null,null,{"$f":"NA()","v":{"$error":"#N/A"}},0,0,null,"Other",null,null,null,{"$f":"NA()","v":{"$error":"#N/A"}},0,0,null,null,null,null,{"$f":"NA()","v":{"$error":"#N/A"}},0,0]
[null,"SPILLWAY MAINTENANCE",null,null,null,null,null,null,null,null,null,null,null,null,null,null,null,"SPILLWAY MAINTENANCE",null,null,null,null,null,null,null,"SPILLWAY MAINTENANCE",null,null,null,null,null,null,null,null,"SPILLWAY MAINTENANCE",null,null,null,null,null,null,null,"SPILLWAY MAINTENANCE",null,null,null,null,null,null,null,"SPILLWAY MAINTENANCE"]
[null,"Repair erosion",null,"m3",null,{"$f":"NA()","v":{"$error":"#N/A"}},{"$f":"IF(ISNA(F28),0,INDEX(IF(UPPER(RIGHT(F28,1))=Low,UnitCostLow, IF(UPPER(RIGHT(F28,1))=High,UnitCostHigh,UnitCostSpecified)),MATCH(UPPER(LEFT(F28,LEN(F28)-1)),CostCode,0)))","v":0},{"$f":"G28*E28","v":0},null,null,"m3",null,{"$error":"#N/A"},0,0,{"$f":"H28-O28","v":0},null,"Repair erosion",null,"m3",null,{"$f":"NA()","v":{"$error":"#N/A"}},0,{"$f":"W28*U28","v":0},null,"Repair erosion",null,"m3",null,{"$error":"#N/A"},0,0,0,null,"Repair erosion",null,"m3",null,{"$f":"NA()","v":{"$error":"#N/A"}},{"$f":"IF(ISNA(AM28),0,INDEX(IF(UPPER(RIGHT(AM28,1))=Low,UnitCostLow, IF(UPPER(RIGHT(AM28,1))=High,UnitCostHigh,UnitCostSpecified)),MATCH(UPPER(LEFT(AM28,LEN(AM28)-1)),CostCode,0)))","v":0},{"$f":"AN28*AL28","v":0},null,"Repair erosion",null,"m3",null,{"$f":"NA()","v":{"$error":"#N/A"}},{"$f":"IF(ISNA(AU28),0,INDEX(IF(UPPER(RIGHT(AU28,1))=Low,UnitCostLow, IF(UPPER(RIGHT(AU28,1))=High,UnitCostHigh,UnitCostSpecified)),MATCH(UPPER(LEFT(AU28,LEN(AU28)-1)),CostCode,0)))","v":0},{"$f":"AV28*AT28","v":0},null,"Repair erosion",null,"m3",null,{"$f":"NA()","v":{"$error":"#N/A"}},{"$f":"IF(ISNA(BC28),0,INDEX(IF(UPPER(RIGHT(BC28,1))=Low,UnitCostLow, IF(UPPER(RIGHT(BC28,1))=High,UnitCostHigh,UnitCostSpecified)),MATCH(UPPER(LEFT(BC28,LEN(BC28)-1)),CostCode,0)))","v":0},{"$f":"BD28*BB28","v":0},null,null,"m3",null,{"$f":"NA()","v":{"$error":"#N/A"}},{"$f":"IF(ISNA(BJ28),0,INDEX(IF(UPPER(RIGHT(BJ28,1))=Low,UnitCostLow, IF(UPPER(RIGHT(BJ28,1))=High,UnitCostHigh,UnitCostSpecified)),MATCH(UPPER(LEFT(BJ28,LEN(BJ28)-1)),CostCode,0)))","v":0},{"$f":"BK28*BI28","v":0}]
[null,"Clear spillway",null,"each",null,{"$f":"NA()","v":{"$error":"#N/A"}},0,{"$f":"G29*E29","v":0},null,null,"each",null,{"$error":"#N/A"},0,0,0,null,"Clear spillway",null,"each",null,{"$f":"NA()","v":{"$error":"#N/A"}},0,{"$f":"W29*U29","v":0},null,"Clear spillway",null,"each",null,{"$error":"#N/A"},0,0,0,null,"Clear spillway",null,"each",null,{"$f":"NA()","v":{"$error":"#N/A"}},0,{"$f":"AN29*AL29","v":0},null,"Clear spillway",null,"each",null,{"$f":"NA()","v":{"$error":"#N/A"}},0,{"$f":"AV29*AT29","v":0},null,"Clear spillway",null,"each",null,{"$f":"NA()","v":{"$error":"#N/A"}},0,{"$f":"BD29*BB29","v":0},null,null,"each",null,{"$f":"NA()","v":{"$error":"#N/A"}},0,{"$f":"BK29*BI29","v":0}]
[null,"CWTS MAINTENANCE",null,null,null,null,null,null,null,null,null,null,null,null,null,null,null,"CWTS MAINTENANCE",null,null,null,null,null,null,null,"CWTS MAINTENANCE",null,null,null,null,null,null,null,null,"CWTS MAINTENANCE",null,null,null,null,null,null,null,"CWTS MAINTENANCE",null,null,null,null,null,null,null,"CWTS MAINTENANCE"]
[null,"Maintain flow, restore vegetation",null,"allow",null,{"$f":"NA()","v":{"$error":"#N/A"}},{"$f":"IF(ISNA(F31),0,INDEX(IF(UPPER(RIGHT(F31,1))=Low,UnitCostLow, IF(UPPER(RIGHT(F31,1))=High,UnitCostHigh,UnitCostSpecified)),MATCH(UPPER(LEFT(F31,LEN(F31)-1)),CostCode,0)))","v":0},{"$f":"G31*E31","v":0},null,null,"allow",null,{"$error":"#N/A"},0,0,{"$f":"H31-O31","v":0},null,"Maintain flow, restore vegetation",null,"allow",null,{"$f":"NA()","v":{"$error":"#N/A"}},{"$f":"IF(ISNA(V31),0,INDEX(IF(UPPER(RIGHT(V31,1))=Low,UnitCostLow, IF(UPPER(RIGHT(V31,1))=High,UnitCostHigh,UnitCostSpecified)),MATCH(UPPER(LEFT(V31,LEN(V31)-1)),CostCode,0)))","v":0},{"$f":"W31*U31","v":0},null,"Maintain flow, restore vegetation",null,"allow",null,{"$error":"#N/A"},0,0,0,null,"Maintain flow, restore vegetation",null,"allow",null,{"$f":"NA()","v":{"$error":"#N/A"}},{"$f":"IF(ISNA(AM31),0,INDEX(IF(UPPER(RIGHT(AM31,1))=Low,UnitCostLow, IF(UPPER(RIGHT(AM31,1))=High,UnitCostHigh,UnitCostSpecified)),MATCH(UPPER(LEFT(AM31,LEN(AM31)-1)),CostCode,0)))","v":0},{"$f":"AN31*AL31","v":0},null,"Maintain flow, restore vegetation",null,"allow",null,{"$f":"NA()","v":{"$error":"#N/A"}},{"$f":"IF(ISNA(AU31),0,INDEX(IF(UPPER(RIGHT(AU31,1))=Low,UnitCostLow, IF(UPPER(RIGHT(AU31,1))=High,UnitCostHigh,UnitCostSpecified)),MATCH(UPPER(LEFT(AU31,LEN(AU31)-1)),CostCode,0)))","v":0},{"$f":"AV31*AT31","v":0},null,"Maintain flow, restore vegetation",null,"allow",null,{"$f":"NA()","v":{"$error":"#N/A"}},{"$f":"IF(ISNA(BC31),0,INDEX(IF(UPPER(RIGHT(BC31,1))=Low,UnitCostLow, IF(UPPER(RIGHT(BC31,1))=High,UnitCostHigh,UnitCostSpecified)),MATCH(UPPER(LEFT(BC31,LEN(BC31)-1)),CostCode,0)))","v":0},{"$f":"BD31*BB31","v":0},null,null,"allow",null,{"$f":"NA()","v":{"$error":"#N/A"}},{"$f":"IF(ISNA(BJ31),0,INDEX(IF(UPPER(RIGHT(BJ31,1))=Low,UnitCostLow, IF(UPPER(RIGHT(BJ31,1))=High,UnitCostHigh,UnitCostSpecified)),MATCH(UPPER(LEFT(BJ31,LEN(BJ31)-1)),CostCode,0)))","v":0},{"$f":"BK31*BI31","v":0}]
[null,"POST-CLOSURE WATER TREATMENT",null,null,null,null,null,null,null,null,null,null,null,null,null,null,null,"POST-CLOSURE WATER TREATMENT",null,null,null,null,null,null,null,"POST-CLOSURE WATER TREATMENT",null,null,null,null,null,null,null,null,"POST-CLOSURE WATER TREATMENT",null,null,null,null,null,null,null,"POST-CLOSURE WATER TREATMENT",null,null,null,null,null,null,null,"POST-CLOSURE WATER TREATMENT"]
[null,"Annual water treatment cost, from \"Water Treatment\"","TSF Water Treatment for 'Worse Case' Year 2 is captured under Water Management Tab","LS",null,{"$f":"NA()","v":{"$error":"#N/A"}},{"$f":"AnnualTreat1Cost","v":1E-4},{"$f":"G33*E33","v":0},null,"Treatment for Closure Period (7 years)","LS",1,{"$error":"#N/A"},953571.81009999989,953571.81009999989,{"$f":"H33-O33","v":-953571.81009999989},null,"Annual water treatment cost, from \"Water Treatment\"",null,"LS",null,{"$f":"NA()","v":{"$error":"#N/A"}},{"$f":"IF(ISNA(V33),0,INDEX(IF(UPPER(RIGHT(V33,1))=Low,UnitCostLow, IF(UPPER(RIGHT(V33,1))=High,UnitCostHigh,UnitCostSpecified)),MATCH(UPPER(LEFT(V33,LEN(V33)-1)),CostCode,0)))","v":0},{"$f":"W33*U33","v":0},null,"Annual water treatment cost, from \"Water Treatment\"",null,"LS",null,{"$error":"#N/A"},0,0,0,null,"Annual water treatment cost, from \"Water Treatment\"",null,"LS",null,{"$f":"NA()","v":{"$error":"#N/A"}},0,{"$f":"AN33*AL33","v":0},null,"Annual water treatment cost, from \"Water Treatment\"",null,"LS",null,{"$f":"NA()","v":{"$error":"#N/A"}},{"$f":"IF(ISNA(AU33),0,INDEX(IF(UPPER(RIGHT(AU33,1))=Low,UnitCostLow, IF(UPPER(RIGHT(AU33,1))=High,UnitCostHigh,UnitCostSpecified)),MATCH(UPPER(LEFT(AU33,LEN(AU33)-1)),CostCode,0)))","v":0},{"$f":"AV33*AT33","v":0},null,"Annual water treatment cost, from \"Water Treatment\"",null,"LS",null,{"$f":"NA()","v":{"$error":"#N/A"}},{"$f":"IF(ISNA(BC33),0,INDEX(IF(UPPER(RIGHT(BC33,1))=Low,UnitCostLow, IF(UPPER(RIGHT(BC33,1))=High,UnitCostHigh,UnitCostSpecified)),MATCH(UPPER(LEFT(BC33,LEN(BC33)-1)),CostCode,0)))","v":0},{"$f":"BD33*BB33","v":0},null,null,"LS",null,{"$f":"NA()","v":{"$error":"#N/A"}},{"$f":"IF(ISNA(BJ33),0,INDEX(IF(UPPER(RIGHT(BJ33,1))=Low,UnitCostLow, IF(UPPER(RIGHT(BJ33,1))=High,UnitCostHigh,UnitCostSpecified)),MATCH(UPPER(LEFT(BJ33,LEN(BJ33)-1)),CostCode,0)))","v":0},{"$f":"BK33*BI33","v":0}]
[null,null,null,null,null,null,null,null,null,null,null,null,null,null,null,null,null,null,null,null,null,null,null,null,null,null,null,null,null,null,null,null,0]
[null,"Subtotal, Annual post-closure costs",null,null,null,null,null,{"$f":"SUM(H5:H34)+0.0001","v":1E-4},null,null,null,null,null,null,953571.81019999983,{"$f":"H35-O35","v":-953571.81009999989},null,"Subtotal, Annual post-closure costs",null,null,null,null,null,{"$f":"SUM(X5:X34)+0.0001","v":20340.000099999997},null,"Subtotal, Annual post-closure costs",null,null,null,null,null,20000.000100000001,339.99999999999636,null,"Subtotal, Annual post-closure costs",null,null,null,null,null,{"$f":"SUM(AO5:AO34)+0.0001","v":29289.600099999996},null,"Subtotal, Annual post-closure costs",null,null,null,null,null,{"$f":"SUM(AW5:AW34)+0.0001","v":79702.290099999998},null,"Subtotal, Annual post-closure costs",null,null,null,null,null,{"$f":"SUM(BE5:BE34)+0.0001","v":70274.700099999987},null,null,null,null,null,null,{"$f":"SUM(BL5:BL34)+0.0001","v":29594.700099999998}]
[null,"Discount rate for calculation of net present value of post-closure cost, %",null,null,null,0,null,null,null,null,null,null,0.03,null,null,null,null,"Discount rate for calculation of net present value of post-closure cost, %",null,null,null,0,null,null,null,"Discount rate for calculation of net present value of post-closure cost, %",null,null,null,0.03,null,null,null,null,"Discount rate for calculation of net present value of post-closure cost, %",null,null,null,0,null,null,null,"Discount rate for calculation of net present value of post-closure cost, %",null,null,null,0,null,null,null,"Discount rate for calculation of net present value of post-closure cost, %",null,null,null,0,null,null,null,null,null,null,0.03]
[null,"Number of years of post-closure activity",null,null,null,0,"years",null,null,null,null,null,7,"years",null,null,null,"Number of years of post-closure activity",null,null,null,1,"years",null,null,"Number of years of post-closure activity",null,null,null,8,"years",null,null,null,"Number of years of post-closure activity",null,null,null,10,"years",null,null,"Number of years of post-closure activity",null,null,null,13,"years",null,null,"Number of years of post-closure activity",null,null,null,"See Long Term","years",null,null,null,null,null,"See Long Term","years"]
[null,"Present Value of payment stream",null,null,null,null,null,{"$f":"PV(F36,F37,H35)*-1","v":0},null,null,null,null,null,null,5941022.19566881,{"$f":"H38-O38","v":-5941022.19566881},null,"Present Value of payment stream",null,null,null,null,null,{"$f":"PV(V36,V37,X35)*-1","v":20340.000099999997},null,"Present Value of payment stream",null,null,null,null,null,140393.84449267871,-120053.8443926787,null,"Present Value of payment stream",null,null,null,null,null,{"$f":"PV(AM36,AM37,AO35)*-1","v":292896.00099999993},null,"Present Value of payment stream",null,null,null,null,null,{"$f":"PV(AU36,AU37,AW35)*-1","v":1036129.7713},null,"Present Value of payment stream",null,null,null,null,null,{"$f":"'LongTerm Monitoring'!F49","v":632472.30090000003},null,null,null,null,null,null,414626.69164347136]
[]
[null,"Combined NPV of payment stream ",null,null,null,null,null,{"$f":"X38+AO38+AW38+H38+BE38","v":1981838.0732999998},null,null,null,null,null,null,7568243.1952678133,{"$f":"H40-O40","v":-5586405.121967813}]

{"sheet":"LongTerm Monitoring","index":12,"n_rows":49,"n_cols":13,"rows_kept":49,"cut":false,"hidden":false,"merged":[[46,8,46,10],[21,7,25,7],[15,7,20,7],[13,7,14,7],[26,7,45,7],[1,11,1,12],[3,7,12,7],[0,8,0,9],[1,7,2,7],[1,8,2,8],[1,9,2,9],[1,10,2,10],[28,0,47,0],[48,1,48,3],[1,4,1,5],[15,0,16,0],[17,0,22,0],[23,0,27,0],[3,0,14,0],[0,1,0,2],[1,3,2,3],[1,2,2,2],[1,1,2,1],[1,0,2,0]]}
[null,"Annual Discount Rate:",null,0,null,null,null,null,"Annual Discount Rate:",null,0.03]
["Project Phase","Annual Discount Rate:","Closure Year","Post-Closure Monitoring Year","Long Term Monitoring (GTCs, physical, water) ",null,null,"Project Phase","Project Year ","Closure Year","Post-Closure Monitoring Year","Long Term Monitoring (GTCs, physical, water) "]
[null,null,null,null,"One Time Cost","Yearly Total NPV",null,null,null,null,null,"One Time Cost","Yearly Total NPV"]
["Operations",1,null,null,null,{"$f":"E4/(1+$D$1)^($C4-1)","v":0},null,"Operations",1,null,null,null,0]
[null,{"$f":"B4+1","v":2},null,null,null,0,null,null,2,null,null,null,0]
[null,{"$f":"B5+1","v":3},null,null,null,0,null,null,3,null,null,null,0]
[null,4,null,null,null,0,null,null,4,null,null,null,0]
[null,5,null,null,null,0,null,null,5,null,null,null,0]
[null,6,null,null,null,0,null,null,6,null,null,null,0]
[null,7,null,null,null,0,null,null,7,null,null,null,0]
[null,8,null,null,null,0,null,null,8,null,null,null,0]
[null,9,null,null,null,0,null,null,9,null,null,null,0]
[null,10,null,null,null,0,null,null,10,null,null,null,0]
[null,11,null,null,null,0,null,"Active Closure",11,1,null,null,0]
[null,12,null,null,null,{"$f":"E15/(1+$D$1)^($C15-1)","v":0},null,null,12,2,null,null,0]
["Active Closure",{"$f":"B15+1","v":13},1,null,null,0,null,"Passive Closure",13,3,null,null,0]
[null,14,{"$f":"C16+1","v":2},null,null,0,null,null,14,4,null,null,0]
["Passive Closure",15,{"$f":"C17+1","v":3},null,null,0,null,null,15,5,null,null,0]
[null,16,4,null,null,0,null,null,16,6,null,null,0]
[null,17,5,null,null,0,null,null,17,7,null,null,0]
[null,18,6,null,null,0,null,null,18,8,null,null,0]
[null,19,7,null,null,0,null,"Post Closure",19,9,1,69100.000100000005,54548.178170033891]
[null,20,8,null,null,0,null,null,20,10,2,69100.000100000005,52959.396281586298]
["Post Closure",21,9,1,{"$f":"PostClosure!BE$35","v":70274.700099999987},70274.700099999987,null,null,21,11,3,69100.000100000005,51416.889593773107]
[null,22,10,{"$f":"D24+1","v":2},{"$f":"PostClosure!BE$35","v":70274.700099999987},70274.700099999987,null,null,22,12,4,69100.000100000005,49919.310285216605]
[null,23,11,{"$f":"D25+1","v":3},{"$f":"PostClosure!BE$35","v":70274.700099999987},70274.700099999987,null,null,23,13,5,69100.000100000005,48465.349791472443]
[null,24,12,4,{"$f":"PostClosure!BE$35","v":70274.700099999987},70274.700099999987,null,"Beyond Post Closure",24,14,6,null,0]
[null,25,13,5,{"$f":"PostClosure!BE$35","v":70274.700099999987},70274.700099999987,null,null,25,15,7,69100.000100000005,45683.240448178374]
["Beyond Post Closure",26,14,6,null,0,null,null,26,16,8,null,0]
[null,27,15,7,{"$f":"PostClosure!BE$35","v":70274.700099999987},70274.700099999987,null,null,27,17,9,null,0]
[null,28,16,8,null,0,null,null,28,18,10,69100.000100000005,41806.636468375342]
[null,29,17,9,null,0,null,null,29,19,11,null,0]
[null,30,18,10,{"$f":"PostClosure!BE$35","v":70274.700099999987},70274.700099999987,null,null,30,20,12,null,0]
[null,31,19,11,null,0,null,null,31,21,13,null,0]
[null,32,20,12,null,0,null,null,32,22,14,null,0]
[null,33,21,13,null,0,null,null,33,23,15,69100.000100000005,36062.771863175913]
[null,34,22,14,null,0,null,null,34,24,16,null,0]
[null,35,23,15,{"$f":"PostClosure!BE$35","v":70274.700099999987},70274.700099999987,null,null,35,25,17,null,0]
[null,36,24,16,null,0,null,null,36,26,18,null,0]
[null,37,25,17,null,0,null,null,37,27,19,null,0]
[null,38,26,18,null,0,null,null,38,28,20,null,0]
[null,39,27,19,null,0,null,null,39,29,21,null,0]
[null,40,28,20,null,0,null,null,40,30,22,null,0]
[null,41,29,21,null,0,null,null,41,31,23,null,0]
[null,42,30,22,null,0,null,null,42,32,24,null,0]
[null,43,31,23,null,0,null,null,43,33,25,69100.000100000005,26834.089097698037]
[null,44,32,24,null,0,null,null,"Net Present Value:",null,null,null,407695.86199951003]
[null,45,33,25,{"$f":"PostClosure!BE$35","v":70274.700099999987},70274.700099999987]
[null,"Net Present Value:",null,null,null,{"$f":"SUM(F4:F48)","v":632472.30090000003}]

{"sheet":"Mobilization","index":13,"n_rows":61,"n_cols":8,"rows_kept":61,"cut":false,"hidden":false,"merged":[]}
[1,"Mobilization/Demobilization:"]
[]
[null,"ACTIVITY/MATERIAL","Notes","Units","Quantity","Cost Code","Unit Cost","Cost"]
[null,"MOBILIZE HEAVY EQUIPMENT","Assumes mining equipment on abandoned mine site is operable and available."]
[null,"Light duty vehicles","Purchase pickups and Vans","each",null,{"$f":"NA()","v":{"$error":"#N/A"}},{"$f":"IF(ISNA(F5),0,INDEX(IF(UPPER(RIGHT(F5,1))=Low,UnitCostLow, IF(UPPER(RIGHT(F5,1))=High,UnitCostHigh,UnitCostSpecified)),MATCH(UPPER(LEFT(F5,LEN(F5)-1)),CostCode,0)))","v":0},{"$f":"G5*E5","v":0}]
[null,"Telehandlers","Purchase (standby)","each",null,{"$f":"NA()","v":{"$error":"#N/A"}},0,0]
[null,"Excavators","Purchase (320 Ex)","each",null,{"$f":"NA()","v":{"$error":"#N/A"}},0,0]
[null,"Dump trucks","Purchase 30T","each",null,{"$f":"NA()","v":{"$error":"#N/A"}},0,0]
[null,"Dozers","Purchase (D6T)","each",null,{"$f":"NA()","v":{"$error":"#N/A"}},0,0]
[null,"Grader","Purchase (140M)","each",null,{"$f":"NA()","v":{"$error":"#N/A"}},0,0]
[null,"Demolition shears","For a 320 Exc","each",null,{"$f":"NA()","v":{"$error":"#N/A"}},{"$f":"IF(ISNA(F11),0,INDEX(IF(UPPER(RIGHT(F11,1))=Low,UnitCostLow, IF(UPPER(RIGHT(F11,1))=High,UnitCostHigh,UnitCostSpecified)),MATCH(UPPER(LEFT(F11,LEN(F11)-1)),CostCode,0)))","v":0},{"$f":"G11*E11","v":0}]
[null,"Crane","Purchase","each",null,{"$f":"NA()","v":{"$error":"#N/A"}},{"$f":"IF(ISNA(F12),0,INDEX(IF(UPPER(RIGHT(F12,1))=Low,UnitCostLow, IF(UPPER(RIGHT(F12,1))=High,UnitCostHigh,UnitCostSpecified)),MATCH(UPPER(LEFT(F12,LEN(F12)-1)),CostCode,0)))","v":0},{"$f":"G12*E12","v":0}]
[null,"Loader","Purchase (966 Loader)","each",null,{"$f":"NA()","v":{"$error":"#N/A"}},{"$f":"IF(ISNA(F13),0,INDEX(IF(UPPER(RIGHT(F13,1))=Low,UnitCostLow, IF(UPPER(RIGHT(F13,1))=High,UnitCostHigh,UnitCostSpecified)),MATCH(UPPER(LEFT(F13,LEN(F13)-1)),CostCode,0)))","v":0},0]
[null,"Manlifts","Purchase (standby)","each",null,{"$f":"NA()","v":{"$error":"#N/A"}},{"$f":"IF(ISNA(F14),0,INDEX(IF(UPPER(RIGHT(F14,1))=Low,UnitCostLow, IF(UPPER(RIGHT(F14,1))=High,UnitCostHigh,UnitCostSpecified)),MATCH(UPPER(LEFT(F14,LEN(F14)-1)),CostCode,0)))","v":0},0]
[null,"Small Equipment",null,"LS",null,{"$f":"NA()","v":{"$error":"#N/A"}},{"$f":"IF(ISNA(F15),0,INDEX(IF(UPPER(RIGHT(F15,1))=Low,UnitCostLow, IF(UPPER(RIGHT(F15,1))=High,UnitCostHigh,UnitCostSpecified)),MATCH(UPPER(LEFT(F15,LEN(F15)-1)),CostCode,0)))","v":0},0]
[null,"Compactor",null,"each",null,{"$f":"NA()","v":{"$error":"#N/A"}},{"$f":"IF(ISNA(F16),0,INDEX(IF(UPPER(RIGHT(F16,1))=Low,UnitCostLow, IF(UPPER(RIGHT(F16,1))=High,UnitCostHigh,UnitCostSpecified)),MATCH(UPPER(LEFT(F16,LEN(F16)-1)),CostCode,0)))","v":0},{"$f":"G16*E16","v":0}]
[null,"MOBILIZE MISC. EQUIPMENT","Assumes mining equipment on abandoned mine site is operable and available."]
[null,"Pump shipping",null,"each",null,{"$f":"NA()","v":{"$error":"#N/A"}},{"$f":"IF(ISNA(F18),0,INDEX(IF(UPPER(RIGHT(F18,1))=Low,UnitCostLow, IF(UPPER(RIGHT(F18,1))=High,UnitCostHigh,UnitCostSpecified)),MATCH(UPPER(LEFT(F18,LEN(F18)-1)),CostCode,0)))","v":0},{"$f":"G18*E18","v":0}]
[null,"Pipe shipping",null,"m",null,{"$f":"NA()","v":{"$error":"#N/A"}},{"$f":"IF(ISNA(F19),0,INDEX(IF(UPPER(RIGHT(F19,1))=Low,UnitCostLow, IF(UPPER(RIGHT(F19,1))=High,UnitCostHigh,UnitCostSpecified)),MATCH(UPPER(LEFT(F19,LEN(F19)-1)),CostCode,0)))","v":0},{"$f":"G19*E19","v":0}]
[null,"Minor tools and equipment",null,"allow",null,{"$f":"NA()","v":{"$error":"#N/A"}},{"$f":"IF(ISNA(F20),0,INDEX(IF(UPPER(RIGHT(F20,1))=Low,UnitCostLow, IF(UPPER(RIGHT(F20,1))=High,UnitCostHigh,UnitCostSpecified)),MATCH(UPPER(LEFT(F20,LEN(F20)-1)),CostCode,0)))","v":0},{"$f":"G20*E20","v":0}]
[null,"Truck tires ",null,"allow",null,{"$f":"NA()","v":{"$error":"#N/A"}},{"$f":"IF(ISNA(F21),0,INDEX(IF(UPPER(RIGHT(F21,1))=Low,UnitCostLow, IF(UPPER(RIGHT(F21,1))=High,UnitCostHigh,UnitCostSpecified)),MATCH(UPPER(LEFT(F21,LEN(F21)-1)),CostCode,0)))","v":0},{"$f":"G21*E21","v":0}]
[null,"Other",null,null,null,{"$f":"NA()","v":{"$error":"#N/A"}},{"$f":"IF(ISNA(F22),0,INDEX(IF(UPPER(RIGHT(F22,1))=Low,UnitCostLow, IF(UPPER(RIGHT(F22,1))=High,UnitCostHigh,UnitCostSpecified)),MATCH(UPPER(LEFT(F22,LEN(F22)-1)),CostCode,0)))","v":0},0]
[null,"MOBILIZE CAMP"]
[null,"Build 20 Person Camp","Goose Closure Camp","LS",{"$f":"'SBB Comp. Est.'!F109","v":1},"Sabina",{"$f":"'SBB Comp. Est.'!X116","v":19577.249999999996},{"$f":"G24*E24","v":19577.249999999996}]
[null,"Build 20 Person Power Plant","Goose Closure Camp","LS",{"$f":"'SBB Comp. Est.'!F110","v":1},"Sabina",{"$f":"'SBB Comp. Est.'!X117","v":19577.249999999996},19577.249999999996]
[null,"Reclamation activities",null,"allow",null,{"$f":"NA()","v":{"$error":"#N/A"}},{"$f":"IF(ISNA(F26),0,INDEX(IF(UPPER(RIGHT(F26,1))=Low,UnitCostLow, IF(UPPER(RIGHT(F26,1))=High,UnitCostHigh,UnitCostSpecified)),MATCH(UPPER(LEFT(F26,LEN(F26)-1)),CostCode,0)))","v":0},{"$f":"G26*E26","v":0}]
[null,"Long term reclamation activities (e.g. pump flooding)",null,"allow",null,{"$f":"NA()","v":{"$error":"#N/A"}},{"$f":"IF(ISNA(F27),0,INDEX(IF(UPPER(RIGHT(F27,1))=Low,UnitCostLow, IF(UPPER(RIGHT(F27,1))=High,UnitCostHigh,UnitCostSpecified)),MATCH(UPPER(LEFT(F27,LEN(F27)-1)),CostCode,0)))","v":0},{"$f":"G27*E27","v":0}]
[null," WORKER ACCOMODATIONS"]
[null,"Camp operation",null,"mandays",{"$f":"'SBB Comp. Est.'!F118","v":12000},"Sabina ",{"$f":"'SBB Comp. Est.'!X118","v":111.86999999999998},{"$f":"G29*E29","v":1342439.9999999998}]
[null,"Reclamation activities",null,"manmonths",null,{"$f":"NA()","v":{"$error":"#N/A"}},{"$f":"IF(ISNA(F30),0,INDEX(IF(UPPER(RIGHT(F30,1))=Low,UnitCostLow, IF(UPPER(RIGHT(F30,1))=High,UnitCostHigh,UnitCostSpecified)),MATCH(UPPER(LEFT(F30,LEN(F30)-1)),CostCode,0)))","v":0},{"$f":"G30*E30","v":0}]
[null,"Long term reclamation activities (e.g. pump flooding)",null,"manmonths",null,{"$f":"NA()","v":{"$error":"#N/A"}},{"$f":"IF(ISNA(F31),0,INDEX(IF(UPPER(RIGHT(F31,1))=Low,UnitCostLow, IF(UPPER(RIGHT(F31,1))=High,UnitCostHigh,UnitCostSpecified)),MATCH(UPPER(LEFT(F31,LEN(F31)-1)),CostCode,0)))","v":0},{"$f":"G31*E31","v":0}]
[null,"MOBILIZE FUEL"]
[null,"Fuel freight - reclamation activities",null,"litre",null,{"$f":"NA()","v":{"$error":"#N/A"}},{"$f":"IF(ISNA(F33),0,INDEX(IF(UPPER(RIGHT(F33,1))=Low,UnitCostLow, IF(UPPER(RIGHT(F33,1))=High,UnitCostHigh,UnitCostSpecified)),MATCH(UPPER(LEFT(F33,LEN(F33)-1)),CostCode,0)))","v":0},{"$f":"G33*E33","v":0}]
[null,"Fuel freight - long term reclamation activities",null,"litre",null,{"$f":"NA()","v":{"$error":"#N/A"}},{"$f":"IF(ISNA(F34),0,INDEX(IF(UPPER(RIGHT(F34,1))=Low,UnitCostLow, IF(UPPER(RIGHT(F34,1))=High,UnitCostHigh,UnitCostSpecified)),MATCH(UPPER(LEFT(F34,LEN(F34)-1)),CostCode,0)))","v":0},{"$f":"G34*E34","v":0}]
[null,"Oil & Other",null,"litre",null,{"$f":"NA()","v":{"$error":"#N/A"}},{"$f":"IF(ISNA(F35),0,INDEX(IF(UPPER(RIGHT(F35,1))=Low,UnitCostLow, IF(UPPER(RIGHT(F35,1))=High,UnitCostHigh,UnitCostSpecified)),MATCH(UPPER(LEFT(F35,LEN(F35)-1)),CostCode,0)))","v":0},{"$f":"G35*E35","v":0}]
[null,"Fuel freight accommodations",null,"litre",null,{"$f":"NA()","v":{"$error":"#N/A"}},{"$f":"IF(ISNA(F36),0,INDEX(IF(UPPER(RIGHT(F36,1))=Low,UnitCostLow, IF(UPPER(RIGHT(F36,1))=High,UnitCostHigh,UnitCostSpecified)),MATCH(UPPER(LEFT(F36,LEN(F36)-1)),CostCode,0)))","v":0},{"$f":"G36*E36","v":0}]
[null,"GENERAL CONSTRUCTION INDIRECT"]
[null,"Tooling, consumables, office & safety supplies","covered in Summary tab indirects","mandays",null,{"$f":"NA()","v":{"$error":"#N/A"}},{"$f":"IF(ISNA(F38),0,INDEX(IF(UPPER(RIGHT(F38,1))=Low,UnitCostLow, IF(UPPER(RIGHT(F38,1))=High,UnitCostHigh,UnitCostSpecified)),MATCH(UPPER(LEFT(F38,LEN(F38)-1)),CostCode,0)))","v":0},{"$f":"G38*E38","v":0}]
[null,"DEMOBILIZE HEAVY EQUIPMENT"]
[null,"Excavators",null,"km",null,{"$f":"NA()","v":{"$error":"#N/A"}},{"$f":"IF(ISNA(F40),0,INDEX(IF(UPPER(RIGHT(F40,1))=Low,UnitCostLow, IF(UPPER(RIGHT(F40,1))=High,UnitCostHigh,UnitCostSpecified)),MATCH(UPPER(LEFT(F40,LEN(F40)-1)),CostCode,0)))","v":0},{"$f":"G40*E40","v":0}]
[null,"Dump trucks",null,"km",null,{"$f":"NA()","v":{"$error":"#N/A"}},{"$f":"IF(ISNA(F41),0,INDEX(IF(UPPER(RIGHT(F41,1))=Low,UnitCostLow, IF(UPPER(RIGHT(F41,1))=High,UnitCostHigh,UnitCostSpecified)),MATCH(UPPER(LEFT(F41,LEN(F41)-1)),CostCode,0)))","v":0},0]
[null,"Dozers",null,"km",null,{"$f":"NA()","v":{"$error":"#N/A"}},0,0]
[null,"Demolition shears",null,"km",null,{"$f":"NA()","v":{"$error":"#N/A"}},0,0]
[null,"Crane",null,"km",null,{"$f":"NA()","v":{"$error":"#N/A"}},0,0]
[null,"Loader",null,"km",null,{"$f":"NA()","v":{"$error":"#N/A"}},{"$f":"IF(ISNA(F45),0,INDEX(IF(UPPER(RIGHT(F45,1))=Low,UnitCostLow, IF(UPPER(RIGHT(F45,1))=High,UnitCostHigh,UnitCostSpecified)),MATCH(UPPER(LEFT(F45,LEN(F45)-1)),CostCode,0)))","v":0},{"$f":"G45*E45","v":0}]
[null,"Compactor",null,"each",null,{"$f":"NA()","v":{"$error":"#N/A"}},{"$f":"IF(ISNA(F46),0,INDEX(IF(UPPER(RIGHT(F46,1))=Low,UnitCostLow, IF(UPPER(RIGHT(F46,1))=High,UnitCostHigh,UnitCostSpecified)),MATCH(UPPER(LEFT(F46,LEN(F46)-1)),CostCode,0)))","v":0},{"$f":"G46*E46","v":0}]
[null,"Light duty vehicles",null,"km",null,{"$f":"NA()","v":{"$error":"#N/A"}},0,0]
[null,"Other",null,"km",null,{"$f":"NA()","v":{"$error":"#N/A"}},0,0]
[null,"DEMOBILIZE CAMP"]
[null,"Food and Freight",null,"kg",{"$f":"'SBB Comp. Est.'!F165","v":27599.999999999996},"Sabina",{"$f":"'SBB Comp. Est.'!X165","v":12.203999999999999},{"$f":"G50*E50","v":336830.39999999991}]
[null,"Freight",null,"Lot",{"$f":"'SBB Comp. Est.'!F166","v":1},"Sabina",{"$f":"'SBB Comp. Est.'!X166","v":508499.99999999994},508499.99999999994]
[null,"Mobilization",null,"tonnes",{"$f":"'SBB Comp. Est.'!F167","v":500},"Sabina",{"$f":"'SBB Comp. Est.'!X167","v":1525.4999999999998},{"$f":"G52*E52","v":762749.99999999988}]
[null,"MOBILZE & DEMOBILIZE WORKERS"]
[null,"Crew travel time - inbound & outbound ","16 manhours per rotation","manhours",{"$f":"(E55+E56)*16","v":6864},"lab-sh",{"$f":"Unit_Costs!G81","v":50.443199999999997},{"$f":"G54*E54","v":346242.12479999999}]
[null,"Crew transportation - in& outbound from Yellowknife","28 day rotations - 12,000 man days - 2/3","each",{"$f":"'SBB Comp. Est.'!F172*2/3","v":286},"Sabina",{"$f":"'SBB Comp. Est.'!X172","v":582.18729999999994},{"$f":"G55*E55","v":166505.56779999999}]
[null,"Crew transportation - in& outbound from south","28 day rotations - 12,000 man days - 1/3","each",{"$f":"'SBB Comp. Est.'!F172*1/3","v":143},"Sabina",{"$f":"'SBB Comp. Est.'!X172+550*(1+Unit_Costs!G3)","v":1141.5373},{"$f":"G56*E56","v":163239.8339}]
[null,"WINTER ROAD"]
[null,"Construction and operation","Assumes construction and maintenance of 2-160 km winter ice roads; once during Active Closure and once in approximately Year 18.","km",{"$f":"160*2","v":320},"WRCL",{"$f":"IF(ISNA(F58),0,INDEX(IF(UPPER(RIGHT(F58,1))=Low,UnitCostLow, IF(UPPER(RIGHT(F58,1))=High,UnitCostHigh,UnitCostSpecified)),MATCH(UPPER(LEFT(F58,LEN(F58)-1)),CostCode,0)))","v":2033.9999999999998},{"$f":"G58*E58","v":650879.99999999988}]
[null,"Limited winter use",null,"km",null,{"$f":"NA()","v":{"$error":"#N/A"}},{"$f":"IF(ISNA(F59),0,INDEX(IF(UPPER(RIGHT(F59,1))=Low,UnitCostLow, IF(UPPER(RIGHT(F59,1))=High,UnitCostHigh,UnitCostSpecified)),MATCH(UPPER(LEFT(F59,LEN(F59)-1)),CostCode,0)))","v":0},{"$f":"G59*E59","v":0}]
[null,"Winter road tariff",null,"km",null,{"$f":"NA()","v":{"$error":"#N/A"}},{"$f":"IF(ISNA(F60),0,INDEX(IF(UPPER(RIGHT(F60,1))=Low,UnitCostLow, IF(UPPER(RIGHT(F60,1))=High,UnitCostHigh,UnitCostSpecified)),MATCH(UPPER(LEFT(F60,LEN(F60)-1)),CostCode,0)))","v":0},{"$f":"G60*E60","v":0}]
[null,null,null,null,null,null,"Total",{"$f":"SUM(H5:H60)+0.0001","v":4316542.426599999}]

{"sheet":"SBB Comp. Est.","index":14,"n_rows":174,"n_cols":50,"rows_kept":174,"cut":false,"hidden":false,"merged":[[2,48,2,49]]}
["Sabina Closure Component Estimating"]
[null,null,null,null,null,null,null,null,null,null,null,null,null,null,null,null,null,null,null,null,null,null,null,null,"INFLATION",{"$f":"Unit_Costs!G3","v":1.6999999999999901E-2}]
[null,null,null,null,null,null,null,"Labour",null,null,null,null,"Material",null,"Fixed Equipment",null,"Mobile Equip",null,"Const Equip Use",null,"Other",null,"Total",null,null,null,null,null,null,null,null,null,null,"Labour",null,null,null,null,"Material",null,"Fixed Equipment",null,"Mobile Equip",null,"Const Equip Use",null,"Other",null,"Total"]
["Code","Description","NOTES","EQUIPMENT\nNUMBER","ESTIMATE SOURCE\nDOCUMENT","Qty","Unit of Measure","Unit Man-hrs","Prod Fact","Total Man-hrs","Unit Cost","Total Cost","Unit Cost","Total Cost","Unit Cost","Total Cost","Unit Cost","Total Cost","Unit Cost","Total Cost","Unit Cost","Total Cost","Unit Cost","Unit Cost (plus Inflation)","Total Cost","Total Cost (plus Inflation)",null,"Description","NOTES","EQUIPMENT\nNUMBER","ESTIMATE SOURCE\nDOCUMENT","Qty","Unit of Measure","Unit Man-hrs","Prod Fact","Total Man-hrs","Unit Cost","Total Cost","Unit Cost","Total Cost","Unit Cost","Total Cost","Unit Cost","Total Cost","Unit Cost","Total Cost","Unit Cost","Total Cost","Unit Cost","Total Cost"]
[null,"Open Pit Closure",null,null,null,null,null,null,null,null,null,null,null,null,null,null,null,null,null,null,null,null,null,null,null,null,null,"Open Pit Closure"]
[null,"Place Boulder Fence",null,null,null,null,null,null,null,null,null,null,null,null,null,null,null,null,null,null,null,null,null,null,null,null,null,"Place Boulder Fence"]
[null,"Umwelt Open Pit","Updated for Modification Package",null,"x",1583,"m",0.06,1,{"$f":"F7*H7*I7","v":94.97999999999999},95,{"$f":"J7*K7","v":9023.0999999999985},0,{"$f":"F7*M7","v":0},0,{"$f":"F7*O7","v":0},0,{"$f":"F7*Q7","v":0},175,{"$f":"S7*J7","v":16621.5},null,{"$f":"$F7*U7","v":0},{"$f":"IF(F7>0,Y7/F7,0)","v":16.2},{"$f":"IF($F7>0,Z7/$F7,0)","v":16.475399999999997},{"$f":"L7+N7+P7+R7+T7+V7","v":25644.6},{"$f":"Y7*(1+$Z$2)","v":26080.558199999996},null,"Umwelt Open Pit",null,null,"x",1635,"m",0.06,1,{"$f":"AF7*AH7*AI7","v":98.1},95,{"$f":"AJ7*AK7","v":9319.5},0,{"$f":"AF7*AM7","v":0},0,{"$f":"AF7*AO7","v":0},0,{"$f":"AF7*AQ7","v":0},175,{"$f":"AS7*AJ7","v":17167.5},null,{"$f":"$F7*AU7","v":0},{"$f":"IF(AF7>0,AX7/AF7,0)","v":16.2},{"$f":"AL7+AN7+AP7+AR7+AT7+AV7","v":26487}]
[null,"Echo open pit","Not in current mine plan; item remains to keep Stage in tact.",null,"x",750,"m",0.06,1,{"$f":"F8*H8*I8","v":45},95,4275,0,0,0,0,0,0,175,{"$f":"S8*J8","v":7875},null,0,16.2,{"$f":"IF($F8>0,Z8/$F8,0)","v":16.4754},12150,{"$f":"Y8*(1+$Z$2)","v":12356.55},null,"Echo open pit",null,null,"x",750,"m",0.06,1,{"$f":"AF8*AH8*AI8","v":45},95,4275,0,0,0,0,0,0,175,{"$f":"AS8*AJ8","v":7875},null,0,16.2,12150]
[null,"Goose open pit","Updated for Modification Package",null,"x",2340,"m",0.06,1,140.4,95,13338,0,0,0,0,0,0,175,24570,null,0,16.2,{"$f":"IF($F9>0,Z9/$F9,0)","v":16.475399999999997},37908,38552.435999999994,null,"Goose open pit",null,null,"x",1900,"m",0.06,1,114,95,10830,0,0,0,0,0,0,175,19950,null,0,16.2,30780]
[null,"Llama open pit","Updated for Modification Package; Perimeter only required where pit edge will not abut final flooded lake footprint. (i.e., 600 m total)",null,"x",600,"m",0.06,1,{"$f":"F10*H10*I10","v":36},95,{"$f":"J10*K10","v":3420},0,{"$f":"F10*M10","v":0},0,{"$f":"F10*O10","v":0},0,{"$f":"F10*Q10","v":0},175,{"$f":"S10*J10","v":6300},null,{"$f":"$F10*U10","v":0},{"$f":"IF(F10>0,Y10/F10,0)","v":16.2},{"$f":"IF($F10>0,Z10/$F10,0)","v":16.4754},{"$f":"L10+N10+P10+R10+T10+V10","v":9720},9885.24,null,"Llama open pit","Perimeter needed only where pit edge will not abut the final flooded lake footprint. i.e. 400m length.",null,"x",400,"m",0.06,1,{"$f":"AF10*AH10*AI10","v":24},95,2280,0,0,0,0,0,0,175,{"$f":"AS10*AJ10","v":4200},null,0,16.2,6480]
[null,"Remove Pump and Pipeline",null,null,null,null,null,null,null,null,null,null,null,null,null,null,null,null,null,null,null,null,null,null,null,null,null,"Remove Pump and Pipeline"]
[null,"Umwelt pit sump","Occurs during Operations",null,"x",1740,"m",0.04,1,{"$f":"F12*H12*I12","v":69.600000000000009},95,{"$f":"J12*K12","v":6612.0000000000009},0,{"$f":"F12*M12","v":0},0,{"$f":"F12*O12","v":0},0,{"$f":"F12*Q12","v":0},155,{"$f":"S12*J12","v":10788.000000000002},null,0,{"$f":"IF(F12>0,Y12/F12,0)","v":10.000000000000002},{"$f":"IF($F12>0,Z12/$F12,0)","v":10.170000000000002},{"$f":"L12+N12+P12+R12+T12+V12","v":17400.000000000004},{"$f":"Y12*(1+$Z$2)","v":17695.800000000003},null,"Umwelt pit sump","Occurs during Operations",null,"x",1740,"m",0.04,1,{"$f":"AF12*AH12*AI12","v":69.600000000000009},95,{"$f":"AJ12*AK12","v":6612.0000000000009},0,{"$f":"AF12*AM12","v":0},0,{"$f":"AF12*AO12","v":0},0,{"$f":"AF12*AQ12","v":0},155,{"$f":"AS12*AJ12","v":10788.000000000002},null,{"$f":"$F12*AU12","v":0},{"$f":"IF(AF12>0,AX12/AF12,0)","v":10.000000000000002},{"$f":"AL12+AN12+AP12+AR12+AT12+AV12","v":17400.000000000004}]
[null,"Llama pit sump","Occurs during Closure",null,"x",2850,"m",0.04,1,114,95,10830,0,0,0,0,0,0,155,{"$f":"S13*J13","v":17670},null,0,10,10.169999999999998,28500,28984.499999999996,null,"Llama pit sump","Occurs during Operations",null,"x",2850,"m",0.04,1,114,95,10830,0,0,0,0,0,0,155,{"$f":"AS13*AJ13","v":17670},null,0,10,28500]
[null,"Goose pit sump","Occurs during Operations",null,"x",4325,"m",0.04,1,173,95,16435,0,0,0,0,0,0,155,26815,null,0,10,10.169999999999998,43250,43985.249999999993,null,"Goose pit sump","Occurs during Closure",null,"x",4325,"m",0.04,1,173,95,16435,0,0,0,0,0,0,155,26815,null,0,10,43250]
[null,"Echo pit sump","Updated for Supplementary Adjustments",null,"x",2820,"m",0.04,1,112.8,95,10716,0,0,0,0,0,0,155,17484,null,0,10,10.17,28200,28679.399999999998,null,"Echo pit sump","Occurs during Operations",null,"x",820,"m",0.04,1,32.799999999999997,95,3115.9999999999995,0,0,0,0,0,0,155,5084,null,0,10,8200]
[null,"Breech Pits into Receiving Waters",null,null,null,null,null,null,null,null,null,null,null,null,null,null,null,null,null,null,null,null,null,null,null,null,null,"Breech Pits into Receiving Waters"]
[null,"Umwelt open pit",null,null,"x",1200,"m3",0.12,1,{"$f":"F17*H17*I17","v":144},null,{"$f":"J17*K17","v":0},0,{"$f":"F17*M17","v":0},0,{"$f":"F17*O17","v":0},0,{"$f":"F17*Q17","v":0},5,{"$f":"S17*F17","v":6000},null,0,{"$f":"IF(F17>0,Y17/F17,0)","v":5},{"$f":"IF($F17>0,Z17/$F17,0)","v":5.0849999999999991},{"$f":"L17+N17+P17+R17+T17+V17","v":6000},{"$f":"Y17*(1+$Z$2)","v":6101.9999999999991},null,"Umwelt open pit",null,null,"x",1200,"m3",0.12,1,{"$f":"AF17*AH17*AI17","v":144},null,{"$f":"AJ17*AK17","v":0},0,{"$f":"AF17*AM17","v":0},0,{"$f":"AF17*AO17","v":0},0,{"$f":"AF17*AQ17","v":0},5,{"$f":"AS17*AF17","v":6000},null,{"$f":"$F17*AU17","v":0},{"$f":"IF(AF17>0,AX17/AF17,0)","v":5},{"$f":"AL17+AN17+AP17+AR17+AT17+AV17","v":6000}]
[null,"Llama open pit","Natural drainage connection",null,"x",0,"m3",0.12,1,0,null,0,0,0,0,0,0,0,5,0,null,0,0,0,{"$f":"L18+N18+P18+R18+T18+V18","v":0},0,null,"Llama open pit","Natural drainage connection",null,"x",0,"m3",0.12,1,0,null,0,0,0,0,0,0,0,5,0,null,0,0,{"$f":"AL18+AN18+AP18+AR18+AT18+AV18","v":0}]
[null,"Echo open pit","Natural drainage connection",null,"x",0,"m3",0.12,1,0,null,0,0,0,0,0,0,0,5,0,null,0,0,0,0,0,null,"Echo open pit","Natural drainage connection",null,"x",0,"m3",0.12,1,0,null,0,0,0,0,0,0,0,5,0,null,0,0,0]
[null,"Goose open pit",null,null,"x",600,"m3",0.12,1,72,null,0,0,0,0,0,0,0,5,3000,null,0,5,5.0849999999999991,3000,3050.9999999999995,null,"Goose open pit",null,null,"x",600,"m3",0.12,1,72,null,0,0,0,0,0,0,0,5,3000,null,0,5,3000]
[null,"Landfill Mobile Equipment",null,null,null,null,null,null,null,null,null,null,null,null,null,null,null,null,null,null,null,null,null,null,null,null,null,"Landfill Mobile Equipment"]
[null,"Goose Site Mobile Equipment",null,null,"x",41,"units",24,1,984,95,93480,0,0,0,0,0,0,0,0,null,0,2280,{"$f":"IF($F22>0,Z22/$F22,0)","v":2318.7599999999998},93480,{"$f":"Y22*(1+$Z$2)","v":95069.159999999989},null,"Goose Site Mobile Equipment",null,null,"x",41,"units",24,1,{"$f":"AF22*AH22*AI22","v":984},95,{"$f":"AJ22*AK22","v":93480},0,{"$f":"AF22*AM22","v":0},0,{"$f":"AF22*AO22","v":0},0,{"$f":"AF22*AQ22","v":0},0,{"$f":"AS22*AF22","v":0},null,{"$f":"$F22*AU22","v":0},{"$f":"IF(AF22>0,AX22/AF22,0)","v":2280},{"$f":"AL22+AN22+AP22+AR22+AT22+AV22","v":93480}]
[null,"Underground Closure",null,null,null,null,null,null,null,null,null,null,null,null,null,null,null,null,null,null,null,null,null,null,null,null,null,"Underground Closure"]
[null,"Saline Water Pond (SWP) / WTP",null,null,null,null,null,null,null,null,null,null,null,null,null,null,null,null,null,null,null,null,null,null,null,null,null,"Saline Water Pond (SWP) / WTP"]
[null,"Relocate pipeline to Umwelt UG from Llama UG","Not in current mine plan; cost remains to keep Stage in tact.",null,"x",800,"m",0.04,1,32,95,{"$f":"J25*K25","v":3040},0,{"$f":"F25*M25","v":0},0,{"$f":"F25*O25","v":0},0,{"$f":"F25*Q25","v":0},155,{"$f":"S25*J25","v":4960},null,{"$f":"$F25*U25","v":0},{"$f":"IF(F25>0,Y25/F25,0)","v":10},{"$f":"IF($F25>0,Z25/$F25,0)","v":10.169999999999998},{"$f":"L25+N25+P25+R25+T25+V25","v":8000},{"$f":"Y25*(1+$Z$2)","v":8135.9999999999991},null,"Relocate pipeline to Umwelt UG from Llama UG",null,null,"x",800,"m",0.04,1,32,95,{"$f":"AJ25*AK25","v":3040},0,{"$f":"AF25*AM25","v":0},0,{"$f":"AF25*AO25","v":0},0,{"$f":"AF25*AQ25","v":0},155,{"$f":"AS25*AJ25","v":4960},null,{"$f":"$F25*AU25","v":0},{"$f":"IF(AF25>0,AX25/AF25,0)","v":10},{"$f":"AL25+AN25+AP25+AR25+AT25+AV25","v":8000}]
[null,"Dewater SWP to Umwelt UG","Accounts for Umwelt Underground (650 m), and Umwelt Underground Extension (650m to 900m)",null,"x",1071225,"m3",1,1,153,95,{"$f":"J26*K26","v":14535},0,{"$f":"F26*M26","v":0},0,{"$f":"F26*O26","v":0},0,{"$f":"F26*Q26","v":0},null,{"$f":"S26*250","v":0},0.12,{"$f":"$F26*U26","v":128547},{"$f":"IF(F26>0,Y26/F26,0)","v":0.13356857802982566},0.1358392438563327,{"$f":"L26+N26+P26+R26+T26+V26","v":143082},145514.394,null,"Dewater SWP to Umwelt UG",null,null,"x",763134,"m3",1,1,153,95,{"$f":"AJ26*AK26","v":14535},0,{"$f":"AF26*AM26","v":0},0,{"$f":"AF26*AO26","v":0},0,{"$f":"AF26*AQ26","v":0},null,{"$f":"AS26*250","v":0},0.11,{"$f":"$F26*AU26","v":117834.75},{"$f":"IF(AF26>0,AX26/AF26,0)","v":0.1734554481912744},{"$f":"AL26+AN26+AP26+AR26+AT26+AV26","v":132369.75}]
[null,"Decommission SWP to Umwelt UG pipeline","Accounts for Umwelt Underground (650 m), and Umwelt Underground Extension (650m to 900m)",null,"x",{"$f":"1200+462","v":1662},"m",0.04,1,{"$f":"H27*I27*F27","v":66.48},95,6315.6,0,0,0,0,0,0,155,{"$f":"S27*J27","v":10304.400000000001},null,0,{"$f":"IF(F27>0,Y27/F27,0)","v":10},10.169999999999998,16620,16902.539999999997,null,"Decommission SWP to Umwelt UG pipeline",null,null,"x",1200,"m",0.04,1,{"$f":"AH27*AI27*AF27","v":48},95,4560,0,0,0,0,0,0,155,{"$f":"AS27*AJ27","v":7440},null,0,{"$f":"IF(AF27>0,AX27/AF27,0)","v":10},12000]
[null,"Adjust pipeline to route to Llama UG","Not in current mine plan; cost remains to keep Stage in tact.",null,"x",500,"m",{"$f":"0.03","v":0.03},1,{"$f":"F28*H28*I28+50","v":65},95,6175,0,0,0,0,0,0,null,0,null,0,{"$f":"IF(F28>0,Y28/F28,0)","v":12.35},12.559949999999999,6175,6279.9749999999995,null,"Adjust pipeline to route to Llama UG","Completed during Operations",null,"x",500,"m",{"$f":"0.03","v":0.03},1,{"$f":"AF28*AH28*AI28+50","v":65},95,6175,0,0,0,0,0,0,null,{"$f":"AS28*250","v":0},null,0,{"$f":"IF(AF28>0,AX28/AF28,0)","v":12.35},6175]
[null,"Dewater SWP to Llama UG","Not in current mine plan; cost remains to keep Stage in tact.",null,"x",324234,"m3",null,1,80,95,7600,0,0,0,0,0,0,null,0,0.11,35665.74,0.13343986133471505,0.13570833897740517,43265.74,44001.25757999999,null,"Dewater SWP to Llama UG",null,null,"x",324234,"m3",null,1,80,95,7600,0,0,0,0,0,0,null,0,0.11,35665.74,{"$f":"IF(AF29>0,AX29/AF29,0)","v":0.13343986133471505},43265.74]
[null,"Adjust pipeline to route to Goose UG","Not in current mine plan; cost remains to keep Stage in tact.",null,"x",4500,"m",0.04,1,{"$f":"F30*H30*I30+50","v":230},95,{"$f":"J30*K30","v":21850},0,{"$f":"F30*M30","v":0},0,{"$f":"F30*O30","v":0},0,{"$f":"F30*Q30","v":0},155,{"$f":"S30*J30","v":35650},null,{"$f":"$F30*U30","v":0},{"$f":"IF(F30>0,Y30/F30,0)","v":12.777777777777779},12.994999999999999,{"$f":"L30+N30+P30+R30+T30+V30","v":57500},58477.499999999993,null,"Adjust pipeline to route to Goose UG",null,null,"x",4500,"m",0.04,1,{"$f":"AF30*AH30*AI30+50","v":230},95,21850,0,0,0,0,0,0,155,{"$f":"AS30*AJ30","v":35650},null,0,{"$f":"IF(AF30>0,AX30/AF30,0)","v":12.777777777777779},57500]
[null,"Dewater SWP to Goose UG","Not in current mine plan; cost remains to keep Stage in tact.",null,"x",391630,"m3",null,1,215,95,20425,0,0,0,0,0,0,null,{"$f":"S31*F31","v":0},0.11,43079.3,{"$f":"IF(F31>0,Y31/F31,0)","v":0.16215381865536349},0.16491043357250465,63504.3,64583.873099999997,null,"Dewater SWP to Goose UG",null,null,"x",391630,"m3",null,1,215,95,20425,0,0,0,0,0,0,null,{"$f":"AS31*AF31","v":0},0.11,43079.3,{"$f":"IF(AF31>0,AX31/AF31,0)","v":0.16215381865536349},63504.3]
[null,"Decommission SWP to Goose UG pipelines","Not in current mine plan; cost remains to keep Stage in tact.",null,"x",10800,"m",0.04,1,{"$f":"H32*I32*F32","v":432},95,41040,0,0,0,0,0,0,155,{"$f":"S32*J32","v":66960},null,0,10,10.169999999999998,108000,109835.99999999999,null,"Decommission SWP to Goose UG pipelines",null,null,"x",10800,"m",0.04,1,{"$f":"AH32*AI32*AF32","v":432},95,41040,0,0,0,0,0,0,155,{"$f":"AS32*AJ32","v":66960},null,0,10,108000]
[null,"Breach SWP Diversion Berms and Containment Dams","Occurs during Operations",null,"x",0,"m3",0.12,1,{"$f":"H33*I33*F33","v":0},null,0,0,0,0,0,0,0,8,{"$f":"S33*F33","v":0},null,0,0,0,0,0,null,"Breach SWP Diversion Berms and Containment Dams",null,null,"x",{"$f":"24*5+24*5+19*5*2","v":430},"m3",0.12,1,{"$f":"AH33*AI33*AF33","v":51.6},null,0,0,0,0,0,0,0,8,{"$f":"AS33*AF33","v":3440},null,0,8,3440]
[null,"Decommission WTP-Goose Lake pipeline",null,null,"x",1140,"m",0.04,1,{"$f":"H34*I34*F34","v":45.6},95,4332,0,0,0,0,0,0,155,{"$f":"S34*J34","v":7068},null,0,10,10.17,11400,11593.8,null,"Decommission WTP-Goose Lake pipeline",null,null,"x",1140,"m",0.04,1,{"$f":"AH34*AI34*AF34","v":45.6},95,4332,0,0,0,0,0,0,155,{"$f":"AS34*AJ34","v":7068},null,0,10,11400]
[null,"Llama UG",null,null,null,null,null,null,null,null,null,null,null,null,null,null,null,null,null,null,null,null,null,null,null,null,null,"Llama UG"]
[null,"Decommission pipeline","Not in current mine plan; item remains to keep Stage in tact.",null,"x",2700,"m",0.04,1,{"$f":"F36*H36*I36","v":108},95,{"$f":"J36*K36","v":10260},0,{"$f":"F36*M36","v":0},0,{"$f":"F36*O36","v":0},0,{"$f":"F36*Q36","v":0},155,{"$f":"S36*J36","v":16740},null,{"$f":"$F36*U36","v":0},{"$f":"IF(F36>0,Y36/F36,0)","v":10},{"$f":"IF($F36>0,Z36/$F36,0)","v":10.169999999999998},{"$f":"L36+N36+P36+R36+T36+V36","v":27000},{"$f":"Y36*(1+$Z$2)","v":27458.999999999996},null,"Decommission pipeline","Completed during Operations",null,"x",2700,"m",0.04,1,{"$f":"AF36*AH36*AI36","v":108},95,{"$f":"AJ36*AK36","v":10260},0,{"$f":"AF36*AM36","v":0},0,{"$f":"AF36*AO36","v":0},0,{"$f":"AF36*AQ36","v":0},155,{"$f":"AS36*AJ36","v":16740},null,{"$f":"$F36*AU36","v":0},{"$f":"IF(AF36>0,AX36/AF36,0)","v":10},{"$f":"AL36+AN36+AP36+AR36+AT36+AV36","v":27000}]
[null,"Umwelt portal",null,null,null,null,null,null,null,null,null,null,null,null,null,null,null,null,null,null,null,null,null,null,null,null,null,"Umwelt portal"]
[null,"Plug declines with waste rock",null,null,"x",150,"m3",5.1999999999999998E-2,1,{"$f":"F38*H38*I38","v":7.8},null,{"$f":"J38*K38","v":0},0,{"$f":"F38*M38","v":0},0,{"$f":"F38*O38","v":0},0,{"$f":"F38*Q38","v":0},6,{"$f":"S38*F38","v":900},null,{"$f":"$F38*U38","v":0},{"$f":"IF(F38>0,Y38/F38,0)","v":6},{"$f":"IF($F38>0,Z38/$F38,0)","v":6.1019999999999994},{"$f":"L38+N38+P38+R38+T38+V38","v":900},{"$f":"Y38*(1+$Z$2)","v":915.3},null,"Plug declines with waste rock",null,null,"x",150,"m3",5.1999999999999998E-2,1,{"$f":"AF38*AH38*AI38","v":7.8},null,{"$f":"AJ38*AK38","v":0},0,{"$f":"AF38*AM38","v":0},0,{"$f":"AF38*AO38","v":0},0,{"$f":"AF38*AQ38","v":0},6,{"$f":"AS38*AF38","v":900},null,{"$f":"$F38*AU38","v":0},{"$f":"IF(AF38>0,AX38/AF38,0)","v":6},{"$f":"AL38+AN38+AP38+AR38+AT38+AV38","v":900}]
[null,"Llama portal",null,null,null,null,null,null,null,null,null,null,null,null,null,null,null,null,null,null,null,null,null,null,null,null,null,"Llama portal"]
[null,"Plug declines with waste rock","Not in current mine plan; item remains to keep Stage in tact.",null,"x",150,"m3",0.05,1,{"$f":"F40*H40*I40","v":7.5},null,{"$f":"J40*K40","v":0},0,{"$f":"F40*M40","v":0},0,{"$f":"F40*O40","v":0},0,{"$f":"F40*Q40","v":0},6,{"$f":"S40*F40","v":900},null,{"$f":"$F40*U40","v":0},{"$f":"IF(F40>0,Y40/F40,0)","v":6},{"$f":"IF($F40>0,Z40/$F40,0)","v":6.1019999999999994},{"$f":"L40+N40+P40+R40+T40+V40","v":900},{"$f":"Y40*(1+$Z$2)","v":915.3},null,"Plug declines with waste rock",null,null,"x",150,"m3",0.05,1,{"$f":"AF40*AH40*AI40","v":7.5},null,{"$f":"AJ40*AK40","v":0},0,{"$f":"AF40*AM40","v":0},0,{"$f":"AF40*AO40","v":0},0,{"$f":"AF40*AQ40","v":0},6,{"$f":"AS40*AF40","v":900},null,{"$f":"$F40*AU40","v":0},{"$f":"IF(AF40>0,AX40/AF40,0)","v":6},{"$f":"AL40+AN40+AP40+AR40+AT40+AV40","v":900}]
[null,"Goose portal",null,null,null,null,null,null,null,null,null,null,null,null,null,null,null,null,null,null,null,null,null,null,null,null,null,"Goose portal"]
[null,"Plug declines with waste rock","Not in current mine plan; item remains to keep Stage in tact.",null,"x",150,"m3",0.05,1,{"$f":"F42*H42*I42","v":7.5},null,{"$f":"J42*K42","v":0},0,{"$f":"F42*M42","v":0},0,{"$f":"F42*O42","v":0},0,{"$f":"F42*Q42","v":0},6,{"$f":"S42*F42","v":900},null,{"$f":"$F42*U42","v":0},{"$f":"IF(F42>0,Y42/F42,0)","v":6},{"$f":"IF($F42>0,Z42/$F42,0)","v":6.1019999999999994},{"$f":"L42+N42+P42+R42+T42+V42","v":900},{"$f":"Y42*(1+$Z$2)","v":915.3},null,"Plug declines with waste rock",null,null,"x",150,"m3",0.05,1,{"$f":"AF42*AH42*AI42","v":7.5},null,{"$f":"AJ42*AK42","v":0},0,{"$f":"AF42*AM42","v":0},0,{"$f":"AF42*AO42","v":0},0,{"$f":"AF42*AQ42","v":0},6,{"$f":"AS42*AF42","v":900},null,{"$f":"$F42*AU42","v":0},{"$f":"IF(AF42>0,AX42/AF42,0)","v":6},{"$f":"AL42+AN42+AP42+AR42+AT42+AV42","v":900}]
[null,"Echo portal",null,null,null,null,null,null,null,null,null,null,null,null,null,null,null,null,null,null,null,null,null,null,null,null,null,"Echo portal"]
[null,"Plug declines with waste rock","Not in current mine plan; item remains to keep Stage in tact.",null,"x",150,"m3",0.05,1,{"$f":"F44*H44*I44","v":7.5},null,{"$f":"J44*K44","v":0},0,{"$f":"F44*M44","v":0},0,{"$f":"F44*O44","v":0},0,{"$f":"F44*Q44","v":0},6,{"$f":"S44*F44","v":900},null,{"$f":"$F44*U44","v":0},{"$f":"IF(F44>0,Y44/F44,0)","v":6},{"$f":"IF($F44>0,Z44/$F44,0)","v":6.1019999999999994},{"$f":"L44+N44+P44+R44+T44+V44","v":900},{"$f":"Y44*(1+$Z$2)","v":915.3},null,"Plug declines with waste rock",null,null,"x",150,"m3",0.05,1,{"$f":"AF44*AH44*AI44","v":7.5},null,{"$f":"AJ44*AK44","v":0},0,{"$f":"AF44*AM44","v":0},0,{"$f":"AF44*AO44","v":0},0,{"$f":"AF44*AQ44","v":0},6,{"$f":"AS44*AF44","v":900},null,{"$f":"$F44*AU44","v":0},{"$f":"IF(AF44>0,AX44/AF44,0)","v":6},{"$f":"AL44+AN44+AP44+AR44+AT44+AV44","v":900}]
[null,"Umwelt vent/circular backfill raises",null,null,null,null,null,null,null,null,null,null,null,null,null,null,null,null,null,null,null,null,null,null,null,null,null,"Umwelt vent/circular backfill raises"]
[null,"Plug vent raises with concrete plug",null,null,"x",1,"LS",1,1,60,null,{"$f":"J46*K46","v":0},0,{"$f":"F46*M46","v":0},0,{"$f":"F46*O46","v":0},0,{"$f":"F46*Q46","v":0},0,{"$f":"S46*F46","v":0},null,{"$f":"$F46*U46","v":0},{"$f":"IF(F46>0,Y46/F46,0)","v":120000},{"$f":"IF($F46>0,Z46/$F46,0)","v":122039.99999999999},120000,{"$f":"Y46*(1+$Z$2)","v":122039.99999999999},null,"Plug vent raises with concrete plug",null,null,"x",1,"LS",1,1,60,null,{"$f":"AJ46*AK46","v":0},0,{"$f":"AF46*AM46","v":0},0,{"$f":"AF46*AO46","v":0},0,{"$f":"AF46*AQ46","v":0},0,{"$f":"AS46*AF46","v":0},null,{"$f":"$F46*AU46","v":0},{"$f":"IF(AF46>0,AX46/AF46,0)","v":120000},120000]
[null,"Llama vent/circular backfill raises",null,null,null,null,null,null,null,null,null,null,null,null,null,null,null,null,null,null,null,null,null,null,null,null,null,"Llama vent/circular backfill raises"]
[null,"Plug vent raises with concrete plug","Not in current mine plan; item remains to keep Stage in tact.",null,"x",1,"LS",1,1,60,null,{"$f":"J48*K48","v":0},0,{"$f":"F48*M48","v":0},0,{"$f":"F48*O48","v":0},0,{"$f":"F48*Q48","v":0},0,{"$f":"S48*F48","v":0},null,{"$f":"$F48*U48","v":0},{"$f":"IF(F48>0,Y48/F48,0)","v":50000},{"$f":"IF($F48>0,Z48/$F48,0)","v":50849.999999999993},50000,{"$f":"Y48*(1+$Z$2)","v":50849.999999999993},null,"Plug vent raises with concrete plug",null,null,"x",1,"LS",1,1,60,null,{"$f":"AJ48*AK48","v":0},0,{"$f":"AF48*AM48","v":0},0,{"$f":"AF48*AO48","v":0},0,{"$f":"AF48*AQ48","v":0},0,{"$f":"AS48*AF48","v":0},null,{"$f":"$F48*AU48","v":0},{"$f":"IF(AF48>0,AX48/AF48,0)","v":50000},50000]
[null,"Goose vent/circular backfill raises",null,null,null,null,null,null,null,null,null,null,null,null,null,null,null,null,null,null,null,null,null,null,null,null,null,"Goose vent/circular backfill raises"]
[null,"Plug vent raises with concrete plug","Not in current mine plan; item remains to keep Stage in tact.",null,"x",1,"LS",1,1,60,null,{"$f":"J50*K50","v":0},0,{"$f":"F50*M50","v":0},0,{"$f":"F50*O50","v":0},0,{"$f":"F50*Q50","v":0},0,{"$f":"S50*F50","v":0},null,{"$f":"$F50*U50","v":0},{"$f":"IF(F50>0,Y50/F50,0)","v":50000},{"$f":"IF($F50>0,Z50/$F50,0)","v":50849.999999999993},50000,{"$f":"Y50*(1+$Z$2)","v":50849.999999999993},null,"Plug vent raises with concrete plug",null,null,"x",1,"LS",1,1,60,null,{"$f":"AJ50*AK50","v":0},0,{"$f":"AF50*AM50","v":0},0,{"$f":"AF50*AO50","v":0},0,{"$f":"AF50*AQ50","v":0},0,{"$f":"AS50*AF50","v":0},null,{"$f":"$F50*AU50","v":0},{"$f":"IF(AF50>0,AX50/AF50,0)","v":50000},50000]
[null,"Echo vent/circular backfill raises",null,null,null,null,null,null,null,null,null,null,null,null,null,null,null,null,null,null,null,null,null,null,null,null,null,"Echo vent/circular backfill raises"]
[null,"Plug vent raises with concrete plug","Not in current mine plan; item remains to keep Stage in tact.",null,"x",1,"LS",1,1,60,null,{"$f":"J52*K52","v":0},0,{"$f":"F52*M52","v":0},0,{"$f":"F52*O52","v":0},0,{"$f":"F52*Q52","v":0},0,{"$f":"S52*F52","v":0},null,{"$f":"$F52*U52","v":0},50000,{"$f":"IF($F52>0,Z52/$F52,0)","v":50849.999999999993},50000,{"$f":"Y52*(1+$Z$2)","v":50849.999999999993},null,"Plug vent raises with concrete plug",null,null,"x",1,"LS",1,1,60,null,{"$f":"AJ52*AK52","v":0},0,{"$f":"AF52*AM52","v":0},0,{"$f":"AF52*AO52","v":0},0,{"$f":"AF52*AQ52","v":0},0,{"$f":"AS52*AF52","v":0},null,{"$f":"$F52*AU52","v":0},50000,50000]
[null,"Echo crown pillar",null,null,null,null,null,null,null,null,null,null,null,null,null,null,null,null,null,null,null,null,null,null,null,null,null,"Echo crown pillar"]
[null,"Plug UG stopes","Not in current mine plan; item remains to keep Stage in tact.",null,"x",3550,"m3",0.05,1,{"$f":"F54*H54*I54","v":177.5},null,{"$f":"J54*K54","v":0},0,{"$f":"F54*M54","v":0},0,{"$f":"F54*O54","v":0},0,{"$f":"F54*Q54","v":0},6,{"$f":"S54*F54","v":21300},null,{"$f":"$F54*U54","v":0},{"$f":"IF(F54>0,Y54/F54,0)","v":6},{"$f":"IF($F54>0,Z54/$F54,0)","v":6.1019999999999994},{"$f":"L54+N54+P54+R54+T54+V54","v":21300},{"$f":"Y54*(1+$Z$2)","v":21662.1},null,"Plug UG stopes",null,null,"x",3550,"m3",0.05,1,{"$f":"AF54*AH54*AI54","v":177.5},null,{"$f":"AJ54*AK54","v":0},0,{"$f":"AF54*AM54","v":0},0,{"$f":"AF54*AO54","v":0},0,{"$f":"AF54*AQ54","v":0},6,{"$f":"AS54*AF54","v":21300},null,{"$f":"$F54*AU54","v":0},{"$f":"IF(AF54>0,AX54/AF54,0)","v":6},{"$f":"AL54+AN54+AP54+AR54+AT54+AV54","v":21300}]
[null,"Waste Rock Stockpiles and Landfills",null,null,null,null,null,null,null,null,null,null,null,null,null,null,null,null,null,null,null,null,null,null,null,null,null,"Waste Rock Stockpiles and Landfills"]
[null,"WR Pile Closure",null,null,null,null,null,null,null,null,null,null,null,null,null,null,null,null,null,null,null,null,null,null,null,null,null,"WR Pile Closure"]
[null,"Cap and Slope WR Piles","Updated Waste Rock Volume cover allotment.",null,"x",1200000,"m3",0.06,1,{"$f":"F57*H57*I57","v":72000},null,{"$f":"J57*K57","v":0},0,{"$f":"F57*M57","v":0},0,{"$f":"F57*O57","v":0},0,{"$f":"F57*Q57","v":0},6,{"$f":"S57*F57","v":7200000},null,{"$f":"$F57*U57","v":0},{"$f":"IF(F57>0,Y57/F57,0)","v":6},{"$f":"IF($F57>0,Z57/$F57,0)","v":6.1019999999999994},{"$f":"(L57+N57+P57+R57+T57+V57)","v":7200000},{"$f":"Y57*(1+$Z$2)","v":7322399.9999999991},null,"Cap and Slope WR Piles",null,null,"x",3400000,"m3",0.06,1,{"$f":"AF57*AH57*AI57","v":204000},null,{"$f":"AJ57*AK57","v":0},0,{"$f":"AF57*AM57","v":0},0,{"$f":"AF57*AO57","v":0},0,{"$f":"AF57*AQ57","v":0},6,{"$f":"AS57*AF57","v":20400000},null,{"$f":"$F57*AU57","v":0},{"$f":"IF(AF57>0,AX57/AF57,0)","v":6},{"$f":"(AL57+AN57+AP57+AR57+AT57+AV57)","v":20400000}]
[null,"Landfill Closure",null,null,null,null,null,null,null,null,null,null,null,null,null,null,null,null,null,null,null,null,null,null,null,null,null,"Landfill Closure"]
[null,"Cap and Reslope Landfills",null,null,"x",25000,"m3",0.06,1,{"$f":"F59*H59*I59","v":1500},null,{"$f":"J59*K59","v":0},0,{"$f":"F59*M59","v":0},0,{"$f":"F59*O59","v":0},0,{"$f":"F59*Q59","v":0},6,{"$f":"S59*F59","v":150000},null,{"$f":"$F59*U59","v":0},{"$f":"IF(F59>0,Y59/F59,0)","v":6},{"$f":"IF($F59>0,Z59/$F59,0)","v":6.1020000000000003},{"$f":"(L59+N59+P59+R59+T59+V59)","v":150000},{"$f":"Y59*(1+$Z$2)","v":152550},null,"Cap and Reslope Landfills",null,null,"x",25000,"m3",0.06,1,{"$f":"AF59*AH59*AI59","v":1500},null,{"$f":"AJ59*AK59","v":0},0,{"$f":"AF59*AM59","v":0},0,{"$f":"AF59*AO59","v":0},0,{"$f":"AF59*AQ59","v":0},6,{"$f":"AS59*AF59","v":150000},null,{"$f":"$F59*AU59","v":0},{"$f":"IF(AF59>0,AX59/AF59,0)","v":6},{"$f":"(AL59+AN59+AP59+AR59+AT59+AV59)","v":150000}]
[null,"Water Management Structures",null,null,null,null,null,null,null,null,null,null,null,null,null,null,null,null,null,null,null,null,null,null,null,null,null,"Water Management Structures"]
[null,"Llama Structures",null,null,null,null,null,null,null,null,null,null,null,null,null,null,null,null,null,null,null,null,null,null,null,null,null,"Llama Structures"]
[null,"Breach Llama Lake Diversion Berms","Occurs during Operations",null,"x",0,"m3",6.4000000000000001E-2,1,{"$f":"F62*H62*I62","v":0},null,{"$f":"J62*K62","v":0},0,{"$f":"F62*M62","v":0},0,{"$f":"F62*O62","v":0},0,{"$f":"F62*Q62","v":0},{"$f":"7.3","v":7.3},{"$f":"S62*F62","v":0},null,{"$f":"$F62*U62","v":0},{"$f":"IF(F62>0,Y62/F62,0)","v":0},{"$f":"IF($F62>0,Z62/$F62,0)","v":0},{"$f":"L62+N62+P62+R62+T62+V62","v":0},{"$f":"Y62*(1+$Z$2)","v":0},null,"Breach Llama Lake Diversion Berms",null,null,"x",{"$f":"19*5*7","v":665},"m3",6.4000000000000001E-2,1,{"$f":"AF62*AH62*AI62","v":42.56},null,{"$f":"AJ62*AK62","v":0},0,{"$f":"AF62*AM62","v":0},0,{"$f":"AF62*AO62","v":0},0,{"$f":"AF62*AQ62","v":0},{"$f":"7.3","v":7.3},{"$f":"AS62*AF62","v":4854.5},null,{"$f":"$F62*AU62","v":0},{"$f":"IF(AF62>0,AX62/AF62,0)","v":7.3},{"$f":"AL62+AN62+AP62+AR62+AT62+AV62","v":4854.5}]
[null,"Breach Llama WRSA Diversion Berm","Occurs during Operations",null,"x",0,"m3",6.4000000000000001E-2,1,{"$f":"F63*H63*I63","v":0},null,{"$f":"J63*K63","v":0},0,{"$f":"F63*M63","v":0},0,{"$f":"F63*O63","v":0},0,{"$f":"F63*Q63","v":0},7.3,{"$f":"S63*F63","v":0},null,{"$f":"$F63*U63","v":0},0,0,{"$f":"L63+N63+P63+R63+T63+V63","v":0},{"$f":"Y63*(1+$Z$2)","v":0},null,"Breach Llama WRSA Diversion Berm",null,null,"x",{"$f":"19*5*1","v":95},"m3",6.4000000000000001E-2,1,{"$f":"AF63*AH63*AI63","v":6.08},null,{"$f":"AJ63*AK63","v":0},0,{"$f":"AF63*AM63","v":0},0,{"$f":"AF63*AO63","v":0},0,{"$f":"AF63*AQ63","v":0},7.3,{"$f":"AS63*AF63","v":693.5},null,{"$f":"$F63*AU63","v":0},7.3,{"$f":"AL63+AN63+AP63+AR63+AT63+AV63","v":693.5}]
[null,"Breach Llama WRSA Containment Dam","Occurs during Operations",null,null,0,"m3",6.4000000000000001E-2,1,{"$f":"F64*H64*I64","v":0},null,{"$f":"J64*K64","v":0},0,{"$f":"F64*M64","v":0},0,{"$f":"F64*O64","v":0},0,{"$f":"F64*Q64","v":0},7.3,{"$f":"S64*F64","v":0},null,{"$f":"$F64*U64","v":0},0,0,{"$f":"L64+N64+P64+R64+T64+V64","v":0},{"$f":"Y64*(1+$Z$2)","v":0},null,"Breach Llama WRSA Containment Dam",null,null,null,{"$f":"19*5*1","v":95},"m3",6.4000000000000001E-2,1,{"$f":"AF64*AH64*AI64","v":6.08},null,{"$f":"AJ64*AK64","v":0},0,{"$f":"AF64*AM64","v":0},0,{"$f":"AF64*AO64","v":0},0,{"$f":"AF64*AQ64","v":0},7.3,{"$f":"AS64*AF64","v":693.5},null,{"$f":"$F64*AU64","v":0},7.3,{"$f":"AL64+AN64+AP64+AR64+AT64+AV64","v":693.5}]
[null,"Decommission Llama pump and pipeline",null,null,"x",700,"m",0.04,1,{"$f":"F65*H65*I65+24","v":52},95,{"$f":"J65*K65","v":4940},0,{"$f":"F65*M65","v":0},0,{"$f":"F65*O65","v":0},0,{"$f":"F65*Q65","v":0},155,{"$f":"S65*J65","v":8060},null,{"$f":"$F65*U65","v":0},18.571428571428573,18.887142857142855,{"$f":"L65+N65+P65+R65+T65+V65","v":13000},{"$f":"Y65*(1+$Z$2)","v":13220.999999999998},null,"Decommission Llama pump and pipeline",null,null,"x",700,"m",0.04,1,{"$f":"AF65*AH65*AI65+24","v":52},95,{"$f":"AJ65*AK65","v":4940},0,{"$f":"AF65*AM65","v":0},0,{"$f":"AF65*AO65","v":0},0,{"$f":"AF65*AQ65","v":0},155,{"$f":"AS65*AJ65","v":8060},null,{"$f":"$F65*AU65","v":0},18.571428571428573,{"$f":"AL65+AN65+AP65+AR65+AT65+AV65","v":13000}]
[null,"Umwelt Structures",null,null,null,null,null,null,null,null,null,null,null,null,null,null,null,null,null,null,null,null,null,null,null,null,null,"Umwelt Structures"]
[null,"Breach Primary Pond Containment Dam","Occurs during Operations",null,"x",0,"m3",6.4000000000000001E-2,1,{"$f":"F67*H67*I67","v":0},null,{"$f":"J67*K67","v":0},0,{"$f":"F67*M67","v":0},0,{"$f":"F67*O67","v":0},0,{"$f":"F67*Q67","v":0},7.3,{"$f":"S67*F67","v":0},null,{"$f":"$F67*U67","v":0},{"$f":"IF(F67>0,Y67/F67,0)","v":0},{"$f":"IF($F67>0,Z67/$F67,0)","v":0},{"$f":"L67+N67+P67+R67+T67+V67","v":0},{"$f":"Y67*(1+$Z$2)","v":0},null,"Breach Primary Pond Containment Dam",null,null,"x",{"$f":"40*5*1","v":200},"m3",6.4000000000000001E-2,1,{"$f":"AF67*AH67*AI67","v":12.8},null,{"$f":"AJ67*AK67","v":0},0,{"$f":"AF67*AM67","v":0},0,{"$f":"AF67*AO67","v":0},0,{"$f":"AF67*AQ67","v":0},7.3,{"$f":"AS67*AF67","v":1460},null,{"$f":"$F67*AU67","v":0},{"$f":"IF(AF67>0,AX67/AF67,0)","v":7.3},{"$f":"AL67+AN67+AP67+AR67+AT67+AV67","v":1460}]
[null,"Breach Umwelt WRSA Containment Dam","Berm has been removed from water management design",null,"x",0,"m3",6.4000000000000001E-2,1,{"$f":"F68*H68*I68","v":0},null,{"$f":"J68*K68","v":0},0,{"$f":"F68*M68","v":0},0,{"$f":"F68*O68","v":0},0,{"$f":"F68*Q68","v":0},7.3,{"$f":"S68*F68","v":0},null,{"$f":"$F68*U68","v":0},0,0,{"$f":"L68+N68+P68+R68+T68+V68","v":0},{"$f":"Y68*(1+$Z$2)","v":0},null,"Breach Umwelt WRSA Containment Dam",null,null,"x",{"$f":"24*5*1","v":120},"m3",6.4000000000000001E-2,1,{"$f":"AF68*AH68*AI68","v":7.68},null,{"$f":"AJ68*AK68","v":0},0,{"$f":"AF68*AM68","v":0},0,{"$f":"AF68*AO68","v":0},0,{"$f":"AF68*AQ68","v":0},7.3,{"$f":"AS68*AF68","v":876},null,{"$f":"$F68*AU68","v":0},7.3,{"$f":"AL68+AN68+AP68+AR68+AT68+AV68","v":876}]
[null,"Breach Umwelt WRSA Diversion Berm","Berm has been removed from water management design",null,"x",0,"m3",6.4000000000000001E-2,1,{"$f":"F69*H69*I69","v":0},null,{"$f":"J69*K69","v":0},0,{"$f":"F69*M69","v":0},0,{"$f":"F69*O69","v":0},0,{"$f":"F69*Q69","v":0},7.3,{"$f":"S69*F69","v":0},null,{"$f":"$F69*U69","v":0},0,0,{"$f":"L69+N69+P69+R69+T69+V69","v":0},{"$f":"Y69*(1+$Z$2)","v":0},null,"Breach Umwelt WRSA Diversion Berm",null,null,"x",{"$f":"19*5*1","v":95},"m3",6.4000000000000001E-2,1,{"$f":"AF69*AH69*AI69","v":6.08},null,{"$f":"AJ69*AK69","v":0},0,{"$f":"AF69*AM69","v":0},0,{"$f":"AF69*AO69","v":0},0,{"$f":"AF69*AQ69","v":0},7.3,{"$f":"AS69*AF69","v":693.5},null,{"$f":"$F69*AU69","v":0},7.3,{"$f":"AL69+AN69+AP69+AR69+AT69+AV69","v":693.5}]
[null,"Remove Saline Water Pond pump and pipeline","Occurs during Operations",null,"x",0,"m",0.04,1,{"$f":"I70*H70*F70+30","v":30},95,{"$f":"J70*K70","v":2850},0,{"$f":"F70*M70","v":0},0,{"$f":"F70*O70","v":0},0,{"$f":"F70*Q70","v":0},155,{"$f":"S70*J70","v":4650},null,{"$f":"$F70*U70","v":0},0,0,{"$f":"L70+N70+P70+R70+T70+V70","v":7500},{"$f":"Y70*(1+$Z$2)","v":7627.4999999999991},null,"Remove Saline Water Pond pump and pipeline",null,null,"x",950,"m",0.04,1,{"$f":"AI70*AH70*AF70+30","v":68},95,{"$f":"AJ70*AK70","v":6460},0,{"$f":"AF70*AM70","v":0},0,{"$f":"AF70*AO70","v":0},0,{"$f":"AF70*AQ70","v":0},155,{"$f":"AS70*AJ70","v":10540},null,{"$f":"$F70*AU70","v":0},17.894736842105264,{"$f":"AL70+AN70+AP70+AR70+AT70+AV70","v":17000}]
[null,"Remove Primary pond pump and pipeline","Occurs during Operations",null,"x",0,"m",0.04,1,{"$f":"I71*H71*F71+30","v":30},95,{"$f":"J71*K71","v":2850},0,{"$f":"F71*M71","v":0},0,{"$f":"F71*O71","v":0},0,{"$f":"F71*Q71","v":0},155,4650,null,{"$f":"$F71*U71","v":0},0,0,{"$f":"L71+N71+P71+R71+T71+V71","v":7500},{"$f":"Y71*(1+$Z$2)","v":7627.4999999999991},null,"Remove Primary pond pump and pipeline",null,null,"x",7250,"m",0.04,1,{"$f":"AI71*AH71*AF71+30","v":320},95,{"$f":"AJ71*AK71","v":30400},0,{"$f":"AF71*AM71","v":0},0,{"$f":"AF71*AO71","v":0},0,{"$f":"AF71*AQ71","v":0},155,49600,null,{"$f":"$F71*AU71","v":0},11.03448275862069,{"$f":"AL71+AN71+AP71+AR71+AT71+AV71","v":80000}]
[null,"Echo Structures",null,null,null,null,null,null,null,null,null,null,null,null,null,null,null,null,null,null,null,null,null,null,null,null,null,"Echo Structures"]
[null,"Breach Echo WRSA Containment Dam","Not in current mine plan; item remains to keep Stage in tact.",null,"x",{"$f":"19*5*2","v":190},"m3",6.3E-2,1,{"$f":"F73*H73*I73","v":11.97},null,{"$f":"J73*K73","v":0},0,{"$f":"F73*M73","v":0},0,{"$f":"F73*O73","v":0},0,{"$f":"F73*Q73","v":0},7.3,{"$f":"S73*F73","v":1387},null,{"$f":"$F73*U73","v":0},{"$f":"IF(F73>0,Y73/F73,0)","v":7.3},{"$f":"IF($F73>0,Z73/$F73,0)","v":7.4241000000000001},{"$f":"L73+N73+P73+R73+T73+V73","v":1387},{"$f":"Y73*(1+$Z$2)","v":1410.579},null,"Breach Echo WRSA Containment Dam",null,null,"x",{"$f":"19*5*2","v":190},"m3",6.3E-2,1,{"$f":"AF73*AH73*AI73","v":11.97},null,{"$f":"AJ73*AK73","v":0},0,{"$f":"AF73*AM73","v":0},0,{"$f":"AF73*AO73","v":0},0,{"$f":"AF73*AQ73","v":0},7.3,{"$f":"AS73*AF73","v":1387},null,{"$f":"$F73*AU73","v":0},{"$f":"IF(AF73>0,AX73/AF73,0)","v":7.3},{"$f":"AL73+AN73+AP73+AR73+AT73+AV73","v":1387}]
[null,"Breach Echo Diversion Berm (East and West)","Not in current mine plan; item remains to keep Stage in tact.",null,"x",{"$f":"19*5*2","v":190},"m3",6.3E-2,1,{"$f":"F74*H74*I74","v":11.97},null,0,0,0,0,0,0,0,7.3,1387,null,0,7.3,7.4241000000000001,1387,1410.579,null,"Breach Echo Diversion Berm (East and West)",null,null,"x",{"$f":"19*5*2","v":190},"m3",6.3E-2,1,{"$f":"AF74*AH74*AI74","v":11.97},null,0,0,0,0,0,0,0,7.3,1387,null,0,7.3,1387]
[null,"Breach Echo WRSA Diversion Berm","Not in current mine plan; item remains to keep Stage in tact.",null,"x",{"$f":"19*5*1","v":95},"m3",6.4000000000000001E-2,1,{"$f":"F75*H75*I75","v":6.08},null,0,0,0,0,0,0,0,7.3,693.5,null,0,7.3,7.4241000000000001,693.5,705.28949999999998,null,"Breach Echo WRSA Diversion Berm",null,null,"x",{"$f":"19*5*1","v":95},"m3",6.4000000000000001E-2,1,{"$f":"AF75*AH75*AI75","v":6.08},null,0,0,0,0,0,0,0,7.3,693.5,null,0,7.3,693.5]
[null,"Breach East Echo Containment Dam","Not in current mine plan; item remains to keep Stage in tact.",null,"x",{"$f":"19*5*1","v":95},"m3",6.4000000000000001E-2,1,{"$f":"F76*H76*I76","v":6.08},null,0,0,0,0,0,0,0,7.3,693.5,null,0,7.3,7.4241000000000001,693.5,705.28949999999998,null,"Breach East Echo Containment Dam",null,null,"x",{"$f":"19*5*1","v":95},"m3",6.4000000000000001E-2,1,{"$f":"AF76*AH76*AI76","v":6.08},null,0,0,0,0,0,0,0,7.3,693.5,null,0,7.3,693.5]
[null,"Remove Echo WRSA Pond pump and pipeline","Not in current mine plan; item remains to keep Stage in tact.",null,"x",2400,"m",0.04,1,{"$f":"F77*H77*I77","v":96},95,9120,0,0,0,0,0,0,155,{"$f":"S77*J77","v":14880},null,0,10,10.169999999999998,24000,24407.999999999996,null,"Remove Echo WRSA Pond pump and pipeline",null,null,"x",2400,"m",0.04,1,{"$f":"AF77*AH77*AI77","v":96},95,9120,0,0,0,0,0,0,155,{"$f":"AS77*AJ77","v":14880},null,0,10,24000]
[null,"Remove Echo NCW pond pump and pipeline","Not in current mine plan; item remains to keep Stage in tact.",null,"x",220,"m",0.04,1,{"$f":"F78*H78*I78+12","v":20.8},95,1976,0,0,0,0,0,0,155,{"$f":"S78*J78","v":3224},null,0,23.636363636363637,24.038181818181815,5200,5288.4,null,"Remove Echo NCW pond pump and pipeline",null,null,"x",220,"m",0.04,1,{"$f":"AF78*AH78*AI78+12","v":20.8},95,1976,0,0,0,0,0,0,155,{"$f":"AS78*AJ78","v":3224},null,0,23.636363636363637,5200]
[null,"Goose Structures",null,null,null,null,null,null,null,null,null,null,null,null,null,null,null,null,null,null,null,null,null,null,null,null,null,"Goose Structures"]
[null,"Breach Goose Main Diversion Berm",null,null,"x",{"$f":"19*5*1","v":95},"m3",1,1,{"$f":"F80*H80*I80","v":95},null,{"$f":"J80*K80","v":0},0,{"$f":"F80*M80","v":0},0,{"$f":"F80*O80","v":0},0,{"$f":"F80*Q80","v":0},7.3,{"$f":"S80*F80","v":693.5},null,{"$f":"$F80*U80","v":0},{"$f":"IF(F80>0,Y80/F80,0)","v":7.3},{"$f":"IF($F80>0,Z80/$F80,0)","v":7.4241000000000001},{"$f":"L80+N80+P80+R80+T80+V80","v":693.5},{"$f":"Y80*(1+$Z$2)","v":705.28949999999998},null,"Breach Goose Main Diversion Berm",null,null,"x",{"$f":"19*5*1","v":95},"m3",1,1,{"$f":"AF80*AH80*AI80","v":95},null,{"$f":"AJ80*AK80","v":0},0,{"$f":"AF80*AM80","v":0},0,{"$f":"AF80*AO80","v":0},0,{"$f":"AF80*AQ80","v":0},7.3,{"$f":"AS80*AF80","v":693.5},null,{"$f":"$F80*AU80","v":0},{"$f":"IF(AF80>0,AX80/AF80,0)","v":7.3},{"$f":"AL80+AN80+AP80+AR80+AT80+AV80","v":693.5}]
[null,"TSF Structures",null,null,null,null,null,null,null,null,null,null,null,null,null,null,null,null,null,null,null,null,null,null,null,null,null,"TSF Structures"]
[null,"Breach TSF Dam",null,null,"x",{"$f":"550*20","v":11000},"m3",0.05,1,{"$f":"F82*H82*I82","v":550},null,{"$f":"J82*K82","v":0},0,{"$f":"F82*M82","v":0},0,{"$f":"F82*O82","v":0},0,{"$f":"F82*Q82","v":0},7.3,{"$f":"S82*F82","v":80300},null,{"$f":"$F82*U82","v":0},{"$f":"IF(F82>0,Y82/F82,0)","v":7.3},{"$f":"IF($F82>0,Z82/$F82,0)","v":7.4240999999999993},{"$f":"L82+N82+P82+R82+T82+V82","v":80300},{"$f":"Y82*(1+$Z$2)","v":81665.099999999991},null,"Breach TSF Dam",null,null,"x",{"$f":"550*20","v":11000},"m3",0.05,1,{"$f":"AF82*AH82*AI82","v":550},null,{"$f":"AJ82*AK82","v":0},0,{"$f":"AF82*AM82","v":0},0,{"$f":"AF82*AO82","v":0},0,{"$f":"AF82*AQ82","v":0},7.3,{"$f":"AS82*AF82","v":80300},null,{"$f":"$F82*AU82","v":0},{"$f":"IF(AF82>0,AX82/AF82,0)","v":7.3},{"$f":"AL82+AN82+AP82+AR82+AT82+AV82","v":80300}]
[null,"Breach TSF WRSA Diversion Berm",null,null,"x",{"$f":"19*5*3","v":285},"m3",0.05,1,{"$f":"F83*H83*I83","v":14.25},null,{"$f":"J83*K83","v":0},0,{"$f":"F83*M83","v":0},0,{"$f":"F83*O83","v":0},0,{"$f":"F83*Q83","v":0},7.3,{"$f":"S83*F83","v":2080.5},null,{"$f":"$F83*U83","v":0},{"$f":"IF(F83>0,Y83/F83,0)","v":7.3},{"$f":"IF($F83>0,Z83/$F83,0)","v":7.4240999999999984},{"$f":"L83+N83+P83+R83+T83+V83","v":2080.5},{"$f":"Y83*(1+$Z$2)","v":2115.8684999999996},null,"Breach TSF WRSA Diversion Berm",null,null,"x",{"$f":"19*5*3","v":285},"m3",0.05,1,{"$f":"AF83*AH83*AI83","v":14.25},null,{"$f":"AJ83*AK83","v":0},0,{"$f":"AF83*AM83","v":0},0,{"$f":"AF83*AO83","v":0},0,{"$f":"AF83*AQ83","v":0},7.3,{"$f":"AS83*AF83","v":2080.5},null,{"$f":"$F83*AU83","v":0},{"$f":"IF(AF83>0,AX83/AF83,0)","v":7.3},{"$f":"AL83+AN83+AP83+AR83+AT83+AV83","v":2080.5}]
[null,"Ore Stockpile Structures",null,null,null,null,null,null,null,null,null,null,null,null,null,null,null,null,null,null,null,null,null,null,null,null,null,"Ore Stockpile Structures"]
[null,"Remove pump and pipeline",null,null,"x",4550,"m",0.04,1,{"$f":"F85*H85*I85","v":182},95,{"$f":"J85*K85","v":17290},0,{"$f":"F85*M85","v":0},0,{"$f":"F85*O85","v":0},0,{"$f":"F85*Q85","v":0},155,{"$f":"S85*J85","v":28210},null,{"$f":"$F85*U85","v":0},{"$f":"IF(F85>0,Y85/F85,0)","v":10},{"$f":"IF($F85>0,Z85/$F85,0)","v":10.169999999999998},{"$f":"L85+N85+P85+R85+T85+V85","v":45500},{"$f":"Y85*(1+$Z$2)","v":46273.499999999993},null,"Remove pump and pipeline",null,null,"x",4550,"m",0.04,1,{"$f":"AF85*AH85*AI85","v":182},95,{"$f":"AJ85*AK85","v":17290},0,{"$f":"AF85*AM85","v":0},0,{"$f":"AF85*AO85","v":0},0,{"$f":"AF85*AQ85","v":0},155,{"$f":"AS85*AJ85","v":28210},null,{"$f":"$F85*AU85","v":0},{"$f":"IF(AF85>0,AX85/AF85,0)","v":10},{"$f":"AL85+AN85+AP85+AR85+AT85+AV85","v":45500}]
[null,"Breach Plant Site Pond Containment Dam",null,null,"x",{"$f":"19*5+24*5","v":215},"m3",0.06,1,{"$f":"F86*H86*I86","v":12.9},null,{"$f":"J86*K86","v":0},0,{"$f":"F86*M86","v":0},0,{"$f":"F86*O86","v":0},0,{"$f":"F86*Q86","v":0},7.3,{"$f":"S86*F86","v":1569.5},null,{"$f":"$F86*U86","v":0},{"$f":"IF(F86>0,Y86/F86,0)","v":7.3},7.4240999999999993,{"$f":"L86+N86+P86+R86+T86+V86","v":1569.5},{"$f":"Y86*(1+$Z$2)","v":1596.1814999999999},null,"Breach Ore Stockpile Diversion Berm and Containment Dam",null,null,"x",{"$f":"19*5+24*5","v":215},"m3",0.06,1,{"$f":"AF86*AH86*AI86","v":12.9},null,{"$f":"AJ86*AK86","v":0},0,{"$f":"AF86*AM86","v":0},0,{"$f":"AF86*AO86","v":0},0,{"$f":"AF86*AQ86","v":0},7.3,{"$f":"AS86*AF86","v":1569.5},null,{"$f":"$F86*AU86","v":0},{"$f":"IF(AF86>0,AX86/AF86,0)","v":7.3},{"$f":"AL86+AN86+AP86+AR86+AT86+AV86","v":1569.5}]
[null,"Buildings and Equipment",null,null,null,null,null,null,null,null,null,null,null,null,null,null,null,null,null,null,null,null,null,null,null,null,null,"Buildings and Equipment"]
[" ","Disassembly - Goose Plant and Crusher",null,null,null,null,null,null,null,null,null,null,null,null,null,null,null,null,null,null,null,null,null,null,null,null,null,"Disassembly - Goose Plant and Crusher"]
[null,"Dismantle Plant",null,null,"x",{"$f":"ROUNDUP(6463.2,0)","v":6464},"m2",1,1,3200,95,{"$f":"J89*K89","v":304000},0,{"$f":"F89*M89","v":0},0,{"$f":"F89*O89","v":0},0,{"$f":"F89*Q89","v":0},100,{"$f":"J89*S89/3","v":106666.66666666667},0,{"$f":"$F89*U89","v":0},{"$f":"IF(F89>0,Y89/F89,0)","v":63.531353135313537},{"$f":"IF($F89>0,Z89/$F89,0)","v":64.611386138613867},{"$f":"L89+N89+P89+R89+T89+V89","v":410666.66666666669},{"$f":"Y89*(1+$Z$2)","v":417648},null,"Dismantle Plant",null,null,"x",{"$f":"ROUNDUP(6463.2,0)","v":6464},"m2",1,1,3200,95,{"$f":"AJ89*AK89","v":304000},0,{"$f":"AF89*AM89","v":0},0,{"$f":"AF89*AO89","v":0},0,{"$f":"AF89*AQ89","v":0},100,{"$f":"AJ89*AS89/3","v":106666.66666666667},0,{"$f":"$F89*AU89","v":0},{"$f":"IF(AF89>0,AX89/AF89,0)","v":63.531353135313537},{"$f":"AL89+AN89+AP89+AR89+AT89+AV89","v":410666.66666666669}]
[null,"Dismantle Crushers",null,null,"x",1630,"m2",1,1,800,95,{"$f":"J90*K90","v":76000},0,{"$f":"F90*M90","v":0},0,{"$f":"F90*O90","v":0},0,{"$f":"F90*Q90","v":0},100,{"$f":"J90*S90/3","v":26666.666666666668},0,{"$f":"$F90*U90","v":0},{"$f":"IF(F90>0,Y90/F90,0)","v":62.985685071574643},64.056441717791415,{"$f":"L90+N90+P90+R90+T90+V90","v":102666.66666666667},{"$f":"Y90*(1+$Z$2)","v":104412},null,"Dismantle Crushers",null,null,"x",1630,"m2",1,1,800,95,{"$f":"AJ90*AK90","v":76000},0,{"$f":"AF90*AM90","v":0},0,{"$f":"AF90*AO90","v":0},0,{"$f":"AF90*AQ90","v":0},100,{"$f":"AJ90*AS90/3","v":26666.666666666668},0,{"$f":"$F90*AU90","v":0},{"$f":"IF(AF90>0,AX90/AF90,0)","v":62.985685071574643},{"$f":"AL90+AN90+AP90+AR90+AT90+AV90","v":102666.66666666667}]
[null,"Dismantle Power Plant",null,null,"x",2040,"m2",1,1,1000,95,{"$f":"J91*K91","v":95000},0,{"$f":"F91*M91","v":0},0,{"$f":"F91*O91","v":0},0,{"$f":"F91*Q91","v":0},100,{"$f":"J91*S91/3","v":33333.333333333336},0,{"$f":"$F91*U91","v":0},{"$f":"IF(F91>0,Y91/F91,0)","v":62.908496732026151},63.977941176470587,{"$f":"L91+N91+P91+R91+T91+V91","v":128333.33333333334},{"$f":"Y91*(1+$Z$2)","v":130515},null,"Dismantle Power Plant",null,null,"x",2040,"m2",1,1,1000,95,{"$f":"AJ91*AK91","v":95000},0,{"$f":"AF91*AM91","v":0},0,{"$f":"AF91*AO91","v":0},0,{"$f":"AF91*AQ91","v":0},100,{"$f":"AJ91*AS91/3","v":33333.333333333336},0,{"$f":"$F91*AU91","v":0},{"$f":"IF(AF91>0,AX91/AF91,0)","v":62.908496732026151},{"$f":"AL91+AN91+AP91+AR91+AT91+AV91","v":128333.33333333334}]
[null,"Dismantle Emergency Power - Fuel",null,null,"x",300,"m2",1,1,150,95,{"$f":"J92*K92","v":14250},0,{"$f":"F92*M92","v":0},0,{"$f":"F92*O92","v":0},0,{"$f":"F92*Q92","v":0},100,{"$f":"J92*S92/3","v":5000},0,{"$f":"$F92*U92","v":0},{"$f":"IF(F92>0,Y92/F92,0)","v":64.166666666666671},65.257499999999993,{"$f":"L92+N92+P92+R92+T92+V92","v":19250},{"$f":"Y92*(1+$Z$2)","v":19577.249999999996},null,"Dismantle Emergency Power - Fuel",null,null,"x",300,"m2",1,1,150,95,{"$f":"AJ92*AK92","v":14250},0,{"$f":"AF92*AM92","v":0},0,{"$f":"AF92*AO92","v":0},0,{"$f":"AF92*AQ92","v":0},100,{"$f":"AJ92*AS92/3","v":5000},0,{"$f":"$F92*AU92","v":0},{"$f":"IF(AF92>0,AX92/AF92,0)","v":64.166666666666671},{"$f":"AL92+AN92+AP92+AR92+AT92+AV92","v":19250}]
[null,"Dismantle Fuel Storage and Distribution",null,null,"x",1,"Lot",1,1,1200,95,{"$f":"J93*K93","v":114000},0,{"$f":"F93*M93","v":0},0,{"$f":"F93*O93","v":0},0,{"$f":"F93*Q93","v":0},100,{"$f":"J93*S93/3","v":40000},0,{"$f":"$F93*U93","v":0},{"$f":"IF(F93>0,Y93/F93,0)","v":154000},156617.99999999997,{"$f":"L93+N93+P93+R93+T93+V93","v":154000},{"$f":"Y93*(1+$Z$2)","v":156617.99999999997},null,"Dismantle Fuel Storage and Distribution",null,null,"x",1,"Lot",1,1,1200,95,{"$f":"AJ93*AK93","v":114000},0,{"$f":"AF93*AM93","v":0},0,{"$f":"AF93*AO93","v":0},0,{"$f":"AF93*AQ93","v":0},100,{"$f":"AJ93*AS93/3","v":40000},0,{"$f":"$F93*AU93","v":0},{"$f":"IF(AF93>0,AX93/AF93,0)","v":154000},{"$f":"AL93+AN93+AP93+AR93+AT93+AV93","v":154000}]
[" ","Goose Admin Buildings",null,null,null,null,null,null,null,null,null,null,null,null,null,null,null,null,null,null,null,null,null,null,null,null,null,"Goose Admin Buildings"]
[null,"Demolish Truck Shop/Office",null,null,"x",2349.4499999999998,"m2",1,1,1000,95,{"$f":"J95*K95","v":95000},0,{"$f":"F95*M95","v":0},0,{"$f":"F95*O95","v":0},0,{"$f":"F95*Q95","v":0},100,{"$f":"S95*J95/3","v":33333.333333333336},0,{"$f":"$F95*U95","v":0},{"$f":"IF(F95>0,Y95/F95,0)","v":54.622713117254399},55.551299240247722,{"$f":"L95+N95+P95+R95+T95+V95","v":128333.33333333334},{"$f":"Y95*(1+$Z$2)","v":130515},null,"Demolish Truck Shop/Office",null,null,"x",2349.4499999999998,"m2",1,1,1000,95,{"$f":"AJ95*AK95","v":95000},0,{"$f":"AF95*AM95","v":0},0,{"$f":"AF95*AO95","v":0},0,{"$f":"AF95*AQ95","v":0},100,{"$f":"AS95*AJ95/3","v":33333.333333333336},0,{"$f":"$F95*AU95","v":0},{"$f":"IF(AF95>0,AX95/AF95,0)","v":54.622713117254399},{"$f":"AL95+AN95+AP95+AR95+AT95+AV95","v":128333.33333333334}]
[null,"Demolish Kitchen/Camp",null,null,"x",{"$f":"6*300*1.1","v":1980.0000000000002},"m2",1,1,900,95,85500,0,0,0,0,0,0,100,{"$f":"S96*J96/3","v":30000},0,0,{"$f":"IF(F96>0,Y96/F96,0)","v":58.333333333333329},59.324999999999989,115500,117463.49999999999,null,"Demolish Kitchen/Camp",null,null,"x",{"$f":"6*300*1.1","v":1980.0000000000002},"m2",1,1,900,95,85500,0,0,0,0,0,0,100,{"$f":"AS96*AJ96/3","v":30000},0,0,{"$f":"IF(AF96>0,AX96/AF96,0)","v":58.333333333333329},115500]
[null,"Demolish Cold Storage",null,"","x",840,"m2",1,1,150,95,14250,0,0,0,0,0,0,100,5000,0,0,22.916666666666668,23.306249999999995,19250,19577.249999999996,null,"Demolish Cold Storage",null,"","x",840,"m2",1,1,150,95,14250,0,0,0,0,0,0,100,5000,0,0,22.916666666666668,19250]
[null,"Demolish Waste/Waste Oil Storage",null,"","x",1,"Lot",1,1,100,null,0,0,0,0,0,null,0,100,3333.3333333333335,40000,40000,43333.333333333336,44070,43333.333333333336,44070,null,"Demolish Waste/Waste Oil Storage",null,"","x",1,"Lot",1,1,100,null,0,0,0,0,0,null,0,100,3333.3333333333335,40000,40000,43333.333333333336,43333.333333333336]
[null,"Remove Freight Storage",null,"","x",1,"Lot",1,1,150,95,14250,0,0,0,0,0,0,100,5000,0,0,19250,19577.249999999996,19250,19577.249999999996,null,"Remove Freight Storage",null,"","x",1,"Lot",1,1,150,95,14250,0,0,0,0,0,0,100,5000,0,0,19250,19250]
[null,"Demolish Water Treatment Plant",null,"","x",{"$f":"ROUNDUP(0.1*F89,0)","v":647},"m2",8,1,100,95,9500,0,0,0,0,0,0,100,3333.3333333333335,0,0,19.835136527563112,20.172333848531686,12833.333333333334,13051.5,null,"Demolish Water Treatment Plant",null,"","x",{"$f":"ROUNDUP(0.1*AF89,0)","v":647},"m2",8,1,100,95,9500,0,0,0,0,0,0,100,3333.3333333333335,0,0,19.835136527563112,12833.333333333334]
[null,"Demolish Sewage Treatment Plant",null,null,"x",1,"Lot",1,1,90,95,8550,0,0,0,0,0,0,100,3000,0,0,11550,11746.349999999999,11550,11746.349999999999,null,"Demolish Sewage Treatment Plant",null,null,"x",1,"Lot",1,1,90,95,8550,0,0,0,0,0,0,100,3000,0,0,11550,11550]
[" ","MLA Infrastructure",null,null,null,null,null,null,null,null,null,null,null,null,null,null,null,null,null,null,null,null,null,null,null,null,null,"MLA Infrastructure"]
[null,"Demolish Port Office",null,null,"x",5,"Units",12,1,{"$f":"H103*F103*I103","v":60},95,{"$f":"J103*K103","v":5700},0,{"$f":"F103*M103","v":0},0,{"$f":"F103*O103","v":0},0,{"$f":"F103*Q103","v":0},100,{"$f":"S103*J103","v":6000},0,{"$f":"$F103*U103","v":0},{"$f":"IF(F103>0,Y103/F103,0)","v":2340},2379.7799999999997,{"$f":"L103+N103+P103+R103+T103+V103","v":11700},{"$f":"Y103*(1+$Z$2)","v":11898.9},null,"Demolish Port Office",null,null,"x",5,"Units",12,1,{"$f":"AH103*AF103*AI103","v":60},95,{"$f":"AJ103*AK103","v":5700},0,{"$f":"AF103*AM103","v":0},0,{"$f":"AF103*AO103","v":0},0,{"$f":"AF103*AQ103","v":0},100,{"$f":"AS103*AJ103","v":6000},0,{"$f":"$F103*AU103","v":0},{"$f":"IF(AF103>0,AX103/AF103,0)","v":2340},{"$f":"AL103+AN103+AP103+AR103+AT103+AV103","v":11700}]
[null,"Remove Pipelines",null,null,"x",10000,"m",0.04,1,{"$f":"F104*H104*I104","v":400},95,{"$f":"J104*K104","v":38000},0,{"$f":"F104*M104","v":0},0,{"$f":"F104*O104","v":0},0,{"$f":"F104*Q104","v":0},155,{"$f":"S104*J104","v":62000},0,{"$f":"$F104*U104","v":0},{"$f":"IF(F104>0,Y104/F104,0)","v":10},10.169999999999998,{"$f":"L104+N104+P104+R104+T104+V104","v":100000},101699.99999999999,null,"Remove Pipelines",null,null,"x",10000,"m",0.04,1,{"$f":"AF104*AH104*AI104","v":400},95,{"$f":"AJ104*AK104","v":38000},0,{"$f":"AF104*AM104","v":0},0,{"$f":"AF104*AO104","v":0},0,{"$f":"AF104*AQ104","v":0},155,{"$f":"AS104*AJ104","v":62000},0,{"$f":"$F104*AU104","v":0},{"$f":"IF(AF104>0,AX104/AF104,0)","v":10},{"$f":"AL104+AN104+AP104+AR104+AT104+AV104","v":100000}]
[null,"Demolish Incinerator and Waste Management",null,null,"x",1,"Lot",1,1,50,95,{"$f":"J105*K105","v":4750},0,{"$f":"F105*M105","v":0},0,{"$f":"F105*O105","v":0},0,{"$f":"F105*Q105","v":0},100,5000,0,{"$f":"$F105*U105","v":0},{"$f":"IF(F105>0,Y105/F105,0)","v":9750},9915.7499999999982,{"$f":"L105+N105+P105+R105+T105+V105","v":9750},9915.7499999999982,null,"Demolish Incinerator and Waste Management",null,null,"x",1,"Lot",1,1,50,95,{"$f":"AJ105*AK105","v":4750},0,{"$f":"AF105*AM105","v":0},0,{"$f":"AF105*AO105","v":0},0,{"$f":"AF105*AQ105","v":0},100,5000,0,{"$f":"$F105*AU105","v":0},{"$f":"IF(AF105>0,AX105/AF105,0)","v":9750},{"$f":"AL105+AN105+AP105+AR105+AT105+AV105","v":9750}]
[null,"Demolish Warehouses",null,null,"x",1,"Lot",1,1,30,95,2850,0,0,0,0,0,0,100,3000,0,0,5850,5949.45,5850,5949.45,null,"Demolish Warehouses",null,null,"x",1,"Lot",1,1,30,95,2850,0,0,0,0,0,0,100,3000,0,0,5850,5850]
[null,"Dismantle Genset",null,null,"x",1,"Lot",1,1,150,95,14250,0,0,0,0,0,0,100,15000,0,0,29250,29747.249999999996,29250,29747.249999999996,null,"Dismantle Genset",null,null,"x",1,"Lot",1,1,150,95,14250,0,0,0,0,0,0,100,15000,0,0,29250,29250]
[null,"Demolish Maintenance Shop",null,null,"x",1,"Lot",1,1,50,95,4750,0,0,0,0,0,0,100,5000,0,0,9750,9915.7499999999982,9750,9915.7499999999982,null,"Demolish Maintenance Shop",null,null,"x",1,"Lot",1,1,50,95,4750,0,0,0,0,0,0,100,5000,0,0,9750,9750]
[null,"Demolish Water Storage",null,null,"x",1,"Lot",1,1,50,95,4750,0,0,0,0,0,0,100,5000,0,0,9750,9915.7499999999982,9750,9915.7499999999982,null,"Demolish Water Storage",null,null,"x",1,"Lot",1,1,50,95,4750,0,0,0,0,0,0,100,5000,0,0,9750,9750]
[null,"Demolish WTP/STP",null,null,"x",1,"Lot",1,1,50,95,4750,0,0,0,0,0,0,100,5000,0,0,9750,9915.7499999999982,9750,9915.7499999999982,null,"Demolish WTP/STP",null,null,"x",1,"Lot",1,1,50,95,4750,0,0,0,0,0,0,100,5000,0,0,9750,9750]
[null,"Demolish camp/offices",null,null,"x",1,"Lot",1,1,50,95,4750,0,0,0,0,0,0,100,5000,0,0,9750,9915.7499999999982,9750,9915.7499999999982,null,"Demolish camp/offices",null,null,"x",1,"Lot",1,1,50,95,4750,0,0,0,0,0,0,100,5000,0,0,9750,9750]
[null,"Demolish freight storage area",null,null,"x",1,"Lot",1,1,50,95,4750,0,0,0,0,0,0,100,5000,0,0,9750,9915.7499999999982,9750,9915.7499999999982,null,"Demolish freight storage area",null,null,"x",1,"Lot",1,1,50,95,4750,0,0,0,0,0,0,100,5000,0,0,9750,9750]
[null,"Demolish hazardous waste Area",null,null,"x",1,"Lot",1,1,50,95,4750,0,0,0,0,0,0,100,5000,0,0,9750,9915.7499999999982,9750,9915.7499999999982,null,"Demolish hazardous waste Area",null,null,"x",1,"Lot",1,1,50,95,4750,0,0,0,0,0,0,100,5000,0,0,9750,9750]
[null,"Dismantle Fuel Storage ","Includes MLA Fuel Storage area (60ML), and MLA Fuel Transfer Storage Area (0.5 ML)",null,"x",1,"Lot",1,1,{"$f":"1600*1.08","v":1728},95,164160,0,0,0,0,0,0,100,{"$f":"S114*J114/3","v":57600},0,0,221760,225529.91999999998,221760,225529.91999999998,null,"Dismantle Fuel Storage ",null,null,"x",1,"Lot",1,1,1600,95,152000,0,0,0,0,0,0,100,{"$f":"AS114*AJ114/3","v":53333.333333333336},0,0,205333.33333333334,205333.33333333334]
[" ","Goose Closure Camp",null,null,null,null,null,null,null,null,null,null,null,null,null,null,null,null,null,null,null,null,null,null,null,null,null,"Goose Closure Camp"]
[null,"Build 20 Person Camp",null,null,"x",1,"Lot",1,1,150,95,{"$f":"J116*K116","v":14250},0,{"$f":"F116*M116","v":0},null,{"$f":"F116*O116","v":0},0,{"$f":"F116*Q116","v":0},100,{"$f":"J116*S116/3","v":5000},null,{"$f":"$F116*U116","v":0},{"$f":"IF(F116>0,Y116/F116,0)","v":19250},19577.249999999996,{"$f":"L116+N116+P116+R116+T116+V116","v":19250},{"$f":"Y116*(1+$Z$2)","v":19577.249999999996},null,"Build 20 Person Camp",null,null,"x",1,"Lot",1,1,150,95,{"$f":"AJ116*AK116","v":14250},0,{"$f":"AF116*AM116","v":0},null,{"$f":"AF116*AO116","v":0},0,{"$f":"AF116*AQ116","v":0},100,{"$f":"AJ116*AS116/3","v":5000},null,{"$f":"$F116*AU116","v":0},{"$f":"IF(AF116>0,AX116/AF116,0)","v":19250},{"$f":"AL116+AN116+AP116+AR116+AT116+AV116","v":19250}]
[null,"Build 20 Person Power Plant",null,null,"x",1,"Lot",1,1,150,95,{"$f":"J117*K117","v":14250},0,{"$f":"F117*M117","v":0},null,{"$f":"F117*O117","v":0},0,{"$f":"F117*Q117","v":0},100,{"$f":"J117*S117/3","v":5000},null,{"$f":"$F117*U117","v":0},{"$f":"IF(F117>0,Y117/F117,0)","v":19250},19577.249999999996,{"$f":"L117+N117+P117+R117+T117+V117","v":19250},19577.249999999996,null,"Build 20 Person Power Plant",null,null,"x",1,"Lot",1,1,150,95,{"$f":"AJ117*AK117","v":14250},0,{"$f":"AF117*AM117","v":0},null,{"$f":"AF117*AO117","v":0},0,{"$f":"AF117*AQ117","v":0},100,{"$f":"AJ117*AS117/3","v":5000},null,{"$f":"$F117*AU117","v":0},{"$f":"IF(AF117>0,AX117/AF117,0)","v":19250},{"$f":"AL117+AN117+AP117+AR117+AT117+AV117","v":19250}]
[null,"Camp Operation","Over 13 years of Closure and Post-Closure ",null,"x",12000,"Man Days",1,1,null,{"$f":"0","v":0},{"$f":"J118*K118","v":0},null,{"$f":"F118*M118","v":0},0,{"$f":"F118*O118","v":0},0,{"$f":"F118*Q118","v":0},0,{"$f":"F118*S118","v":0},110,{"$f":"$F118*U118","v":1320000},{"$f":"IF(F118>0,Y118/F118,0)","v":110},111.86999999999998,{"$f":"L118+N118+P118+R118+T118+V118","v":1320000},1342439.9999999998,null,"Camp Operation","Over 13 years of Closure and Post-Closure ",null,"x",12000,"Man Days",1,1,null,{"$f":"0","v":0},{"$f":"AJ118*AK118","v":0},null,{"$f":"AF118*AM118","v":0},0,{"$f":"AF118*AO118","v":0},0,{"$f":"AF118*AQ118","v":0},0,{"$f":"AF118*AS118","v":0},110,{"$f":"$F118*AU118","v":1320000},{"$f":"IF(AF118>0,AX118/AF118,0)","v":110},{"$f":"AL118+AN118+AP118+AR118+AT118+AV118","v":1320000}]
[null,"Roads and Airstrips",null,null,null,null,null,null,null,null,null,null,null,null,null,null,null,null,null,null,null,null,null,null,null,null,null,"Roads and Airstrips"]
[null,"Main Haul road",null,null,null,null,null,null,null,null,null,null,null,null,null,null,null,null,null,null,null,null,null,null,null,null,null,"Main Haul road"]
[null,"Maintain Road Surface",null,null,"x",13,"Yr",70,1,{"$f":"F121*H121*I121","v":910},95,{"$f":"J121*K121","v":86450},0,{"$f":"F121*M121","v":0},0,{"$f":"F121*O121","v":0},0,{"$f":"F121*Q121","v":0},100,{"$f":"S121*J121","v":91000},null,{"$f":"$F121*U121","v":0},{"$f":"IF(F121>0,Y121/F121,0)","v":13650},{"$f":"IF($F121>0,Z121/$F121,0)","v":13882.05},{"$f":"SUM(L121,N121,P121,R121,T121,V121)","v":177450},{"$f":"Y121*(1+$Z$2)","v":180466.65},null,"Maintain Road Surface",null,null,"x",13,"Yr",70,1,{"$f":"AF121*AH121*AI121","v":910},95,{"$f":"AJ121*AK121","v":86450},0,{"$f":"AF121*AM121","v":0},0,{"$f":"AF121*AO121","v":0},0,{"$f":"AF121*AQ121","v":0},100,{"$f":"AS121*AJ121","v":91000},null,{"$f":"$F121*AU121","v":0},{"$f":"IF(AF121>0,AX121/AF121,0)","v":13650},{"$f":"SUM(AL121,AN121,AP121,AR121,AT121,AV121)","v":177450}]
[null,"Restore Drainage","Remove Culverts",null,"x",1488,"m3",0.06,1,{"$f":"F122*H122*I122","v":89.28},null,{"$f":"J122*K122","v":0},0,{"$f":"F122*M122","v":0},0,{"$f":"F122*O122","v":0},0,{"$f":"F122*Q122","v":0},11,{"$f":"S122*F122","v":16368},null,{"$f":"$F122*U122","v":0},{"$f":"IF(F122>0,Y122/F122,0)","v":11},11.186999999999998,{"$f":"T122","v":16368},16646.255999999998,null,"Restore Drainage","Remove Culverts",null,"x",1488,"m3",0.06,1,{"$f":"AF122*AH122*AI122","v":89.28},null,{"$f":"AJ122*AK122","v":0},0,{"$f":"AF122*AM122","v":0},0,{"$f":"AF122*AO122","v":0},0,{"$f":"AF122*AQ122","v":0},11,{"$f":"AS122*AF122","v":16368},null,{"$f":"$F122*AU122","v":0},{"$f":"IF(AF122>0,AX122/AF122,0)","v":11},{"$f":"AT122","v":16368}]
[null,"Airstrips",null,null,null,null,null,null,null,null,null,null,null,null,null,null,null,null,null,null,null,null,null,null,null,null,null,"Airstrips"]
[null,"Maintain Airstrip Surface",null,null,"x",13,"Yr",20,1,{"$f":"F124*H124*I124","v":260},95,{"$f":"J124*K124","v":24700},0,{"$f":"F124*M124","v":0},0,{"$f":"F124*O124","v":0},0,{"$f":"F124*Q124","v":0},100,{"$f":"S124*J124","v":26000},null,{"$f":"$F124*U124","v":0},{"$f":"IF(F124>0,Y124/F124,0)","v":3900},{"$f":"IF($F124>0,Z124/$F124,0)","v":3966.2999999999997},{"$f":"SUM(L124,N124,P124,R124,T124,V124)","v":50700},{"$f":"Y124*(1+$Z$2)","v":51561.899999999994},null,"Maintain Airstrip Surface",null,null,"x",13,"Yr",20,1,{"$f":"AF124*AH124*AI124","v":260},95,{"$f":"AJ124*AK124","v":24700},0,{"$f":"AF124*AM124","v":0},0,{"$f":"AF124*AO124","v":0},0,{"$f":"AF124*AQ124","v":0},100,{"$f":"AS124*AJ124","v":26000},null,{"$f":"$F124*AU124","v":0},{"$f":"IF(AF124>0,AX124/AF124,0)","v":3900},{"$f":"SUM(AL124,AN124,AP124,AR124,AT124,AV124)","v":50700}]
[null,"Restore Drainage","Updated for Modification Package",null,"x",1360,"m3",0.06,1,{"$f":"F125*H125*I125","v":81.599999999999994},null,{"$f":"J125*K125","v":0},0,{"$f":"F125*M125","v":0},0,{"$f":"F125*O125","v":0},0,{"$f":"F125*Q125","v":0},12,{"$f":"S125*F125","v":16320},null,{"$f":"$F125*U125","v":0},{"$f":"IF(F125>0,Y125/F125,0)","v":12},12.203999999999999,{"$f":"T125","v":16320},16597.439999999999,null,"Restore Drainage",null,null,"x",1020,"m3",0.06,1,{"$f":"AF125*AH125*AI125","v":61.199999999999996},null,{"$f":"AJ125*AK125","v":0},0,{"$f":"AF125*AM125","v":0},0,{"$f":"AF125*AO125","v":0},0,{"$f":"AF125*AQ125","v":0},12,{"$f":"AS125*AF125","v":12240},null,{"$f":"$F125*AU125","v":0},{"$f":"IF(AF125>0,AX125/AF125,0)","v":12},{"$f":"AT125","v":12240}]
[null,"Water Treatment",null,null,null,null,null,null,null,null,null,null,null,null,null,null,null,null,null,null,null,null,null,null,null,null,null,"Water Treatment"]
[null,"WTP Pipelines and Treatment Plant",null,null,null,null,null,null,null,null,null,null,null,null,null,null,null,null,null,null,null,null,null,null,null,null,null,"WTP Pipelines and Treatment Plant"]
[null,"Pump water from TSF to WTP","No treatment required during Closure; Maximum PAG Exposure in Year 2. Potential Water Treatment in this year at TSF with 2.1 Mm3 over 3 years.",null,"x",2100000,"m3",null,1,null,null,{"$f":"J128*K128","v":0},0,{"$f":"F128*M128","v":0},0,{"$f":"F128*O128","v":0},0,{"$f":"F128*Q128","v":0},0,{"$f":"S128*F128","v":0},0.11,{"$f":"$F128*U128","v":231000},{"$f":"IF(F128>0,Y128/F128,0)","v":0.11},{"$f":"IF($F128>0,Z128/$F128,0)","v":0.11186999999999998},{"$f":"L128+N128+P128+R128+T128+V128","v":231000},{"$f":"Y128*(1+$Z$2)","v":234926.99999999997},null,"Pump from Goose Main TF to WTP","Pump and treat water in TF at WTP for 7 years, open water season",null,"x",7500000,"m3",null,1,null,null,{"$f":"AJ128*AK128","v":0},0,{"$f":"AF128*AM128","v":0},0,{"$f":"AF128*AO128","v":0},0,{"$f":"AF128*AQ128","v":0},0,{"$f":"AS128*AF128","v":0},0.11,{"$f":"$F128*AU128","v":231000},{"$f":"IF(AF128>0,AX128/AF128,0)","v":3.0800000000000001E-2},{"$f":"AL128+AN128+AP128+AR128+AT128+AV128","v":231000}]
[null,"Treat water from TSF in WTP",null,null,"x",{"$f":"$F$128","v":2100000},"m3",null,1,{"$f":"365*5.25","v":1916.25},null,0,0,0,0,0,0,0,0,0,0.35,735000,{"$f":"IF(F129>0,Y129/F129,0)","v":0.35},0.35594999999999993,735000,747494.99999999988,null,"Treat water from Goose Main TF in TWP",null,null,"x",7500000,"m3",null,1,{"$f":"365*5.25","v":1916.25},null,0,0,0,0,0,0,0,0,0,0.35,735000,{"$f":"IF(AF129>0,AX129/AF129,0)","v":9.8000000000000004E-2},735000]
[null,"Pump water out of  WTP",null,null,"x",{"$f":"$F$128","v":2100000},"m3",null,1,{"$f":"F130*H130*I130","v":0},null,0,0,0,0,0,0,0,0,0,0.11,231000,0.11,0.11186999999999998,231000,234926.99999999997,null,"Pump from WTP recirc. into Goose Main TF",null,null,"x",7500000,"m3",null,1,{"$f":"AF130*AH130*AI130","v":0},null,0,0,0,0,0,0,0,0,0,0.11,231000,3.0800000000000001E-2,231000]
[null,"Decommission WTP pump and pipeline",null,null,"x",6700,"m",0.04,1,{"$f":"F131*H131*I131+24","v":292},95,27740,0,0,0,0,0,0,155,{"$f":"S131*J131","v":45260},null,0,10.895522388059701,11.080746268656716,{"$f":"L131+N131+P131+R131+T131+V131","v":73000},74241,null,"Decommission WTP pump and pipeline",null,null,"x",6700,"m",0.04,1,{"$f":"AF131*AH131*AI131+24","v":292},95,27740,0,0,0,0,0,0,155,{"$f":"AS131*AJ131","v":45260},null,0,10.895522388059701,{"$f":"AL131+AN131+AP131+AR131+AT131+AV131","v":73000}]
[null,"Decommission WTP pump and return pipeline",null,null,"x",820,"m",0.04,1,{"$f":"F132*H132*I132+24","v":56.8},95,5396,0,0,0,0,0,0,155,{"$f":"S132*J132","v":8804},null,0,17.317073170731707,17.611463414634144,{"$f":"L132+N132+P132+R132+T132+V132","v":14200},14441.399999999998,null,"Decommission WTP pump and return pipeline",null,null,"x",820,"m",0.04,1,{"$f":"AF132*AH132*AI132+24","v":56.8},95,5396,0,0,0,0,0,0,155,{"$f":"AS132*AJ132","v":8804},null,0,17.317073170731707,{"$f":"AL132+AN132+AP132+AR132+AT132+AV132","v":14200}]
[null,"Decommission WTP",null,null,"x",1,"Lot",null,1,50,95,4750,0,0,0,0,0,0,100,5000,null,0,9750,9915.7499999999982,9750,9915.7499999999982,null,"Decommission WTP",null,null,"x",1,"Lot",null,1,50,95,4750,0,0,0,0,0,0,100,5000,null,0,9750,{"$f":"AL133+AN133+AP133+AR133+AT133+AV133","v":9750}]
[null,"Contaminated Soil",null,null,null,null,null,null,null,null,null,null,null,null,null,null,null,null,null,null,null,null,null,null,null,null,null,"Contaminated Soil"]
[null,"Sitewide Investigation",null,null,null,null,null,null,null,null,null,null,null,null,null,null,null,null,null,null,null,null,null,null,null,null,null,"Sitewide Investigation"]
[null,"Site Investigation to estimate quantity of contaminated soil","Testpit program with excavator in all parking, fuel storage, washbays truck and maintenance shops and generator areas.",null,"x",1,"Lot",1,1,null,null,{"$f":"J136*K136","v":0},0,{"$f":"F136*M136","v":0},0,{"$f":"F136*O136","v":0},0,{"$f":"F136*Q136","v":0},0,{"$f":"S136*F136","v":0},null,50000,{"$f":"IF(F136>0,Y136/F136,0)","v":50000},{"$f":"IF($F136>0,Z136/$F136,0)","v":50849.999999999993},{"$f":"L136+N136+P136+R136+T136+V136","v":50000},{"$f":"Y136*(1+$Z$2)","v":50849.999999999993},null,"Site Investigation to estimate quantity of contaminated soil","Testpit program with excavator in all parking, fuel storage, washbays truck and maintenance shops and generator areas.",null,"x",1,"Lot",1,1,null,null,{"$f":"AJ136*AK136","v":0},0,{"$f":"AF136*AM136","v":0},0,{"$f":"AF136*AO136","v":0},0,{"$f":"AF136*AQ136","v":0},0,{"$f":"AS136*AF136","v":0},null,50000,{"$f":"IF(AF136>0,AX136/AF136,0)","v":50000},{"$f":"AL136+AN136+AP136+AR136+AT136+AV136","v":50000}]
[null,"Treatment",null,null,null,null,null,null,null,null,null,null,null,null,null,null,null,null,null,null,null,null,null,null,null,null,null,"Treatment"]
[null,"Transport contaminated soil",null,null,"x",10000,"m3",0.05,1,{"$f":"F138*H138*I138","v":500},null,{"$f":"J138*K138","v":0},0,{"$f":"F138*M138","v":0},0,{"$f":"F138*O138","v":0},0,{"$f":"F138*Q138","v":0},7.3,{"$f":"S138*F138","v":73000},null,{"$f":"$F138*U138","v":0},{"$f":"IF(F138>0,Y138/F138,0)","v":7.3},{"$f":"IF($F138>0,Z138/$F138,0)","v":7.4241000000000001},{"$f":"L138+N138+P138+R138+T138+V138","v":73000},{"$f":"Y138*(1+$Z$2)","v":74241},null,"Transport contaminated soil",null,null,"x",10000,"m3",0.05,1,{"$f":"AF138*AH138*AI138","v":500},null,{"$f":"AJ138*AK138","v":0},0,{"$f":"AF138*AM138","v":0},0,{"$f":"AF138*AO138","v":0},0,{"$f":"AF138*AQ138","v":0},7.3,{"$f":"AS138*AF138","v":73000},null,{"$f":"$F138*AU138","v":0},{"$f":"IF(AF138>0,AX138/AF138,0)","v":7.3},{"$f":"AL138+AN138+AP138+AR138+AT138+AV138","v":73000}]
[null,"Separation plant","Purchase separation equipment",null,"x",1,"Lot",1,1,null,null,{"$f":"J139*K139","v":0},0,{"$f":"F139*M139","v":0},0,{"$f":"F139*O139","v":0},0,{"$f":"F139*Q139","v":0},0,{"$f":"S139*F139","v":0},null,100000,{"$f":"IF(F139>0,Y139/F139,0)","v":100000},{"$f":"IF($F139>0,Z139/$F139,0)","v":101699.99999999999},{"$f":"L139+N139+P139+R139+T139+V139","v":100000},{"$f":"Y139*(1+$Z$2)","v":101699.99999999999},null,"Separation plant","Purchase separation equipment",null,"x",1,"Lot",1,1,null,null,{"$f":"AJ139*AK139","v":0},0,{"$f":"AF139*AM139","v":0},0,{"$f":"AF139*AO139","v":0},0,{"$f":"AF139*AQ139","v":0},0,{"$f":"AS139*AF139","v":0},null,100000,{"$f":"IF(AF139>0,AX139/AF139,0)","v":100000},{"$f":"AL139+AN139+AP139+AR139+AT139+AV139","v":100000}]
[null,"Closure / Post-Closure Monitoring",null,null,null,null,null,null,null,null,null,null,null,null,null,null,null,null,null,null,null,null,null,null,null,null,null,"Closure / Post-Closure Monitoring"]
[null,"Geotechnical Inspections",null,null,null,null,null,null,null,null,null,null,null,null,null,null,null,null,null,null,null,null,null,null,null,null,null,"Geotechnical Inspections"]
[null,"TSF embankments",null,null,"x",8,"Units",20,1,{"$f":"F142*H142*I142","v":160},null,{"$f":"J142*K142","v":0},0,{"$f":"F142*M142","v":0},0,{"$f":"F142*O142","v":0},0,{"$f":"F142*Q142","v":0},0,{"$f":"S142*F142","v":0},10000,{"$f":"$F142*U142","v":80000},{"$f":"IF(F142>0,Y142/F142,0)","v":10000},{"$f":"IF($F142>0,Z142/$F142,0)","v":10169.999999999998},{"$f":"L142+N142+P142+R142+T142+V142","v":80000},{"$f":"Y142*(1+$Z$2)","v":81359.999999999985},null,"TSF embankments",null,null,"x",8,"Units",20,1,{"$f":"AF142*AH142*AI142","v":160},null,{"$f":"AJ142*AK142","v":0},0,{"$f":"AF142*AM142","v":0},0,{"$f":"AF142*AO142","v":0},0,{"$f":"AF142*AQ142","v":0},0,{"$f":"AS142*AF142","v":0},10000,{"$f":"$F142*AU142","v":80000},{"$f":"IF(AF142>0,AX142/AF142,0)","v":10000},{"$f":"AL142+AN142+AP142+AR142+AT142+AV142","v":80000}]
[null,"WR piles",null,null,"x",13,"Units",20,1,{"$f":"F143*H143*I143","v":260},null,{"$f":"J143*K143","v":0},0,{"$f":"F143*M143","v":0},0,{"$f":"F143*O143","v":0},0,{"$f":"F143*Q143","v":0},0,{"$f":"S143*F143","v":0},8300,{"$f":"$F143*U143","v":107900},{"$f":"IF(F143>0,Y143/F143,0)","v":8300},8441.0999999999985,{"$f":"(L143+N143+P143+R143+T143+V143)","v":107900},109734.29999999999,null,"WR piles",null,null,"x",13,"Units",20,1,{"$f":"AF143*AH143*AI143","v":260},null,{"$f":"AJ143*AK143","v":0},0,{"$f":"AF143*AM143","v":0},0,{"$f":"AF143*AO143","v":0},0,{"$f":"AF143*AQ143","v":0},0,{"$f":"AS143*AF143","v":0},8300,{"$f":"$F143*AU143","v":107900},{"$f":"IF(AF143>0,AX143/AF143,0)","v":8300},{"$f":"(AL143+AN143+AP143+AR143+AT143+AV143)","v":107900}]
[null,"Pit walls",null,null,"x",13,"Units",20,1,{"$f":"F144*H144*I144","v":260},null,{"$f":"J144*K144","v":0},0,{"$f":"F144*M144","v":0},0,{"$f":"F144*O144","v":0},0,{"$f":"F144*Q144","v":0},0,{"$f":"S144*F144","v":0},4000,{"$f":"$F144*U144","v":52000},{"$f":"IF(F144>0,Y144/F144,0)","v":4000},4067.9999999999995,{"$f":"(L144+N144+P144+R144+T144+V144)","v":52000},52883.999999999993,null,"Pit walls",null,null,"x",13,"Units",20,1,{"$f":"AF144*AH144*AI144","v":260},null,{"$f":"AJ144*AK144","v":0},0,{"$f":"AF144*AM144","v":0},0,{"$f":"AF144*AO144","v":0},0,{"$f":"AF144*AQ144","v":0},0,{"$f":"AS144*AF144","v":0},4000,{"$f":"$F144*AU144","v":52000},{"$f":"IF(AF144>0,AX144/AF144,0)","v":4000},{"$f":"(AL144+AN144+AP144+AR144+AT144+AV144)","v":52000}]
[null,"Ground Temperature Monitoring",null,null,null,null,null,null,null,null,null,null,null,null,null,null,null,null,null,null,null,null,null,null,null,null,null,"Ground Temperature Monitoring"]
[null,"Umwelt WRSA GTC Monitoring after Closure","Monthly",null,"x",13,"Years",24,1,{"$f":"F146*H146*I146","v":312},200,{"$f":"J146*K146","v":62400},0,{"$f":"F146*M146","v":0},0,{"$f":"F146*O146","v":0},0,{"$f":"F146*Q146","v":0},0,{"$f":"S146*F146","v":0},null,{"$f":"F146*U146","v":0},{"$f":"IF(F146>0,Y146/F146,0)","v":4800},{"$f":"IF($F146>0,Z146/$F146,0)","v":4881.5999999999995},{"$f":"L146+N146+P146+R146+T146+V146","v":62400},{"$f":"Y146*(1+$Z$2)","v":63460.799999999996},null,"Umwelt WRSA GTC Monitoring after Closure","Monthly",null,"x",13,"Years",24,1,{"$f":"AF146*AH146*AI146","v":312},200,{"$f":"AJ146*AK146","v":62400},0,{"$f":"AF146*AM146","v":0},0,{"$f":"AF146*AO146","v":0},0,{"$f":"AF146*AQ146","v":0},0,{"$f":"AS146*AF146","v":0},null,{"$f":"AF146*AU146","v":0},{"$f":"IF(AF146>0,AX146/AF146,0)","v":4800},{"$f":"AL146+AN146+AP146+AR146+AT146+AV146","v":62400}]
[null,"Llama WRSA GTC Monitoring after Closure","Monthly",null,"x",13,"Years",24,1,312,200,62400,0,0,0,0,0,0,0,0,null,0,4800,4881.5999999999995,62400,63460.799999999996,null,"Llama WRSA GTC Monitoring after Closure","Monthly",null,"x",13,"Years",24,1,312,200,62400,0,0,0,0,0,0,0,0,null,0,4800,62400]
[null,"TSF WRSA GTC Monitoring after Closure","Monthly",null,"x",13,"Years",24,1,312,200,62400,0,0,0,0,0,0,0,0,null,0,4800,4881.5999999999995,62400,63460.799999999996,null,"TSF WRSA GTC Monitoring after Closure","Monthly",null,"x",13,"Years",24,1,312,200,62400,0,0,0,0,0,0,0,0,null,0,4800,62400]
[null,"WQ Monitoring - Closure",null,null,null,null,null,null,null,null,null,null,null,null,null,null,null,null,null,null,null,null,null,null,null,null,null,"WQ Monitoring - Closure"]
[null,"Llama pit","Depends on Breech",null,"x",13,"Years",12,1,156,95,{"$f":"J150*K150","v":14820},0,{"$f":"F150*M150","v":0},0,{"$f":"F150*O150","v":0},0,{"$f":"F150*Q150","v":0},0,{"$f":"S150*F150","v":0},null,{"$f":"F150*U150","v":0},{"$f":"IF(F150>0,Y150/F150,0)","v":1140},{"$f":"IF($F150>0,Z150/$F150,0)","v":1159.3799999999999},{"$f":"L150+N150+P150+R150+T150+V150","v":14820},{"$f":"Y150*(1+$Z$2)","v":15071.939999999999},null,"Llama pit","Depends on Breech",null,"x",13,"Years",12,1,{"$f":"AF150*AH150*AI150","v":156},95,{"$f":"AJ150*AK150","v":14820},0,{"$f":"AF150*AM150","v":0},0,{"$f":"AF150*AO150","v":0},0,{"$f":"AF150*AQ150","v":0},0,{"$f":"AS150*AF150","v":0},null,{"$f":"AF150*AU150","v":0},{"$f":"IF(AF150>0,AX150/AF150,0)","v":1140},{"$f":"AL150+AN150+AP150+AR150+AT150+AV150","v":14820}]
[null,"Llama WR Pile",null,null,"x",13,"Years",12,1,{"$f":"F151*H151*I151","v":156},95,{"$f":"J151*K151","v":14820},0,{"$f":"F151*M151","v":0},0,{"$f":"F151*O151","v":0},0,{"$f":"F151*Q151","v":0},0,{"$f":"S151*F151","v":0},null,{"$f":"F151*U151","v":0},{"$f":"IF(F151>0,Y151/F151,0)","v":1140},1159.3799999999999,{"$f":"L151+N151+P151+R151+T151+V151","v":14820},15071.939999999999,null,"Llama WR Pile",null,null,"x",13,"Years",12,1,156,95,14820,0,0,0,0,0,0,0,0,null,0,1140,14820]
[null,"Umwelt pit","Depends on Breach",null,"x",13,"Years",12,1,156,95,14820,0,0,0,0,0,0,0,0,null,0,1140,1159.3799999999999,14820,15071.939999999999,null,"Umwelt pit","Depends on Breach",null,"x",13,"Years",12,1,156,95,14820,0,0,0,0,0,0,0,0,null,0,1140,14820]
[null,"Umwelt WR Pile",null,null,"x",13,"Years",12,1,156,95,14820,0,0,0,0,0,0,0,0,null,0,1140,1159.3799999999999,14820,15071.939999999999,null,"Umwelt WR Pile",null,null,"x",13,"Years",12,1,156,95,14820,0,0,0,0,0,0,0,0,null,0,1140,14820]
[null,"Echo pit","Depends on Breach",null,"x",13,"Years",12,1,156,95,14820,0,0,0,0,0,0,0,0,null,0,1140,1159.3799999999999,14820,15071.939999999999,null,"Echo pit","Depends on Breach",null,"x",13,"Years",12,1,156,95,14820,0,0,0,0,0,0,0,0,null,0,1140,14820]
[null,"Echo WR pile",null,null,"x",13,"Years",12,1,156,95,14820,0,0,0,0,0,0,0,0,null,0,1140,1159.3799999999999,14820,15071.939999999999,null,"Echo WR pile",null,null,"x",13,"Years",12,1,156,95,14820,0,0,0,0,0,0,0,0,null,0,1140,14820]
[null,"Goose pit","Depends on Breach",null,"x",13,"Years",12,1,156,95,14820,0,0,0,0,0,0,0,0,null,0,1140,1159.3799999999999,14820,15071.939999999999,null,"Goose pit","Depends on Breach",null,"x",13,"Years",12,1,156,95,14820,0,0,0,0,0,0,0,0,null,0,1140,14820]
[null,"TSF WR Pile",null,null,"x",13,"Years",12,1,156,95,14820,0,0,0,0,0,0,0,0,null,0,1140,1159.3799999999999,14820,15071.939999999999,null,"TSF WR Pile",null,null,"x",13,"Years",12,1,156,95,14820,0,0,0,0,0,0,0,0,null,0,1140,14820]
[null,"Aquatic Effects monitoring",null,null,null,null,null,null,null,null,null,null,null,null,null,null,null,null,null,null,null,null,null,null,null,null,null,"Aquatic Effects monitoring"]
[null,"Aquatic effects monitoring","Non-contact Water Basins",null,"x",10,"Years",60,1,600,80,{"$f":"J159*K159","v":48000},0,{"$f":"F159*M159","v":0},0,{"$f":"F159*O159","v":0},0,{"$f":"F159*Q159","v":0},0,{"$f":"S159*F159","v":0},null,{"$f":"$F159*U159","v":0},{"$f":"IF(F159>0,Y159/F159,0)","v":4800},{"$f":"IF($F159>0,Z159/$F159,0)","v":4881.5999999999995},{"$f":"(L159+N159+P159+R159+T159+V159)","v":48000},{"$f":"Y159*(1+$Z$2)","v":48815.999999999993},null,"Aquatic effects monitoring","Non-contact Water Basins",null,"x",10,"Years",60,1,{"$f":"AF159*AH159*AI159","v":600},80,{"$f":"AJ159*AK159","v":48000},0,{"$f":"AF159*AM159","v":0},0,{"$f":"AF159*AO159","v":0},0,{"$f":"AF159*AQ159","v":0},0,{"$f":"AS159*AF159","v":0},null,{"$f":"$F159*AU159","v":0},{"$f":"IF(AF159>0,AX159/AF159,0)","v":4800},{"$f":"(AL159+AN159+AP159+AR159+AT159+AV159)","v":48000}]
[null,"Terrestrial Animal Monitoring",null,null,null,null,null,null,null,null,null,null,null,null,null,null,null,null,null,null,null,null,null,null,null,null,null,"Terrestrial Animal Monitoring"]
[null,"Terrestrial Animal Monitoring",null,null,"x",10,"Years",300,1,3000,80,{"$f":"J161*K161","v":240000},0,{"$f":"F161*M161","v":0},0,{"$f":"F161*O161","v":0},0,{"$f":"F161*Q161","v":0},0,{"$f":"S161*F161","v":0},null,{"$f":"$F161*U161","v":0},{"$f":"IF(F161>0,Y161/F161,0)","v":24000},{"$f":"IF($F161>0,Z161/$F161,0)","v":24407.999999999996},{"$f":"(L161+N161+P161+R161+T161+V161)","v":240000},{"$f":"Y161*(1+$Z$2)","v":244079.99999999997},null,"Terrestrial Animal Monitoring",null,null,"x",10,"Years",300,1,{"$f":"AF161*AH161*AI161","v":3000},80,{"$f":"AJ161*AK161","v":240000},0,{"$f":"AF161*AM161","v":0},0,{"$f":"AF161*AO161","v":0},0,{"$f":"AF161*AQ161","v":0},0,{"$f":"AS161*AF161","v":0},null,{"$f":"$F161*AU161","v":0},{"$f":"IF(AF161>0,AX161/AF161,0)","v":24000},{"$f":"(AL161+AN161+AP161+AR161+AT161+AV161)","v":240000}]
[null,"Total Direct Costs",null,null,null,null,null,null,null,null,null,null,null,null,null,null,null,null,null,null,null,null,null,null,{"$f":"SUM(Y5:Y161)","v":14197928.806666669},{"$f":"SUM(Z5:Z161)","v":14439293.596379997},null,"Total Direct Costs",null,null,null,null,null,null,null,null,null,null,null,null,null,null,null,null,null,null,null,null,null,{"$f":"SUM(AX5:AX161)","v":27427275.289999995}]
[" ","CONSTRUCTION INDIRECTS",null,null,null,null,null,null,null,null,null,null,null,null,null,null,null,null,null,null,null,null,null,null,null,null,null,"CONSTRUCTION INDIRECTS"]
[" ","Freight & Transport",null,null,null,null,null,null,null,null,null,null,null,null,null,null,null,null,null,null,null,null,null,null,null,null,null,"Freight & Transport"]
[null,"Food & Freight","Total Mandays factored",null,"x",{"$f":"F118*2.3","v":27599.999999999996},"kg",null,1,null,{"$f":"0","v":0},{"$f":"J165*K165","v":0},null,null,null,{"$f":"F165*O165","v":0},null,{"$f":"F165*Q165","v":0},null,{"$f":"F165*S165","v":0},12,{"$f":"$F165*U165","v":331199.99999999994},{"$f":"IF(F165>0,Y165/F165,0)","v":12},{"$f":"IF($F165>0,Z165/$F165,0)","v":12.203999999999999},{"$f":"(L165+N165+P165+R165+T165+V165)","v":331199.99999999994},{"$f":"Y165*(1+$Z$2)","v":336830.39999999991},null,"Food & Freight","Total Mandays factored",null,"x",{"$f":"AF118*2.3","v":27599.999999999996},"kg",null,1,null,{"$f":"0","v":0},{"$f":"AJ165*AK165","v":0},null,null,null,{"$f":"AF165*AO165","v":0},null,{"$f":"AF165*AQ165","v":0},null,{"$f":"AF165*AS165","v":0},12,{"$f":"$F165*AU165","v":331199.99999999994},{"$f":"IF(AF165>0,AX165/AF165,0)","v":12},{"$f":"(AL165+AN165+AP165+AR165+AT165+AV165)","v":331199.99999999994}]
[null,"Freight","Rental equip, offices, etc..","","x",1,"Lot",0,1,{"$f":"F166*H166*I166","v":0},{"$f":"0","v":0},{"$f":"J166*K166","v":0},0,{"$f":"F166*M166","v":0},0,{"$f":"F166*O166","v":0},0,{"$f":"F166*Q166","v":0},0,{"$f":"F166*S166","v":0},500000,{"$f":"$F166*U166","v":500000},{"$f":"IF(F166>0,Y166/F166,0)","v":500000},508499.99999999994,{"$f":"(L166+N166+P166+R166+T166+V166)","v":500000},{"$f":"Y166*(1+$Z$2)","v":508499.99999999994},null,"Freight","Rental equip, offices, etc..","","x",1,"Lot",0,1,{"$f":"AF166*AH166*AI166","v":0},{"$f":"0","v":0},{"$f":"AJ166*AK166","v":0},0,{"$f":"AF166*AM166","v":0},0,{"$f":"AF166*AO166","v":0},0,{"$f":"AF166*AQ166","v":0},0,{"$f":"AF166*AS166","v":0},500000,{"$f":"$F166*AU166","v":500000},{"$f":"IF(AF166>0,AX166/AF166,0)","v":500000},{"$f":"(AL166+AN166+AP166+AR166+AT166+AV166)","v":500000}]
[null,"Mobilization",null,null,"x",500,"Tonnes",null,null,null,null,null,null,null,null,null,null,null,null,null,1500,{"$f":"$F167*U167","v":750000},{"$f":"IF(F167>0,Y167/F167,0)","v":1500},1525.4999999999998,{"$f":"V167","v":750000},{"$f":"Y167*(1+$Z$2)","v":762749.99999999988},null,"Mobilization",null,null,"x",500,"Tonnes",null,null,null,null,null,null,null,null,null,null,null,null,null,1500,{"$f":"$F167*AU167","v":750000},{"$f":"IF(AF167>0,AX167/AF167,0)","v":1500},{"$f":"AV167","v":750000}]
[" ","General Construction Indirects",null,null,null,null,null,null,null,null,null,null,null,null,null,null,null,null,null,null,null,null,null,null,null,null,null,"General Construction Indirects"]
[null,"Site Services Labour",null,"","x",16000,"HRS",1,1,{"$f":"F169*H169*I169","v":16000},65,{"$f":"J169*K169","v":1040000},0,{"$f":"F169*M169","v":0},0,{"$f":"F169*O169","v":0},0,{"$f":"F169*Q169","v":0},0,{"$f":"F169*S169","v":0},0,{"$f":"$F169*U169","v":0},{"$f":"IF(F169>0,Y169/F169,0)","v":65},{"$f":"IF($F169>0,Z169/$F169,0)","v":66.105000000000004},{"$f":"(L169+N169+P169+R169+T169+V169)","v":1040000},{"$f":"Y169*(1+$Z$2)","v":1057680},null,"Site Services Labour",null,"","x",16000,"HRS",1,1,{"$f":"AF169*AH169*AI169","v":16000},65,{"$f":"AJ169*AK169","v":1040000},0,{"$f":"AF169*AM169","v":0},0,{"$f":"AF169*AO169","v":0},0,{"$f":"AF169*AQ169","v":0},0,{"$f":"AF169*AS169","v":0},0,{"$f":"$F169*AU169","v":0},{"$f":"IF(AF169>0,AX169/AF169,0)","v":65},{"$f":"(AL169+AN169+AP169+AR169+AT169+AV169)","v":1040000}]
[" ","Accommodations & Travel",null,null,null,null,null,null,null,null,null,null,null,null,null,null,null,null,null,null,null,null,null,null,null,null,null,"Accommodations & Travel"]
[null,"Camp Accommodations/Operation",null,null,"x",{"$f":"F118","v":12000},"Man Days",1,1,null,{"$f":"0","v":0},{"$f":"J171*K171","v":0},null,{"$f":"F171*M171","v":0},0,{"$f":"F171*O171","v":0},0,{"$f":"F171*Q171","v":0},0,{"$f":"F171*S171","v":0},110,{"$f":"$F171*U171","v":1320000},{"$f":"IF(F171>0,Y171/F171,0)","v":110},{"$f":"IF($F171>0,Z171/$F171,0)","v":111.86999999999998},{"$f":"(L171+N171+P171+R171+T171+V171)","v":1320000},{"$f":"Y171*(1+$Z$2)","v":1342439.9999999998},null,"Camp Accommodations/Operation",null,null,"x",{"$f":"AF118","v":12000},"Man Days",1,1,null,{"$f":"0","v":0},{"$f":"AJ171*AK171","v":0},null,{"$f":"AF171*AM171","v":0},0,{"$f":"AF171*AO171","v":0},0,{"$f":"AF171*AQ171","v":0},0,{"$f":"AF171*AS171","v":0},110,{"$f":"$F171*AU171","v":1320000},{"$f":"IF(AF171>0,AX171/AF171,0)","v":110},{"$f":"(AL171+AN171+AP171+AR171+AT171+AV171)","v":1320000}]
[null,"Airfare & Transportation",null,null,"x",{"$f":"ROUNDUP(F118/28,0)","v":429},"Each",0,1,null,{"$f":"0","v":0},{"$f":"J172*K172","v":0},0,{"$f":"F172*M172","v":0},0,{"$f":"F172*O172","v":0},0,{"$f":"F172*Q172","v":0},0,{"$f":"F172*S172","v":0},{"$f":"51521/90","v":572.45555555555552},{"$f":"$F172*U172","v":245583.43333333332},{"$f":"IF(F172>0,Y172/F172,0)","v":572.45555555555552},582.18729999999994,{"$f":"(L172+N172+P172+R172+T172+V172)","v":245583.43333333332},{"$f":"Y172*(1+$Z$2)","v":249758.35169999997},null,"Airfare & Transportation",null,null,"x",{"$f":"ROUNDUP(AF118/28,0)","v":429},"Each",0,1,null,{"$f":"0","v":0},{"$f":"AJ172*AK172","v":0},0,{"$f":"AF172*AM172","v":0},0,{"$f":"AF172*AO172","v":0},0,{"$f":"AF172*AQ172","v":0},0,{"$f":"AF172*AS172","v":0},{"$f":"51521/90","v":572.45555555555552},{"$f":"$F172*AU172","v":245583.43333333332},{"$f":"IF(AF172>0,AX172/AF172,0)","v":572.45555555555552},{"$f":"(AL172+AN172+AP172+AR172+AT172+AV172)","v":245583.43333333332}]
[" ","Contractor Profit",null,null,null,null,null,null,null,null,null,null,null,null,null,null,null,null,null,null,null,null,null,null,null,null,null,"Contractor Profit"]
[null,"Total Component Estimate",null,null,null,null,null,null,null,null,null,null,null,null,null,null,null,null,null,null,null,null,null,null,{"$f":"SUM(Y163:Y173)+Y162","v":18384712.240000002},{"$f":"SUM(Z163:Z173)+Z162","v":18697252.348079994},null,"Total Component Estimate",null,null,null,null,null,null,null,null,null,null,null,null,null,null,null,null,null,null,null,null,null,{"$f":"SUM(AX163:AX173)+AX162","v":31614058.723333329}]

{"sheet":"Unit_Costs","index":15,"n_rows":189,"n_cols":13,"rows_kept":189,"cut":false,"hidden":false,"merged":[]}
["Unit Cost Table (for refining unit costs see \"Estimator\" worksheet)"]
[null,null,null,"Filter by unit",null,"",""]
[null,null,null,null,null,"Inflation Rate",1.6999999999999901E-2,"",null,null,"Inflation Rate","n/a"]
["ITEM","Detail",null,"COST CODE","UNITS","LOW $","HIGH $","SPECIFIED $",null,"COMMENTS","LOW $","HIGH $","SPECIFIED $"]
[null,null,null,null,null,"","","",null,null,"","",""]
["Accomodation"]
[null,null,null,"ACCM","manday",{"$f":"K7*(1+$G$3)","v":101.69999999999999},{"$f":"L7*(1+$G$3)","v":177.97499999999999},{"$f":"M7*(1+$G$3)","v":0},null,null,100,175]
["Buildings - Decontaminate",null,null,null,null,"","","",null,null,"","",""]
[null,"Asbestos",null,"BDA","m2",{"$f":"K9*(1+$G$3)","v":26.0352},{"$f":"L9*(1+$G$3)","v":52.070399999999999},{"$f":"M9*(1+$G$3)","v":0},null,"Low: removal of asbestos siding & flooring; High: removal of insulated pipes, friable asbestos",25.6,51.2]
["Buildings - Remove",null,null,null,null,"","","",null,"Unit costs are based on 3m high, single storey building.  Scale areas accordingly.","","",""]
[null,"Wood",null,"BRW","m2",{"$f":"K11*(1+$G$3)","v":27.967499999999998},41.696999999999996,0,null,null,27.5,41]
[null,"Concrete",null,"BRC","m2",40.679999999999993,66.10499999999999,6.1019999999999994,null,"Specified: puncture concrete foundation slabs",40,65,6]
[null,"Steel - teardown",null,"BRS1","m2",45.764999999999993,66.10499999999999,0,null,null,45,65]
[null,"Steel - for salvage",null,"BRS2","m2",68.138999999999996,101.69999999999999,0,null,null,67,100]
["Concrete work",null,null,null,null,"","","",null,null,"","",""]
[null,"Small pour",null,"CSF","m3",{"$f":"K16*(1+$G$3)","v":433.75049999999993},650.62574999999993,0,null,"Low: YK; High=1.5xLow",426.5,639.75]
[null,"Large pour",null,"CLF","m3",359.50949999999995,539.26424999999995,2166.2099999999996,null,"Specified: concrete crown pillar",353.5,530.25,2130]
["Contaminated Soils",null,null,null,null,"","","",null,null,"","",""]
[null,"ESA Phase 1",null,"CS1","each",{"$f":"K19*(1+$G$3)","v":7627.4999999999991},0,0,null,"Low: small, \"clean\" site",7500]
[null,"ESA Phase 1",null,"CS2","each",50849.999999999993,0,0,null,"Low: small, \"clean\" site",50000]
[null,"Remediate on site",null,"CSR","m3",47.798999999999992,148.482,0,null,null,47,146]
["Dozing",null,null,null,null,"","","",null,null,"","",""]
[null,"doze rock piles",null,"DR","m3",{"$f":"K23*(1+$G$3)","v":1.06785},2.4407999999999999,0,null,"Low cost: doze crest off dump",1.05,2.4]
[null,"doze overburden/soil piles",null,"DS","m3",0.96614999999999984,3.8645999999999994,0,null,"High cost: push up to 300 m",0.95,3.8]
["Excavate Rock; Low Spec's and QA/QC",null,null,null,null,"","","",null,null,"","",""]
[null,"drill/blast/load/short haul",null,"RB1","m3",{"$f":"K26*(1+$G$3)","v":11.5938},17.339849999999998,0,null,"Low:quarry operations for bulk fill",11.4,17.05]
[null,"drill/blast/load/long haul",null,"RB2","m3",12.254849999999999,18.102599999999999,0,null,null,12.05,17.8]
[null,"RB1 + spread and compact",null,"RB3","m3",12.254849999999999,18.102599999999999,0,null,null,12.05,17.8]
[null,"RB2 + spread and compact",null,"RB4","m3",12.712499999999999,31.272749999999998,0,null,null,12.5,30.75]
[null,"Specified activity",null,"RBS","m3",0,0,7.1189999999999998,null,null,null,null,7]
["Excavate Rock; High Spec's and QA/QC ",null,null,null,null,"","","",null,"(e.g. ditch/spillway excavation)","","",""]
[null,"drill/blast/load/short haul",null,"RC1","m3",{"$f":"K32*(1+$G$3)","v":12.254849999999999},18.102599999999999,0,null,"Low:foundation excavation;High:spillway excavation",12.05,17.8]
[null,"drill/blast/load/long haul",null,"RC2","m3",12.915899999999999,18.712799999999998,0,null,null,12.7,18.399999999999999]
[null,"RC1 + spread and compact",null,"RC3","m3",12.915899999999999,18.712799999999998,0,null,"e,g, cover construction",12.7,18.399999999999999]
[null,"RC2 + spread and compact",null,"RC4","m3",13.729499999999998,19.526399999999999,0,null,"e,g, cover construction",13.5,19.2]
[null,"Specified activity",null,"RCS","m3",0,0,177.97499999999999,null,"Specified-drift excavation",null,null,175]
["Excavate Rip Rap",null,null,null,null,"","","",null,null,"","",""]
[null,"drill/blast/load/short haul/place",null,"RR1","m3",{"$f":"K38*(1+$G$3)","v":13.729499999999998},18.051749999999998,0,null,"High: quarry & place rip rap in channel",13.5,17.75]
[null,"drill/blast/load/long haul/place",null,"RR2","m3",14.441399999999998,21.001049999999996,0,null,null,14.2,20.65]
[null,"source is waste dump/short haul",null,"RR3","m3",7.1189999999999998,0,0,null,"cost includes sorting",7]
[null,"source is waste dump/long haul",null,"RR4","m3",7.7291999999999987,0,0,null,null,7.6]
[null,"Specified activity",null,"RRS","m3",0,0,0]
["Excavate Soil; Low Spec's and QA/QC",null,null,null,null,"","","",null,null,"","",""]
[null,"clear & grub",null,"SBC","m2",{"$f":"K44*(1+$G$3)","v":3.4577999999999998},5.0849999999999991,0,null,null,3.4,5]
[null,"excavate/load/short haul",null,"SB1","m3",4.3730999999999991,6.0003000000000002,0,null,null,4.3,5.9]
[null,"excavate/load/long haul",null,"SB2","m3",4.6781999999999995,7.4240999999999993,0,null,null,4.5999999999999996,7.3]
[null,"SB1 + spread and compact",null,"SB3","m3",5.1866999999999992,9.0512999999999995,0,null,"Low: non-engineered; High:engineered",5.0999999999999996,8.9]
[null,"SB2 + spread and compact",null,"SB4","m3",5.5934999999999997,11.186999999999999,0,null,"Low: non-engineered; High:engineered",5.5,11]
[null,"Specified activity",null,"SBS","m3",3.2544,6.4070999999999989,0,null,"Low: rehandle waste rock dump by dozing; High:rehandle waste rock by hauling",3.2,6.3]
[null,"Tailings ",null,"SBT","m3",1.3729499999999999,3.7628999999999997,15.763499999999999,null,"High:contour surface - wet or frozen; Specified:haul/place wet infill",1.35,3.7,15.5]
["Excavate Soil, High Spec's and QA/QC",null,null,null,null,"","","",null,null,"","",""]
[null,"excavate/load/short haul",null,"SC1","m3",{"$f":"K52*(1+$G$3)","v":6.9155999999999995},9.4581,0,null,null,6.8,9.3000000000000007]
[null,"excavate/load/long haul",null,"SC2","m3",7.220699999999999,11.949749999999998,0,null,null,7.1,11.75]
[null,"SC1 + spread and compact",null,"SC3","m3",9.0512999999999995,14.441399999999998,0,null,"Low: non-engineered; High:engineered",8.9,14.2]
[null,"SC2 + spread and compact",null,"SC4","m3",9.4581,23.594399999999997,0,null,"Low: non-engineered; High:engineered (e.g. complex covers, low volume dam construction)",9.3000000000000007,23.2]
[null,"Specified activity",null,"SCS","m3",0,0,19.119599999999998,null,"Backfill adit with waste rock",null,null,18.8]
["Fence",null,null,null,null,"","","",null,null,"","",""]
[null,null,null,"FNC","m",{"$f":"K58*(1+$G$3)","v":13.780349999999999},{"$f":"L58*(1+$G$3)","v":206.45099999999999},{"$f":"M58*(1+$G$3)","v":0},null,null,13.55,203]
["Fuel and Electricity",null,null,null,null,"","","",null,null,"","",""]
[null,"Fuel cost - gas",null,"FCG","litre",{"$f":"K60*(1+$G$3)","v":1.06785},1.4237999999999997,0,null,null,1.05,1.4]
[null,"Fuel cost - diesel",null,"FCD","litre",1.0068299999999999,1.4136299999999997,0,null,null,0.99,1.39]
[null,"Fuel mobilization",null,"FCM","litre",0.22373999999999997,0.42713999999999996,0,null,"High: winter road usage",0.22,0.42]
[null,"Electricity",null,"FCE","kW-h",0.17288999999999999,0.19322999999999999,0.49832999999999994,null,"Low and High:Yellowknife; Specified:diesel generator",0.17,0.19,0.49]
["Geo-Synthetics",null,null,null,null,"","","",null,null,"","",""]
[null,"geotextile",null,"GST","m2",{"$f":"K65*(1+$G$3)","v":3.4984799999999998},0,0,null,"Supply and install",3.44]
[null,"geogrid",null,"GSG","m2",5.8477499999999996,0,0,null,null,5.75]
[null,"liner, HDPE",null,"GSHDPE","m2",8.0851499999999987,0,0,null,"Supply and install; large quantity",7.95]
[null,"liner, ES3",null,"GSES3","m2",20.543399999999998,0,0,null,"FOB Yellowknife",20.2]
[null,"geosynthetic installation",null,"GSI","m2",3.2137199999999999,14.238,0,null,"Low:geotextile; High:ES3 or HDPE",3.16,14]
[null,"bentonite soil ammendment",null,"GSBA","tonne",313.54109999999997,354.42449999999997,0,null,"FOB Edmonton, add shipping & mixing",308.3,348.5]
["Grouting (/m3 of rock grouted)",null,null,null,null,"","","",null,null,"","",""]
[null,null,null,"grout","m3",{"$f":"K72*(1+$G$3)","v":240.57135},{"$f":"L72*(1+$G$3)","v":291.62474999999995},{"$f":"M72*(1+$G$3)","v":0},null,"High: cement, FOB Yellowknife",236.55,286.75]
["Labour & Equipment Rates",null,null,null,null,"","","",null,null,"","",""]
[null,"Site manager",null,"sman","$/hr",{"$f":"K74*(1+$G$3)","v":127.12499999999999},{"$f":"L74*(1+$G$3)","v":154.58399999999997},{"$f":"M74*(1+$G$3)","v":0},null,null,125,152]
[null,"Supervisor",null,"super","$/hr",52.883999999999993,93.40128,0,null,null,52,91.84]
[null,"Registered engineer",null,"eng","$/hr",96.614999999999995,223.73999999999998,0,null,null,95,220]
[null,"Environmental coordinator",null,"envco","$/hr",75.420719999999989,132.20999999999998,0,null,null,74.16,130]
[null,"Evironmental technologist",null,"envtech","$/hr",36.611999999999995,0,0,null,null,36]
[null,"Electrician",null,"elec","$/hr",75.257999999999996,96.614999999999995,0,null,null,74,95]
[null,"Journeyman - various",null,"journey","$/hr",44.747999999999998,73.010429999999999,0,null,null,44,71.790000000000006]
[null,"Labour - skilled ",null,"lab-s","$/hr",41.696999999999996,50.443199999999997,0,null,null,41,49.6]
[null,"Labour - unskilled",null,"lab-us","$/hr",31.526999999999997,44.727659999999993,0,null,null,31,43.98]
[null,"Equipment operator",null,"oper","$/hr",41.696999999999996,66.10499999999999,0,null,null,41,65]
[null,"Heavy duty mechanic",null,"mech","$/hr",49.832999999999998,74.08844999999998,0,null,null,49,72.849999999999994]
[null,"Water treatment plant operator",null,"oper-wt","$/hr",41.696999999999996,60.877619999999993,0,null,null,41,59.86]
[null,"Security / first aid",null,"safety","$/hr",36.611999999999995,68.108489999999989,0,null,null,36,66.97]
[null,"Administative staff",null,"admin","$/hr",38.645999999999994,58.874129999999994,0,null,null,38,57.89]
[]
[null,"Equipment rates include operator and fuel"]
[null,"Loader - 4 cu.yd (3.06m3)",null,"load-s","$/hr",{"$f":"K90*(1+$G$3)","v":177.97499999999999},{"$f":"L90*(1+$G$3)","v":0},{"$f":"M90*(1+$G$3)","v":0},null,null,175]
[null,"Loader - 7 cu.yd (5.35m3)",null,"load-l","$/hr",320.35499999999996,0,0,null,null,315]
[null,"Excavator - 26.76-30.84 tonnes",null,"exc-s","$/hr",193.23,0,0,null,null,190]
[null,"Excavator - 68.95+tonnes",null,"exc-l","$/hr",427.14,0,0,null,null,420]
[null,"Grader",null,"grad","$/hr",193.23,0,0,null,null,190]
[null,"Dump truck off hwy 30-50 tonnes",null,"truck-s","$/hr",228.82499999999999,0,0,null,null,225]
[null,"Dump truck off hwy 55-75 tonnes",null,"truck-l","$/hr",305.09999999999997,0,0,null,null,300]
[null,"dozer, small",null,"dozers","$/hr",208.48499999999999,264.41999999999996,0,null,null,205,260]
[null,"dozer, large",null,"dozerl","$/hr",498.32999999999993,574.6049999999999,0,null,null,490,565]
[null,"smooth drum compactor",null,"comp","$/hr",157.63499999999999,0,0,null,null,155]
[null,"scooptram, 6 yd3 bucket",null,"scoop","$/hr",172.89,0,0,null,null,170]
[null,"flat bed truck with hiab",null,"hiab","$/hr",157.63499999999999,0,0,null,null,155]
[null,"fuel truck",null,"ftruck","$/hr",152.54999999999998,0,0,null,null,150]
[null,"water truck",null,"wtruck","$/hr",58.985999999999997,152.54999999999998,0,null,null,58,150]
["Mobilize Heavy Equipment",null,null,null,null,"","","",null,null,"","",""]
[null,"Road access",null,"MHER","kmtonne",{"$f":"K105*(1+$G$3)","v":3.4577999999999998},{"$f":"L105*(1+$G$3)","v":10.424249999999999},{"$f":"M105*(1+$G$3)","v":0},null,null,3.4,10.25]
[null,"Air access",null,"MHEA","kmtonne",12.203999999999999,0,0,null,"cargo rate>500lb",12]
["Mobilize Camp",null,null,null,null,"","","",null,null,"","",""]
[null,"Road access",null,"MCR","each",{"$f":"K108*(1+$G$3)","v":50849.999999999993},{"$f":"L108*(1+$G$3)","v":0},{"$f":"M108*(1+$G$3)","v":0},null,"refurbish existing camp",50000]
["Mobilize Workers",null,null,null,null,"","","",null,null,"","",""]
[null,"flight",null,"MW","each",{"$f":"K110*(1+$G$3)","v":4576.5},{"$f":"L110*(1+$G$3)","v":9254.6999999999989},{"$f":"M110*(1+$G$3)","v":0},null,"Low:e.g. 8 passenger; High: Dash 7",4500,9100]
["Oil Removal",null,null,null,null,"","","",null,null,"","",""]
[null,"oil removal",null,"OR","litre",{"$f":"K112*(1+$G$3)","v":0.43730999999999998},{"$f":"L112*(1+$G$3)","v":1.2203999999999999},{"$f":"M112*(1+$G$3)","v":0},null,"Low:waste oil heater; High: ship offsite",0.43,1.2]
["PCB Removal"]
[null,"Remove from site",null,"PCBR","litre",{"$f":"K114*(1+$G$3)","v":40.883400000000002},{"$f":"L114*(1+$G$3)","v":47.697299999999991},{"$f":"M114*(1+$G$3)","v":0},null,"Low: shipping, handling & disposal from Yellowknife",40.200000000000003,46.9]
["Pipes, small (<6in dia.)",null,null,null,null,"","","",null,null,"","",""]
[null,"remove/dispose on site",null,"PSR","m",{"$f":"K116*(1+$G$3)","v":1.0169999999999999},24.407999999999998,0,null,"Low: remove/dispose on site; High: remove/re-use",1,24]
[null,"supply",null,"PSS","m",6.2036999999999987,11.288699999999999,0,null,"Low:supply; High:supply and ship",6.1,11.1]
[null,"install",null,"PSI","m",25.424999999999997,0,0,null,null,25]
["Pipes, large (>6in dia.)",null,null,null,null,"","","",null,null,"","",""]
[null,"remove/dispose on site",null,"PLR","m",{"$f":"K120*(1+$G$3)","v":22.373999999999999},73.22399999999999,0,null,"Low: remove/dispose on site; High: remove/re-use",22,72]
[null,"supply",null,"PLS","m",131.19299999999998,145.43099999999998,0,null,"Low:supply; High:supply and ship",129,143]
[null,"install",null,"PLI","m",50.849999999999994,0,0,null,null,50]
["Power Lines",null,null,null,null,"","","",null,null,"","",""]
[null,"remove/dispose on site",null,"POWR","m",{"$f":"K124*(1+$G$3)","v":25.933499999999999},{"$f":"L124*(1+$G$3)","v":0},{"$f":"M124*(1+$G$3)","v":0},null,null,25.5]
["Process Chemicals",null,null,null,null,"","","",null,null,"","",""]
[null,"Remove from site",null,"PCR","kg",{"$f":"K126*(1+$G$3)","v":0.45764999999999995},{"$f":"L126*(1+$G$3)","v":2.5424999999999995},{"$f":"M126*(1+$G$3)","v":0},null,"Low: shipping, handling & disposal from Yellowknife",0.45,2.5]
["Pumps",null,null,null,null,"","","",null,null,"","",""]
[null,"Pump capital cost",null,"PC","each",{"$f":"K128*(1+$G$3)","v":198314.99999999997},0,0,null,null,195000]
[null,"Pump shipping",null,"PS","each",2542.4999999999995,0,0,null,null,2500]
[null,"Pump operating cost",null,"POC","m3",0.12203999999999998,0,0,null,"pump operating costs should be calculated based on pump capacity, fuel costs, etc.",0.12]
[null,"Pump maintenance",null,"PM","allow",25424.999999999996,0,0,null,null,25000]
["Pump sand BackFill",null,null,null,null,"","","",null,null,"","",""]
[null,null,null,"PBF","m3",{"$f":"K133*(1+$G$3)","v":86.444999999999993},{"$f":"L133*(1+$G$3)","v":305.09999999999997},{"$f":"M133*(1+$G$3)","v":0},null,null,85,300]
["Scarify - road/mine site"]
[null,null,null,"SCFY","ha",{"$f":"K135*(1+$G$3)","v":4373.0999999999995},{"$f":"L135*(1+$G$3)","v":6132.5099999999993},{"$f":"M135*(1+$G$3)","v":2186.5499999999997},null,null,4300,6030,2150]
["Shaft, Raise & Portal Closures",null,null,null,null,"","","",null,null,"","",""]
[null,"Shaft & Raises",null,"SR","m2",{"$f":"K137*(1+$G$3)","v":655.96499999999992},2168.2439999999997,0,null,"Low:pre-cast concrete slabs, little site prep. Area=shaft+>1m all around",645,2132]
[null,"Portals",null,"POR","m3",19.119599999999998,254.24999999999997,1220.3999999999999,null,"Low:unit cost code SCS;High:excavate & backfill collapsed portal;Spec: installed pressure plug",18.8,250,1200]
["Site Inspection Report"]
[null,null,null,"RPT","each",{"$f":"K140*(1+$G$3)","v":10169.999999999998},{"$f":"L140*(1+$G$3)","v":20339.999999999996},{"$f":"M140*(1+$G$3)","v":0},null,null,10000,20000]
["SpillWay - Clear"]
[null,null,null,"SW","each",{"$f":"K142*(1+$G$3)","v":3050.9999999999995},{"$f":"L142*(1+$G$3)","v":7118.9999999999991},{"$f":"M142*(1+$G$3)","v":0},null,null,3000,7000]
["Survey/Instrumentation"]
[null,null,null,"SI","each",{"$f":"K144*(1+$G$3)","v":1830.6},{"$f":"L144*(1+$G$3)","v":3661.2},{"$f":"M144*(1+$G$3)","v":0},null,"2 person crew",1800,3600]
["Treatment Plant - Construct",null,null,null,null,"","","",null,null,"","",""]
[null,"Small (< 1000 m3/d)",null,"TPS","lump sum",{"$f":"K146*(1+$G$3)","v":9153000},{"$f":"L146*(1+$G$3)","v":15254999.999999998},{"$f":"M146*(1+$G$3)","v":0},null,null,9000000,15000000]
[null,"Large (> 1000 m3/d)",null,"TPL","lump sum",15254999.999999998,46781999.999999993,0,null,null,15000000,46000000]
[null,"Constructed Wetland",null,"CWTS","ha",203399.99999999997,305100,0,null,null,200000,300000]
["Treatment Plant - Operate"]
[null,null,null,"TPO","m3",{"$f":"K150*(1+$G$3)","v":0.35594999999999993},{"$f":"L150*(1+$G$3)","v":2.0339999999999998},{"$f":"M150*(1+$G$3)","v":0},null,null,0.35,2]
["Treatment Chemicals",null,null,null,null,"","","",null,null,"","",""]
[null,"ferric sulphate",null,"ferric","kg",{"$f":"K152*(1+$G$3)","v":1.2102299999999999},{"$f":"L152*(1+$G$3)","v":0},{"$f":"M152*(1+$G$3)","v":0},null,null,1.19]
[null,"ferrous sulphate",null,"ferrous","kg",1.3424399999999999,0,0,null,null,1.32]
[null,"lime",null,"lime","kg",0.56952000000000003,0,0,null,null,0.56000000000000005]
[null,"hydrogen peroxide, 35%",null,"hperox","kg",1.5254999999999999,0,0,null,null,1.5]
[null,"Sodium Metabisulfate",null,"Nametab","kg",1.2000599999999999,0,0,null,null,1.18]
[null,"Caustic soda, 50%",null,"caustic","kg",0.75257999999999992,0,0,null,null,0.74]
[null,"Sulfuric acid, 93%",null,"sulfuric","kg",0.31526999999999999,0,0,null,null,0.31]
[null,"flocculant",null,"flocc","kg",6.1019999999999994,0,0,null,null,6]
[null,"copper sulphate",null,"copper","kg",0,0,0]
[null,"shipping",null,"shipping","kg",0.2034,0,0,null,null,0.2]
["Vegetation",null,null,null,null,"","","",null,null,"","",""]
[null,"Hydroseed, Flat",null,"VHF","ha",{"$f":"K163*(1+$G$3)","v":4067.9999999999995},{"$f":"L163*(1+$G$3)","v":0},{"$f":"M163*(1+$G$3)","v":0},null,null,4000]
[null,"Hydroseed, Sloped",null,"VHS","ha",4576.5,0,0,null,null,4500]
[null,"Veg. blanket/erosion mat",null,"VB","ha",13220.999999999998,0,0,null,null,13000]
[null,"Tree planting",null,"VT","ha",2644.2,6101.9999999999991,0,null,null,2600,6000]
[null,"Wetland species",null,"VW","ha",0,0,48.531239999999997,null,"Specified= /m3, Wetland Growth Media Substrate mixed and installed (sand, biochar and fertilizer, woodchips)",null,null,47.72]
["Water Sampling/Analysis/Reporting"]
[null,null,null,"WS","each",{"$f":"K169*(1+$G$3)","v":7118.9999999999991},{"$f":"L169*(1+$G$3)","v":10169.999999999998},{"$f":"M169*(1+$G$3)","v":0},null,null,7000,10000]
["Winter Road"]
[null,"Construction",null,"WRC","km",{"$f":"K171*(1+$G$3)","v":2033.9999999999998},11695.499999999998,0,null,null,2000,11500]
[null,"Usage",null,"WRU","kmtonne",0.29492999999999997,0,0,null,null,0.28999999999999998]
[]
["Sabina Specific Costs",null,null,null,null,"","","",null,null,"","",""]
["OP Tab","Signs",null,null,"each",{"$f":"K175*(1+$G$3)","v":76.274999999999991},null,null,null,null,75]
["OP Tab","Block roads",null,null,"allow",5084.9999999999991,null,null,null,null,5000]
["OP Tab","Conduct stability and setback study",null,null,"allow",17289,null,null,null,null,17000]
["UG Tab","Remove misc. haz. mat & explosives",null,null,"kg",50.849999999999994,null,null,null,null,50]
["UG Tab","Assess underground stability",null,null,"each",10169.999999999998,null,null,null,null,10000]
["Bldgs & Equip Tab","Decontaminate and dispose on-site",null,null,"allow",20339.999999999996,null,null,null,null,20000]
["Bldgs & Equip Tab","Remove Buildings - WIR Service/Emergency Camps, total of 3 1-ha area for 3 camps; assume all structures will be sprung structures.",null,null,"LS",{"$f":"K181","v":75000},null,null,null,"Added during 2020 Mod Package; no inflation applied.",75000]
["Chemicals Tab","Contam. soil investigation - Phase 1",null,null,"allow",7627.4999999999991,null,null,null,null,7500]
["Chemicals Tab","Operate landfarm",null,null,"allow",50849.999999999993,null,null,null,null,50000]
["WM Tab","Remove Liner from all berms",null,null,"m2",0.71189999999999987,null,null,null,null,0.7]
["WM Tab","Decommission reclaim barge from Llama TF",null,null,"LS",10169.999999999998,null,null,null,null,10000]
["WT Tab","Treat water in WTP",null,null,"m3",0.66104999999999992,null,null,null,null,0.65]
["ICM Tab","misc. supplies",null,null,"allow",20339.999999999996,null,null,null,null,20000]
["PostClosure Tab","Regulatory costs",null,null,"year",25424.999999999996,null,null,null,null,25000]
["PostClosure Tab","General Water Sampling and Stability Monitoring",null,null,"year",40679.999999999993,null,null,null,null,40000]

{"sheet":"Estimator","index":16,"n_rows":55,"n_cols":15,"rows_kept":55,"cut":false,"hidden":false,"merged":[]}
[null,"Unit Cost Estimator",null,1,"Equipment Productivity Figures and Graphs have been reproduced from Caterpillar Performance Handbook - Edition 42 "]
[null,"EXCAVATION",null,null,null,null,"HAUL AND DUMPING",null,null,null,null,"SPREADING/DOZING"]
[null,"Productivity",null,null,null,null,"Productivity",null,null,null,null,"Productivity"]
[null,"Machine","Cat 336EL",null,null,null,"Machine","Cat 770",null,null,null,"Machine","Cat D8"]
[null,"bucket capacity",null,3.16,"m3",null,"truck capacity",null,25.1,"m3",null,"Estimate production using example curves provided or ",null,600,"m3/hr"]
[null,"fill factor",null,0.75,"%",null,"fill factor",null,0.8,"%",null,"equivalent from other supplier"]
[null,"cycle time",null,45,"seconds",null,null,null,null,null,null,"Correction factors (see table provided)"]
[null,"operator skill",null,0.8,"%",null,"load time",null,6,"min.",null,"      operator skill",null,0.75]
[null,"machine availability",null,0.83,"%",null,"haul distance",null,1.5,"km",null,"      material type, see table",null,0.8]
[null,"altitude adjustment",null,1,"%",null,"average velocity",null,20,"km/hr",null,"      slot dozing",null,1]
[null,"Hourly productivity",null,{"$f":"D5*D6*(60*60/D7)*D8*D9*D10","v":125.89440000000002},"m3/hr",null,"haul time + return time",null,{"$f":"+I9/I10*60*2","v":9},"min.",null,"     side by side dozing",null,1]
[null,null,null,null,null,null,"wait time",null,0.5,"min.",null,"     visibility",null,1]
[null,null,null,null,null,null,"dump time",null,1,"min.",null,"     job efficiency",null,0.83]
[null,null,null,null,null,null,"cycle time",null,{"$f":"I8+SUM(I11:I13)","v":16.5},"min.",null,"     altitude adjustment",null,1]
[null,null,null,null,null,null,"machine availability",null,0.83,"%",null,"     slope adjustment",null,1]
[null,null,null,null,null,null,"altitude adjustment",null,1,"%",null,"Hourly productivity",null,{"$f":"+N5*N8*N9*N10*N11*N12*N13*N14*N15","v":298.8},"m3/hr"]
[null,null,null,null,null,null,null,null,{"$f":"I14*I15*I16","v":13.694999999999999},"ave. min/cycle"]
[null,null,null,null,null,null,"Hourly productivity",null,{"$f":"I5*I6*60/I17","v":87.973713033954027},"m3/hr"]
[null,"Operating Costs",null,null,null,null,"Operating Costs",null,null,null,null,"Operating Costs"]
[null," - Contractor",null,null,null,null," - Contractor",null,null,null,null," - Contractor"]
[null,"Contractor  hourly rate",null,180,"$/hr",null,"Contractor  hourly rate",null,225,"$/hr",null,"Hourly rate - contractor supplied",null,260,"$/hr"]
[null,"Excavation cost - contractor rate",null,{"$f":"D21/D11","v":1.4297697117584258},"$/m3",null,"Haul and Dump - contractor rate",null,{"$f":"I21/I18","v":2.5575821713147402},"$/m3",null,"Dozing - contractor rate",null,{"$f":"N21/N16","v":0.8701472556894243},"$/m3"]
[]
[null," - Owner",null,null,null,null," - Owner",null,null,null,null," - Owner"]
[null,"ownership, daily",null,null,"$/day",null,"ownership, daily",null,null,"$/day",null,"ownership, daily",null,null,"$/day"]
[null,"maintenance",null,null,"$/hr",null,"maintenance",null,null,"$/hr",null,"maintenance",null,null,"$/hr"]
[null,"fuel",null,null,"$/hr",null,"fuel",null,null,"$/hr",null,"fuel",null,null,"$/hr"]
[null,"consumables (cutters, tires)",null,null,"$/hr",null,"consumables (cutters, tires)",null,null,"$/hr",null,"consumables (cutters, tires)",null,null,"$/hr"]
[null,"operator",null,null,"$/hr",null,"operator",null,null,"$/hr",null,"operator",null,null,"$/hr"]
[null,"Owner hourly rate",null,{"$f":"D25/10+SUM(D26:D29)","v":0},"$/hr",null,"Owner hourly rate",null,{"$f":"I25/10+SUM(I26:I29)","v":0},"$/hr",null,"Owner hourly rate",null,{"$f":"N25/10+SUM(N26:N29)","v":0}]
[null,"Excavation cost - owner rate",null,{"$f":"D30/D11","v":0},"$/m3",null,"Haul/Dumping Cost - owner rate",null,{"$f":"I30/I18","v":0},"$/m3",null,"Spreading/Dozing Cost - owner rate",null,{"$f":"N30/N16","v":0},"$/hr"]
[null,"Excavation cost - select contractor or owner rate (D22 or D31)",null,null,"$/m3",null,"Haul/Dumping Cost - select contractor or owner rate (I22 or I31",null,null,"$/m3",null,"Spreading/Dozing Cost - select contractor or owner rate (N22 or N31)",null,null,"$/m3"]
[]
[]
[]
[null,"Excavator",null,null,null,null,"Trucking",null,null,null,null,"Dozing"]
[null,null,"Cat 320","Cat 325B","Cat 375",null,null,"Cat 771 D","Cat 777D","Cat 789C"]
[null,"heaped bucket capacity, m3",1.5,2.2000000000000002,5.4,null,"Truck capacity - heaped, m3",27.5,60.5,137]
[null,null,null,"Typical Cycle Times (seconds)"]
[null,"easy digging, shallow digging, small swing angle",16,18,20]
[null,"med. to  hard digging, rocky soil, swing angle to 90 deg.",23,23,25]
[null,"tough digging, sandstone, caliche, at max.  machine depth, swing angle > 120 deg. ",27,29,35]
[]
[null,"Material","Fill Factor (% of heaped bucket capacity"]
[null,"Moist loam or sandy clay",null,"100 - 110"]
[null,"sand and gravel (not till)",null,"95 - 110"]
[null,"hard tough clay",null,"80 - 90"]
[null,"rock - will blasted",null,"60 - 75"]
[null,"rock - poorly blasted",null,"40 -60"]
[]
[null,"Operator Skill","poor","average","good"]
[null,"Correction factor",0.6,0.75,1]
[]
[null,"Machine availability","poor","average","good"]
[null,"Correction factor",0.9,0.95,1]

{"sheet":"Tools","index":17,"n_rows":12,"n_cols":12,"rows_kept":12,"cut":false,"hidden":false,"merged":[]}
["The functions in this worksheet serve as a back up in the event that the menu item \"Add-Ins\" is not shown in Excel menu bar"]
[]
[]
[null,null,"Save file before clearing all data"]
[]
[null,null,null,null,null,null,null,null,null,null,null,"These functions duplicate components within worksheet"]
[]
[]
[null,null,"Shows both active worksheet as well as table of Unit Costs in a separate window"]
[]
[]
[null,null,"Prints all worksheets having non-zero sums"]